Workbook

Sheet Portada
D2: Modelo Empresa Eficiente Fija
D3: Portada | J3: Modelo desarrollado por Dantzig Consultores (2017). www.dantzig.cl
D6: Versión Pública
D7: Todos los valores son referenciales y no tienen relación con la información privada de las empresas.
D9: Todos los parámetros anonimizados están marcados según el color de la siguiente celda
D10: anonimizado

Sheet Parámetros
A1: Modelo Empresa Eficiente Fija
A2: Parámetros
B4: Parámetros financieros
D6: Tasa de Costo de Capital [%] | E6: [%] | F6: 0.1 | G6: tcc | H6: Nota: Mismo valor que modelo móvil
D7: Tasa de Tributación [%] | E7: [%] | F7: 0.1 | G7: tax | H7: Nota: Confirmar con CRC
D8: Tipo de Cambio Dólar | E8: [$] | F8: 3000.71 | G8: tc.dolar | H8: Nota: 31 de diciembre de 2016
D9: Tipo de Cambio Euro | E9: [$] | F9: 3164.54876 | H9: Nota: 31 de diciembre de 2016
D10: Porcentaje de Contraprestaciones Mensuales | E10: [%] | F10: 0.1 | G10: porc.contraprestaciones | H10: Nota: Se aplica a tarifa final
D11: Razón Dólar/Euro | F11: =+F9/tc.dolar -> 1.054599998 | G11: raz.eur.dolar
D13: Parámetros
D14: Días Año | E14: [días] | F14: 365
D15: Dias de Facuturación | E15: [días] | F15: 1 | H15: Nota: Mismo valor que modelo móvil
D16: Valor Proporción Costo Capital | E16: [%] | F16: =F15/F14 -> 0.002739726027 | G16: r.trab
D18: Años de estudio | F18: 0 | G18: 1 | H18: 2 | I18: 3 | J18: 4 | K18: 5 | L18: años
D19: Años calendario | F19: 2016 | G19: 2017 | H19: 2018 | I19: 2019 | J19: 2020 | K19: 2021 | L19: años.calendario
D20: Columnas | F20: 1 | G20: 2 | H20: 3 | I20: 4 | J20: 5 | K20: 6 | L20: columnas
D22: Factor conversión a cargo por capacidad modelo móvil | F22: 1 | G22: porc.conv.cacc.cap.modelo.móvil
B25: Lista de departamentos
F27: Nota: Criterio de ordenamiento es el orden ascendente en el código DANE
F28: id | G28: Departamento | H28: aux.id.cap | I28: Municipio capital | J28: Check | K28: POI | L28: Nearest | M28: id Nearest
F29: 1 | G29: Antioquia | H29: 5001 | I29: Medellín | J29: =INDEX(list.dpto2mpio.nom,MATCH(H29,$F$68:$F$1189,0))=G29 -> TRUE | K29: 1 | L29: Medellín | M29: =SUM((L29=$I$29:$I$61)*$H$29:$H$61) -> 5001
F30: 2 | G30: Atlántico | H30: 8001 | I30: Barranquilla | J30: TRUE | K30: 1 | L30: Barranquilla | M30: =SUM((L30=$I$29:$I$61)*$H$29:$H$61) -> 8001
F31: 3 | G31: Bogotá, D.C. | H31: 11001 | I31: Bogotá, D.C. | J31: TRUE | K31: 1 | L31: Bogotá, D.C. | M31: =SUM((L31=$I$29:$I$61)*$H$29:$H$61) -> 11001
F32: 4 | G32: Bolívar | H32: 13001 | I32: Cartagena | J32: TRUE | K32: 0 | L32: Barranquilla | M32: =SUM((L32=$I$29:$I$61)*$H$29:$H$61) -> 8001
F33: 5 | G33: Boyacá | H33: 15001 | I33: Tunja | J33: TRUE | K33: 0 | L33: Bogotá, D.C. | M33: =SUM((L33=$I$29:$I$61)*$H$29:$H$61) -> 11001
F34: 6 | G34: Caldas | H34: 17001 | I34: Manizales | J34: TRUE | K34: 0 | L34: Medellín | M34: =SUM((L34=$I$29:$I$61)*$H$29:$H$61) -> 5001
F35: 7 | G35: Caquetá | H35: 18001 | I35: Florencia | J35: TRUE | K35: 0 | L35: Cali | M35: =SUM((L35=$I$29:$I$61)*$H$29:$H$61) -> 76001
F36: 8 | G36: Cauca | H36: 19001 | I36: Popayán | J36: TRUE | K36: 0 | L36: Cali | M36: =SUM((L36=$I$29:$I$61)*$H$29:$H$61) -> 76001
F37: 9 | G37: Cesar | H37: 20001 | I37: Valledupar | J37: TRUE | K37: 0 | L37: Barranquilla | M37: =SUM((L37=$I$29:$I$61)*$H$29:$H$61) -> 8001
F38: 10 | G38: Córdoba | H38: 23001 | I38: Montería | J38: TRUE | K38: 0 | L38: Barranquilla | M38: =SUM((L38=$I$29:$I$61)*$H$29:$H$61) -> 8001
F39: 11 | G39: Cundinamarca | H39: 25001 | I39: Agua de Dios | J39: TRUE | K39: 0 | L39: Bogotá, D.C. | M39: =SUM((L39=$I$29:$I$61)*$H$29:$H$61) -> 11001
F40: 12 | G40: Chocó | H40: 27001 | I40: Quibdó | J40: TRUE | K40: 0 | L40: Cali | M40: =SUM((L40=$I$29:$I$61)*$H$29:$H$61) -> 76001
F41: 13 | G41: Huila | H41: 41001 | I41: Neiva | J41: TRUE | K41: 0 | L41: Bogotá, D.C. | M41: =SUM((L41=$I$29:$I$61)*$H$29:$H$61) -> 11001
F42: 14 | G42: La Guajira | H42: 44001 | I42: Riohacha | J42: TRUE | K42: 0 | L42: Barranquilla | M42: =SUM((L42=$I$29:$I$61)*$H$29:$H$61) -> 8001
F43: 15 | G43: Magdalena | H43: 47001 | I43: Santa Marta | J43: TRUE | K43: 0 | L43: Barranquilla | M43: =SUM((L43=$I$29:$I$61)*$H$29:$H$61) -> 8001
F44: 16 | G44: Meta | H44: 50001 | I44: Villavicencio | J44: TRUE | K44: 0 | L44: Bogotá, D.C. | M44: =SUM((L44=$I$29:$I$61)*$H$29:$H$61) -> 11001
F45: 17 | G45: Nariño | H45: 52001 | I45: Pasto | J45: TRUE | K45: 0 | L45: Cali | M45: =SUM((L45=$I$29:$I$61)*$H$29:$H$61) -> 76001
F46: 18 | G46: Norte de Santander | H46: 54001 | I46: Cúcuta | J46: TRUE | K46: 0 | L46: Bogotá, D.C. | M46: =SUM((L46=$I$29:$I$61)*$H$29:$H$61) -> 11001
F47: 19 | G47: Quindio | H47: 63001 | I47: Armenia | J47: TRUE | K47: 0 | L47: Medellín | M47: =SUM((L47=$I$29:$I$61)*$H$29:$H$61) -> 5001
F48: 20 | G48: Risaralda | H48: 66001 | I48: Pereira | J48: TRUE | K48: 0 | L48: Medellín | M48: =SUM((L48=$I$29:$I$61)*$H$29:$H$61) -> 5001
F49: 21 | G49: Santander | H49: 68001 | I49: Bucaramanga | J49: TRUE | K49: 0 | L49: Bogotá, D.C. | M49: =SUM((L49=$I$29:$I$61)*$H$29:$H$61) -> 11001
F50: 22 | G50: Sucre | H50: 70001 | I50: Sincelejo | J50: TRUE | K50: 0 | L50: Barranquilla | M50: =SUM((L50=$I$29:$I$61)*$H$29:$H$61) -> 8001
F51: 23 | G51: Tolima | H51: 73001 | I51: Ibagué | J51: TRUE | K51: 0 | L51: Bogotá, D.C. | M51: =SUM((L51=$I$29:$I$61)*$H$29:$H$61) -> 11001
F52: 24 | G52: Valle del Cauca | H52: 76001 | I52: Cali | J52: TRUE | K52: 1 | L52: Cali | M52: =SUM((L52=$I$29:$I$61)*$H$29:$H$61) -> 76001
F53: 25 | G53: Arauca | H53: 81001 | I53: Arauca | J53: TRUE | K53: 0 | L53: Bogotá, D.C. | M53: =SUM((L53=$I$29:$I$61)*$H$29:$H$61) -> 11001
F54: 26 | G54: Casanare | H54: 85001 | I54: Yopal | J54: TRUE | K54: 0 | L54: Bogotá, D.C. | M54: =SUM((L54=$I$29:$I$61)*$H$29:$H$61) -> 11001
F55: 27 | G55: Putumayo | H55: 86001 | I55: Mocoa | J55: TRUE | K55: 0 | L55: Bogotá, D.C. | M55: =SUM((L55=$I$29:$I$61)*$H$29:$H$61) -> 11001
F56: 28 | G56: Archipiélago de San Andrés | H56: 88001 | I56: San Andrés | J56: TRUE | K56: 0 | L56: Bogotá, D.C. | M56: =SUM((L56=$I$29:$I$61)*$H$29:$H$61) -> 11001
F57: 29 | G57: Amazonas | H57: 91001 | I57: Leticia | J57: TRUE | K57: 0 | L57: Bogotá, D.C. | M57: =SUM((L57=$I$29:$I$61)*$H$29:$H$61) -> 11001
F58: 30 | G58: Guainía | H58: 94001 | I58: Inírida | J58: TRUE | K58: 0 | L58: Bogotá, D.C. | M58: =SUM((L58=$I$29:$I$61)*$H$29:$H$61) -> 11001
F59: 31 | G59: Guaviare | H59: 95001 | I59: San José del Guaviare | J59: TRUE | K59: 0 | L59: Bogotá, D.C. | M59: =SUM((L59=$I$29:$I$61)*$H$29:$H$61) -> 11001
F60: 32 | G60: Vaupés | H60: 97001 | I60: Mitú | J60: TRUE | K60: 0 | L60: Bogotá, D.C. | M60: =SUM((L60=$I$29:$I$61)*$H$29:$H$61) -> 11001
F61: 33 | G61: Vichada | H61: 99001 | I61: Puerto Carreño | J61: TRUE | K61: 0 | L61: Bogotá, D.C. | M61: =SUM((L61=$I$29:$I$61)*$H$29:$H$61) -> 11001
G62: list.dpto.nom | H62: list.depto.cod.dane | I62: list.depto.mpio.capital
B64: Lista de municipios
F66: Nota: Criterio de ordenamiento es el orden ascendente en el código DANE | I66: =+SUM(I68:I1189) -> 33 | J66: =+SUM(J68:J1189) -> 4
E67: id | F67: id DANE | G67: Departamento | H67: Municipio | I67: Aux.Cap | J67: Aux.POI | K67: Capital
E68: 1 | F68: 5001 | G68: Antioquia | H68: Medellín | I68: =IF(RIGHT(F68,3)="001",1,0) -> 1 | J68: 1 | K68: =SUM((G68=$G$29:$G$61)*$H$29:$H$61) -> 5001
E69: 2 | F69: 5002 | G69: Antioquia | H69: Abejorral | I69: 0 | J69: 0 | K69: =SUM((G69=$G$29:$G$61)*$H$29:$H$61) -> 5001
E70: 3 | F70: 5004 | G70: Antioquia | H70: Abriaquí | I70: 0 | J70: 0 | K70: =SUM((G70=$G$29:$G$61)*$H$29:$H$61) -> 5001
E71: 4 | F71: 5021 | G71: Antioquia | H71: Alejandría | I71: 0 | J71: 0 | K71: =SUM((G71=$G$29:$G$61)*$H$29:$H$61) -> 5001
E72: 5 | F72: 5030 | G72: Antioquia | H72: Amagá | I72: 0 | J72: 0 | K72: =SUM((G72=$G$29:$G$61)*$H$29:$H$61) -> 5001
E73: 6 | F73: 5031 | G73: Antioquia | H73: Amalfi | I73: 0 | J73: 0 | K73: =SUM((G73=$G$29:$G$61)*$H$29:$H$61) -> 5001
E74: 7 | F74: 5034 | G74: Antioquia | H74: Andes | I74: 0 | J74: 0 | K74: =SUM((G74=$G$29:$G$61)*$H$29:$H$61) -> 5001
E75: 8 | F75: 5036 | G75: Antioquia | H75: Angelópolis | I75: 0 | J75: 0 | K75: =SUM((G75=$G$29:$G$61)*$H$29:$H$61) -> 5001
E76: 9 | F76: 5038 | G76: Antioquia | H76: Angostura | I76: 0 | J76: 0 | K76: =SUM((G76=$G$29:$G$61)*$H$29:$H$61) -> 5001
E77: 10 | F77: 5040 | G77: Antioquia | H77: Anorí | I77: 0 | J77: 0 | K77: =SUM((G77=$G$29:$G$61)*$H$29:$H$61) -> 5001
E78: 11 | F78: 5042 | G78: Antioquia | H78: Santafé de Antioquia | I78: 0 | J78: 0 | K78: =SUM((G78=$G$29:$G$61)*$H$29:$H$61) -> 5001
E79: 12 | F79: 5044 | G79: Antioquia | H79: Anza | I79: 0 | J79: 0 | K79: =SUM((G79=$G$29:$G$61)*$H$29:$H$61) -> 5001
E80: 13 | F80: 5045 | G80: Antioquia | H80: Apartadó | I80: 0 | J80: 0 | K80: =SUM((G80=$G$29:$G$61)*$H$29:$H$61) -> 5001
E81: 14 | F81: 5051 | G81: Antioquia | H81: Arboletes | I81: 0 | J81: 0 | K81: =SUM((G81=$G$29:$G$61)*$H$29:$H$61) -> 5001
E82: 15 | F82: 5055 | G82: Antioquia | H82: Argelia | I82: 0 | J82: 0 | K82: =SUM((G82=$G$29:$G$61)*$H$29:$H$61) -> 5001
E83: 16 | F83: 5059 | G83: Antioquia | H83: Armenia | I83: 0 | J83: 0 | K83: =SUM((G83=$G$29:$G$61)*$H$29:$H$61) -> 5001
E84: 17 | F84: 5079 | G84: Antioquia | H84: Barbosa | I84: 0 | J84: 0 | K84: =SUM((G84=$G$29:$G$61)*$H$29:$H$61) -> 5001
E85: 18 | F85: 5086 | G85: Antioquia | H85: Belmira | I85: 0 | J85: 0 | K85: =SUM((G85=$G$29:$G$61)*$H$29:$H$61) -> 5001
E86: 19 | F86: 5088 | G86: Antioquia | H86: Bello | I86: 0 | J86: 0 | K86: =SUM((G86=$G$29:$G$61)*$H$29:$H$61) -> 5001
E87: 20 | F87: 5091 | G87: Antioquia | H87: Betania | I87: 0 | J87: 0 | K87: =SUM((G87=$G$29:$G$61)*$H$29:$H$61) -> 5001
E88: 21 | F88: 5093 | G88: Antioquia | H88: Betulia | I88: 0 | J88: 0 | K88: =SUM((G88=$G$29:$G$61)*$H$29:$H$61) -> 5001
E89: 22 | F89: 5101 | G89: Antioquia | H89: Ciudad Bolívar | I89: 0 | J89: 0 | K89: =SUM((G89=$G$29:$G$61)*$H$29:$H$61) -> 5001
E90: 23 | F90: 5107 | G90: Antioquia | H90: Briceño | I90: 0 | J90: 0 | K90: =SUM((G90=$G$29:$G$61)*$H$29:$H$61) -> 5001
E91: 24 | F91: 5113 | G91: Antioquia | H91: Buriticá | I91: 0 | J91: 0 | K91: =SUM((G91=$G$29:$G$61)*$H$29:$H$61) -> 5001
E92: 25 | F92: 5120 | G92: Antioquia | H92: Cáceres | I92: 0 | J92: 0 | K92: =SUM((G92=$G$29:$G$61)*$H$29:$H$61) -> 5001
E93: 26 | F93: 5125 | G93: Antioquia | H93: Caicedo | I93: 0 | J93: 0 | K93: =SUM((G93=$G$29:$G$61)*$H$29:$H$61) -> 5001
E94: 27 | F94: 5129 | G94: Antioquia | H94: Caldas | I94: 0 | J94: 0 | K94: =SUM((G94=$G$29:$G$61)*$H$29:$H$61) -> 5001
E95: 28 | F95: 5134 | G95: Antioquia | H95: Campamento | I95: 0 | J95: 0 | K95: =SUM((G95=$G$29:$G$61)*$H$29:$H$61) -> 5001
E96: 29 | F96: 5138 | G96: Antioquia | H96: Cañasgordas | I96: 0 | J96: 0 | K96: =SUM((G96=$G$29:$G$61)*$H$29:$H$61) -> 5001
E97: 30 | F97: 5142 | G97: Antioquia | H97: Caracolí | I97: 0 | J97: 0 | K97: =SUM((G97=$G$29:$G$61)*$H$29:$H$61) -> 5001
E98: 31 | F98: 5145 | G98: Antioquia | H98: Caramanta | I98: 0 | J98: 0 | K98: =SUM((G98=$G$29:$G$61)*$H$29:$H$61) -> 5001
E99: 32 | F99: 5147 | G99: Antioquia | H99: Carepa | I99: 0 | J99: 0 | K99: =SUM((G99=$G$29:$G$61)*$H$29:$H$61) -> 5001
E100: 33 | F100: 5148 | G100: Antioquia | H100: El Carmen de Viboral | I100: 0 | J100: 0 | K100: =SUM((G100=$G$29:$G$61)*$H$29:$H$61) -> 5001
E101: 34 | F101: 5150 | G101: Antioquia | H101: Carolina | I101: 0 | J101: 0 | K101: =SUM((G101=$G$29:$G$61)*$H$29:$H$61) -> 5001
E102: 35 | F102: 5154 | G102: Antioquia | H102: Caucasia | I102: 0 | J102: 0 | K102: =SUM((G102=$G$29:$G$61)*$H$29:$H$61) -> 5001
E103: 36 | F103: 5172 | G103: Antioquia | H103: Chigorodó | I103: 0 | J103: 0 | K103: =SUM((G103=$G$29:$G$61)*$H$29:$H$61) -> 5001
E104: 37 | F104: 5190 | G104: Antioquia | H104: Cisneros | I104: 0 | J104: 0 | K104: =SUM((G104=$G$29:$G$61)*$H$29:$H$61) -> 5001
E105: 38 | F105: 5197 | G105: Antioquia | H105: Cocorná | I105: 0 | J105: 0 | K105: =SUM((G105=$G$29:$G$61)*$H$29:$H$61) -> 5001
E106: 39 | F106: 5206 | G106: Antioquia | H106: Concepción | I106: 0 | J106: 0 | K106: =SUM((G106=$G$29:$G$61)*$H$29:$H$61) -> 5001
E107: 40 | F107: 5209 | G107: Antioquia | H107: Concordia | I107: 0 | J107: 0 | K107: =SUM((G107=$G$29:$G$61)*$H$29:$H$61) -> 5001
E108: 41 | F108: 5212 | G108: Antioquia | H108: Copacabana | I108: 0 | J108: 0 | K108: =SUM((G108=$G$29:$G$61)*$H$29:$H$61) -> 5001
E109: 42 | F109: 5234 | G109: Antioquia | H109: Dabeiba | I109: 0 | J109: 0 | K109: =SUM((G109=$G$29:$G$61)*$H$29:$H$61) -> 5001
E110: 43 | F110: 5237 | G110: Antioquia | H110: Don Matías | I110: 0 | J110: 0 | K110: =SUM((G110=$G$29:$G$61)*$H$29:$H$61) -> 5001
E111: 44 | F111: 5240 | G111: Antioquia | H111: Ebéjico | I111: 0 | J111: 0 | K111: =SUM((G111=$G$29:$G$61)*$H$29:$H$61) -> 5001
E112: 45 | F112: 5250 | G112: Antioquia | H112: El Bagre | I112: 0 | J112: 0 | K112: =SUM((G112=$G$29:$G$61)*$H$29:$H$61) -> 5001
E113: 46 | F113: 5264 | G113: Antioquia | H113: Entrerrios | I113: 0 | J113: 0 | K113: =SUM((G113=$G$29:$G$61)*$H$29:$H$61) -> 5001
E114: 47 | F114: 5266 | G114: Antioquia | H114: Envigado | I114: 0 | J114: 0 | K114: =SUM((G114=$G$29:$G$61)*$H$29:$H$61) -> 5001
E115: 48 | F115: 5282 | G115: Antioquia | H115: Fredonia | I115: 0 | J115: 0 | K115: =SUM((G115=$G$29:$G$61)*$H$29:$H$61) -> 5001
E116: 49 | F116: 5284 | G116: Antioquia | H116: Frontino | I116: 0 | J116: 0 | K116: =SUM((G116=$G$29:$G$61)*$H$29:$H$61) -> 5001
E117: 50 | F117: 5306 | G117: Antioquia | H117: Giraldo | I117: 0 | J117: 0 | K117: =SUM((G117=$G$29:$G$61)*$H$29:$H$61) -> 5001
E118: 51 | F118: 5308 | G118: Antioquia | H118: Girardota | I118: 0 | J118: 0 | K118: =SUM((G118=$G$29:$G$61)*$H$29:$H$61) -> 5001
E119: 52 | F119: 5310 | G119: Antioquia | H119: Gómez Plata | I119: 0 | J119: 0 | K119: =SUM((G119=$G$29:$G$61)*$H$29:$H$61) -> 5001
E120: 53 | F120: 5313 | G120: Antioquia | H120: Granada | I120: 0 | J120: 0 | K120: =SUM((G120=$G$29:$G$61)*$H$29:$H$61) -> 5001
E121: 54 | F121: 5315 | G121: Antioquia | H121: Guadalupe | I121: 0 | J121: 0 | K121: =SUM((G121=$G$29:$G$61)*$H$29:$H$61) -> 5001
E122: 55 | F122: 5318 | G122: Antioquia | H122: Guarne | I122: 0 | J122: 0 | K122: =SUM((G122=$G$29:$G$61)*$H$29:$H$61) -> 5001
E123: 56 | F123: 5321 | G123: Antioquia | H123: Guatapé | I123: 0 | J123: 0 | K123: =SUM((G123=$G$29:$G$61)*$H$29:$H$61) -> 5001
E124: 57 | F124: 5347 | G124: Antioquia | H124: Heliconia | I124: 0 | J124: 0 | K124: =SUM((G124=$G$29:$G$61)*$H$29:$H$61) -> 5001
E125: 58 | F125: 5353 | G125: Antioquia | H125: Hispania | I125: 0 | J125: 0 | K125: =SUM((G125=$G$29:$G$61)*$H$29:$H$61) -> 5001
E126: 59 | F126: 5360 | G126: Antioquia | H126: Itagui | I126: 0 | J126: 0 | K126: =SUM((G126=$G$29:$G$61)*$H$29:$H$61) -> 5001
E127: 60 | F127: 5361 | G127: Antioquia | H127: Ituango | I127: 0 | J127: 0 | K127: =SUM((G127=$G$29:$G$61)*$H$29:$H$61) -> 5001
E128: 61 | F128: 5364 | G128: Antioquia | H128: Jardín | I128: 0 | J128: 0 | K128: =SUM((G128=$G$29:$G$61)*$H$29:$H$61) -> 5001
E129: 62 | F129: 5368 | G129: Antioquia | H129: Jericó | I129: 0 | J129: 0 | K129: =SUM((G129=$G$29:$G$61)*$H$29:$H$61) -> 5001
E130: 63 | F130: 5376 | G130: Antioquia | H130: La Ceja | I130: 0 | J130: 0 | K130: =SUM((G130=$G$29:$G$61)*$H$29:$H$61) -> 5001
E131: 64 | F131: 5380 | G131: Antioquia | H131: La Estrella | I131: 0 | J131: 0 | K131: =SUM((G131=$G$29:$G$61)*$H$29:$H$61) -> 5001
E132: 65 | F132: 5390 | G132: Antioquia | H132: La Pintada | I132: =IF(RIGHT(F132,3)="001",1,0) -> 0 | J132: 0 | K132: =SUM((G132=$G$29:$G$61)*$H$29:$H$61) -> 5001
E133: 66 | F133: 5400 | G133: Antioquia | H133: La Unión | I133: 0 | J133: 0 | K133: =SUM((G133=$G$29:$G$61)*$H$29:$H$61) -> 5001
E134: 67 | F134: 5411 | G134: Antioquia | H134: Liborina | I134: 0 | J134: 0 | K134: =SUM((G134=$G$29:$G$61)*$H$29:$H$61) -> 5001
E135: 68 | F135: 5425 | G135: Antioquia | H135: Maceo | I135: 0 | J135: 0 | K135: =SUM((G135=$G$29:$G$61)*$H$29:$H$61) -> 5001
E136: 69 | F136: 5440 | G136: Antioquia | H136: Marinilla | I136: 0 | J136: 0 | K136: =SUM((G136=$G$29:$G$61)*$H$29:$H$61) -> 5001
E137: 70 | F137: 5467 | G137: Antioquia | H137: Montebello | I137: 0 | J137: 0 | K137: =SUM((G137=$G$29:$G$61)*$H$29:$H$61) -> 5001
E138: 71 | F138: 5475 | G138: Antioquia | H138: Murindó | I138: 0 | J138: 0 | K138: =SUM((G138=$G$29:$G$61)*$H$29:$H$61) -> 5001
E139: 72 | F139: 5480 | G139: Antioquia | H139: Mutatá | I139: 0 | J139: 0 | K139: =SUM((G139=$G$29:$G$61)*$H$29:$H$61) -> 5001
E140: 73 | F140: 5483 | G140: Antioquia | H140: Nariño | I140: 0 | J140: 0 | K140: =SUM((G140=$G$29:$G$61)*$H$29:$H$61) -> 5001
E141: 74 | F141: 5490 | G141: Antioquia | H141: Necoclí | I141: 0 | J141: 0 | K141: =SUM((G141=$G$29:$G$61)*$H$29:$H$61) -> 5001
E142: 75 | F142: 5495 | G142: Antioquia | H142: Nechí | I142: 0 | J142: 0 | K142: =SUM((G142=$G$29:$G$61)*$H$29:$H$61) -> 5001
E143: 76 | F143: 5501 | G143: Antioquia | H143: Olaya | I143: 0 | J143: 0 | K143: =SUM((G143=$G$29:$G$61)*$H$29:$H$61) -> 5001
E144: 77 | F144: 5541 | G144: Antioquia | H144: Peñol | I144: 0 | J144: 0 | K144: =SUM((G144=$G$29:$G$61)*$H$29:$H$61) -> 5001
E145: 78 | F145: 5543 | G145: Antioquia | H145: Peque | I145: 0 | J145: 0 | K145: =SUM((G145=$G$29:$G$61)*$H$29:$H$61) -> 5001
E146: 79 | F146: 5576 | G146: Antioquia | H146: Pueblorrico | I146: 0 | J146: 0 | K146: =SUM((G146=$G$29:$G$61)*$H$29:$H$61) -> 5001
E147: 80 | F147: 5579 | G147: Antioquia | H147: Puerto Berrío | I147: 0 | J147: 0 | K147: =SUM((G147=$G$29:$G$61)*$H$29:$H$61) -> 5001
E148: 81 | F148: 5585 | G148: Antioquia | H148: Puerto Nare | I148: 0 | J148: 0 | K148: =SUM((G148=$G$29:$G$61)*$H$29:$H$61) -> 5001
E149: 82 | F149: 5591 | G149: Antioquia | H149: Puerto Triunfo | I149: 0 | J149: 0 | K149: =SUM((G149=$G$29:$G$61)*$H$29:$H$61) -> 5001
E150: 83 | F150: 5604 | G150: Antioquia | H150: Remedios | I150: 0 | J150: 0 | K150: =SUM((G150=$G$29:$G$61)*$H$29:$H$61) -> 5001
E151: 84 | F151: 5607 | G151: Antioquia | H151: Retiro | I151: 0 | J151: 0 | K151: =SUM((G151=$G$29:$G$61)*$H$29:$H$61) -> 5001
E152: 85 | F152: 5615 | G152: Antioquia | H152: Rionegro | I152: 0 | J152: 0 | K152: =SUM((G152=$G$29:$G$61)*$H$29:$H$61) -> 5001
E153: 86 | F153: 5628 | G153: Antioquia | H153: Sabanalarga | I153: 0 | J153: 0 | K153: =SUM((G153=$G$29:$G$61)*$H$29:$H$61) -> 5001
E154: 87 | F154: 5631 | G154: Antioquia | H154: Sabaneta | I154: 0 | J154: 0 | K154: =SUM((G154=$G$29:$G$61)*$H$29:$H$61) -> 5001
E155: 88 | F155: 5642 | G155: Antioquia | H155: Salgar | I155: 0 | J155: 0 | K155: =SUM((G155=$G$29:$G$61)*$H$29:$H$61) -> 5001
E156: 89 | F156: 5647 | G156: Antioquia | H156: San Andrés de Cuerquía | I156: 0 | J156: 0 | K156: =SUM((G156=$G$29:$G$61)*$H$29:$H$61) -> 5001
E157: 90 | F157: 5649 | G157: Antioquia | H157: San Carlos | I157: 0 | J157: 0 | K157: =SUM((G157=$G$29:$G$61)*$H$29:$H$61) -> 5001
E158: 91 | F158: 5652 | G158: Antioquia | H158: San Francisco | I158: 0 | J158: 0 | K158: =SUM((G158=$G$29:$G$61)*$H$29:$H$61) -> 5001
E159: 92 | F159: 5656 | G159: Antioquia | H159: San Jerónimo | I159: 0 | J159: 0 | K159: =SUM((G159=$G$29:$G$61)*$H$29:$H$61) -> 5001
E160: 93 | F160: 5658 | G160: Antioquia | H160: San José de La Montaña | I160: 0 | J160: 0 | K160: =SUM((G160=$G$29:$G$61)*$H$29:$H$61) -> 5001
E161: 94 | F161: 5659 | G161: Antioquia | H161: San Juan de Urabá | I161: 0 | J161: 0 | K161: =SUM((G161=$G$29:$G$61)*$H$29:$H$61) -> 5001
E162: 95 | F162: 5660 | G162: Antioquia | H162: San Luis | I162: 0 | J162: 0 | K162: =SUM((G162=$G$29:$G$61)*$H$29:$H$61) -> 5001
E163: 96 | F163: 5664 | G163: Antioquia | H163: San Pedro | I163: 0 | J163: 0 | K163: =SUM((G163=$G$29:$G$61)*$H$29:$H$61) -> 5001
E164: 97 | F164: 5665 | G164: Antioquia | H164: San Pedro de Uraba | I164: 0 | J164: 0 | K164: =SUM((G164=$G$29:$G$61)*$H$29:$H$61) -> 5001
E165: 98 | F165: 5667 | G165: Antioquia | H165: San Rafael | I165: 0 | J165: 0 | K165: =SUM((G165=$G$29:$G$61)*$H$29:$H$61) -> 5001
E166: 99 | F166: 5670 | G166: Antioquia | H166: San Roque | I166: 0 | J166: 0 | K166: =SUM((G166=$G$29:$G$61)*$H$29:$H$61) -> 5001
E167: 100 | F167: 5674 | G167: Antioquia | H167: San Vicente | I167: 0 | J167: 0 | K167: =SUM((G167=$G$29:$G$61)*$H$29:$H$61) -> 5001
E168: 101 | F168: 5679 | G168: Antioquia | H168: Santa Bárbara | I168: 0 | J168: 0 | K168: =SUM((G168=$G$29:$G$61)*$H$29:$H$61) -> 5001
E169: 102 | F169: 5686 | G169: Antioquia | H169: Santa Rosa de Osos | I169: 0 | J169: 0 | K169: =SUM((G169=$G$29:$G$61)*$H$29:$H$61) -> 5001
E170: 103 | F170: 5690 | G170: Antioquia | H170: Santo Domingo | I170: 0 | J170: 0 | K170: =SUM((G170=$G$29:$G$61)*$H$29:$H$61) -> 5001
E171: 104 | F171: 5697 | G171: Antioquia | H171: El Santuario | I171: 0 | J171: 0 | K171: =SUM((G171=$G$29:$G$61)*$H$29:$H$61) -> 5001
E172: 105 | F172: 5736 | G172: Antioquia | H172: Segovia | I172: 0 | J172: 0 | K172: =SUM((G172=$G$29:$G$61)*$H$29:$H$61) -> 5001
E173: 106 | F173: 5756 | G173: Antioquia | H173: Sonson | I173: 0 | J173: 0 | K173: =SUM((G173=$G$29:$G$61)*$H$29:$H$61) -> 5001
E174: 107 | F174: 5761 | G174: Antioquia | H174: Sopetrán | I174: 0 | J174: 0 | K174: =SUM((G174=$G$29:$G$61)*$H$29:$H$61) -> 5001
E175: 108 | F175: 5789 | G175: Antioquia | H175: Támesis | I175: 0 | J175: 0 | K175: =SUM((G175=$G$29:$G$61)*$H$29:$H$61) -> 5001
E176: 109 | F176: 5790 | G176: Antioquia | H176: Tarazá | I176: 0 | J176: 0 | K176: =SUM((G176=$G$29:$G$61)*$H$29:$H$61) -> 5001
E177: 110 | F177: 5792 | G177: Antioquia | H177: Tarso | I177: 0 | J177: 0 | K177: =SUM((G177=$G$29:$G$61)*$H$29:$H$61) -> 5001
E178: 111 | F178: 5809 | G178: Antioquia | H178: Titiribí | I178: 0 | J178: 0 | K178: =SUM((G178=$G$29:$G$61)*$H$29:$H$61) -> 5001
E179: 112 | F179: 5819 | G179: Antioquia | H179: Toledo | I179: 0 | J179: 0 | K179: =SUM((G179=$G$29:$G$61)*$H$29:$H$61) -> 5001
E180: 113 | F180: 5837 | G180: Antioquia | H180: Turbo | I180: 0 | J180: 0 | K180: =SUM((G180=$G$29:$G$61)*$H$29:$H$61) -> 5001
E181: 114 | F181: 5842 | G181: Antioquia | H181: Uramita | I181: 0 | J181: 0 | K181: =SUM((G181=$G$29:$G$61)*$H$29:$H$61) -> 5001
E182: 115 | F182: 5847 | G182: Antioquia | H182: Urrao | I182: 0 | J182: 0 | K182: =SUM((G182=$G$29:$G$61)*$H$29:$H$61) -> 5001
E183: 116 | F183: 5854 | G183: Antioquia | H183: Valdivia | I183: 0 | J183: 0 | K183: =SUM((G183=$G$29:$G$61)*$H$29:$H$61) -> 5001
E184: 117 | F184: 5856 | G184: Antioquia | H184: Valparaíso | I184: 0 | J184: 0 | K184: =SUM((G184=$G$29:$G$61)*$H$29:$H$61) -> 5001
E185: 118 | F185: 5858 | G185: Antioquia | H185: Vegachí | I185: 0 | J185: 0 | K185: =SUM((G185=$G$29:$G$61)*$H$29:$H$61) -> 5001
E186: 119 | F186: 5861 | G186: Antioquia | H186: Venecia | I186: 0 | J186: 0 | K186: =SUM((G186=$G$29:$G$61)*$H$29:$H$61) -> 5001
E187: 120 | F187: 5873 | G187: Antioquia | H187: Vigía del Fuerte | I187: 0 | J187: 0 | K187: =SUM((G187=$G$29:$G$61)*$H$29:$H$61) -> 5001
E188: 121 | F188: 5885 | G188: Antioquia | H188: Yalí | I188: 0 | J188: 0 | K188: =SUM((G188=$G$29:$G$61)*$H$29:$H$61) -> 5001
E189: 122 | F189: 5887 | G189: Antioquia | H189: Yarumal | I189: 0 | J189: 0 | K189: =SUM((G189=$G$29:$G$61)*$H$29:$H$61) -> 5001
E190: 123 | F190: 5890 | G190: Antioquia | H190: Yolombó | I190: 0 | J190: 0 | K190: =SUM((G190=$G$29:$G$61)*$H$29:$H$61) -> 5001
E191: 124 | F191: 5893 | G191: Antioquia | H191: Yondó | I191: 0 | J191: 0 | K191: =SUM((G191=$G$29:$G$61)*$H$29:$H$61) -> 5001
E192: 125 | F192: 5895 | G192: Antioquia | H192: Zaragoza | I192: 0 | J192: 0 | K192: =SUM((G192=$G$29:$G$61)*$H$29:$H$61) -> 5001
E193: 126 | F193: 8001 | G193: Atlántico | H193: Barranquilla | I193: 1 | J193: 1 | K193: =SUM((G193=$G$29:$G$61)*$H$29:$H$61) -> 8001
E194: 127 | F194: 8078 | G194: Atlántico | H194: Baranoa | I194: 0 | J194: 0 | K194: =SUM((G194=$G$29:$G$61)*$H$29:$H$61) -> 8001
E195: 128 | F195: 8137 | G195: Atlántico | H195: Campo de La Cruz | I195: 0 | J195: 0 | K195: =SUM((G195=$G$29:$G$61)*$H$29:$H$61) -> 8001
E196: 129 | F196: 8141 | G196: Atlántico | H196: Candelaria | I196: =IF(RIGHT(F196,3)="001",1,0) -> 0 | J196: 0 | K196: =SUM((G196=$G$29:$G$61)*$H$29:$H$61) -> 8001
E197: 130 | F197: 8296 | G197: Atlántico | H197: Galapa | I197: 0 | J197: 0 | K197: =SUM((G197=$G$29:$G$61)*$H$29:$H$61) -> 8001
E198: 131 | F198: 8372 | G198: Atlántico | H198: Juan de Acosta | I198: 0 | J198: 0 | K198: =SUM((G198=$G$29:$G$61)*$H$29:$H$61) -> 8001
E199: 132 | F199: 8421 | G199: Atlántico | H199: Luruaco | I199: 0 | J199: 0 | K199: =SUM((G199=$G$29:$G$61)*$H$29:$H$61) -> 8001
E200: 133 | F200: 8433 | G200: Atlántico | H200: Malambo | I200: 0 | J200: 0 | K200: =SUM((G200=$G$29:$G$61)*$H$29:$H$61) -> 8001
E201: 134 | F201: 8436 | G201: Atlántico | H201: Manatí | I201: 0 | J201: 0 | K201: =SUM((G201=$G$29:$G$61)*$H$29:$H$61) -> 8001
E202: 135 | F202: 8520 | G202: Atlántico | H202: Palmar de Varela | I202: 0 | J202: 0 | K202: =SUM((G202=$G$29:$G$61)*$H$29:$H$61) -> 8001
E203: 136 | F203: 8549 | G203: Atlántico | H203: Piojó | I203: 0 | J203: 0 | K203: =SUM((G203=$G$29:$G$61)*$H$29:$H$61) -> 8001
E204: 137 | F204: 8558 | G204: Atlántico | H204: Polonuevo | I204: 0 | J204: 0 | K204: =SUM((G204=$G$29:$G$61)*$H$29:$H$61) -> 8001
E205: 138 | F205: 8560 | G205: Atlántico | H205: Ponedera | I205: 0 | J205: 0 | K205: =SUM((G205=$G$29:$G$61)*$H$29:$H$61) -> 8001
E206: 139 | F206: 8573 | G206: Atlántico | H206: Puerto Colombia | I206: 0 | J206: 0 | K206: =SUM((G206=$G$29:$G$61)*$H$29:$H$61) -> 8001
E207: 140 | F207: 8606 | G207: Atlántico | H207: Repelón | I207: 0 | J207: 0 | K207: =SUM((G207=$G$29:$G$61)*$H$29:$H$61) -> 8001
E208: 141 | F208: 8634 | G208: Atlántico | H208: Sabanagrande | I208: 0 | J208: 0 | K208: =SUM((G208=$G$29:$G$61)*$H$29:$H$61) -> 8001
E209: 142 | F209: 8638 | G209: Atlántico | H209: Sabanalarga | I209: 0 | J209: 0 | K209: =SUM((G209=$G$29:$G$61)*$H$29:$H$61) -> 8001
E210: 143 | F210: 8675 | G210: Atlántico | H210: Santa Lucía | I210: 0 | J210: 0 | K210: =SUM((G210=$G$29:$G$61)*$H$29:$H$61) -> 8001
... 1019 more rows

Sheet Clúster
A1: =Portada!$D$2 -> Modelo Empresa Eficiente Fija
A2: Información sobre agrupación de municipios
B4: Detalle de demandas por servicio
L6: Total 2016-4
E7: id | F7: id DANE | G7: Departamento | H7: Municipio | L7: Total | M7: TF | N7: IIF | O7: TV | P7: TF_IF | Q7: TF_TV | R7: IF_TV | S7: TF_IF_TV | T7: AuxT | U7: AuxItn | V7: AuxTV
E8: 1 | F8: 5001 | G8: Antioquia | H8: Medellín | L8: =+SUM(M8:S8) -> 841606 | M8: 238076 | N8: 59334 | O8: 33299 | P8: 100351 | Q8: 29342 | R8: 14350 | S8: 366854 | T8: =+M8 -> 238076 | U8: =+N8 -> 59334 | V8: =+O8 -> 33299 | W8: =+T8-M8 -> 0 | X8: =+U8-N8 -> 0 | Y8: =+V8-O8 -> 0
E9: 2 | F9: 5002 | G9: Antioquia | H9: Abejorral | L9: 10 | M9: 0 | N9: 0 | O9: 10 | P9: 0 | Q9: 0 | R9: 0 | S9: 0 | T9: 0 | U9: 0 | V9: 10 | W9: 0 | X9: 0 | Y9: 0
E10: 3 | F10: 5004 | G10: Antioquia | H10: Abriaquí | L10: 37 | M10: 0 | N10: 0 | O10: 37 | P10: 0 | Q10: 0 | R10: 0 | S10: 0 | T10: 0 | U10: 0 | V10: 37 | W10: 0 | X10: 0 | Y10: 0
E11: 4 | F11: 5021 | G11: Antioquia | H11: Alejandría | L11: 4 | M11: 0 | N11: 1 | O11: 3 | P11: 0 | Q11: 0 | R11: 0 | S11: 0 | T11: 0 | U11: 1 | V11: 3 | W11: 0 | X11: 0 | Y11: 0
E12: 5 | F12: 5030 | G12: Antioquia | H12: Amagá | L12: 321 | M12: 0 | N12: 0 | O12: 321 | P12: 0 | Q12: 0 | R12: 0 | S12: 0 | T12: 0 | U12: 0 | V12: 321 | W12: 0 | X12: 0 | Y12: 0
E13: 6 | F13: 5031 | G13: Antioquia | H13: Amalfi | L13: 34 | M13: 1 | N13: 0 | O13: 33 | P13: 0 | Q13: 0 | R13: 0 | S13: 0 | T13: 1 | U13: 0 | V13: 33 | W13: 0 | X13: 0 | Y13: 0
E14: 7 | F14: 5034 | G14: Antioquia | H14: Andes | L14: 429 | M14: 0 | N14: 0 | O14: 429 | P14: 0 | Q14: 0 | R14: 0 | S14: 0 | T14: 0 | U14: 0 | V14: 429 | W14: 0 | X14: 0 | Y14: 0
E15: 8 | F15: 5036 | G15: Antioquia | H15: Angelópolis | L15: 52 | M15: 0 | N15: 0 | O15: 52 | P15: 0 | Q15: 0 | R15: 0 | S15: 0 | T15: 0 | U15: 0 | V15: 52 | W15: 0 | X15: 0 | Y15: 0
E16: 9 | F16: 5038 | G16: Antioquia | H16: Angostura | L16: 4 | M16: 0 | N16: 0 | O16: 4 | P16: 0 | Q16: 0 | R16: 0 | S16: 0 | T16: 0 | U16: 0 | V16: 4 | W16: 0 | X16: 0 | Y16: 0
E17: 10 | F17: 5040 | G17: Antioquia | H17: Anorí | L17: 16 | M17: 1 | N17: 0 | O17: 15 | P17: 0 | Q17: 0 | R17: 0 | S17: 0 | T17: 1 | U17: 0 | V17: 15 | W17: 0 | X17: 0 | Y17: 0
E18: 11 | F18: 5042 | G18: Antioquia | H18: Santafé de Antioquia | L18: 134 | M18: 0 | N18: 0 | O18: 134 | P18: 0 | Q18: 0 | R18: 0 | S18: 0 | T18: 0 | U18: 0 | V18: 134 | W18: 0 | X18: 0 | Y18: 0
E19: 12 | F19: 5044 | G19: Antioquia | H19: Anza | L19: 32 | M19: 0 | N19: 0 | O19: 32 | P19: 0 | Q19: 0 | R19: 0 | S19: 0 | T19: 0 | U19: 0 | V19: 32 | W19: 0 | X19: 0 | Y19: 0
E20: 13 | F20: 5045 | G20: Antioquia | H20: Apartadó | L20: 2107 | M20: 0 | N20: 2 | O20: 2105 | P20: 0 | Q20: 0 | R20: 0 | S20: 0 | T20: 0 | U20: 2 | V20: 2105 | W20: 0 | X20: 0 | Y20: 0
E21: 14 | F21: 5051 | G21: Antioquia | H21: Arboletes | L21: 33 | M21: 0 | N21: 0 | O21: 33 | P21: 0 | Q21: 0 | R21: 0 | S21: 0 | T21: 0 | U21: 0 | V21: 33 | W21: 0 | X21: 0 | Y21: 0
E22: 15 | F22: 5055 | G22: Antioquia | H22: Argelia | L22: 7 | M22: 0 | N22: 0 | O22: 7 | P22: 0 | Q22: 0 | R22: 0 | S22: 0 | T22: 0 | U22: 0 | V22: 7 | W22: 0 | X22: 0 | Y22: 0
E23: 16 | F23: 5059 | G23: Antioquia | H23: Armenia | L23: 140 | M23: 59 | N23: 69 | O23: 12 | P23: 0 | Q23: 0 | R23: 0 | S23: 0 | T23: 59 | U23: 69 | V23: 12 | W23: 0 | X23: 0 | Y23: 0
E24: 17 | F24: 5079 | G24: Antioquia | H24: Barbosa | L24: 10024 | M24: 3869 | N24: 749 | O24: 1075 | P24: 1041 | Q24: 421 | R24: 125 | S24: 2744 | T24: 3869 | U24: 749 | V24: 1075 | W24: 0 | X24: 0 | Y24: 0
E25: 18 | F25: 5086 | G25: Antioquia | H25: Belmira | L25: 118 | M25: 0 | N25: 0 | O25: 118 | P25: 0 | Q25: 0 | R25: 0 | S25: 0 | T25: 0 | U25: 0 | V25: 118 | W25: 0 | X25: 0 | Y25: 0
E26: 19 | F26: 5088 | G26: Antioquia | H26: Bello | L26: 113531 | M26: 26741 | N26: 7232 | O26: 1773 | P26: 16024 | Q26: 2368 | R26: 1595 | S26: 57798 | T26: 26741 | U26: 7232 | V26: 1773 | W26: 0 | X26: 0 | Y26: 0
E27: 20 | F27: 5091 | G27: Antioquia | H27: Betania | L27: 7 | M27: 0 | N27: 0 | O27: 7 | P27: 0 | Q27: 0 | R27: 0 | S27: 0 | T27: 0 | U27: 0 | V27: 7 | W27: 0 | X27: 0 | Y27: 0
E28: 21 | F28: 5093 | G28: Antioquia | H28: Betulia | L28: 33 | M28: 0 | N28: 0 | O28: 33 | P28: 0 | Q28: 0 | R28: 0 | S28: 0 | T28: 0 | U28: 0 | V28: 33 | W28: 0 | X28: 0 | Y28: 0
E29: 22 | F29: 5101 | G29: Antioquia | H29: Ciudad Bolívar | L29: 280 | M29: 0 | N29: 0 | O29: 280 | P29: 0 | Q29: 0 | R29: 0 | S29: 0 | T29: 0 | U29: 0 | V29: 280 | W29: 0 | X29: 0 | Y29: 0
E30: 23 | F30: 5107 | G30: Antioquia | H30: Briceño | L30: 0 | M30: 0 | N30: 0 | O30: 0 | P30: 0 | Q30: 0 | R30: 0 | S30: 0 | T30: 0 | U30: 0 | V30: 0 | W30: 0 | X30: 0 | Y30: 0
E31: 24 | F31: 5113 | G31: Antioquia | H31: Buriticá | L31: 16 | M31: 0 | N31: 1 | O31: 15 | P31: 0 | Q31: 0 | R31: 0 | S31: 0 | T31: 0 | U31: 1 | V31: 15 | W31: 0 | X31: 0 | Y31: 0
E32: 25 | F32: 5120 | G32: Antioquia | H32: Cáceres | L32: 461 | M32: 0 | N32: 0 | O32: 461 | P32: 0 | Q32: 0 | R32: 0 | S32: 0 | T32: 0 | U32: 0 | V32: 461 | W32: 0 | X32: 0 | Y32: 0
E33: 26 | F33: 5125 | G33: Antioquia | H33: Caicedo | L33: 0 | M33: 0 | N33: 0 | O33: 0 | P33: 0 | Q33: 0 | R33: 0 | S33: 0 | T33: 0 | U33: 0 | V33: 0 | W33: 0 | X33: 0 | Y33: 0
E34: 27 | F34: 5129 | G34: Antioquia | H34: Caldas | L34: 23405 | M34: 4173 | N34: 1304 | O34: 2278 | P34: 1888 | Q34: 1503 | R34: 552 | S34: 11707 | T34: 4173 | U34: 1304 | V34: 2278 | W34: 0 | X34: 0 | Y34: 0
E35: 28 | F35: 5134 | G35: Antioquia | H35: Campamento | L35: 258 | M35: 0 | N35: 0 | O35: 258 | P35: 0 | Q35: 0 | R35: 0 | S35: 0 | T35: 0 | U35: 0 | V35: 258 | W35: 0 | X35: 0 | Y35: 0
E36: 29 | F36: 5138 | G36: Antioquia | H36: Cañasgordas | L36: 20 | M36: 0 | N36: 0 | O36: 20 | P36: 0 | Q36: 0 | R36: 0 | S36: 0 | T36: 0 | U36: 0 | V36: 20 | W36: 0 | X36: 0 | Y36: 0
E37: 30 | F37: 5142 | G37: Antioquia | H37: Caracolí | L37: 2 | M37: 0 | N37: 1 | O37: 1 | P37: 0 | Q37: 0 | R37: 0 | S37: 0 | T37: 0 | U37: 1 | V37: 1 | W37: 0 | X37: 0 | Y37: 0
E38: 31 | F38: 5145 | G38: Antioquia | H38: Caramanta | L38: 2 | M38: 0 | N38: 0 | O38: 2 | P38: 0 | Q38: 0 | R38: 0 | S38: 0 | T38: 0 | U38: 0 | V38: 2 | W38: 0 | X38: 0 | Y38: 0
E39: 32 | F39: 5147 | G39: Antioquia | H39: Carepa | L39: 775 | M39: 0 | N39: 0 | O39: 775 | P39: 0 | Q39: 0 | R39: 0 | S39: 0 | T39: 0 | U39: 0 | V39: 775 | W39: 0 | X39: 0 | Y39: 0
E40: 33 | F40: 5148 | G40: Antioquia | H40: El Carmen de Viboral | L40: 7355 | M40: 1964 | N40: 2224 | O40: 295 | P40: 1301 | Q40: 69 | R40: 158 | S40: 1344 | T40: 1964 | U40: 2224 | V40: 295 | W40: 0 | X40: 0 | Y40: 0
E41: 34 | F41: 5150 | G41: Antioquia | H41: Carolina | L41: 6 | M41: 0 | N41: 0 | O41: 6 | P41: 0 | Q41: 0 | R41: 0 | S41: 0 | T41: 0 | U41: 0 | V41: 6 | W41: 0 | X41: 0 | Y41: 0
E42: 35 | F42: 5154 | G42: Antioquia | H42: Caucasia | L42: 590 | M42: 0 | N42: 1 | O42: 589 | P42: 0 | Q42: 0 | R42: 0 | S42: 0 | T42: 0 | U42: 1 | V42: 589 | W42: 0 | X42: 0 | Y42: 0
E43: 36 | F43: 5172 | G43: Antioquia | H43: Chigorodó | L43: 720 | M43: 0 | N43: 1 | O43: 719 | P43: 0 | Q43: 0 | R43: 0 | S43: 0 | T43: 0 | U43: 1 | V43: 719 | W43: 0 | X43: 0 | Y43: 0
E44: 37 | F44: 5190 | G44: Antioquia | H44: Cisneros | L44: 24 | M44: 0 | N44: 0 | O44: 24 | P44: 0 | Q44: 0 | R44: 0 | S44: 0 | T44: 0 | U44: 0 | V44: 24 | W44: 0 | X44: 0 | Y44: 0
E45: 38 | F45: 5197 | G45: Antioquia | H45: Cocorná | L45: 159 | M45: 0 | N45: 0 | O45: 159 | P45: 0 | Q45: 0 | R45: 0 | S45: 0 | T45: 0 | U45: 0 | V45: 159 | W45: 0 | X45: 0 | Y45: 0
E46: 39 | F46: 5206 | G46: Antioquia | H46: Concepción | L46: 2 | M46: 0 | N46: 0 | O46: 2 | P46: 0 | Q46: 0 | R46: 0 | S46: 0 | T46: 0 | U46: 0 | V46: 2 | W46: 0 | X46: 0 | Y46: 0
E47: 40 | F47: 5209 | G47: Antioquia | H47: Concordia | L47: 85 | M47: 0 | N47: 0 | O47: 85 | P47: 0 | Q47: 0 | R47: 0 | S47: 0 | T47: 0 | U47: 0 | V47: 85 | W47: 0 | X47: 0 | Y47: 0
E48: 41 | F48: 5212 | G48: Antioquia | H48: Copacabana | L48: 23212 | M48: 6406 | N48: 1419 | O48: 606 | P48: 3024 | Q48: 820 | R48: 331 | S48: 10606 | T48: 6406 | U48: 1419 | V48: 606 | W48: 0 | X48: 0 | Y48: 0
E49: 42 | F49: 5234 | G49: Antioquia | H49: Dabeiba | L49: 0 | M49: 0 | N49: 0 | O49: 0 | P49: 0 | Q49: 0 | R49: 0 | S49: 0 | T49: 0 | U49: 0 | V49: 0 | W49: 0 | X49: 0 | Y49: 0
E50: 43 | F50: 5237 | G50: Antioquia | H50: Don Matías | L50: 526 | M50: 1 | N50: 2 | O50: 523 | P50: 0 | Q50: 0 | R50: 0 | S50: 0 | T50: 1 | U50: 2 | V50: 523 | W50: 0 | X50: 0 | Y50: 0
E51: 44 | F51: 5240 | G51: Antioquia | H51: Ebéjico | L51: 9 | M51: 0 | N51: 0 | O51: 9 | P51: 0 | Q51: 0 | R51: 0 | S51: 0 | T51: 0 | U51: 0 | V51: 9 | W51: 0 | X51: 0 | Y51: 0
E52: 45 | F52: 5250 | G52: Antioquia | H52: El Bagre | L52: 320 | M52: 0 | N52: 0 | O52: 320 | P52: 0 | Q52: 0 | R52: 0 | S52: 0 | T52: 0 | U52: 0 | V52: 320 | W52: 0 | X52: 0 | Y52: 0
E53: 46 | F53: 5264 | G53: Antioquia | H53: Entrerrios | L53: 962 | M53: 0 | N53: 0 | O53: 962 | P53: 0 | Q53: 0 | R53: 0 | S53: 0 | T53: 0 | U53: 0 | V53: 962 | W53: 0 | X53: 0 | Y53: 0
E54: 47 | F54: 5266 | G54: Antioquia | H54: Envigado | L54: 86254 | M54: 17043 | N54: 4175 | O54: 2786 | P54: 7189 | Q54: 3471 | R54: 1608 | S54: 49982 | T54: 17043 | U54: 4175 | V54: 2786 | W54: 0 | X54: 0 | Y54: 0
E55: 48 | F55: 5282 | G55: Antioquia | H55: Fredonia | L55: 417 | M55: 0 | N55: 0 | O55: 417 | P55: 0 | Q55: 0 | R55: 0 | S55: 0 | T55: 0 | U55: 0 | V55: 417 | W55: 0 | X55: 0 | Y55: 0
E56: 49 | F56: 5284 | G56: Antioquia | H56: Frontino | L56: 9 | M56: 0 | N56: 0 | O56: 9 | P56: 0 | Q56: 0 | R56: 0 | S56: 0 | T56: 0 | U56: 0 | V56: 9 | W56: 0 | X56: 0 | Y56: 0
E57: 50 | F57: 5306 | G57: Antioquia | H57: Giraldo | L57: 9 | M57: 0 | N57: 0 | O57: 9 | P57: 0 | Q57: 0 | R57: 0 | S57: 0 | T57: 0 | U57: 0 | V57: 9 | W57: 0 | X57: 0 | Y57: 0
E58: 51 | F58: 5308 | G58: Antioquia | H58: Girardota | L58: 11190 | M58: 3201 | N58: 656 | O58: 1022 | P58: 1053 | Q58: 551 | R58: 109 | S58: 4598 | T58: 3201 | U58: 656 | V58: 1022 | W58: 0 | X58: 0 | Y58: 0
E59: 52 | F59: 5310 | G59: Antioquia | H59: Gómez Plata | L59: 10 | M59: 1 | N59: 0 | O59: 9 | P59: 0 | Q59: 0 | R59: 0 | S59: 0 | T59: 1 | U59: 0 | V59: 9 | W59: 0 | X59: 0 | Y59: 0
E60: 53 | F60: 5313 | G60: Antioquia | H60: Granada | L60: 15 | M60: 0 | N60: 0 | O60: 15 | P60: 0 | Q60: 0 | R60: 0 | S60: 0 | T60: 0 | U60: 0 | V60: 15 | W60: 0 | X60: 0 | Y60: 0
E61: 54 | F61: 5315 | G61: Antioquia | H61: Guadalupe | L61: 3 | M61: 0 | N61: 1 | O61: 2 | P61: 0 | Q61: 0 | R61: 0 | S61: 0 | T61: 0 | U61: 1 | V61: 2 | W61: 0 | X61: 0 | Y61: 0
E62: 55 | F62: 5318 | G62: Antioquia | H62: Guarne | L62: 11116 | M62: 4007 | N62: 1562 | O62: 494 | P62: 1865 | Q62: 255 | R62: 210 | S62: 2723 | T62: 4007 | U62: 1562 | V62: 494 | W62: 0 | X62: 0 | Y62: 0
E63: 56 | F63: 5321 | G63: Antioquia | H63: Guatapé | L63: 18 | M63: 0 | N63: 0 | O63: 18 | P63: 0 | Q63: 0 | R63: 0 | S63: 0 | T63: 0 | U63: 0 | V63: 18 | W63: 0 | X63: 0 | Y63: 0
E64: 57 | F64: 5347 | G64: Antioquia | H64: Heliconia | L64: 6 | M64: 0 | N64: 1 | O64: 5 | P64: 0 | Q64: 0 | R64: 0 | S64: 0 | T64: 0 | U64: 1 | V64: 5 | W64: 0 | X64: 0 | Y64: 0
E65: 58 | F65: 5353 | G65: Antioquia | H65: Hispania | L65: 13 | M65: 0 | N65: 1 | O65: 12 | P65: 0 | Q65: 0 | R65: 0 | S65: 0 | T65: 0 | U65: 1 | V65: 12 | W65: 0 | X65: 0 | Y65: 0
E66: 59 | F66: 5360 | G66: Antioquia | H66: Itagui | L66: 88858 | M66: 21169 | N66: 5159 | O66: 4005 | P66: 8739 | Q66: 4075 | R66: 1495 | S66: 44216 | T66: 21169 | U66: 5159 | V66: 4005 | W66: 0 | X66: 0 | Y66: 0
E67: 60 | F67: 5361 | G67: Antioquia | H67: Ituango | L67: 692 | M67: 0 | N67: 0 | O67: 692 | P67: 0 | Q67: 0 | R67: 0 | S67: 0 | T67: 0 | U67: 0 | V67: 692 | W67: 0 | X67: 0 | Y67: 0
E68: 61 | F68: 5364 | G68: Antioquia | H68: Jardín | L68: 26 | M68: 0 | N68: 0 | O68: 26 | P68: 0 | Q68: 0 | R68: 0 | S68: 0 | T68: 0 | U68: 0 | V68: 26 | W68: 0 | X68: 0 | Y68: 0
E69: 62 | F69: 5368 | G69: Antioquia | H69: Jericó | L69: 160 | M69: 0 | N69: 0 | O69: 160 | P69: 0 | Q69: 0 | R69: 0 | S69: 0 | T69: 0 | U69: 0 | V69: 160 | W69: 0 | X69: 0 | Y69: 0
E70: 63 | F70: 5376 | G70: Antioquia | H70: La Ceja | L70: 14601 | M70: 4045 | N70: 2597 | O70: 800 | P70: 2799 | Q70: 406 | R70: 289 | S70: 3665 | T70: 4045 | U70: 2597 | V70: 800 | W70: 0 | X70: 0 | Y70: 0
E71: 64 | F71: 5380 | G71: Antioquia | H71: La Estrella | L71: 20920 | M71: 5468 | N71: 1372 | O71: 1075 | P71: 2128 | Q71: 933 | R71: 286 | S71: 9658 | T71: 5468 | U71: 1372 | V71: 1075 | W71: 0 | X71: 0 | Y71: 0
E72: 65 | F72: 5390 | G72: Antioquia | H72: La Pintada | L72: =+SUM(M72:S72) -> 641 | M72: 0 | N72: 0 | O72: 641 | P72: 0 | Q72: 0 | R72: 0 | S72: 0 | T72: =+M72 -> 0 | U72: =+N72 -> 0 | V72: =+O72 -> 641 | W72: =+T72-M72 -> 0 | X72: =+U72-N72 -> 0 | Y72: =+V72-O72 -> 0
E73: 66 | F73: 5400 | G73: Antioquia | H73: La Unión | L73: 3409 | M73: 1273 | N73: 593 | O73: 165 | P73: 379 | Q73: 85 | R73: 65 | S73: 849 | T73: 1273 | U73: 593 | V73: 165 | W73: 0 | X73: 0 | Y73: 0
E74: 67 | F74: 5411 | G74: Antioquia | H74: Liborina | L74: 2 | M74: 0 | N74: 1 | O74: 1 | P74: 0 | Q74: 0 | R74: 0 | S74: 0 | T74: 0 | U74: 1 | V74: 1 | W74: 0 | X74: 0 | Y74: 0
E75: 68 | F75: 5425 | G75: Antioquia | H75: Maceo | L75: 123 | M75: 0 | N75: 0 | O75: 123 | P75: 0 | Q75: 0 | R75: 0 | S75: 0 | T75: 0 | U75: 0 | V75: 123 | W75: 0 | X75: 0 | Y75: 0
E76: 69 | F76: 5440 | G76: Antioquia | H76: Marinilla | L76: 10057 | M76: 2640 | N76: 1805 | O76: 415 | P76: 1354 | Q76: 210 | R76: 352 | S76: 3281 | T76: 2640 | U76: 1805 | V76: 415 | W76: 0 | X76: 0 | Y76: 0
E77: 70 | F77: 5467 | G77: Antioquia | H77: Montebello | L77: 7 | M77: 0 | N77: 0 | O77: 7 | P77: 0 | Q77: 0 | R77: 0 | S77: 0 | T77: 0 | U77: 0 | V77: 7 | W77: 0 | X77: 0 | Y77: 0
E78: 71 | F78: 5475 | G78: Antioquia | H78: Murindó | L78: 76 | M78: 0 | N78: 0 | O78: 76 | P78: 0 | Q78: 0 | R78: 0 | S78: 0 | T78: 0 | U78: 0 | V78: 76 | W78: 0 | X78: 0 | Y78: 0
E79: 72 | F79: 5480 | G79: Antioquia | H79: Mutatá | L79: 1220 | M79: 0 | N79: 1 | O79: 1219 | P79: 0 | Q79: 0 | R79: 0 | S79: 0 | T79: 0 | U79: 1 | V79: 1219 | W79: 0 | X79: 0 | Y79: 0
E80: 73 | F80: 5483 | G80: Antioquia | H80: Nariño | L80: 25 | M80: 0 | N80: 0 | O80: 25 | P80: 0 | Q80: 0 | R80: 0 | S80: 0 | T80: 0 | U80: 0 | V80: 25 | W80: 0 | X80: 0 | Y80: 0
E81: 74 | F81: 5490 | G81: Antioquia | H81: Necoclí | L81: 762 | M81: 0 | N81: 0 | O81: 762 | P81: 0 | Q81: 0 | R81: 0 | S81: 0 | T81: 0 | U81: 0 | V81: 762 | W81: 0 | X81: 0 | Y81: 0
E82: 75 | F82: 5495 | G82: Antioquia | H82: Nechí | L82: 346 | M82: 0 | N82: 0 | O82: 346 | P82: 0 | Q82: 0 | R82: 0 | S82: 0 | T82: 0 | U82: 0 | V82: 346 | W82: 0 | X82: 0 | Y82: 0
E83: 76 | F83: 5501 | G83: Antioquia | H83: Olaya | L83: 12 | M83: 0 | N83: 0 | O83: 12 | P83: 0 | Q83: 0 | R83: 0 | S83: 0 | T83: 0 | U83: 0 | V83: 12 | W83: 0 | X83: 0 | Y83: 0
E84: 77 | F84: 5541 | G84: Antioquia | H84: Peñol | L84: 24 | M84: 0 | N84: 1 | O84: 23 | P84: 0 | Q84: 0 | R84: 0 | S84: 0 | T84: 0 | U84: 1 | V84: 23 | W84: 0 | X84: 0 | Y84: 0
E85: 78 | F85: 5543 | G85: Antioquia | H85: Peque | L85: 103 | M85: 0 | N85: 0 | O85: 103 | P85: 0 | Q85: 0 | R85: 0 | S85: 0 | T85: 0 | U85: 0 | V85: 103 | W85: 0 | X85: 0 | Y85: 0
E86: 79 | F86: 5576 | G86: Antioquia | H86: Pueblorrico | L86: 326 | M86: 0 | N86: 0 | O86: 326 | P86: 0 | Q86: 0 | R86: 0 | S86: 0 | T86: 0 | U86: 0 | V86: 326 | W86: 0 | X86: 0 | Y86: 0
E87: 80 | F87: 5579 | G87: Antioquia | H87: Puerto Berrío | L87: 1260 | M87: 0 | N87: 1 | O87: 1259 | P87: 0 | Q87: 0 | R87: 0 | S87: 0 | T87: 0 | U87: 1 | V87: 1259 | W87: 0 | X87: 0 | Y87: 0
E88: 81 | F88: 5585 | G88: Antioquia | H88: Puerto Nare | L88: 288 | M88: 0 | N88: 0 | O88: 288 | P88: 0 | Q88: 0 | R88: 0 | S88: 0 | T88: 0 | U88: 0 | V88: 288 | W88: 0 | X88: 0 | Y88: 0
E89: 82 | F89: 5591 | G89: Antioquia | H89: Puerto Triunfo | L89: 60 | M89: 0 | N89: 0 | O89: 60 | P89: 0 | Q89: 0 | R89: 0 | S89: 0 | T89: 0 | U89: 0 | V89: 60 | W89: 0 | X89: 0 | Y89: 0
E90: 83 | F90: 5604 | G90: Antioquia | H90: Remedios | L90: 161 | M90: 0 | N90: 0 | O90: 160 | P90: 0 | Q90: 0 | R90: 1 | S90: 0 | T90: 0 | U90: 0 | V90: 160 | W90: 0 | X90: 0 | Y90: 0
E91: 84 | F91: 5607 | G91: Antioquia | H91: Retiro | L91: 7069 | M91: 1825 | N91: 864 | O91: 502 | P91: 1454 | Q91: 146 | R91: 167 | S91: 2111 | T91: 1825 | U91: 864 | V91: 502 | W91: 0 | X91: 0 | Y91: 0
E92: 85 | F92: 5615 | G92: Antioquia | H92: Rionegro | L92: 40506 | M92: 9167 | N92: 4872 | O92: 2677 | P92: 5019 | Q92: 1455 | R92: 2308 | S92: 15008 | T92: 9167 | U92: 4872 | V92: 2677 | W92: 0 | X92: 0 | Y92: 0
E93: 86 | F93: 5628 | G93: Antioquia | H93: Sabanalarga | L93: 11 | M93: 0 | N93: 0 | O93: 11 | P93: 0 | Q93: 0 | R93: 0 | S93: 0 | T93: 0 | U93: 0 | V93: 11 | W93: 0 | X93: 0 | Y93: 0
E94: 87 | F94: 5631 | G94: Antioquia | H94: Sabaneta | L94: 36028 | M94: 7786 | N94: 2524 | O94: 1683 | P94: 2752 | Q94: 1132 | R94: 909 | S94: 19242 | T94: 7786 | U94: 2524 | V94: 1683 | W94: 0 | X94: 0 | Y94: 0
E95: 88 | F95: 5642 | G95: Antioquia | H95: Salgar | L95: 49 | M95: 0 | N95: 0 | O95: 49 | P95: 0 | Q95: 0 | R95: 0 | S95: 0 | T95: 0 | U95: 0 | V95: 49 | W95: 0 | X95: 0 | Y95: 0
E96: 89 | F96: 5647 | G96: Antioquia | H96: San Andrés de Cuerquía | L96: 31 | M96: 0 | N96: 0 | O96: 31 | P96: 0 | Q96: 0 | R96: 0 | S96: 0 | T96: 0 | U96: 0 | V96: 31 | W96: 0 | X96: 0 | Y96: 0
E97: 90 | F97: 5649 | G97: Antioquia | H97: San Carlos | L97: 8 | M97: 0 | N97: 0 | O97: 8 | P97: 0 | Q97: 0 | R97: 0 | S97: 0 | T97: 0 | U97: 0 | V97: 8 | W97: 0 | X97: 0 | Y97: 0
E98: 91 | F98: 5652 | G98: Antioquia | H98: San Francisco | L98: 2 | M98: 0 | N98: 0 | O98: 2 | P98: 0 | Q98: 0 | R98: 0 | S98: 0 | T98: 0 | U98: 0 | V98: 2 | W98: 0 | X98: 0 | Y98: 0
E99: 92 | F99: 5656 | G99: Antioquia | H99: San Jerónimo | L99: 506 | M99: 43 | N99: 8 | O99: 435 | P99: 5 | Q99: 2 | R99: 1 | S99: 12 | T99: 43 | U99: 8 | V99: 435 | W99: 0 | X99: 0 | Y99: 0
E100: 93 | F100: 5658 | G100: Antioquia | H100: San José de La Montaña | L100: 21 | M100: 0 | N100: 0 | O100: 21 | P100: 0 | Q100: 0 | R100: 0 | S100: 0 | T100: 0 | U100: 0 | V100: 21 | W100: 0 | X100: 0 | Y100: 0
E101: 94 | F101: 5659 | G101: Antioquia | H101: San Juan de Urabá | L101: 18 | M101: 0 | N101: 1 | O101: 17 | P101: 0 | Q101: 0 | R101: 0 | S101: 0 | T101: 0 | U101: 1 | V101: 17 | W101: 0 | X101: 0 | Y101: 0
E102: 95 | F102: 5660 | G102: Antioquia | H102: San Luis | L102: 198 | M102: 0 | N102: 0 | O102: 198 | P102: 0 | Q102: 0 | R102: 0 | S102: 0 | T102: 0 | U102: 0 | V102: 198 | W102: 0 | X102: 0 | Y102: 0
E103: 96 | F103: 5664 | G103: Antioquia | H103: San Pedro | L103: 2156 | M103: 198 | N103: 0 | O103: 1957 | P103: 1 | Q103: 0 | R103: 0 | S103: 0 | T103: 198 | U103: 0 | V103: 1957 | W103: 0 | X103: 0 | Y103: 0
E104: 97 | F104: 5665 | G104: Antioquia | H104: San Pedro de Uraba | L104: 68 | M104: 0 | N104: 0 | O104: 68 | P104: 0 | Q104: 0 | R104: 0 | S104: 0 | T104: 0 | U104: 0 | V104: 68 | W104: 0 | X104: 0 | Y104: 0
E105: 98 | F105: 5667 | G105: Antioquia | H105: San Rafael | L105: 4 | M105: 0 | N105: 0 | O105: 4 | P105: 0 | Q105: 0 | R105: 0 | S105: 0 | T105: 0 | U105: 0 | V105: 4 | W105: 0 | X105: 0 | Y105: 0
E106: 99 | F106: 5670 | G106: Antioquia | H106: San Roque | L106: 34 | M106: 0 | N106: 1 | O106: 33 | P106: 0 | Q106: 0 | R106: 0 | S106: 0 | T106: 0 | U106: 1 | V106: 33 | W106: 0 | X106: 0 | Y106: 0
E107: 100 | F107: 5674 | G107: Antioquia | H107: San Vicente | L107: 527 | M107: 351 | N107: 1 | O107: 154 | P107: 10 | Q107: 3 | R107: 0 | S107: 8 | T107: 351 | U107: 1 | V107: 154 | W107: 0 | X107: 0 | Y107: 0
E108: 101 | F108: 5679 | G108: Antioquia | H108: Santa Bárbara | L108: 456 | M108: 0 | N108: 0 | O108: 456 | P108: 0 | Q108: 0 | R108: 0 | S108: 0 | T108: 0 | U108: 0 | V108: 456 | W108: 0 | X108: 0 | Y108: 0
E109: 102 | F109: 5686 | G109: Antioquia | H109: Santa Rosa de Osos | L109: 354 | M109: 0 | N109: 1 | O109: 353 | P109: 0 | Q109: 0 | R109: 0 | S109: 0 | T109: 0 | U109: 1 | V109: 353 | W109: 0 | X109: 0 | Y109: 0
E110: 103 | F110: 5690 | G110: Antioquia | H110: Santo Domingo | L110: 29 | M110: 0 | N110: 0 | O110: 29 | P110: 0 | Q110: 0 | R110: 0 | S110: 0 | T110: 0 | U110: 0 | V110: 29 | W110: 0 | X110: 0 | Y110: 0
E111: 104 | F111: 5697 | G111: Antioquia | H111: El Santuario | L111: 4964 | M111: 1723 | N111: 1162 | O111: 295 | P111: 731 | Q111: 80 | R111: 89 | S111: 884 | T111: 1723 | U111: 1162 | V111: 295 | W111: 0 | X111: 0 | Y111: 0
E112: 105 | F112: 5736 | G112: Antioquia | H112: Segovia | L112: 289 | M112: 0 | N112: 1 | O112: 288 | P112: 0 | Q112: 0 | R112: 0 | S112: 0 | T112: 0 | U112: 1 | V112: 288 | W112: 0 | X112: 0 | Y112: 0
E113: 106 | F113: 5756 | G113: Antioquia | H113: Sonson | L113: 22 | M113: 0 | N113: 1 | O113: 21 | P113: 0 | Q113: 0 | R113: 0 | S113: 0 | T113: 0 | U113: 1 | V113: 21 | W113: 0 | X113: 0 | Y113: 0
E114: 107 | F114: 5761 | G114: Antioquia | H114: Sopetrán | L114: 116 | M114: 0 | N114: 0 | O114: 116 | P114: 0 | Q114: 0 | R114: 0 | S114: 0 | T114: 0 | U114: 0 | V114: 116 | W114: 0 | X114: 0 | Y114: 0
E115: 108 | F115: 5789 | G115: Antioquia | H115: Támesis | L115: 298 | M115: 1 | N115: 2 | O115: 295 | P115: 0 | Q115: 0 | R115: 0 | S115: 0 | T115: 1 | U115: 2 | V115: 295 | W115: 0 | X115: 0 | Y115: 0
E116: 109 | F116: 5790 | G116: Antioquia | H116: Tarazá | L116: 568 | M116: 0 | N116: 0 | O116: 568 | P116: 0 | Q116: 0 | R116: 0 | S116: 0 | T116: 0 | U116: 0 | V116: 568 | W116: 0 | X116: 0 | Y116: 0
E117: 110 | F117: 5792 | G117: Antioquia | H117: Tarso | L117: 205 | M117: 0 | N117: 1 | O117: 204 | P117: 0 | Q117: 0 | R117: 0 | S117: 0 | T117: 0 | U117: 1 | V117: 204 | W117: 0 | X117: 0 | Y117: 0
E118: 111 | F118: 5809 | G118: Antioquia | H118: Titiribí | L118: 508 | M118: 0 | N118: 0 | O118: 508 | P118: 0 | Q118: 0 | R118: 0 | S118: 0 | T118: 0 | U118: 0 | V118: 508 | W118: 0 | X118: 0 | Y118: 0
E119: 112 | F119: 5819 | G119: Antioquia | H119: Toledo | L119: 29 | M119: 0 | N119: 0 | O119: 29 | P119: 0 | Q119: 0 | R119: 0 | S119: 0 | T119: 0 | U119: 0 | V119: 29 | W119: 0 | X119: 0 | Y119: 0
E120: 113 | F120: 5837 | G120: Antioquia | H120: Turbo | L120: 3648 | M120: 0 | N120: 1 | O120: 3647 | P120: 0 | Q120: 0 | R120: 0 | S120: 0 | T120: 0 | U120: 1 | V120: 3647 | W120: 0 | X120: 0 | Y120: 0
E121: 114 | F121: 5842 | G121: Antioquia | H121: Uramita | L121: 1 | M121: 0 | N121: 0 | O121: 1 | P121: 0 | Q121: 0 | R121: 0 | S121: 0 | T121: 0 | U121: 0 | V121: 1 | W121: 0 | X121: 0 | Y121: 0
E122: 115 | F122: 5847 | G122: Antioquia | H122: Urrao | L122: 3 | M122: 0 | N122: 2 | O122: 1 | P122: 0 | Q122: 0 | R122: 0 | S122: 0 | T122: 0 | U122: 2 | V122: 1 | W122: 0 | X122: 0 | Y122: 0
E123: 116 | F123: 5854 | G123: Antioquia | H123: Valdivia | L123: 182 | M123: 0 | N123: 0 | O123: 182 | P123: 0 | Q123: 0 | R123: 0 | S123: 0 | T123: 0 | U123: 0 | V123: 182 | W123: 0 | X123: 0 | Y123: 0
E124: 117 | F124: 5856 | G124: Antioquia | H124: Valparaíso | L124: 182 | M124: 0 | N124: 1 | O124: 181 | P124: 0 | Q124: 0 | R124: 0 | S124: 0 | T124: 0 | U124: 1 | V124: 181 | W124: 0 | X124: 0 | Y124: 0
E125: 118 | F125: 5858 | G125: Antioquia | H125: Vegachí | L125: 1 | M125: 0 | N125: 0 | O125: 1 | P125: 0 | Q125: 0 | R125: 0 | S125: 0 | T125: 0 | U125: 0 | V125: 1 | W125: 0 | X125: 0 | Y125: 0
E126: 119 | F126: 5861 | G126: Antioquia | H126: Venecia | L126: 558 | M126: 0 | N126: 0 | O126: 558 | P126: 0 | Q126: 0 | R126: 0 | S126: 0 | T126: 0 | U126: 0 | V126: 558 | W126: 0 | X126: 0 | Y126: 0
E127: 120 | F127: 5873 | G127: Antioquia | H127: Vigía del Fuerte | L127: 1 | M127: 0 | N127: 1 | O127: 0 | P127: 0 | Q127: 0 | R127: 0 | S127: 0 | T127: 0 | U127: 1 | V127: 0 | W127: 0 | X127: 0 | Y127: 0
E128: 121 | F128: 5885 | G128: Antioquia | H128: Yalí | L128: 4 | M128: 0 | N128: 1 | O128: 3 | P128: 0 | Q128: 0 | R128: 0 | S128: 0 | T128: 0 | U128: 1 | V128: 3 | W128: 0 | X128: 0 | Y128: 0
E129: 122 | F129: 5887 | G129: Antioquia | H129: Yarumal | L129: 2991 | M129: 449 | N129: 1 | O129: 1854 | P129: 535 | Q129: 6 | R129: 0 | S129: 146 | T129: 449 | U129: 1 | V129: 1854 | W129: 0 | X129: 0 | Y129: 0
E130: 123 | F130: 5890 | G130: Antioquia | H130: Yolombó | L130: 162 | M130: 0 | N130: 0 | O130: 162 | P130: 0 | Q130: 0 | R130: 0 | S130: 0 | T130: 0 | U130: 0 | V130: 162 | W130: 0 | X130: 0 | Y130: 0
E131: 124 | F131: 5893 | G131: Antioquia | H131: Yondó | L131: 68 | M131: 0 | N131: 0 | O131: 68 | P131: 0 | Q131: 0 | R131: 0 | S131: 0 | T131: 0 | U131: 0 | V131: 68 | W131: 0 | X131: 0 | Y131: 0
E132: 125 | F132: 5895 | G132: Antioquia | H132: Zaragoza | L132: 172 | M132: 0 | N132: 0 | O132: 172 | P132: 0 | Q132: 0 | R132: 0 | S132: 0 | T132: 0 | U132: 0 | V132: 172 | W132: 0 | X132: 0 | Y132: 0
E133: 126 | F133: 8001 | G133: Atlántico | H133: Barranquilla | L133: 170521 | M133: 21958 | N133: 7422 | O133: 15562 | P133: 35791 | Q133: 2525 | R133: 9991 | S133: 77272 | T133: 21958 | U133: 7422 | V133: 15562 | W133: 0 | X133: 0 | Y133: 0
E134: 127 | F134: 8078 | G134: Atlántico | H134: Baranoa | L134: 2155 | M134: 225 | N134: 1 | O134: 517 | P134: 828 | Q134: 19 | R134: 0 | S134: 565 | T134: 225 | U134: 1 | V134: 517 | W134: 0 | X134: 0 | Y134: 0
E135: 128 | F135: 8137 | G135: Atlántico | H135: Campo de La Cruz | L135: 23 | M135: 21 | N135: 0 | O135: 2 | P135: 0 | Q135: 0 | R135: 0 | S135: 0 | T135: 21 | U135: 0 | V135: 2 | W135: 0 | X135: 0 | Y135: 0
E136: 129 | F136: 8141 | G136: Atlántico | H136: Candelaria | L136: =+SUM(M136:S136) -> 11 | M136: 8 | N136: 0 | O136: 3 | P136: 0 | Q136: 0 | R136: 0 | S136: 0 | T136: =+M136 -> 8 | U136: =+N136 -> 0 | V136: =+O136 -> 3 | W136: =+T136-M136 -> 0 | X136: =+U136-N136 -> 0 | Y136: =+V136-O136 -> 0
E137: 130 | F137: 8296 | G137: Atlántico | H137: Galapa | L137: 1705 | M137: 123 | N137: 4 | O137: 508 | P137: 561 | Q137: 17 | R137: 0 | S137: 492 | T137: 123 | U137: 4 | V137: 508 | W137: 0 | X137: 0 | Y137: 0
E138: 131 | F138: 8372 | G138: Atlántico | H138: Juan de Acosta | L138: 58 | M138: 40 | N138: 0 | O138: 15 | P138: 0 | Q138: 2 | R138: 0 | S138: 1 | T138: 40 | U138: 0 | V138: 15 | W138: 0 | X138: 0 | Y138: 0
E139: 132 | F139: 8421 | G139: Atlántico | H139: Luruaco | L139: 79 | M139: 48 | N139: 0 | O139: 31 | P139: 0 | Q139: 0 | R139: 0 | S139: 0 | T139: 48 | U139: 0 | V139: 31 | W139: 0 | X139: 0 | Y139: 0
E140: 133 | F140: 8433 | G140: Atlántico | H140: Malambo | L140: 608 | M140: 57 | N140: 2 | O140: 544 | P140: 1 | Q140: 4 | R140: 0 | S140: 0 | T140: 57 | U140: 2 | V140: 544 | W140: 0 | X140: 0 | Y140: 0
E141: 134 | F141: 8436 | G141: Atlántico | H141: Manatí | L141: 34 | M141: 34 | N141: 0 | O141: 0 | P141: 0 | Q141: 0 | R141: 0 | S141: 0 | T141: 34 | U141: 0 | V141: 0 | W141: 0 | X141: 0 | Y141: 0
E142: 135 | F142: 8520 | G142: Atlántico | H142: Palmar de Varela | L142: 235 | M142: 142 | N142: 0 | O142: 63 | P142: 0 | Q142: 30 | R142: 0 | S142: 0 | T142: 142 | U142: 0 | V142: 63 | W142: 0 | X142: 0 | Y142: 0
E143: 136 | F143: 8549 | G143: Atlántico | H143: Piojó | L143: 1 | M143: 1 | N143: 0 | O143: 0 | P143: 0 | Q143: 0 | R143: 0 | S143: 0 | T143: 1 | U143: 0 | V143: 0 | W143: 0 | X143: 0 | Y143: 0
E144: 137 | F144: 8558 | G144: Atlántico | H144: Polonuevo | L144: 60 | M144: 57 | N144: 0 | O144: 1 | P144: 0 | Q144: 2 | R144: 0 | S144: 0 | T144: 57 | U144: 0 | V144: 1 | W144: 0 | X144: 0 | Y144: 0
E145: 138 | F145: 8560 | G145: Atlántico | H145: Ponedera | L145: 44 | M145: 30 | N145: 0 | O145: 14 | P145: 0 | Q145: 0 | R145: 0 | S145: 0 | T145: 30 | U145: 0 | V145: 14 | W145: 0 | X145: 0 | Y145: 0
E146: 139 | F146: 8573 | G146: Atlántico | H146: Puerto Colombia | L146: 4236 | M146: 258 | N146: 117 | O146: 240 | P146: 931 | Q146: 91 | R146: 232 | S146: 2367 | T146: 258 | U146: 117 | V146: 240 | W146: 0 | X146: 0 | Y146: 0
E147: 140 | F147: 8606 | G147: Atlántico | H147: Repelón | L147: 40 | M147: 37 | N147: 0 | O147: 3 | P147: 0 | Q147: 0 | R147: 0 | S147: 0 | T147: 37 | U147: 0 | V147: 3 | W147: 0 | X147: 0 | Y147: 0
E148: 141 | F148: 8634 | G148: Atlántico | H148: Sabanagrande | L148: 345 | M148: 225 | N148: 1 | O148: 48 | P148: 0 | Q148: 70 | R148: 0 | S148: 1 | T148: 225 | U148: 1 | V148: 48 | W148: 0 | X148: 0 | Y148: 0
E149: 142 | F149: 8638 | G149: Atlántico | H149: Sabanalarga | L149: 3083 | M149: 412 | N149: 2 | O149: 1033 | P149: 951 | Q149: 32 | R149: 0 | S149: 653 | T149: 412 | U149: 2 | V149: 1033 | W149: 0 | X149: 0 | Y149: 0
E150: 143 | F150: 8675 | G150: Atlántico | H150: Santa Lucía | L150: 1 | M150: 1 | N150: 0 | O150: 0 | P150: 0 | Q150: 0 | R150: 0 | S150: 0 | T150: 1 | U150: 0 | V150: 0 | W150: 0 | X150: 0 | Y150: 0
E151: 144 | F151: 8685 | G151: Atlántico | H151: Santo Tomás | L151: 1286 | M151: 117 | N151: 0 | O151: 118 | P151: 560 | Q151: 8 | R151: 0 | S151: 483 | T151: 117 | U151: 0 | V151: 118 | W151: 0 | X151: 0 | Y151: 0
E152: 145 | F152: 8758 | G152: Atlántico | H152: Soledad | L152: 30098 | M152: 2020 | N152: 677 | O152: 2821 | P152: 7843 | Q152: 402 | R152: 1670 | S152: 14665 | T152: 2020 | U152: 677 | V152: 2821 | W152: 0 | X152: 0 | Y152: 0
E153: 146 | F153: 8770 | G153: Atlántico | H153: Suan | L153: 12 | M153: 11 | N153: 0 | O153: 1 | P153: 0 | Q153: 0 | R153: 0 | S153: 0 | T153: 11 | U153: 0 | V153: 1 | W153: 0 | X153: 0 | Y153: 0
E154: 147 | F154: 8832 | G154: Atlántico | H154: Tubará | L154: 42 | M154: 18 | N154: 0 | O154: 16 | P154: 0 | Q154: 8 | R154: 0 | S154: 0 | T154: 18 | U154: 0 | V154: 16 | W154: 0 | X154: 0 | Y154: 0
E155: 148 | F155: 8849 | G155: Atlántico | H155: Usiacurí | L155: 35 | M155: 35 | N155: 0 | O155: 0 | P155: 0 | Q155: 0 | R155: 0 | S155: 0 | T155: 35 | U155: 0 | V155: 0 | W155: 0 | X155: 0 | Y155: 0
E156: 149 | F156: 11001 | G156: Bogotá, D.C. | H156: Bogotá, D.C. | L156: 2379989 | M156: 541116 | N156: 112564 | O156: 137339 | P156: 675001 | Q156: 22308 | R156: 122830 | S156: 768831 | T156: 541116 | U156: 112564 | V156: 137339 | W156: 0 | X156: 0 | Y156: 0
E157: 150 | F157: 13001 | G157: Bolívar | H157: Cartagena | L157: 89701 | M157: 4429 | N157: 9949 | O157: 20649 | P157: 7297 | Q157: 1315 | R157: 13873 | S157: 32189 | T157: 4429 | U157: 9949 | V157: 20649 | W157: 0 | X157: 0 | Y157: 0
E158: 151 | F158: 13006 | G158: Bolívar | H158: Achí | L158: 7 | M158: 7 | N158: 0 | O158: 0 | P158: 0 | Q158: 0 | R158: 0 | S158: 0 | T158: 7 | U158: 0 | V158: 0 | W158: 0 | X158: 0 | Y158: 0
E159: 152 | F159: 13030 | G159: Bolívar | H159: Altos del Rosario | L159: 0 | M159: 0 | N159: 0 | O159: 0 | P159: 0 | Q159: 0 | R159: 0 | S159: 0 | T159: 0 | U159: 0 | V159: 0 | W159: 0 | X159: 0 | Y159: 0
E160: 153 | F160: 13042 | G160: Bolívar | H160: Arenal | L160: 0 | M160: 0 | N160: 0 | O160: 0 | P160: 0 | Q160: 0 | R160: 0 | S160: 0 | T160: 0 | U160: 0 | V160: 0 | W160: 0 | X160: 0 | Y160: 0
E161: 154 | F161: 13052 | G161: Bolívar | H161: Arjona | L161: 190 | M161: 1 | N161: 0 | O161: 187 | P161: 2 | Q161: 0 | R161: 0 | S161: 0 | T161: 1 | U161: 0 | V161: 187 | W161: 0 | X161: 0 | Y161: 0
E162: 155 | F162: 13062 | G162: Bolívar | H162: Arroyohondo | L162: 9 | M162: 0 | N162: 6 | O162: 3 | P162: 0 | Q162: 0 | R162: 0 | S162: 0 | T162: 0 | U162: 6 | V162: 3 | W162: 0 | X162: 0 | Y162: 0
E163: 156 | F163: 13074 | G163: Bolívar | H163: Barranco de Loba | L163: 4 | M163: 4 | N163: 0 | O163: 0 | P163: 0 | Q163: 0 | R163: 0 | S163: 0 | T163: 4 | U163: 0 | V163: 0 | W163: 0 | X163: 0 | Y163: 0
E164: 157 | F164: 13140 | G164: Bolívar | H164: Calamar | L164: 15 | M164: 14 | N164: 0 | O164: 1 | P164: 0 | Q164: 0 | R164: 0 | S164: 0 | T164: 14 | U164: 0 | V164: 1 | W164: 0 | X164: 0 | Y164: 0
E165: 158 | F165: 13160 | G165: Bolívar | H165: Cantagallo | L165: 1 | M165: 1 | N165: 0 | O165: 0 | P165: 0 | Q165: 0 | R165: 0 | S165: 0 | T165: 1 | U165: 0 | V165: 0 | W165: 0 | X165: 0 | Y165: 0
E166: 159 | F166: 13188 | G166: Bolívar | H166: Cicuco | L166: 1 | M166: 0 | N166: 0 | O166: 1 | P166: 0 | Q166: 0 | R166: 0 | S166: 0 | T166: 0 | U166: 0 | V166: 1 | W166: 0 | X166: 0 | Y166: 0
E167: 160 | F167: 13212 | G167: Bolívar | H167: Córdoba | L167: 1 | M167: 1 | N167: 0 | O167: 0 | P167: 0 | Q167: 0 | R167: 0 | S167: 0 | T167: 1 | U167: 0 | V167: 0 | W167: 0 | X167: 0 | Y167: 0
E168: 161 | F168: 13222 | G168: Bolívar | H168: Clemencia | L168: 56 | M168: 34 | N168: 0 | O168: 22 | P168: 0 | Q168: 0 | R168: 0 | S168: 0 | T168: 34 | U168: 0 | V168: 22 | W168: 0 | X168: 0 | Y168: 0
E169: 162 | F169: 13244 | G169: Bolívar | H169: El Carmen de Bolívar | L169: 933 | M169: 174 | N169: 1 | O169: 55 | P169: 440 | Q169: 10 | R169: 0 | S169: 253 | T169: 174 | U169: 1 | V169: 55 | W169: 0 | X169: 0 | Y169: 0
E170: 163 | F170: 13248 | G170: Bolívar | H170: El Guamo | L170: 22 | M170: 20 | N170: 0 | O170: 1 | P170: 0 | Q170: 1 | R170: 0 | S170: 0 | T170: 20 | U170: 0 | V170: 1 | W170: 0 | X170: 0 | Y170: 0
E171: 164 | F171: 13268 | G171: Bolívar | H171: El Peñón | L171: 0 | M171: 0 | N171: 0 | O171: 0 | P171: 0 | Q171: 0 | R171: 0 | S171: 0 | T171: 0 | U171: 0 | V171: 0 | W171: 0 | X171: 0 | Y171: 0
E172: 165 | F172: 13300 | G172: Bolívar | H172: Hatillo de Loba | L172: 0 | M172: 0 | N172: 0 | O172: 0 | P172: 0 | Q172: 0 | R172: 0 | S172: 0 | T172: 0 | U172: 0 | V172: 0 | W172: 0 | X172: 0 | Y172: 0
E173: 166 | F173: 13430 | G173: Bolívar | H173: Magangué | L173: 1340 | M173: 497 | N173: 0 | O173: 217 | P173: 353 | Q173: 27 | R173: 0 | S173: 246 | T173: 497 | U173: 0 | V173: 217 | W173: 0 | X173: 0 | Y173: 0
E174: 167 | F174: 13433 | G174: Bolívar | H174: Mahates | L174: 286 | M174: 31 | N174: 1 | O174: 254 | P174: 0 | Q174: 0 | R174: 0 | S174: 0 | T174: 31 | U174: 1 | V174: 254 | W174: 0 | X174: 0 | Y174: 0
E175: 168 | F175: 13440 | G175: Bolívar | H175: Margarita | L175: 0 | M175: 0 | N175: 0 | O175: 0 | P175: 0 | Q175: 0 | R175: 0 | S175: 0 | T175: 0 | U175: 0 | V175: 0 | W175: 0 | X175: 0 | Y175: 0
E176: 169 | F176: 13442 | G176: Bolívar | H176: María La Baja | L176: 628 | M176: 62 | N176: 0 | O176: 529 | P176: 5 | Q176: 31 | R176: 0 | S176: 1 | T176: 62 | U176: 0 | V176: 529 | W176: 0 | X176: 0 | Y176: 0
E177: 170 | F177: 13458 | G177: Bolívar | H177: Montecristo | L177: 0 | M177: 0 | N177: 0 | O177: 0 | P177: 0 | Q177: 0 | R177: 0 | S177: 0 | T177: 0 | U177: 0 | V177: 0 | W177: 0 | X177: 0 | Y177: 0
E178: 171 | F178: 13468 | G178: Bolívar | H178: Mompós | L178: 1010 | M178: 288 | N178: 0 | O178: 233 | P178: 264 | Q178: 25 | R178: 0 | S178: 200 | T178: 288 | U178: 0 | V178: 233 | W178: 0 | X178: 0 | Y178: 0
E179: 172 | F179: 13473 | G179: Bolívar | H179: Morales | L179: 30 | M179: 30 | N179: 0 | O179: 0 | P179: 0 | Q179: 0 | R179: 0 | S179: 0 | T179: 30 | U179: 0 | V179: 0 | W179: 0 | X179: 0 | Y179: 0
E180: 173 | F180: 13490 | G180: Bolívar | H180: Norosí (1) | L180: 0 | M180: 0 | N180: 0 | O180: 0 | P180: 0 | Q180: 0 | R180: 0 | S180: 0 | T180: 0 | U180: 0 | V180: 0 | W180: 0 | X180: 0 | Y180: 0
E181: 174 | F181: 13549 | G181: Bolívar | H181: Pinillos | L181: 9 | M181: 9 | N181: 0 | O181: 0 | P181: 0 | Q181: 0 | R181: 0 | S181: 0 | T181: 9 | U181: 0 | V181: 0 | W181: 0 | X181: 0 | Y181: 0
E182: 175 | F182: 13580 | G182: Bolívar | H182: Regidor | L182: 1 | M182: 0 | N182: 0 | O182: 1 | P182: 0 | Q182: 0 | R182: 0 | S182: 0 | T182: 0 | U182: 0 | V182: 1 | W182: 0 | X182: 0 | Y182: 0
E183: 176 | F183: 13600 | G183: Bolívar | H183: Río Viejo (1)(3) | L183: 0 | M183: 0 | N183: 0 | O183: 0 | P183: 0 | Q183: 0 | R183: 0 | S183: 0 | T183: 0 | U183: 0 | V183: 0 | W183: 0 | X183: 0 | Y183: 0
E184: 177 | F184: 13620 | G184: Bolívar | H184: San Cristóbal | L184: 0 | M184: 0 | N184: 0 | O184: 0 | P184: 0 | Q184: 0 | R184: 0 | S184: 0 | T184: 0 | U184: 0 | V184: 0 | W184: 0 | X184: 0 | Y184: 0
E185: 178 | F185: 13647 | G185: Bolívar | H185: San Estanislao | L185: 5 | M185: 1 | N185: 0 | O185: 4 | P185: 0 | Q185: 0 | R185: 0 | S185: 0 | T185: 1 | U185: 0 | V185: 4 | W185: 0 | X185: 0 | Y185: 0
E186: 179 | F186: 13650 | G186: Bolívar | H186: San Fernando | L186: 0 | M186: 0 | N186: 0 | O186: 0 | P186: 0 | Q186: 0 | R186: 0 | S186: 0 | T186: 0 | U186: 0 | V186: 0 | W186: 0 | X186: 0 | Y186: 0
E187: 180 | F187: 13654 | G187: Bolívar | H187: San Jacinto | L187: 283 | M187: 77 | N187: 0 | O187: 181 | P187: 3 | Q187: 22 | R187: 0 | S187: 0 | T187: 77 | U187: 0 | V187: 181 | W187: 0 | X187: 0 | Y187: 0
E188: 181 | F188: 13655 | G188: Bolívar | H188: San Jacinto del Cauca | L188: 0 | M188: 0 | N188: 0 | O188: 0 | P188: 0 | Q188: 0 | R188: 0 | S188: 0 | T188: 0 | U188: 0 | V188: 0 | W188: 0 | X188: 0 | Y188: 0
E189: 182 | F189: 13657 | G189: Bolívar | H189: San Juan Nepomuceno | L189: 691 | M189: 227 | N189: 0 | O189: 79 | P189: 248 | Q189: 7 | R189: 0 | S189: 130 | T189: 227 | U189: 0 | V189: 79 | W189: 0 | X189: 0 | Y189: 0
E190: 183 | F190: 13667 | G190: Bolívar | H190: San Martín de Loba | L190: 3 | M190: 3 | N190: 0 | O190: 0 | P190: 0 | Q190: 0 | R190: 0 | S190: 0 | T190: 3 | U190: 0 | V190: 0 | W190: 0 | X190: 0 | Y190: 0
E191: 184 | F191: 13670 | G191: Bolívar | H191: San Pablo | L191: 1 | M191: 0 | N191: 0 | O191: 1 | P191: 0 | Q191: 0 | R191: 0 | S191: 0 | T191: 0 | U191: 0 | V191: 1 | W191: 0 | X191: 0 | Y191: 0
E192: 185 | F192: 13673 | G192: Bolívar | H192: Santa Catalina | L192: 0 | M192: 0 | N192: 0 | O192: 0 | P192: 0 | Q192: 0 | R192: 0 | S192: 0 | T192: 0 | U192: 0 | V192: 0 | W192: 0 | X192: 0 | Y192: 0
E193: 186 | F193: 13683 | G193: Bolívar | H193: Santa Rosa | L193: 51 | M193: 17 | N193: 0 | O193: 33 | P193: 0 | Q193: 1 | R193: 0 | S193: 0 | T193: 17 | U193: 0 | V193: 33 | W193: 0 | X193: 0 | Y193: 0
E194: 187 | F194: 13688 | G194: Bolívar | H194: Santa Rosa del Sur | L194: 135 | M194: 130 | N194: 0 | O194: 5 | P194: 0 | Q194: 0 | R194: 0 | S194: 0 | T194: 130 | U194: 0 | V194: 5 | W194: 0 | X194: 0 | Y194: 0
E195: 188 | F195: 13744 | G195: Bolívar | H195: Simití | L195: 53 | M195: 52 | N195: 0 | O195: 1 | P195: 0 | Q195: 0 | R195: 0 | S195: 0 | T195: 52 | U195: 0 | V195: 1 | W195: 0 | X195: 0 | Y195: 0
E196: 189 | F196: 13760 | G196: Bolívar | H196: Soplaviento | L196: 18 | M196: 0 | N196: 0 | O196: 18 | P196: 0 | Q196: 0 | R196: 0 | S196: 0 | T196: 0 | U196: 0 | V196: 18 | W196: 0 | X196: 0 | Y196: 0
E197: 190 | F197: 13780 | G197: Bolívar | H197: Talaigua Nuevo | L197: 29 | M197: 29 | N197: 0 | O197: 0 | P197: 0 | Q197: 0 | R197: 0 | S197: 0 | T197: 29 | U197: 0 | V197: 0 | W197: 0 | X197: 0 | Y197: 0
E198: 191 | F198: 13810 | G198: Bolívar | H198: Tiquisio | L198: 0 | M198: 0 | N198: 0 | O198: 0 | P198: 0 | Q198: 0 | R198: 0 | S198: 0 | T198: 0 | U198: 0 | V198: 0 | W198: 0 | X198: 0 | Y198: 0
E199: 192 | F199: 13836 | G199: Bolívar | H199: Turbaco | L199: 9082 | M199: 493 | N199: 698 | O199: 1576 | P199: 1452 | Q199: 165 | R199: 1012 | S199: 3686 | T199: 493 | U199: 698 | V199: 1576 | W199: 0 | X199: 0 | Y199: 0
E200: 193 | F200: 13838 | G200: Bolívar | H200: Turbaná | L200: =+SUM(M200:S200) -> 221 | M200: 42 | N200: 0 | O200: 176 | P200: 3 | Q200: 0 | R200: 0 | S200: 0 | T200: =+M200 -> 42 | U200: =+N200 -> 0 | V200: =+O200 -> 176 | W200: =+T200-M200 -> 0 | X200: =+U200-N200 -> 0 | Y200: =+V200-O200 -> 0
E201: 194 | F201: 13873 | G201: Bolívar | H201: Villanueva | L201: 0 | M201: 0 | N201: 0 | O201: 0 | P201: 0 | Q201: 0 | R201: 0 | S201: 0 | T201: 0 | U201: 0 | V201: 0 | W201: 0 | X201: 0 | Y201: 0
E202: 195 | F202: 13894 | G202: Bolívar | H202: Zambrano | L202: 1 | M202: 0 | N202: 0 | O202: 1 | P202: 0 | Q202: 0 | R202: 0 | S202: 0 | T202: 0 | U202: 0 | V202: 1 | W202: 0 | X202: 0 | Y202: 0
... 4305 more rows

Sheet Demanda
A1: =Portada!$D$2 -> Modelo Empresa Eficiente Fija
A2: Estimación y Proyección de Demanda por Servicios
B4: Salida Demanda Empresa Eficiente a Tarifas
C6: N°Orden | D6: Descripción | F6: =+G6-1 -> 2015 | G6: =años.calendario -> 2016 | H6: 2017 | I6: 2018 | J6: 2019 | K6: 2020 | L6: 2021
C7: 1 | D7: Líneas de Telefonía Fija (EOP) | F7: =dda.lin.eop -> 1122 | G7: 1122 | H7: 1122 | I7: 1122 | J7: 1122 | K7: 1122 | L7: 1122 | M7: [Lineas]
C8: =C7+1 -> 2 | D8: Accesos a Internet Fija (EOP) | F8: =dda.acc.eop -> 1122 | G8: 1122 | H8: 1122 | I8: 1122 | J8: 1122 | K8: 1122 | L8: 1122 | M8: [Accesos]
C9: 3 | D9: Abonados TV Suscripción (EOP) | F9: =dda.atv.eop -> 561 | G9: 561 | H9: 561 | I9: 561 | J9: 561 | K9: 561 | L9: 561 | M9: [AboTV]
C10: 4
C11: 5 | D11: Accesos sólo TF | F11: =TRANSPOSE(dda.acc.tf) -> 112.2 | G11: 112.2 | H11: 112.2 | I11: 112.2 | J11: 112.2 | K11: 112.2 | L11: 112.2 | M11: [Accesos]
C12: 6 | D12: Accesos sólo IF | F12: =+TRANSPOSE(dda.acc.if) -> 112.2 | G12: 112.2 | H12: 112.2 | I12: 112.2 | J12: 112.2 | K12: 112.2 | L12: 112.2 | M12: [Accesos]
C13: 7 | D13: Accesos sólo TV | F13: =TRANSPOSE(dda.acc.tv) -> 0 | G13: 0 | H13: 0 | I13: 0 | J13: 0 | K13: 0 | L13: 0 | M13: [Accesos]
C14: 8 | D14: Accesos TF + IF | F14: =+TRANSPOSE(dda.acc.tf_if) -> 448.8 | G14: 448.8 | H14: 448.8 | I14: 448.8 | J14: 448.8 | K14: 448.8 | L14: 448.8 | M14: [Accesos]
C15: 9 | D15: Accesos TF + TV | F15: =+TRANSPOSE(dda.acc.tf_tv) -> 0 | G15: 0 | H15: 0 | I15: 0 | J15: 0 | K15: 0 | L15: 0 | M15: [Accesos]
C16: 10 | D16: Accesos IF + TV | F16: =TRANSPOSE(dda.acc.if_tv) -> 112.2 | G16: 112.2 | H16: 112.2 | I16: 112.2 | J16: 112.2 | K16: 112.2 | L16: 112.2 | M16: [Accesos]
C17: 11 | D17: Accesos TF + IF + TV (3play) | F17: =+TRANSPOSE(dda.acc.3play) -> 448.8 | G17: 448.8 | H17: 448.8 | I17: 448.8 | J17: 448.8 | K17: 448.8 | L17: 448.8 | M17: [Accesos]
C18: 12 | D18: Total Accesos | F18: =SUM(F11:F17) -> 1234.2 | G18: =SUM(G11:G17) -> 1234.2 | H18: 1234.2 | I18: 1234.2 | J18: 1234.2 | K18: 1234.2 | L18: 1234.2 | M18: [Accesos] | N18: dda.acc.tot
C19: 13 | D19: Tráfico Local Entrada | F19: =dda.loc.ent -> 0 | G19: 0 | H19: 0 | I19: 0 | J19: 0 | K19: 0 | L19: 0 | M19: [Minutos]
C20: 14 | D20: Tráfico Local Salida | F20: =dda.loc.sal -> 0 | G20: 0 | H20: 0 | I20: 0 | J20: 0 | K20: 0 | L20: 0 | M20: [Minutos]
C21: 15 | D21: Tráfico Local OnNet | F21: =dda.loc.on -> 0 | G21: 0 | H21: 0 | I21: 0 | J21: 0 | K21: 0 | L21: 0 | M21: [Minutos]
C22: 16 | D22: Tráfico Local Extendido Entrada | F22: =dda.lex.ent -> 0 | G22: 0 | H22: 0 | I22: 0 | J22: 0 | K22: 0 | L22: 0 | M22: [Minutos]
C23: 17 | D23: Tráfico Local Extendido Salida | F23: =dda.lex.sal -> 0 | G23: 0 | H23: 0 | I23: 0 | J23: 0 | K23: 0 | L23: 0 | M23: [Minutos]
C24: 18 | D24: Tráfico Local Extendido OnNet | F24: =dda.lex.on -> 0 | G24: 0 | H24: 0 | I24: 0 | J24: 0 | K24: 0 | L24: 0 | M24: [Minutos]
C25: 19 | D25: Tráfico LDN Entrada | F25: =dda.ldn.ent -> 0 | G25: 0 | H25: 0 | I25: 0 | J25: 0 | K25: 0 | L25: 0 | M25: [Minutos]
C26: 20 | D26: Tráfico LDN Salida | F26: =dda.ldn.sal -> 0 | G26: 0 | H26: 0 | I26: 0 | J26: 0 | K26: 0 | L26: 0 | M26: [Minutos]
C27: 21 | D27: Tráfico LDI Entrada | F27: =dda.ldi.ent -> 0 | G27: 0 | H27: 0 | I27: 0 | J27: 0 | K27: 0 | L27: 0 | M27: [Minutos]
C28: 22 | D28: Tráfico LDI Salida | F28: =dda.ldi.sal -> 0 | G28: 0 | H28: 0 | I28: 0 | J28: 0 | K28: 0 | L28: 0 | M28: [Minutos]
C29: 23
C30: 24 | D30: Tráfico de Datos Up | F30: =dda.dat.up -> 10098 | G30: 14137.2 | H30: 18176.4 | I30: 22215.6 | J30: 28274.4 | K30: 32313.6 | L30: 36352.8 | M30: [GB]
C31: 25 | D31: Tráfico de Datos Down | F31: =dda.dat.dw -> 57222 | G31: 80110.8 | H31: 102999.6 | I31: 125888.4 | J31: 160221.6 | K31: 183110.4 | L31: 205999.2 | M31: [GB]
C32: 26 | D32: Velocidad Promedio | F32: =+dda.dat.speed -> 9 | G32: 9 | H32: 9 | I32: 9 | J32: 9 | K32: 9 | L32: 9 | M32: [Mbps]
C33: 27
C34: 28 | D34: Tráfico Móvil Local Entrada | F34: =N43022 -> 0 | G34: =O43022 -> 0 | H34: 0 | I34: 0 | J34: 0 | K34: 0 | L34: 0 | M34: [Minutos]
C35: 29 | D35: Tráfico Local Móvil Salida | F35: =F43022 -> 0 | G35: =G43022 -> 0 | H35: 0 | I35: 0 | J35: 0 | K35: 0 | L35: 0 | M35: [Minutos]
C36: 30
B39: Accesos a Servicios
B41: Líneas en Servicio de Telefonía Fija Mercado por Municipio (EOP)
B43: N°Orden | C43: id DANE | D43: Departamento | E43: Municipio | F43: =+G43-1 -> 2015 | G43: =años.calendario -> 2016 | H43: 2017 | I43: 2018 | J43: 2019 | K43: 2020 | L43: 2021
B44: 1 | C44: 5001 | D44: Antioquia | E44: Medellín | F44: 1 | G44: 1 | H44: 1 | I44: 1 | J44: 1 | K44: 1 | L44: 1 | M44: [Lineas]
B45: 2 | C45: 5002 | D45: Antioquia | E45: Abejorral | F45: 1 | G45: 1 | H45: 1 | I45: 1 | J45: 1 | K45: 1 | L45: 1 | M45: [Lineas]
B46: 3 | C46: 5004 | D46: Antioquia | E46: Abriaquí | F46: 1 | G46: 1 | H46: 1 | I46: 1 | J46: 1 | K46: 1 | L46: 1 | M46: [Lineas]
B47: 4 | C47: 5021 | D47: Antioquia | E47: Alejandría | F47: 1 | G47: 1 | H47: 1 | I47: 1 | J47: 1 | K47: 1 | L47: 1 | M47: [Lineas]
B48: 5 | C48: 5030 | D48: Antioquia | E48: Amagá | F48: 1 | G48: 1 | H48: 1 | I48: 1 | J48: 1 | K48: 1 | L48: 1 | M48: [Lineas]
B49: 6 | C49: 5031 | D49: Antioquia | E49: Amalfi | F49: 1 | G49: 1 | H49: 1 | I49: 1 | J49: 1 | K49: 1 | L49: 1 | M49: [Lineas]
B50: 7 | C50: 5034 | D50: Antioquia | E50: Andes | F50: 1 | G50: 1 | H50: 1 | I50: 1 | J50: 1 | K50: 1 | L50: 1 | M50: [Lineas]
B51: 8 | C51: 5036 | D51: Antioquia | E51: Angelópolis | F51: 1 | G51: 1 | H51: 1 | I51: 1 | J51: 1 | K51: 1 | L51: 1 | M51: [Lineas]
B52: 9 | C52: 5038 | D52: Antioquia | E52: Angostura | F52: 1 | G52: 1 | H52: 1 | I52: 1 | J52: 1 | K52: 1 | L52: 1 | M52: [Lineas]
B53: 10 | C53: 5040 | D53: Antioquia | E53: Anorí | F53: 1 | G53: 1 | H53: 1 | I53: 1 | J53: 1 | K53: 1 | L53: 1 | M53: [Lineas]
B54: 11 | C54: 5042 | D54: Antioquia | E54: Santafé de Antioquia | F54: 1 | G54: 1 | H54: 1 | I54: 1 | J54: 1 | K54: 1 | L54: 1 | M54: [Lineas]
B55: 12 | C55: 5044 | D55: Antioquia | E55: Anza | F55: 1 | G55: 1 | H55: 1 | I55: 1 | J55: 1 | K55: 1 | L55: 1 | M55: [Lineas]
B56: 13 | C56: 5045 | D56: Antioquia | E56: Apartadó | F56: 1 | G56: 1 | H56: 1 | I56: 1 | J56: 1 | K56: 1 | L56: 1 | M56: [Lineas]
B57: 14 | C57: 5051 | D57: Antioquia | E57: Arboletes | F57: 1 | G57: 1 | H57: 1 | I57: 1 | J57: 1 | K57: 1 | L57: 1 | M57: [Lineas]
B58: 15 | C58: 5055 | D58: Antioquia | E58: Argelia | F58: 1 | G58: 1 | H58: 1 | I58: 1 | J58: 1 | K58: 1 | L58: 1 | M58: [Lineas]
B59: 16 | C59: 5059 | D59: Antioquia | E59: Armenia | F59: 1 | G59: 1 | H59: 1 | I59: 1 | J59: 1 | K59: 1 | L59: 1 | M59: [Lineas]
B60: 17 | C60: 5079 | D60: Antioquia | E60: Barbosa | F60: 1 | G60: 1 | H60: 1 | I60: 1 | J60: 1 | K60: 1 | L60: 1 | M60: [Lineas]
B61: 18 | C61: 5086 | D61: Antioquia | E61: Belmira | F61: 1 | G61: 1 | H61: 1 | I61: 1 | J61: 1 | K61: 1 | L61: 1 | M61: [Lineas]
B62: 19 | C62: 5088 | D62: Antioquia | E62: Bello | F62: 1 | G62: 1 | H62: 1 | I62: 1 | J62: 1 | K62: 1 | L62: 1 | M62: [Lineas]
B63: 20 | C63: 5091 | D63: Antioquia | E63: Betania | F63: 1 | G63: 1 | H63: 1 | I63: 1 | J63: 1 | K63: 1 | L63: 1 | M63: [Lineas]
B64: 21 | C64: 5093 | D64: Antioquia | E64: Betulia | F64: 1 | G64: 1 | H64: 1 | I64: 1 | J64: 1 | K64: 1 | L64: 1 | M64: [Lineas]
B65: 22 | C65: 5101 | D65: Antioquia | E65: Ciudad Bolívar | F65: 1 | G65: 1 | H65: 1 | I65: 1 | J65: 1 | K65: 1 | L65: 1 | M65: [Lineas]
B66: 23 | C66: 5107 | D66: Antioquia | E66: Briceño | F66: 1 | G66: 1 | H66: 1 | I66: 1 | J66: 1 | K66: 1 | L66: 1 | M66: [Lineas]
B67: 24 | C67: 5113 | D67: Antioquia | E67: Buriticá | F67: 1 | G67: 1 | H67: 1 | I67: 1 | J67: 1 | K67: 1 | L67: 1 | M67: [Lineas]
B68: 25 | C68: 5120 | D68: Antioquia | E68: Cáceres | F68: 1 | G68: 1 | H68: 1 | I68: 1 | J68: 1 | K68: 1 | L68: 1 | M68: [Lineas]
B69: 26 | C69: 5125 | D69: Antioquia | E69: Caicedo | F69: 1 | G69: 1 | H69: 1 | I69: 1 | J69: 1 | K69: 1 | L69: 1 | M69: [Lineas]
B70: 27 | C70: 5129 | D70: Antioquia | E70: Caldas | F70: 1 | G70: 1 | H70: 1 | I70: 1 | J70: 1 | K70: 1 | L70: 1 | M70: [Lineas]
B71: 28 | C71: 5134 | D71: Antioquia | E71: Campamento | F71: 1 | G71: 1 | H71: 1 | I71: 1 | J71: 1 | K71: 1 | L71: 1 | M71: [Lineas]
B72: 29 | C72: 5138 | D72: Antioquia | E72: Cañasgordas | F72: 1 | G72: 1 | H72: 1 | I72: 1 | J72: 1 | K72: 1 | L72: 1 | M72: [Lineas]
B73: 30 | C73: 5142 | D73: Antioquia | E73: Caracolí | F73: 1 | G73: 1 | H73: 1 | I73: 1 | J73: 1 | K73: 1 | L73: 1 | M73: [Lineas]
B74: 31 | C74: 5145 | D74: Antioquia | E74: Caramanta | F74: 1 | G74: 1 | H74: 1 | I74: 1 | J74: 1 | K74: 1 | L74: 1 | M74: [Lineas]
B75: 32 | C75: 5147 | D75: Antioquia | E75: Carepa | F75: 1 | G75: 1 | H75: 1 | I75: 1 | J75: 1 | K75: 1 | L75: 1 | M75: [Lineas]
B76: 33 | C76: 5148 | D76: Antioquia | E76: El Carmen de Viboral | F76: 1 | G76: 1 | H76: 1 | I76: 1 | J76: 1 | K76: 1 | L76: 1 | M76: [Lineas]
B77: 34 | C77: 5150 | D77: Antioquia | E77: Carolina | F77: 1 | G77: 1 | H77: 1 | I77: 1 | J77: 1 | K77: 1 | L77: 1 | M77: [Lineas]
B78: 35 | C78: 5154 | D78: Antioquia | E78: Caucasia | F78: 1 | G78: 1 | H78: 1 | I78: 1 | J78: 1 | K78: 1 | L78: 1 | M78: [Lineas]
B79: 36 | C79: 5172 | D79: Antioquia | E79: Chigorodó | F79: 1 | G79: 1 | H79: 1 | I79: 1 | J79: 1 | K79: 1 | L79: 1 | M79: [Lineas]
B80: 37 | C80: 5190 | D80: Antioquia | E80: Cisneros | F80: 1 | G80: 1 | H80: 1 | I80: 1 | J80: 1 | K80: 1 | L80: 1 | M80: [Lineas]
B81: 38 | C81: 5197 | D81: Antioquia | E81: Cocorná | F81: 1 | G81: 1 | H81: 1 | I81: 1 | J81: 1 | K81: 1 | L81: 1 | M81: [Lineas]
B82: 39 | C82: 5206 | D82: Antioquia | E82: Concepción | F82: 1 | G82: 1 | H82: 1 | I82: 1 | J82: 1 | K82: 1 | L82: 1 | M82: [Lineas]
B83: 40 | C83: 5209 | D83: Antioquia | E83: Concordia | F83: 1 | G83: 1 | H83: 1 | I83: 1 | J83: 1 | K83: 1 | L83: 1 | M83: [Lineas]
B84: 41 | C84: 5212 | D84: Antioquia | E84: Copacabana | F84: 1 | G84: 1 | H84: 1 | I84: 1 | J84: 1 | K84: 1 | L84: 1 | M84: [Lineas]
B85: 42 | C85: 5234 | D85: Antioquia | E85: Dabeiba | F85: 1 | G85: 1 | H85: 1 | I85: 1 | J85: 1 | K85: 1 | L85: 1 | M85: [Lineas]
B86: 43 | C86: 5237 | D86: Antioquia | E86: Don Matías | F86: 1 | G86: 1 | H86: 1 | I86: 1 | J86: 1 | K86: 1 | L86: 1 | M86: [Lineas]
B87: 44 | C87: 5240 | D87: Antioquia | E87: Ebéjico | F87: 1 | G87: 1 | H87: 1 | I87: 1 | J87: 1 | K87: 1 | L87: 1 | M87: [Lineas]
B88: 45 | C88: 5250 | D88: Antioquia | E88: El Bagre | F88: 1 | G88: 1 | H88: 1 | I88: 1 | J88: 1 | K88: 1 | L88: 1 | M88: [Lineas]
B89: 46 | C89: 5264 | D89: Antioquia | E89: Entrerrios | F89: 1 | G89: 1 | H89: 1 | I89: 1 | J89: 1 | K89: 1 | L89: 1 | M89: [Lineas]
B90: 47 | C90: 5266 | D90: Antioquia | E90: Envigado | F90: 1 | G90: 1 | H90: 1 | I90: 1 | J90: 1 | K90: 1 | L90: 1 | M90: [Lineas]
B91: 48 | C91: 5282 | D91: Antioquia | E91: Fredonia | F91: 1 | G91: 1 | H91: 1 | I91: 1 | J91: 1 | K91: 1 | L91: 1 | M91: [Lineas]
B92: 49 | C92: 5284 | D92: Antioquia | E92: Frontino | F92: 1 | G92: 1 | H92: 1 | I92: 1 | J92: 1 | K92: 1 | L92: 1 | M92: [Lineas]
B93: 50 | C93: 5306 | D93: Antioquia | E93: Giraldo | F93: 1 | G93: 1 | H93: 1 | I93: 1 | J93: 1 | K93: 1 | L93: 1 | M93: [Lineas]
B94: 51 | C94: 5308 | D94: Antioquia | E94: Girardota | F94: 1 | G94: 1 | H94: 1 | I94: 1 | J94: 1 | K94: 1 | L94: 1 | M94: [Lineas]
B95: 52 | C95: 5310 | D95: Antioquia | E95: Gómez Plata | F95: 1 | G95: 1 | H95: 1 | I95: 1 | J95: 1 | K95: 1 | L95: 1 | M95: [Lineas]
B96: 53 | C96: 5313 | D96: Antioquia | E96: Granada | F96: 1 | G96: 1 | H96: 1 | I96: 1 | J96: 1 | K96: 1 | L96: 1 | M96: [Lineas]
B97: 54 | C97: 5315 | D97: Antioquia | E97: Guadalupe | F97: 1 | G97: 1 | H97: 1 | I97: 1 | J97: 1 | K97: 1 | L97: 1 | M97: [Lineas]
B98: 55 | C98: 5318 | D98: Antioquia | E98: Guarne | F98: 1 | G98: 1 | H98: 1 | I98: 1 | J98: 1 | K98: 1 | L98: 1 | M98: [Lineas]
B99: 56 | C99: 5321 | D99: Antioquia | E99: Guatapé | F99: 1 | G99: 1 | H99: 1 | I99: 1 | J99: 1 | K99: 1 | L99: 1 | M99: [Lineas]
B100: 57 | C100: 5347 | D100: Antioquia | E100: Heliconia | F100: 1 | G100: 1 | H100: 1 | I100: 1 | J100: 1 | K100: 1 | L100: 1 | M100: [Lineas]
B101: 58 | C101: 5353 | D101: Antioquia | E101: Hispania | F101: 1 | G101: 1 | H101: 1 | I101: 1 | J101: 1 | K101: 1 | L101: 1 | M101: [Lineas]
B102: 59 | C102: 5360 | D102: Antioquia | E102: Itagui | F102: 1 | G102: 1 | H102: 1 | I102: 1 | J102: 1 | K102: 1 | L102: 1 | M102: [Lineas]
B103: 60 | C103: 5361 | D103: Antioquia | E103: Ituango | F103: 1 | G103: 1 | H103: 1 | I103: 1 | J103: 1 | K103: 1 | L103: 1 | M103: [Lineas]
B104: 61 | C104: 5364 | D104: Antioquia | E104: Jardín | F104: 1 | G104: 1 | H104: 1 | I104: 1 | J104: 1 | K104: 1 | L104: 1 | M104: [Lineas]
B105: 62 | C105: 5368 | D105: Antioquia | E105: Jericó | F105: 1 | G105: 1 | H105: 1 | I105: 1 | J105: 1 | K105: 1 | L105: 1 | M105: [Lineas]
B106: 63 | C106: 5376 | D106: Antioquia | E106: La Ceja | F106: 1 | G106: 1 | H106: 1 | I106: 1 | J106: 1 | K106: 1 | L106: 1 | M106: [Lineas]
B107: 64 | C107: 5380 | D107: Antioquia | E107: La Estrella | F107: 1 | G107: 1 | H107: 1 | I107: 1 | J107: 1 | K107: 1 | L107: 1 | M107: [Lineas]
B108: 65 | C108: 5390 | D108: Antioquia | E108: La Pintada | F108: 1 | G108: 1 | H108: 1 | I108: 1 | J108: 1 | K108: 1 | L108: 1 | M108: [Lineas]
B109: 66 | C109: 5400 | D109: Antioquia | E109: La Unión | F109: 1 | G109: 1 | H109: 1 | I109: 1 | J109: 1 | K109: 1 | L109: 1 | M109: [Lineas]
B110: 67 | C110: 5411 | D110: Antioquia | E110: Liborina | F110: 1 | G110: 1 | H110: 1 | I110: 1 | J110: 1 | K110: 1 | L110: 1 | M110: [Lineas]
B111: 68 | C111: 5425 | D111: Antioquia | E111: Maceo | F111: 1 | G111: 1 | H111: 1 | I111: 1 | J111: 1 | K111: 1 | L111: 1 | M111: [Lineas]
B112: 69 | C112: 5440 | D112: Antioquia | E112: Marinilla | F112: 1 | G112: 1 | H112: 1 | I112: 1 | J112: 1 | K112: 1 | L112: 1 | M112: [Lineas]
B113: 70 | C113: 5467 | D113: Antioquia | E113: Montebello | F113: 1 | G113: 1 | H113: 1 | I113: 1 | J113: 1 | K113: 1 | L113: 1 | M113: [Lineas]
B114: 71 | C114: 5475 | D114: Antioquia | E114: Murindó | F114: 1 | G114: 1 | H114: 1 | I114: 1 | J114: 1 | K114: 1 | L114: 1 | M114: [Lineas]
B115: 72 | C115: 5480 | D115: Antioquia | E115: Mutatá | F115: 1 | G115: 1 | H115: 1 | I115: 1 | J115: 1 | K115: 1 | L115: 1 | M115: [Lineas]
B116: 73 | C116: 5483 | D116: Antioquia | E116: Nariño | F116: 1 | G116: 1 | H116: 1 | I116: 1 | J116: 1 | K116: 1 | L116: 1 | M116: [Lineas]
B117: 74 | C117: 5490 | D117: Antioquia | E117: Necoclí | F117: 1 | G117: 1 | H117: 1 | I117: 1 | J117: 1 | K117: 1 | L117: 1 | M117: [Lineas]
B118: 75 | C118: 5495 | D118: Antioquia | E118: Nechí | F118: 1 | G118: 1 | H118: 1 | I118: 1 | J118: 1 | K118: 1 | L118: 1 | M118: [Lineas]
B119: 76 | C119: 5501 | D119: Antioquia | E119: Olaya | F119: 1 | G119: 1 | H119: 1 | I119: 1 | J119: 1 | K119: 1 | L119: 1 | M119: [Lineas]
B120: 77 | C120: 5541 | D120: Antioquia | E120: Peñol | F120: 1 | G120: 1 | H120: 1 | I120: 1 | J120: 1 | K120: 1 | L120: 1 | M120: [Lineas]
B121: 78 | C121: 5543 | D121: Antioquia | E121: Peque | F121: 1 | G121: 1 | H121: 1 | I121: 1 | J121: 1 | K121: 1 | L121: 1 | M121: [Lineas]
B122: 79 | C122: 5576 | D122: Antioquia | E122: Pueblorrico | F122: 1 | G122: 1 | H122: 1 | I122: 1 | J122: 1 | K122: 1 | L122: 1 | M122: [Lineas]
B123: 80 | C123: 5579 | D123: Antioquia | E123: Puerto Berrío | F123: 1 | G123: 1 | H123: 1 | I123: 1 | J123: 1 | K123: 1 | L123: 1 | M123: [Lineas]
B124: 81 | C124: 5585 | D124: Antioquia | E124: Puerto Nare | F124: 1 | G124: 1 | H124: 1 | I124: 1 | J124: 1 | K124: 1 | L124: 1 | M124: [Lineas]
B125: 82 | C125: 5591 | D125: Antioquia | E125: Puerto Triunfo | F125: 1 | G125: 1 | H125: 1 | I125: 1 | J125: 1 | K125: 1 | L125: 1 | M125: [Lineas]
B126: 83 | C126: 5604 | D126: Antioquia | E126: Remedios | F126: 1 | G126: 1 | H126: 1 | I126: 1 | J126: 1 | K126: 1 | L126: 1 | M126: [Lineas]
B127: 84 | C127: 5607 | D127: Antioquia | E127: Retiro | F127: 1 | G127: 1 | H127: 1 | I127: 1 | J127: 1 | K127: 1 | L127: 1 | M127: [Lineas]
B128: 85 | C128: 5615 | D128: Antioquia | E128: Rionegro | F128: 1 | G128: 1 | H128: 1 | I128: 1 | J128: 1 | K128: 1 | L128: 1 | M128: [Lineas]
B129: 86 | C129: 5628 | D129: Antioquia | E129: Sabanalarga | F129: 1 | G129: 1 | H129: 1 | I129: 1 | J129: 1 | K129: 1 | L129: 1 | M129: [Lineas]
B130: 87 | C130: 5631 | D130: Antioquia | E130: Sabaneta | F130: 1 | G130: 1 | H130: 1 | I130: 1 | J130: 1 | K130: 1 | L130: 1 | M130: [Lineas]
B131: 88 | C131: 5642 | D131: Antioquia | E131: Salgar | F131: 1 | G131: 1 | H131: 1 | I131: 1 | J131: 1 | K131: 1 | L131: 1 | M131: [Lineas]
B132: 89 | C132: 5647 | D132: Antioquia | E132: San Andrés de Cuerquía | F132: 1 | G132: 1 | H132: 1 | I132: 1 | J132: 1 | K132: 1 | L132: 1 | M132: [Lineas]
B133: 90 | C133: 5649 | D133: Antioquia | E133: San Carlos | F133: 1 | G133: 1 | H133: 1 | I133: 1 | J133: 1 | K133: 1 | L133: 1 | M133: [Lineas]
B134: 91 | C134: 5652 | D134: Antioquia | E134: San Francisco | F134: 1 | G134: 1 | H134: 1 | I134: 1 | J134: 1 | K134: 1 | L134: 1 | M134: [Lineas]
B135: 92 | C135: 5656 | D135: Antioquia | E135: San Jerónimo | F135: 1 | G135: 1 | H135: 1 | I135: 1 | J135: 1 | K135: 1 | L135: 1 | M135: [Lineas]
B136: 93 | C136: 5658 | D136: Antioquia | E136: San José de La Montaña | F136: 1 | G136: 1 | H136: 1 | I136: 1 | J136: 1 | K136: 1 | L136: 1 | M136: [Lineas]
B137: 94 | C137: 5659 | D137: Antioquia | E137: San Juan de Urabá | F137: 1 | G137: 1 | H137: 1 | I137: 1 | J137: 1 | K137: 1 | L137: 1 | M137: [Lineas]
B138: 95 | C138: 5660 | D138: Antioquia | E138: San Luis | F138: 1 | G138: 1 | H138: 1 | I138: 1 | J138: 1 | K138: 1 | L138: 1 | M138: [Lineas]
B139: 96 | C139: 5664 | D139: Antioquia | E139: San Pedro | F139: 1 | G139: 1 | H139: 1 | I139: 1 | J139: 1 | K139: 1 | L139: 1 | M139: [Lineas]
B140: 97 | C140: 5665 | D140: Antioquia | E140: San Pedro de Uraba | F140: 1 | G140: 1 | H140: 1 | I140: 1 | J140: 1 | K140: 1 | L140: 1 | M140: [Lineas]
B141: 98 | C141: 5667 | D141: Antioquia | E141: San Rafael | F141: 1 | G141: 1 | H141: 1 | I141: 1 | J141: 1 | K141: 1 | L141: 1 | M141: [Lineas]
B142: 99 | C142: 5670 | D142: Antioquia | E142: San Roque | F142: 1 | G142: 1 | H142: 1 | I142: 1 | J142: 1 | K142: 1 | L142: 1 | M142: [Lineas]
B143: 100 | C143: 5674 | D143: Antioquia | E143: San Vicente | F143: 1 | G143: 1 | H143: 1 | I143: 1 | J143: 1 | K143: 1 | L143: 1 | M143: [Lineas]
B144: 101 | C144: 5679 | D144: Antioquia | E144: Santa Bárbara | F144: 1 | G144: 1 | H144: 1 | I144: 1 | J144: 1 | K144: 1 | L144: 1 | M144: [Lineas]
B145: 102 | C145: 5686 | D145: Antioquia | E145: Santa Rosa de Osos | F145: 1 | G145: 1 | H145: 1 | I145: 1 | J145: 1 | K145: 1 | L145: 1 | M145: [Lineas]
B146: 103 | C146: 5690 | D146: Antioquia | E146: Santo Domingo | F146: 1 | G146: 1 | H146: 1 | I146: 1 | J146: 1 | K146: 1 | L146: 1 | M146: [Lineas]
B147: 104 | C147: 5697 | D147: Antioquia | E147: El Santuario | F147: 1 | G147: 1 | H147: 1 | I147: 1 | J147: 1 | K147: 1 | L147: 1 | M147: [Lineas]
B148: 105 | C148: 5736 | D148: Antioquia | E148: Segovia | F148: 1 | G148: 1 | H148: 1 | I148: 1 | J148: 1 | K148: 1 | L148: 1 | M148: [Lineas]
B149: 106 | C149: 5756 | D149: Antioquia | E149: Sonson | F149: 1 | G149: 1 | H149: 1 | I149: 1 | J149: 1 | K149: 1 | L149: 1 | M149: [Lineas]
B150: 107 | C150: 5761 | D150: Antioquia | E150: Sopetrán | F150: 1 | G150: 1 | H150: 1 | I150: 1 | J150: 1 | K150: 1 | L150: 1 | M150: [Lineas]
B151: 108 | C151: 5789 | D151: Antioquia | E151: Támesis | F151: 1 | G151: 1 | H151: 1 | I151: 1 | J151: 1 | K151: 1 | L151: 1 | M151: [Lineas]
B152: 109 | C152: 5790 | D152: Antioquia | E152: Tarazá | F152: 1 | G152: 1 | H152: 1 | I152: 1 | J152: 1 | K152: 1 | L152: 1 | M152: [Lineas]
B153: 110 | C153: 5792 | D153: Antioquia | E153: Tarso | F153: 1 | G153: 1 | H153: 1 | I153: 1 | J153: 1 | K153: 1 | L153: 1 | M153: [Lineas]
B154: 111 | C154: 5809 | D154: Antioquia | E154: Titiribí | F154: 1 | G154: 1 | H154: 1 | I154: 1 | J154: 1 | K154: 1 | L154: 1 | M154: [Lineas]
B155: 112 | C155: 5819 | D155: Antioquia | E155: Toledo | F155: 1 | G155: 1 | H155: 1 | I155: 1 | J155: 1 | K155: 1 | L155: 1 | M155: [Lineas]
B156: 113 | C156: 5837 | D156: Antioquia | E156: Turbo | F156: 1 | G156: 1 | H156: 1 | I156: 1 | J156: 1 | K156: 1 | L156: 1 | M156: [Lineas]
B157: 114 | C157: 5842 | D157: Antioquia | E157: Uramita | F157: 1 | G157: 1 | H157: 1 | I157: 1 | J157: 1 | K157: 1 | L157: 1 | M157: [Lineas]
B158: 115 | C158: 5847 | D158: Antioquia | E158: Urrao | F158: 1 | G158: 1 | H158: 1 | I158: 1 | J158: 1 | K158: 1 | L158: 1 | M158: [Lineas]
B159: 116 | C159: 5854 | D159: Antioquia | E159: Valdivia | F159: 1 | G159: 1 | H159: 1 | I159: 1 | J159: 1 | K159: 1 | L159: 1 | M159: [Lineas]
B160: 117 | C160: 5856 | D160: Antioquia | E160: Valparaíso | F160: 1 | G160: 1 | H160: 1 | I160: 1 | J160: 1 | K160: 1 | L160: 1 | M160: [Lineas]
B161: 118 | C161: 5858 | D161: Antioquia | E161: Vegachí | F161: 1 | G161: 1 | H161: 1 | I161: 1 | J161: 1 | K161: 1 | L161: 1 | M161: [Lineas]
B162: 119 | C162: 5861 | D162: Antioquia | E162: Venecia | F162: 1 | G162: 1 | H162: 1 | I162: 1 | J162: 1 | K162: 1 | L162: 1 | M162: [Lineas]
B163: 120 | C163: 5873 | D163: Antioquia | E163: Vigía del Fuerte | F163: 1 | G163: 1 | H163: 1 | I163: 1 | J163: 1 | K163: 1 | L163: 1 | M163: [Lineas]
B164: 121 | C164: 5885 | D164: Antioquia | E164: Yalí | F164: 1 | G164: 1 | H164: 1 | I164: 1 | J164: 1 | K164: 1 | L164: 1 | M164: [Lineas]
B165: 122 | C165: 5887 | D165: Antioquia | E165: Yarumal | F165: 1 | G165: 1 | H165: 1 | I165: 1 | J165: 1 | K165: 1 | L165: 1 | M165: [Lineas]
B166: 123 | C166: 5890 | D166: Antioquia | E166: Yolombó | F166: 1 | G166: 1 | H166: 1 | I166: 1 | J166: 1 | K166: 1 | L166: 1 | M166: [Lineas]
B167: 124 | C167: 5893 | D167: Antioquia | E167: Yondó | F167: 1 | G167: 1 | H167: 1 | I167: 1 | J167: 1 | K167: 1 | L167: 1 | M167: [Lineas]
B168: 125 | C168: 5895 | D168: Antioquia | E168: Zaragoza | F168: 1 | G168: 1 | H168: 1 | I168: 1 | J168: 1 | K168: 1 | L168: 1 | M168: [Lineas]
B169: 126 | C169: 8001 | D169: Atlántico | E169: Barranquilla | F169: 1 | G169: 1 | H169: 1 | I169: 1 | J169: 1 | K169: 1 | L169: 1 | M169: [Lineas]
B170: 127 | C170: 8078 | D170: Atlántico | E170: Baranoa | F170: 1 | G170: 1 | H170: 1 | I170: 1 | J170: 1 | K170: 1 | L170: 1 | M170: [Lineas]
B171: 128 | C171: 8137 | D171: Atlántico | E171: Campo de La Cruz | F171: 1 | G171: 1 | H171: 1 | I171: 1 | J171: 1 | K171: 1 | L171: 1 | M171: [Lineas]
B172: 129 | C172: 8141 | D172: Atlántico | E172: Candelaria | F172: 1 | G172: 1 | H172: 1 | I172: 1 | J172: 1 | K172: 1 | L172: 1 | M172: [Lineas]
B173: 130 | C173: 8296 | D173: Atlántico | E173: Galapa | F173: 1 | G173: 1 | H173: 1 | I173: 1 | J173: 1 | K173: 1 | L173: 1 | M173: [Lineas]
B174: 131 | C174: 8372 | D174: Atlántico | E174: Juan de Acosta | F174: 1 | G174: 1 | H174: 1 | I174: 1 | J174: 1 | K174: 1 | L174: 1 | M174: [Lineas]
B175: 132 | C175: 8421 | D175: Atlántico | E175: Luruaco | F175: 1 | G175: 1 | H175: 1 | I175: 1 | J175: 1 | K175: 1 | L175: 1 | M175: [Lineas]
B176: 133 | C176: 8433 | D176: Atlántico | E176: Malambo | F176: 1 | G176: 1 | H176: 1 | I176: 1 | J176: 1 | K176: 1 | L176: 1 | M176: [Lineas]
B177: 134 | C177: 8436 | D177: Atlántico | E177: Manatí | F177: 1 | G177: 1 | H177: 1 | I177: 1 | J177: 1 | K177: 1 | L177: 1 | M177: [Lineas]
B178: 135 | C178: 8520 | D178: Atlántico | E178: Palmar de Varela | F178: 1 | G178: 1 | H178: 1 | I178: 1 | J178: 1 | K178: 1 | L178: 1 | M178: [Lineas]
B179: 136 | C179: 8549 | D179: Atlántico | E179: Piojó | F179: 1 | G179: 1 | H179: 1 | I179: 1 | J179: 1 | K179: 1 | L179: 1 | M179: [Lineas]
B180: 137 | C180: 8558 | D180: Atlántico | E180: Polonuevo | F180: 1 | G180: 1 | H180: 1 | I180: 1 | J180: 1 | K180: 1 | L180: 1 | M180: [Lineas]
B181: 138 | C181: 8560 | D181: Atlántico | E181: Ponedera | F181: 1 | G181: 1 | H181: 1 | I181: 1 | J181: 1 | K181: 1 | L181: 1 | M181: [Lineas]
B182: 139 | C182: 8573 | D182: Atlántico | E182: Puerto Colombia | F182: 1 | G182: 1 | H182: 1 | I182: 1 | J182: 1 | K182: 1 | L182: 1 | M182: [Lineas]
B183: 140 | C183: 8606 | D183: Atlántico | E183: Repelón | F183: 1 | G183: 1 | H183: 1 | I183: 1 | J183: 1 | K183: 1 | L183: 1 | M183: [Lineas]
B184: 141 | C184: 8634 | D184: Atlántico | E184: Sabanagrande | F184: 1 | G184: 1 | H184: 1 | I184: 1 | J184: 1 | K184: 1 | L184: 1 | M184: [Lineas]
B185: 142 | C185: 8638 | D185: Atlántico | E185: Sabanalarga | F185: 1 | G185: 1 | H185: 1 | I185: 1 | J185: 1 | K185: 1 | L185: 1 | M185: [Lineas]
B186: 143 | C186: 8675 | D186: Atlántico | E186: Santa Lucía | F186: 1 | G186: 1 | H186: 1 | I186: 1 | J186: 1 | K186: 1 | L186: 1 | M186: [Lineas]
B187: 144 | C187: 8685 | D187: Atlántico | E187: Santo Tomás | F187: 1 | G187: 1 | H187: 1 | I187: 1 | J187: 1 | K187: 1 | L187: 1 | M187: [Lineas]
B188: 145 | C188: 8758 | D188: Atlántico | E188: Soledad | F188: 1 | G188: 1 | H188: 1 | I188: 1 | J188: 1 | K188: 1 | L188: 1 | M188: [Lineas]
B189: 146 | C189: 8770 | D189: Atlántico | E189: Suan | F189: 1 | G189: 1 | H189: 1 | I189: 1 | J189: 1 | K189: 1 | L189: 1 | M189: [Lineas]
B190: 147 | C190: 8832 | D190: Atlántico | E190: Tubará | F190: 1 | G190: 1 | H190: 1 | I190: 1 | J190: 1 | K190: 1 | L190: 1 | M190: [Lineas]
B191: 148 | C191: 8849 | D191: Atlántico | E191: Usiacurí | F191: 1 | G191: 1 | H191: 1 | I191: 1 | J191: 1 | K191: 1 | L191: 1 | M191: [Lineas]
B192: 149 | C192: 11001 | D192: Bogotá, D.C. | E192: Bogotá, D.C. | F192: 1 | G192: 1 | H192: 1 | I192: 1 | J192: 1 | K192: 1 | L192: 1 | M192: [Lineas]
B193: 150 | C193: 13001 | D193: Bolívar | E193: Cartagena | F193: 1 | G193: 1 | H193: 1 | I193: 1 | J193: 1 | K193: 1 | L193: 1 | M193: [Lineas]
B194: 151 | C194: 13006 | D194: Bolívar | E194: Achí | F194: 1 | G194: 1 | H194: 1 | I194: 1 | J194: 1 | K194: 1 | L194: 1 | M194: [Lineas]
B195: 152 | C195: 13030 | D195: Bolívar | E195: Altos del Rosario | F195: 1 | G195: 1 | H195: 1 | I195: 1 | J195: 1 | K195: 1 | L195: 1 | M195: [Lineas]
B196: 153 | C196: 13042 | D196: Bolívar | E196: Arenal | F196: 1 | G196: 1 | H196: 1 | I196: 1 | J196: 1 | K196: 1 | L196: 1 | M196: [Lineas]
B197: 154 | C197: 13052 | D197: Bolívar | E197: Arjona | F197: 1 | G197: 1 | H197: 1 | I197: 1 | J197: 1 | K197: 1 | L197: 1 | M197: [Lineas]
B198: 155 | C198: 13062 | D198: Bolívar | E198: Arroyohondo | F198: 1 | G198: 1 | H198: 1 | I198: 1 | J198: 1 | K198: 1 | L198: 1 | M198: [Lineas]
B199: 156 | C199: 13074 | D199: Bolívar | E199: Barranco de Loba | F199: 1 | G199: 1 | H199: 1 | I199: 1 | J199: 1 | K199: 1 | L199: 1 | M199: [Lineas]
B200: 157 | C200: 13140 | D200: Bolívar | E200: Calamar | F200: 1 | G200: 1 | H200: 1 | I200: 1 | J200: 1 | K200: 1 | L200: 1 | M200: [Lineas]
B201: 158 | C201: 13160 | D201: Bolívar | E201: Cantagallo | F201: 1 | G201: 1 | H201: 1 | I201: 1 | J201: 1 | K201: 1 | L201: 1 | M201: [Lineas]
B202: 159 | C202: 13188 | D202: Bolívar | E202: Cicuco | F202: 1 | G202: 1 | H202: 1 | I202: 1 | J202: 1 | K202: 1 | L202: 1 | M202: [Lineas]
B203: 160 | C203: 13212 | D203: Bolívar | E203: Córdoba | F203: 1 | G203: 1 | H203: 1 | I203: 1 | J203: 1 | K203: 1 | L203: 1 | M203: [Lineas]
B204: 161 | C204: 13222 | D204: Bolívar | E204: Clemencia | F204: 1 | G204: 1 | H204: 1 | I204: 1 | J204: 1 | K204: 1 | L204: 1 | M204: [Lineas]
B205: 162 | C205: 13244 | D205: Bolívar | E205: El Carmen de Bolívar | F205: 1 | G205: 1 | H205: 1 | I205: 1 | J205: 1 | K205: 1 | L205: 1 | M205: [Lineas]
B206: 163 | C206: 13248 | D206: Bolívar | E206: El Guamo | F206: 1 | G206: 1 | H206: 1 | I206: 1 | J206: 1 | K206: 1 | L206: 1 | M206: [Lineas]
... 2038 more rows

Sheet Lectura.Red
A1: Modelo Empresa Eficiente Fija
A2: Lectura para diseño de red
B4: Parámetros Generales
C6: Escenarios
F8: ID | G8: Escenarios
F9: 1 | G9: EE
F10: 2 | G10: C1
F11: 3 | G11: C2
F12: 4 | G12: C3
G14: l.esc
C16: Departamentos
F18: ID | G18: Nombre Depto | H18: Cod Depto
F19: 1 | G19: ANTIOQUIA | H19: 5
F20: =F19+1 -> 2 | G20: ATLANTICO | H20: 8
F21: 3 | G21: BOGOTA DC | H21: 11
F22: 4 | G22: BOLIVAR | H22: 13
F23: 5 | G23: BOYACA | H23: 15
F24: 6 | G24: CALDAS | H24: 17
F25: 7 | G25: CAQUETA | H25: 18
F26: 8 | G26: CAUCA | H26: 19
F27: 9 | G27: CESAR | H27: 20
F28: 10 | G28: CORDOBA | H28: 23
F29: 11 | G29: CUNDINAMARCA | H29: 25
F30: 12 | G30: CHOCO | H30: 27
F31: 13 | G31: HUILA | H31: 41
F32: 14 | G32: LA GUAJIRA | H32: 44
F33: 15 | G33: MAGDALENA | H33: 47
F34: 16 | G34: META | H34: 50
F35: 17 | G35: NARIÑO | H35: 52
F36: 18 | G36: NORTE DE SANTANDER | H36: 54
F37: 19 | G37: QUINDIO | H37: 63
F38: 20 | G38: RISARALDA | H38: 66
F39: 21 | G39: SANTANDER | H39: 68
F40: 22 | G40: SUCRE | H40: 70
F41: 23 | G41: TOLIMA | H41: 73
F42: 24 | G42: VALLE DEL CAUCA | H42: 76
F43: 25 | G43: ARAUCA | H43: 81
F44: 26 | G44: CASANARE | H44: 85
F45: 27 | G45: PUTUMAYO | H45: 86
F46: 28 | G46: SAN ANDRES,PROVIDENCIA Y SANTA CATALINA | H46: 88
F47: 29 | G47: AMAZONAS | H47: 91
F48: 30 | G48: GUAINIA | H48: 94
F49: 31 | G49: GUAVIARE | H49: 95
F50: 32 | G50: VAUPES | H50: 97
F51: 33 | G51: VICHADA | H51: 99
G53: l.dpto | H53: l.dpto.cod
C55: Años
F57: ID | G57: Año de Evaluación | H57: Año
G58: Año 0 | H58: 0
F59: 2 | G59: Año 1 | H59: 1
F60: 3 | G60: Año 2 | H60: 2
F61: 4 | G61: Año 3 | H61: 3
F62: 5 | G62: Año 4 | H62: 4
F63: 6 | G63: Año 5 | H63: 5
H65: l.agno
C67: Parámetros Técnicos
G69: Scorched Node Factor | H69: 1 | I69: l.scorched.n
C71: Parámetros Técnicos
F74: id | G74: Parámetro | I74: Valor
F75: 1 | G75: Días cargados por año | I75: 265
F76: 2 | G76: Porcentaje del tráfico diario en hora cargada | I76: 0.1
F77: 3 | G77: Erlangs como proporción del tráfico anual | I77: =I76/I75/60 -> 6.289308176e-06 | J77: factor.erl
F78: 4 | G78: Codec | H78: [kbps] | I78: 64 | J78: codec.voz
F79: 5 | G79: Protocolo Canales de Interconexión | H79: [canales/E1] | I79: 30
F80: 6 | G80: Canacidad de Interconexión en E1 (MIC o PCM) | H80: [erlangs/E1] | I80: =INDEX(Erlang!H7:H3612,MATCH(I79,Erlang!G7:G3612,0)) -> 20.337 | J80: erlangs.E1
B85: Parámetros de Red
C87: Parámetros de Diseño
G89: Parámetro de Frontera para FO | H89: 5000 | I89: l.pex.fo
G90: Lado de Manzana | H90: 0.1 | I90: l.lado.man
C92: Densidad
F94: N° | G94: Nombre | H94: Densidad | I94: Densidad
H95: [línea/manzana] | I95: [línea/km2]
F96: 1 | G96: D1 | H96: 2 | I96: =H96/l.lado.man^2 -> 200
F97: 2 | G97: D2 | H97: 5 | I97: 500
F98: 3 | G98: D3 | H98: 10 | I98: 1000
F99: 4 | G99: D4 | H99: 20 | I99: 2000
F100: 5 | G100: D5 | H100: 40 | I100: 4000
F101: 6 | G101: D6 | H101: 80 | I101: 8000
F102: 7 | G102: D7 | H102: 160 | I102: 16000
F103: 8 | G103: D8 | H103: 225 | I103: 22500
H105: l.dens.dens | I105: l.dens.lin
C107: Porcentaje de Canalizado
H109: D1 | I109: D2 | J109: D3 | K109: D4 | L109: D5 | M109: D6 | N109: D7 | O109: D8
F110: ID | G110: Nombre
F111: 1 | G111: =INDEX(l.dpto,F111) -> ANTIOQUIA | H111: 0.1 | I111: 0.2 | J111: 0.33 | K111: 0.4 | L111: 0.5 | M111: 1 | N111: 1 | O111: 1
F112: 2 | G112: ATLANTICO | H112: 0.1 | I112: 0.2 | J112: 0.33 | K112: 0.4 | L112: 0.5 | M112: 1 | N112: 1 | O112: 1
F113: 3 | G113: BOGOTA DC | H113: 0.1 | I113: 0.2 | J113: 0.33 | K113: 0.4 | L113: 0.5 | M113: 1 | N113: 1 | O113: 1
F114: 4 | G114: BOLIVAR | H114: 0.1 | I114: 0.2 | J114: 0.33 | K114: 0.4 | L114: 0.5 | M114: 1 | N114: 1 | O114: 1
F115: 5 | G115: BOYACA | H115: 0.1 | I115: 0.2 | J115: 0.33 | K115: 0.4 | L115: 0.5 | M115: 1 | N115: 1 | O115: 1
F116: 6 | G116: CALDAS | H116: 0.1 | I116: 0.2 | J116: 0.33 | K116: 0.4 | L116: 0.5 | M116: 1 | N116: 1 | O116: 1
F117: 7 | G117: CAQUETA | H117: 0.1 | I117: 0.2 | J117: 0.33 | K117: 0.4 | L117: 0.5 | M117: 1 | N117: 1 | O117: 1
F118: 8 | G118: CAUCA | H118: 0.1 | I118: 0.2 | J118: 0.33 | K118: 0.4 | L118: 0.5 | M118: 1 | N118: 1 | O118: 1
F119: 9 | G119: CESAR | H119: 0.1 | I119: 0.2 | J119: 0.33 | K119: 0.4 | L119: 0.5 | M119: 1 | N119: 1 | O119: 1
F120: 10 | G120: CORDOBA | H120: 0.1 | I120: 0.2 | J120: 0.33 | K120: 0.4 | L120: 0.5 | M120: 1 | N120: 1 | O120: 1
F121: 11 | G121: CUNDINAMARCA | H121: 0.1 | I121: 0.2 | J121: 0.33 | K121: 0.4 | L121: 0.5 | M121: 1 | N121: 1 | O121: 1
F122: 12 | G122: CHOCO | H122: 0.1 | I122: 0.2 | J122: 0.33 | K122: 0.4 | L122: 0.5 | M122: 1 | N122: 1 | O122: 1
F123: 13 | G123: HUILA | H123: 0.1 | I123: 0.2 | J123: 0.33 | K123: 0.4 | L123: 0.5 | M123: 1 | N123: 1 | O123: 1
F124: 14 | G124: LA GUAJIRA | H124: 0.1 | I124: 0.2 | J124: 0.33 | K124: 0.4 | L124: 0.5 | M124: 1 | N124: 1 | O124: 1
F125: 15 | G125: MAGDALENA | H125: 0.1 | I125: 0.2 | J125: 0.33 | K125: 0.4 | L125: 0.5 | M125: 1 | N125: 1 | O125: 1
F126: 16 | G126: META | H126: 0.1 | I126: 0.2 | J126: 0.33 | K126: 0.4 | L126: 0.5 | M126: 1 | N126: 1 | O126: 1
F127: 17 | G127: NARIÑO | H127: 0.1 | I127: 0.2 | J127: 0.33 | K127: 0.4 | L127: 0.5 | M127: 1 | N127: 1 | O127: 1
F128: 18 | G128: NORTE DE SANTANDER | H128: 0.1 | I128: 0.2 | J128: 0.33 | K128: 0.4 | L128: 0.5 | M128: 1 | N128: 1 | O128: 1
F129: 19 | G129: QUINDIO | H129: 0.1 | I129: 0.2 | J129: 0.33 | K129: 0.4 | L129: 0.5 | M129: 1 | N129: 1 | O129: 1
F130: 20 | G130: RISARALDA | H130: 0.1 | I130: 0.2 | J130: 0.33 | K130: 0.4 | L130: 0.5 | M130: 1 | N130: 1 | O130: 1
F131: 21 | G131: SANTANDER | H131: 0.1 | I131: 0.2 | J131: 0.33 | K131: 0.4 | L131: 0.5 | M131: 1 | N131: 1 | O131: 1
F132: 22 | G132: SUCRE | H132: 0.1 | I132: 0.2 | J132: 0.33 | K132: 0.4 | L132: 0.5 | M132: 1 | N132: 1 | O132: 1
F133: 23 | G133: TOLIMA | H133: 0.1 | I133: 0.2 | J133: 0.33 | K133: 0.4 | L133: 0.5 | M133: 1 | N133: 1 | O133: 1
F134: 24 | G134: VALLE DEL CAUCA | H134: 0.1 | I134: 0.2 | J134: 0.33 | K134: 0.4 | L134: 0.5 | M134: 1 | N134: 1 | O134: 1
F135: 25 | G135: ARAUCA | H135: 0.1 | I135: 0.2 | J135: 0.33 | K135: 0.4 | L135: 0.5 | M135: 1 | N135: 1 | O135: 1
F136: 26 | G136: CASANARE | H136: 0.1 | I136: 0.2 | J136: 0.33 | K136: 0.4 | L136: 0.5 | M136: 1 | N136: 1 | O136: 1
F137: 27 | G137: PUTUMAYO | H137: 0.1 | I137: 0.2 | J137: 0.33 | K137: 0.4 | L137: 0.5 | M137: 1 | N137: 1 | O137: 1
F138: 28 | G138: SAN ANDRES,PROVIDENCIA Y SANTA CATALINA | H138: 0.1 | I138: 0.2 | J138: 0.33 | K138: 0.4 | L138: 0.5 | M138: 1 | N138: 1 | O138: 1
F139: 29 | G139: AMAZONAS | H139: 0.1 | I139: 0.2 | J139: 0.33 | K139: 0.4 | L139: 0.5 | M139: 1 | N139: 1 | O139: 1
F140: 30 | G140: GUAINIA | H140: 0.1 | I140: 0.2 | J140: 0.33 | K140: 0.4 | L140: 0.5 | M140: 1 | N140: 1 | O140: 1
F141: 31 | G141: GUAVIARE | H141: 0.1 | I141: 0.2 | J141: 0.33 | K141: 0.4 | L141: 0.5 | M141: 1 | N141: 1 | O141: 1
F142: 32 | G142: VAUPES | H142: 0.1 | I142: 0.2 | J142: 0.33 | K142: 0.4 | L142: 0.5 | M142: 1 | N142: 1 | O142: 1
F143: 33 | G143: VICHADA | H143: 0.1 | I143: 0.2 | J143: 0.33 | K143: 0.4 | L143: 0.5 | M143: 1 | N143: 1 | O143: 1 | P143: p.can.c.bas
B146: Lectura de Demanda
C148: Lectura de Municipios
V149: 1 | W149: 2 | X149: 3 | Y149: 4 | Z149: 5
F150: ID | G150: Cod depto | H150: Cod Muni | I150: Cod Loca | J150: Depto | K150: Municipio | L150: Cod único | M150: Tipo de Densidad | N150: Resultado de la Optimización | O150: Cod aux | P150: CodOrd | Q150: Cluster | R150: Lat | S150: Long | T150: MuniOrd | U150: Superficie Total | V150: Cable Coax | W150: Pares Cu | X150: Fibra Óptica | Y150: Inalámbrico | Z150: Satelital | AA150: divisor área
F151: 1 | G151: 5 | H151: 1 | I151: 1 | J151: Antioquia | K151: Medellín | L151: =G151&"."&H151&"."&I151 -> 5.1.1 | M151: 5 | N151: 1 | O151: =IF(G151=G150,N(O150)+1,1) -> 1 | P151: =G151*1000+H151 -> 5001 | Q151: =+[0]!dda.clus -> 2 | R151: 440.7 | S151: 695.446 | T151: =G151*1000+O151 -> 5001 | U151: 207.2351464 | V151: =+[0]!dda.tec.clus.mun -> 0.2 | W151: 0.7 | X151: 0.05 | Y151: 0.04 | Z151: 0.01 | AA151: =COUNTIF(V151:X151,">0") -> 3
F152: =F151+1 -> 2 | G152: 5 | H152: 2 | I152: 1 | J152: Antioquia | K152: Abejorral | L152: 5.2.1 | M152: 1 | N152: 1 | O152: 2 | P152: 5002 | Q152: 2 | R152: 453.867 | S152: 635.586 | T152: 5002 | U152: 1.15399743 | V152: 0.2 | W152: 0.7 | X152: 0.05 | Y152: 0.04 | Z152: 0.01 | AA152: 3
F153: 3 | G153: 5 | H153: 4 | I153: 1 | J153: Antioquia | K153: Abriaquí | L153: 5.4.1 | M153: 1 | N153: 1 | O153: 3 | P153: 5004 | Q153: 2 | R153: 380.255 | S153: 737.032 | T153: 5003 | U153: 0.5318908349 | V153: 0.2 | W153: 0.7 | X153: 0.05 | Y153: 0.04 | Z153: 0.01 | AA153: 3
F154: 4 | G154: 5 | H154: 21 | I154: 1 | J154: Antioquia | K154: Alejandría | L154: 5.21.1 | M154: 1 | N154: 1 | O154: 4 | P154: 5021 | Q154: 2 | R154: 490.784 | S154: 703.738 | T154: 5004 | U154: 0.3710121469 | V154: 0.2 | W154: 0.7 | X154: 0.05 | Y154: 0.04 | Z154: 0.01 | AA154: 3
F155: 5 | G155: 5 | H155: 30 | I155: 1 | J155: Antioquia | K155: Amagá | L155: 5.30.1 | M155: 1 | N155: 1 | O155: 5 | P155: 5030 | Q155: 2 | R155: 422.537 | S155: 668.782 | T155: 5005 | U155: 2.801536732 | V155: 0.2 | W155: 0.7 | X155: 0.05 | Y155: 0.04 | Z155: 0.01 | AA155: 3
F156: 6 | G156: 5 | H156: 31 | I156: 1 | J156: Antioquia | K156: Amalfi | L156: 5.31.1 | M156: 1 | N156: 1 | O156: 6 | P156: 5031 | Q156: 2 | R156: 509.204 | S156: 773.75 | T156: 5006 | U156: 15.33231071 | V156: 0.2 | W156: 0.7 | X156: 0.05 | Y156: 0.04 | Z156: 0.01 | AA156: 3
F157: 7 | G157: 5 | H157: 34 | I157: 1 | J157: Antioquia | K157: Andes | L157: 5.34.1 | M157: 1 | N157: 1 | O157: 7 | P157: 5034 | Q157: 2 | R157: 398.474 | S157: 617.225 | T157: 5007 | U157: 2.634002392 | V157: 0.2 | W157: 0.7 | X157: 0.05 | Y157: 0.04 | Z157: 0.01 | AA157: 3
F158: 8 | G158: 5 | H158: 36 | I158: 1 | J158: Antioquia | K158: Angelópolis | L158: 5.36.1 | M158: 1 | N158: 1 | O158: 8 | P158: 5036 | Q158: 2 | R158: 422.549 | S158: 677.994 | T158: 5008 | U158: 1.052230891 | V158: 0.2 | W158: 0.7 | X158: 0.05 | Y158: 0.04 | Z158: 0.01 | AA158: 3
F159: 9 | G159: 5 | H159: 38 | I159: 1 | J159: Antioquia | K159: Angostura | L159: 5.38.1 | M159: 1 | N159: 1 | O159: 9 | P159: 5038 | Q159: 2 | R159: 463.172 | S159: 759.022 | T159: 5009 | U159: 0.5009996864 | V159: 0.2 | W159: 0.7 | X159: 0.05 | Y159: 0.04 | Z159: 0.01 | AA159: 3
F160: 10 | G160: 5 | H160: 40 | I160: 1 | J160: Antioquia | K160: Anorí | L160: 5.40.1 | M160: 1 | N160: 1 | O160: 10 | P160: 5040 | Q160: 2 | R160: 490.799 | S160: 792.174 | T160: 5010 | U160: 2.065823617 | V160: 0.2 | W160: 0.7 | X160: 0.05 | Y160: 0.04 | Z160: 0.01 | AA160: 3
F161: 11 | G161: 5 | H161: 42 | I161: 1 | J161: Antioquia | K161: Santafé de Antioquia | L161: 5.42.1 | M161: 1 | N161: 1 | O161: 11 | P161: 5042 | Q161: 2 | R161: 408.454 | S161: 725.154 | T161: 5011 | U161: 2.009135157 | V161: 0.2 | W161: 0.7 | X161: 0.05 | Y161: 0.04 | Z161: 0.01 | AA161: 3
F162: 12 | G162: 5 | H162: 44 | I162: 1 | J162: Antioquia | K162: Anza | L162: 5.44.1 | M162: 1 | N162: 1 | O162: 12 | P162: 5044 | Q162: 2 | R162: 405.529 | S162: 696.826 | T162: 5012 | U162: 0.1132171674 | V162: 0.2 | W162: 0.7 | X162: 0.05 | Y162: 0.04 | Z162: 0.01 | AA162: 3
F163: 13 | G163: 5 | H163: 45 | I163: 1 | J163: Antioquia | K163: Apartadó | L163: 5.45.1 | M163: 1 | N163: 1 | O163: 13 | P163: 5045 | Q163: 2 | R163: 319.781 | S163: 871.999 | T163: 5013 | U163: 5.185604773 | V163: 0.2 | W163: 0.7 | X163: 0.05 | Y163: 0.04 | Z163: 0.01 | AA163: 3
F164: 14 | G164: 5 | H164: 51 | I164: 1 | J164: Antioquia | K164: Arboletes | L164: 5.51.1 | M164: 1 | N164: 1 | O164: 14 | P164: 5051 | Q164: 2 | R164: 343.097 | S164: 978.61 | T164: 5014 | U164: 1.266523639 | V164: 0.2 | W164: 0.7 | X164: 0.05 | Y164: 0.04 | Z164: 0.01 | AA164: 3
F165: 15 | G165: 5 | H165: 55 | I165: 1 | J165: Antioquia | K165: Argelia | L165: 5.55.1 | M165: 1 | N165: 1 | O165: 15 | P165: 5055 | Q165: 2 | R165: 483.792 | S165: 633.821 | T165: 5015 | U165: 0.6024283166 | V165: 0.2 | W165: 0.7 | X165: 0.05 | Y165: 0.04 | Z165: 0.01 | AA165: 3
F166: 16 | G166: 5 | H166: 59 | I166: 1 | J166: Antioquia | K166: Armenia | L166: 5.59.1 | M166: 1 | N166: 1 | O166: 16 | P166: 5059 | Q166: 2 | R166: 407.801 | S166: 681.7 | T166: 5016 | U166: 0.8235815417 | V166: 0.2 | W166: 0.7 | X166: 0.05 | Y166: 0.04 | Z166: 0.01 | AA166: 3
F167: 17 | G167: 5 | H167: 79 | I167: 1 | J167: Antioquia | K167: Barbosa | L167: 5.79.1 | M167: 1 | N167: 1 | O167: 17 | P167: 5079 | Q167: 2 | R167: 463.141 | S167: 712.961 | T167: 5017 | U167: 79.44986029 | V167: 0.2 | W167: 0.7 | X167: 0.05 | Y167: 0.04 | Z167: 0.01 | AA167: 3
F168: 18 | G168: 5 | H168: 86 | I168: 1 | J168: Antioquia | K168: Belmira | L168: 5.86.1 | M168: 1 | N168: 1 | O168: 18 | P168: 5086 | Q168: 2 | R168: 426.313 | S168: 736.95 | T168: 5018 | U168: 0.4295578783 | V168: 0.2 | W168: 0.7 | X168: 0.05 | Y168: 0.04 | Z168: 0.01 | AA168: 3
F169: 19 | G169: 5 | H169: 88 | I169: 1 | J169: Antioquia | K169: Bello | L169: 5.88.1 | M169: 3 | N169: 1 | O169: 19 | P169: 5088 | Q169: 2 | R169: 437.818 | S169: 700.7 | T169: 5019 | U169: 71.43644882 | V169: 0.2 | W169: 0.7 | X169: 0.05 | Y169: 0.04 | Z169: 0.01 | AA169: 3
F170: 20 | G170: 5 | H170: 91 | I170: 1 | J170: Antioquia | K170: Betania | L170: 5.91.1 | M170: 1 | N170: 1 | O170: 20 | P170: 5091 | Q170: 2 | R170: 392.967 | S170: 635.66 | T170: 5020 | U170: 0.5575105458 | V170: 0.2 | W170: 0.7 | X170: 0.05 | Y170: 0.04 | Z170: 0.01 | AA170: 3
F171: 21 | G171: 5 | H171: 93 | I171: 1 | J171: Antioquia | K171: Betulia | L171: 5.93.1 | M171: 1 | N171: 1 | O171: 21 | P171: 5093 | Q171: 2 | R171: 398.586 | S171: 685.401 | T171: 5021 | U171: 0.4477256719 | V171: 0.2 | W171: 0.7 | X171: 0.05 | Y171: 0.04 | Z171: 0.01 | AA171: 3
F172: 22 | G172: 5 | H172: 101 | I172: 1 | J172: Antioquia | K172: Ciudad Bolívar | L172: 5.101.1 | M172: 1 | N172: 1 | O172: 22 | P172: 5101 | Q172: 2 | R172: 389.292 | S172: 644.879 | T172: 5022 | U172: 1.857474221 | V172: 0.2 | W172: 0.7 | X172: 0.05 | Y172: 0.04 | Z172: 0.01 | AA172: 3
F173: 23 | G173: 5 | H173: 107 | I173: 1 | J173: Antioquia | K173: Briceño | L173: 5.107.1 | M173: 1 | N173: 1 | O173: 23 | P173: 5107 | Q173: 2 | R173: 438.806 | S173: 786.191 | T173: 5023 | U173: 1.015633093 | V173: 0.2 | W173: 0.7 | X173: 0.05 | Y173: 0.04 | Z173: 0.01 | AA173: 3
F174: 24 | G174: 5 | H174: 113 | I174: 1 | J174: Antioquia | K174: Buriticá | L174: 5.113.1 | M174: 1 | N174: 1 | O174: 24 | P174: 5113 | Q174: 2 | R174: 398.696 | S174: 746.208 | T174: 5024 | U174: 0.1236640913 | V174: 0.2 | W174: 0.7 | X174: 0.05 | Y174: 0.04 | Z174: 0.01 | AA174: 3
F175: 25 | G175: 5 | H175: 120 | I175: 1 | J175: Antioquia | K175: Cáceres | L175: 5.120.1 | M175: 1 | N175: 1 | O175: 25 | P175: 5120 | Q175: 2 | R175: 463.238 | S175: 847.462 | T175: 5025 | U175: 1.955918496 | V175: 0.2 | W175: 0.7 | X175: 0.05 | Y175: 0.04 | Z175: 0.01 | AA175: 3
F176: 26 | G176: 5 | H176: 125 | I176: 1 | J176: Antioquia | K176: Caicedo | L176: 5.125.1 | M176: 1 | N176: 1 | O176: 26 | P176: 5125 | Q176: 2 | R176: 393.106 | S176: 713.05 | T176: 5026 | U176: 0.1816980029 | V176: 0.2 | W176: 0.7 | X176: 0.05 | Y176: 0.04 | Z176: 0.01 | AA176: 3
F177: 27 | G177: 5 | H177: 129 | I177: 1 | J177: Antioquia | K177: Caldas | L177: 5.129.1 | M177: 1 | N177: 1 | O177: 27 | P177: 5129 | Q177: 2 | R177: 429.919 | S177: 672.457 | T177: 5027 | U177: 14.26637142 | V177: 0.2 | W177: 0.7 | X177: 0.05 | Y177: 0.04 | Z177: 0.01 | AA177: 3
F178: 28 | G178: 5 | H178: 134 | I178: 1 | J178: Antioquia | K178: Campamento | L178: 5.134.1 | M178: 1 | N178: 1 | O178: 28 | P178: 5134 | Q178: 2 | R178: 472.392 | S178: 782.969 | T178: 5028 | U178: 0.5814508431 | V178: 0.2 | W178: 0.7 | X178: 0.05 | Y178: 0.04 | Z178: 0.01 | AA178: 3
F179: 29 | G179: 5 | H179: 138 | I179: 1 | J179: Antioquia | K179: Cañasgordas | L179: 5.138.1 | M179: 1 | N179: 1 | O179: 29 | P179: 5138 | Q179: 2 | R179: 389.486 | S179: 746.226 | T179: 5029 | U179: 1.042855895 | V179: 0.2 | W179: 0.7 | X179: 0.05 | Y179: 0.04 | Z179: 0.01 | AA179: 3
F180: 30 | G180: 5 | H180: 142 | I180: 1 | J180: Antioquia | K180: Caracolí | L180: 5.142.1 | M180: 1 | N180: 1 | O180: 30 | P180: 5142 | Q180: 2 | R180: 526.479 | S180: 708.748 | T180: 5030 | U180: 0.499163151 | V180: 0.2 | W180: 0.7 | X180: 0.05 | Y180: 0.04 | Z180: 0.01 | AA180: 3
F181: 31 | G181: 5 | H181: 145 | I181: 1 | J181: Antioquia | K181: Caramanta | L181: 5.145.1 | M181: 1 | N181: 1 | O181: 31 | P181: 5145 | Q181: 2 | R181: 435.394 | S181: 617.178 | T181: 5031 | U181: 0.9058363104 | V181: 0.2 | W181: 0.7 | X181: 0.05 | Y181: 0.04 | Z181: 0.01 | AA181: 3
F182: 32 | G182: 5 | H182: 147 | I182: 1 | J182: Antioquia | K182: Carepa | L182: 5.147.1 | M182: 1 | N182: 1 | O182: 32 | P182: 5147 | Q182: 2 | R182: 316.819 | S182: 858.831 | T182: 5032 | U182: 2.891983726 | V182: 0.2 | W182: 0.7 | X182: 0.05 | Y182: 0.04 | Z182: 0.01 | AA182: 3
F183: 33 | G183: 5 | H183: 148 | I183: 1 | J183: Antioquia | K183: El Carmen de Viboral | L183: 5.148.1 | M183: 1 | N183: 1 | O183: 33 | P183: 5148 | Q183: 2 | R183: 462.532 | S183: 672.612 | T183: 5033 | U183: 17.37365122 | V183: 0.2 | W183: 0.7 | X183: 0.05 | Y183: 0.04 | Z183: 0.01 | AA183: 3
F184: 34 | G184: 5 | H184: 150 | I184: 1 | J184: Antioquia | K184: Carolina | L184: 5.150.1 | M184: 1 | N184: 1 | O184: 34 | P184: 5150 | Q184: 2 | R184: 472.376 | S184: 751.647 | T184: 5034 | U184: 1.467995152 | V184: 0.2 | W184: 0.7 | X184: 0.05 | Y184: 0.04 | Z184: 0.01 | AA184: 3
F185: 35 | G185: 5 | H185: 154 | I185: 1 | J185: Antioquia | K185: Caucasia | L185: 5.154.1 | M185: 1 | N185: 1 | O185: 35 | P185: 5154 | Q185: 2 | R185: 478.311 | S185: 882.432 | T185: 5035 | U185: 17.48648949 | V185: 0.2 | W185: 0.7 | X185: 0.05 | Y185: 0.04 | Z185: 0.01 | AA185: 3
F186: 36 | G186: 5 | H186: 172 | I186: 1 | J186: Antioquia | K186: Chigorodó | L186: 5.172.1 | M186: 1 | N186: 1 | O186: 36 | P186: 5172 | Q186: 2 | R186: 316.163 | S186: 847.804 | T186: 5036 | U186: 3.579487039 | V186: 0.2 | W186: 0.7 | X186: 0.05 | Y186: 0.04 | Z186: 0.01 | AA186: 3
F187: 37 | G187: 5 | H187: 190 | I187: 1 | J187: Antioquia | K187: Cisneros | L187: 5.190.1 | M187: 1 | N187: 1 | O187: 37 | P187: 5190 | Q187: 2 | R187: 490.788 | S187: 727.689 | T187: 5037 | U187: 0.7901448717 | V187: 0.2 | W187: 0.7 | X187: 0.05 | Y187: 0.04 | Z187: 0.01 | AA187: 3
F188: 38 | G188: 5 | H188: 197 | I188: 1 | J188: Antioquia | K188: Cocorná | L188: 5.197.1 | M188: 1 | N188: 1 | O188: 38 | P188: 5197 | Q188: 2 | R188: 500 | S188: 663.205 | T188: 5038 | U188: 0.7711143761 | V188: 0.2 | W188: 0.7 | X188: 0.05 | Y188: 0.04 | Z188: 0.01 | AA188: 3
F189: 39 | G189: 5 | H189: 206 | I189: 1 | J189: Antioquia | K189: Concepción | L189: 5.206.1 | M189: 1 | N189: 1 | O189: 39 | P189: 5206 | Q189: 2 | R189: 472.354 | S189: 709.271 | T189: 5039 | U189: 0.558158932 | V189: 0.2 | W189: 0.7 | X189: 0.05 | Y189: 0.04 | Z189: 0.01 | AA189: 3
F190: 40 | G190: 5 | H190: 209 | I190: 1 | J190: Antioquia | K190: Concordia | L190: 5.209.1 | M190: 1 | N190: 1 | O190: 40 | P190: 5209 | Q190: 2 | R190: 398.564 | S190: 672.502 | T190: 5040 | U190: 1.051166508 | V190: 0.2 | W190: 0.7 | X190: 0.05 | Y190: 0.04 | Z190: 0.01 | AA190: 3
F191: 41 | G191: 5 | H191: 212 | I191: 1 | J191: Antioquia | K191: Copacabana | L191: 5.212.1 | M191: 2 | N191: 1 | O191: 41 | P191: 5212 | Q191: 2 | R191: 444.699 | S191: 700.079 | T191: 5041 | U191: 26.23581564 | V191: 0.2 | W191: 0.7 | X191: 0.05 | Y191: 0.04 | Z191: 0.01 | AA191: 3
F192: 42 | G192: 5 | H192: 234 | I192: 1 | J192: Antioquia | K192: Dabeiba | L192: 5.234.1 | M192: 1 | N192: 1 | O192: 42 | P192: 5234 | Q192: 2 | R192: 361.926 | S192: 773.932 | T192: 5042 | U192: 0.884499238 | V192: 0.2 | W192: 0.7 | X192: 0.05 | Y192: 0.04 | Z192: 0.01 | AA192: 3
F193: 43 | G193: 5 | H193: 237 | I193: 1 | J193: Antioquia | K193: Don Matías | L193: 5.237.1 | M193: 1 | N193: 1 | O193: 43 | P193: 5237 | Q193: 2 | R193: 463.145 | S193: 718.488 | T193: 5043 | U193: 0.6181784551 | V193: 0.2 | W193: 0.7 | X193: 0.05 | Y193: 0.04 | Z193: 0.01 | AA193: 3
F194: 44 | G194: 5 | H194: 240 | I194: 1 | J194: Antioquia | K194: Ebéjico | L194: 5.240.1 | M194: 1 | N194: 1 | O194: 44 | P194: 5240 | Q194: 2 | R194: 417.047 | S194: 700.112 | T194: 5044 | U194: 0.5239719877 | V194: 0.2 | W194: 0.7 | X194: 0.05 | Y194: 0.04 | Z194: 0.01 | AA194: 3
F195: 45 | G195: 5 | H195: 250 | I195: 1 | J195: Antioquia | K195: El Bagre | L195: 5.250.1 | M195: 1 | N195: 1 | O195: 45 | P195: 5250 | Q195: 2 | R195: 520.744 | S195: 839.437 | T195: 5045 | U195: 4.017152055 | V195: 0.2 | W195: 0.7 | X195: 0.05 | Y195: 0.04 | Z195: 0.01 | AA195: 3
F196: 46 | G196: 5 | H196: 264 | I196: 1 | J196: Antioquia | K196: Entrerrios | L196: 5.264.1 | M196: 1 | N196: 1 | O196: 46 | P196: 5264 | Q196: 2 | R196: 435.514 | S196: 727.726 | T196: 5046 | U196: 0.6184005923 | V196: 0.2 | W196: 0.7 | X196: 0.05 | Y196: 0.04 | Z196: 0.01 | AA196: 3
F197: 47 | G197: 5 | H197: 266 | I197: 1 | J197: Antioquia | K197: Envigado | L197: 5.266.1 | M197: 4 | N197: 1 | O197: 47 | P197: 5266 | Q197: 2 | R197: 437.614 | S197: 682.368 | T197: 5047 | U197: 30.59094409 | V197: 0.2 | W197: 0.7 | X197: 0.05 | Y197: 0.04 | Z197: 0.01 | AA197: 3
F198: 48 | G198: 5 | H198: 282 | I198: 1 | J198: Antioquia | K198: Fredonia | L198: 5.282.1 | M198: 1 | N198: 1 | O198: 48 | P198: 5282 | Q198: 2 | R198: 426.208 | S198: 654.037 | T198: 5048 | U198: 1.523114487 | V198: 0.2 | W198: 0.7 | X198: 0.05 | Y198: 0.04 | Z198: 0.01 | AA198: 3
F199: 49 | G199: 5 | H199: 284 | I199: 1 | J199: Antioquia | K199: Frontino | L199: 5.284.1 | M199: 1 | N199: 1 | O199: 49 | P199: 5284 | Q199: 2 | R199: 374.819 | S199: 748.564 | T199: 5049 | U199: 3.093151137 | V199: 0.2 | W199: 0.7 | X199: 0.05 | Y199: 0.04 | Z199: 0.01 | AA199: 3
F200: 50 | G200: 5 | H200: 306 | I200: 1 | J200: Antioquia | K200: Giraldo | L200: 5.306.1 | M200: 1 | N200: 1 | O200: 50 | P200: 5306 | Q200: 2 | R200: 398.679 | S200: 736.994 | T200: 5050 | U200: 0.1869042907 | V200: 0.2 | W200: 0.7 | X200: 0.05 | Y200: 0.04 | Z200: 0.01 | AA200: 3
F201: 51 | G201: 5 | H201: 308 | I201: 1 | J201: Antioquia | K201: Girardota | L201: 5.308.1 | M201: 1 | N201: 1 | O201: 51 | P201: 5308 | Q201: 2 | R201: 450.237 | S201: 709.286 | T201: 5051 | U201: 51.84861965 | V201: 0.2 | W201: 0.7 | X201: 0.05 | Y201: 0.04 | Z201: 0.01 | AA201: 3
F202: 52 | G202: 5 | H202: 310 | I202: 1 | J202: Antioquia | K202: Gómez Plata | L202: 5.310.1 | M202: 1 | N202: 1 | O202: 52 | P202: 5310 | Q202: 2 | R202: 407.906 | S202: 746.191 | T202: 5052 | U202: 2.037499162 | V202: 0.2 | W202: 0.7 | X202: 0.05 | Y202: 0.04 | Z202: 0.01 | AA202: 3
F203: 53 | G203: 5 | H203: 313 | I203: 1 | J203: Antioquia | K203: Granada | L203: 5.313.1 | M203: 1 | N203: 1 | O203: 53 | P203: 5313 | Q203: 2 | R203: 485.249 | S203: 681.63 | T203: 5053 | U203: 1.645307397 | V203: 0.2 | W203: 0.7 | X203: 0.05 | Y203: 0.04 | Z203: 0.01 | AA203: 3
F204: 54 | G204: 5 | H204: 315 | I204: 1 | J204: Antioquia | K204: Guadalupe | L204: 5.315.1 | M204: 1 | N204: 1 | O204: 54 | P204: 5315 | Q204: 2 | R204: 473.021 | S204: 753.581 | T204: 5054 | U204: 0.3324688207 | V204: 0.2 | W204: 0.7 | X204: 0.05 | Y204: 0.04 | Z204: 0.01 | AA204: 3
F205: 55 | G205: 5 | H205: 318 | I205: 1 | J205: Antioquia | K205: Guarne | L205: 5.318.1 | M205: 1 | N205: 1 | O205: 55 | P205: 5318 | Q205: 2 | R205: 453.909 | S205: 690.858 | T205: 5055 | U205: 89.59076246 | V205: 0.2 | W205: 0.7 | X205: 0.05 | Y205: 0.04 | Z205: 0.01 | AA205: 3
F206: 56 | G206: 5 | H206: 321 | I206: 1 | J206: Antioquia | K206: Guatapé | L206: 5.321.1 | M206: 1 | N206: 1 | O206: 56 | P206: 5321 | Q206: 2 | R206: 481.564 | S206: 690.843 | T206: 5056 | U206: 0.663608919 | V206: 0.2 | W206: 0.7 | X206: 0.05 | Y206: 0.04 | Z206: 0.01 | AA206: 3
F207: 57 | G207: 5 | H207: 347 | I207: 1 | J207: Antioquia | K207: Heliconia | L207: 5.347.1 | M207: 1 | N207: 1 | O207: 57 | P207: 5347 | Q207: 2 | R207: 417.032 | S207: 689.057 | T207: 5057 | U207: 1.282114125 | V207: 0.2 | W207: 0.7 | X207: 0.05 | Y207: 0.04 | Z207: 0.01 | AA207: 3
F208: 58 | G208: 5 | H208: 353 | I208: 1 | J208: Antioquia | K208: Hispania | L208: 5.353.1 | M208: 1 | N208: 1 | O208: 58 | P208: 5353 | Q208: 2 | R208: 399.066 | S208: 641.454 | T208: 5058 | U208: 0.6418418419 | V208: 0.2 | W208: 0.7 | X208: 0.05 | Y208: 0.04 | Z208: 0.01 | AA208: 3
F209: 59 | G209: 5 | H209: 360 | I209: 1 | J209: Antioquia | K209: Itagui | L209: 5.360.1 | M209: 5 | N209: 1 | O209: 59 | P209: 5360 | Q209: 2 | R209: 432.358 | S209: 682.251 | T209: 5059 | U209: 10.48902702 | V209: 0.2 | W209: 0.7 | X209: 0.05 | Y209: 0.04 | Z209: 0.01 | AA209: 3
F210: 60 | G210: 5 | H210: 361 | I210: 1 | J210: Antioquia | K210: Ituango | L210: 5.361.1 | M210: 1 | N210: 1 | O210: 60 | P210: 5361 | Q210: 2 | R210: 389.603 | S210: 801.507 | T210: 5060 | U210: 0.5631816094 | V210: 0.2 | W210: 0.7 | X210: 0.05 | Y210: 0.04 | Z210: 0.01 | AA210: 3
F211: 61 | G211: 5 | H211: 364 | I211: 1 | J211: Antioquia | K211: Jardín | L211: 5.364.1 | M211: 1 | N211: 1 | O211: 61 | P211: 5364 | Q211: 2 | R211: 407.705 | S211: 617.211 | T211: 5061 | U211: 1.464122666 | V211: 0.2 | W211: 0.7 | X211: 0.05 | Y211: 0.04 | Z211: 0.01 | AA211: 3
F212: 62 | G212: 5 | H212: 368 | I212: 1 | J212: Antioquia | K212: Jericó | L212: 5.368.1 | M212: 1 | N212: 1 | O212: 62 | P212: 5368 | Q212: 2 | R212: 416.959 | S212: 635.624 | T212: 5062 | U212: 1.3849582 | V212: 0.2 | W212: 0.7 | X212: 0.05 | Y212: 0.04 | Z212: 0.01 | AA212: 3
F213: 63 | G213: 5 | H213: 376 | I213: 1 | J213: Antioquia | K213: La Ceja | L213: 5.376.1 | M213: 1 | N213: 1 | O213: 63 | P213: 5376 | Q213: 2 | R213: 453.887 | S213: 663.222 | T213: 5063 | U213: 92.1997302 | V213: 0.2 | W213: 0.7 | X213: 0.05 | Y213: 0.04 | Z213: 0.01 | AA213: 3
F214: 64 | G214: 5 | H214: 380 | I214: 1 | J214: Antioquia | K214: La Estrella | L214: 5.380.1 | M214: 3 | N214: 1 | O214: 64 | P214: 5380 | Q214: 2 | R214: 426.241 | S214: 681.674 | T214: 5064 | U214: 7.522189866 | V214: 0.2 | W214: 0.7 | X214: 0.05 | Y214: 0.04 | Z214: 0.01 | AA214: 3
F215: 65 | G215: 5 | H215: 390 | I215: 1 | J215: Antioquia | K215: La Pintada | L215: =G215&"."&H215&"."&I215 -> 5.390.1 | M215: 1 | N215: 1 | O215: =IF(G215=G214,N(O214)+1,1) -> 65 | P215: =G215*1000+H215 -> 5390 | Q215: 2 | R215: 433.568 | S215: 635.604 | T215: =G215*1000+O215 -> 5065 | U215: 0.6381260951 | V215: 0.2 | W215: 0.7 | X215: 0.05 | Y215: 0.04 | Z215: 0.01 | AA215: =COUNTIF(V215:X215,">0") -> 3
F216: =F215+1 -> 66 | G216: 5 | H216: 400 | I216: 1 | J216: Antioquia | K216: La Unión | L216: 5.400.1 | M216: 1 | N216: 1 | O216: 66 | P216: 5400 | Q216: 2 | R216: 463.104 | S216: 654.004 | T216: 5066 | U216: 14.84183711 | V216: 0.2 | W216: 0.7 | X216: 0.05 | Y216: 0.04 | Z216: 0.01 | AA216: 3
F217: 67 | G217: 5 | H217: 411 | I217: 1 | J217: Antioquia | K217: Liborina | L217: 5.411.1 | M217: 1 | N217: 1 | O217: 67 | P217: 5411 | Q217: 2 | R217: 417.116 | S217: 746.176 | T217: 5067 | U217: 0.2931747112 | V217: 0.2 | W217: 0.7 | X217: 0.05 | Y217: 0.04 | Z217: 0.01 | AA217: 3
F218: 68 | G218: 5 | H218: 425 | I218: 1 | J218: Antioquia | K218: Maceo | L218: 5.425.1 | M218: 1 | N218: 1 | O218: 68 | P218: 5425 | Q218: 2 | R218: 527.641 | S218: 718.483 | T218: 5068 | U218: 1.004274457 | V218: 0.2 | W218: 0.7 | X218: 0.05 | Y218: 0.04 | Z218: 0.01 | AA218: 3
F219: 69 | G219: 5 | H219: 440 | I219: 1 | J219: Antioquia | K219: Marinilla | L219: 5.440.1 | M219: 1 | N219: 1 | O219: 69 | P219: 5440 | Q219: 2 | R219: 466.811 | S219: 685.322 | T219: 5069 | U219: 57.70402363 | V219: 0.2 | W219: 0.7 | X219: 0.05 | Y219: 0.04 | Z219: 0.01 | AA219: 3
F220: 70 | G220: 5 | H220: 467 | I220: 1 | J220: Antioquia | K220: Montebello | L220: 5.467.1 | M220: 1 | N220: 1 | O220: 70 | P220: 5467 | Q220: 2 | R220: 444.656 | S220: 654.018 | T220: 5070 | U220: 0.2552318745 | V220: 0.2 | W220: 0.7 | X220: 0.05 | Y220: 0.04 | Z220: 0.01 | AA220: 3
F221: 71 | G221: 5 | H221: 475 | I221: 1 | J221: Antioquia | K221: Murindó | L221: 5.475.1 | M221: 1 | N221: 1 | O221: 71 | P221: 5475 | Q221: 2 | R221: 298.936 | S221: 771.588 | T221: 5071 | U221: 0.1771575613 | V221: 0.2 | W221: 0.7 | X221: 0.05 | Y221: 0.04 | Z221: 0.01 | AA221: 3
F222: 72 | G222: 5 | H222: 480 | I222: 1 | J222: Antioquia | K222: Mutatá | L222: 5.480.1 | M222: 1 | N222: 1 | O222: 72 | P222: 5480 | Q222: 2 | R222: 334.425 | S222: 810.875 | T222: 5072 | U222: 0.9440784757 | V222: 0.2 | W222: 0.7 | X222: 0.05 | Y222: 0.04 | Z222: 0.01 | AA222: 3
F223: 73 | G223: 5 | H223: 483 | I223: 1 | J223: Antioquia | K223: Nariño | L223: 5.483.1 | M223: 1 | N223: 1 | O223: 73 | P223: 5483 | Q223: 2 | R223: 481.542 | S223: 618.991 | T223: 5073 | U223: 0.712901942 | V223: 0.2 | W223: 0.7 | X223: 0.05 | Y223: 0.04 | Z223: 0.01 | AA223: 3
F224: 74 | G224: 5 | H224: 490 | I224: 1 | J224: Antioquia | K224: Necoclí | L224: 5.490.1 | M224: 1 | N224: 1 | O224: 74 | P224: 5490 | Q224: 2 | R224: 302.799 | S224: 931.612 | T224: 5074 | U224: 2.665542499 | V224: 0.2 | W224: 0.7 | X224: 0.05 | Y224: 0.04 | Z224: 0.01 | AA224: 3
F225: 75 | G225: 5 | H225: 495 | I225: 1 | J225: Antioquia | K225: Nechí | L225: 5.495.1 | M225: 1 | N225: 1 | O225: 75 | P225: 5495 | Q225: 2 | R225: 524.697 | S225: 894.961 | T225: 5075 | U225: 2.639024922 | V225: 0.2 | W225: 0.7 | X225: 0.05 | Y225: 0.04 | Z225: 0.01 | AA225: 3
F226: 76 | G226: 5 | H226: 501 | I226: 1 | J226: Antioquia | K226: Olaya | L226: 5.501.1 | M226: 1 | N226: 1 | O226: 76 | P226: 5501 | Q226: 2 | R226: 417.102 | S226: 736.963 | T226: 5076 | U226: 0.041987235 | V226: 0.2 | W226: 0.7 | X226: 0.05 | Y226: 0.04 | Z226: 0.01 | AA226: 3
F227: 77 | G227: 5 | H227: 541 | I227: 1 | J227: Antioquia | K227: Peñol | L227: 5.541.1 | M227: 1 | N227: 1 | O227: 77 | P227: 5541 | Q227: 2 | R227: 472.345 | S227: 690.847 | T227: 5077 | U227: 1.108385682 | V227: 0.2 | W227: 0.7 | X227: 0.05 | Y227: 0.04 | Z227: 0.01 | AA227: 3
F228: 78 | G228: 5 | H228: 543 | I228: 1 | J228: Antioquia | K228: Peque | L228: 5.543.1 | M228: 1 | N228: 1 | O228: 78 | P228: 5543 | Q228: 2 | R228: 407.954 | S228: 773.83 | T228: 5078 | U228: 0.2194603687 | V228: 0.2 | W228: 0.7 | X228: 0.05 | Y228: 0.04 | Z228: 0.01 | AA228: 3
F229: 79 | G229: 5 | H229: 576 | I229: 1 | J229: Antioquia | K229: Pueblorrico | L229: 5.576.1 | M229: 1 | N229: 1 | O229: 79 | P229: 5576 | Q229: 2 | R229: 405.894 | S229: 641.167 | T229: 5079 | U229: 0.962593667 | V229: 0.2 | W229: 0.7 | X229: 0.05 | Y229: 0.04 | Z229: 0.01 | AA229: 3
... 332 more rows

Sheet PExt.Opt
A1: Modelo Empresa Eficiente Fija
A2: Diseño Red de Acceso de Cobre
B4: Párametros
F6: Indice Zona | H6: 1 | I6: Dacc.Zona
F8: Factor Doblado | H8: 1.05 | I8: Pex.FD
B11: Costos Unitarios
B12: Nota: Calculos Realizados con Holgura del 20% de Pares Secundarios/Linea
E13: Costo por km de canalización por Tipo de canalización
F14: Canalización 2P | G14: [US$/km] | H14: 100
F15: Canalización 4P | G15: [US$/km] | H15: 100
F16: Canalización 6P | G16: [US$/km] | H16: 100
F17: Canalización 8P | G17: [US$/km] | H17: 100 | I17: =H17/H16 -> 1
F18: Canalización 12P | G18: [US$/km] | H18: 100 | I18: =H18/H16 -> 1
F19: Canalización 16P | G19: [US$/km] | H19: 100 | I19: =H19/H16 -> 1 | J19: Dacc.CI.Canal
E20: Costos del Kilometro de cable multipar de cobre, CALIBRE 26, instalado con empalmes cada 120 mts
F21: 600 | G21: [US$/km] | H21: 100
F22: 1200 | G22: [US$/km] | H22: 100
F23: 1500 | G23: [US$/km] | H23: 100
F24: 1800 | G24: [US$/km] | H24: 100
F25: 2400 | G25: [US$/km] | H25: 100
F27: 900 | G27: [US$/km] | H27: 100
F28: 1200 | G28: [US$/km] | H28: =H22 -> 100
F29: 1500 | G29: [US$/km] | H29: =H23 -> 100
F30: 1800 | G30: [US$/km] | H30: =H24 -> 100
F31: 2400 | G31: [US$/km] | H31: =H25 -> 100
E32: Costos del Kilometro de cable multipar de cobre, CALIBRE 24, instalado con empalmes cada 120 mts
F33: 600 | G33: [US$/km] | H33: 100
F34: 1200 | G34: [US$/km] | H34: 100
F35: 1500 | G35: [US$/km] | H35: 100
F36: 1800 | G36: [US$/km] | H36: 100
F37: 2400 | G37: [US$/km] | H37: 100
F39: 900 | G39: [US$/km] | H39: 100
F40: 1200 | G40: [US$/km] | H40: =H34 -> 100
F41: 1500 | G41: [US$/km] | H41: =H35 -> 100
F42: 1800 | G42: [US$/km] | H42: =H36 -> 100
F43: 2400 | G43: [US$/km] | H43: =H37 -> 100
E44: Costo por línea de MDF para cables de diferentes cantidades de pares
F45: 600 | G45: [US$/par] | H45: 100
F46: 1200 | G46: [US$/par] | H46: 100
F47: 1500 | G47: [US$/par] | H47: 100
F48: 1800 | G48: [US$/par] | H48: 100
F49: 2400 | G49: [US$/par] | H49: 100
F51: 900 | G51: [US$/par] | H51: 100
F52: 1200 | G52: [US$/par] | H52: =H46 -> 100
F53: 1500 | G53: [US$/par] | H53: =H47 -> 100
F54: 1800 | G54: [US$/par] | H54: =H48 -> 100
F55: 2400 | G55: [US$/par] | H55: =H49 -> 100
C58: Factores de Zona
E61: id | F61: Zona | H61: Factor de Zona en Precios | I61: Costo Apoyos | J61: Canalizado D1 | K61: Canalizado D2 | L61: Canalizado D3 | M61: Canalizado D4 | N61: Canalizado D5 | O61: Canalizado D6 | P61: Canalizado D7 | Q61: Canalizado D8 | R61: Holgura
E62: 1 | F62: =INDEX(l.dpto,E62) -> ANTIOQUIA | H62: 1 | I62: 100 | J62: 0.1 | K62: 0.2 | L62: 0.3 | M62: 0.4 | N62: 0.5 | O62: 1 | P62: 1 | Q62: 1 | R62: 0.1
E63: 2 | F63: ATLANTICO | H63: 1 | I63: 100 | J63: 0.1 | K63: 0.2 | L63: 0.3 | M63: 0.4 | N63: 0.5 | O63: 1 | P63: 1 | Q63: 1 | R63: 0.1
E64: 3 | F64: BOGOTA DC | H64: 1 | I64: 100 | J64: 0.1 | K64: 0.2 | L64: 0.3 | M64: 0.4 | N64: 0.5 | O64: 1 | P64: 1 | Q64: 1 | R64: 0.1
E65: 4 | F65: BOLIVAR | H65: 1 | I65: 100 | J65: 0.1 | K65: 0.2 | L65: 0.3 | M65: 0.4 | N65: 0.5 | O65: 1 | P65: 1 | Q65: 1 | R65: 0.1
E66: 5 | F66: BOYACA | H66: 1 | I66: 100 | J66: 0.1 | K66: 0.2 | L66: 0.3 | M66: 0.4 | N66: 0.5 | O66: 1 | P66: 1 | Q66: 1 | R66: 0.1
E67: 6 | F67: CALDAS | H67: 1 | I67: 100 | J67: 0.1 | K67: 0.2 | L67: 0.3 | M67: 0.4 | N67: 0.5 | O67: 1 | P67: 1 | Q67: 1 | R67: 0.1
E68: 7 | F68: CAQUETA | H68: 1 | I68: 100 | J68: 0.1 | K68: 0.2 | L68: 0.3 | M68: 0.4 | N68: 0.5 | O68: 1 | P68: 1 | Q68: 1 | R68: 0.1
E69: 8 | F69: CAUCA | H69: 1 | I69: 100 | J69: 0.1 | K69: 0.2 | L69: 0.3 | M69: 0.4 | N69: 0.5 | O69: 1 | P69: 1 | Q69: 1 | R69: 0.1
E70: 9 | F70: CESAR | H70: 1 | I70: 100 | J70: 0.1 | K70: 0.2 | L70: 0.3 | M70: 0.4 | N70: 0.5 | O70: 1 | P70: 1 | Q70: 1 | R70: 0.1
E71: 10 | F71: CORDOBA | H71: 1 | I71: 100 | J71: 0.1 | K71: 0.2 | L71: 0.3 | M71: 0.4 | N71: 0.5 | O71: 1 | P71: 1 | Q71: 1 | R71: 0.1
E72: 11 | F72: CUNDINAMARCA | H72: 1 | I72: 100 | J72: 0.1 | K72: 0.2 | L72: 0.3 | M72: 0.4 | N72: 0.5 | O72: 1 | P72: 1 | Q72: 1 | R72: 0.1
E73: 12 | F73: CHOCO | H73: 1 | I73: 100 | J73: 0.1 | K73: 0.2 | L73: 0.3 | M73: 0.4 | N73: 0.5 | O73: 1 | P73: 1 | Q73: 1 | R73: 0.1
E74: 13 | F74: HUILA | H74: 1 | I74: 100 | J74: 0.1 | K74: 0.2 | L74: 0.3 | M74: 0.4 | N74: 0.5 | O74: 1 | P74: 1 | Q74: 1 | R74: 0.1
E75: 14 | F75: LA GUAJIRA | H75: 1 | I75: 100 | J75: 0.1 | K75: 0.2 | L75: 0.3 | M75: 0.4 | N75: 0.5 | O75: 1 | P75: 1 | Q75: 1 | R75: 0.1
E76: 15 | F76: MAGDALENA | H76: 1 | I76: 100 | J76: 0.1 | K76: 0.2 | L76: 0.3 | M76: 0.4 | N76: 0.5 | O76: 1 | P76: 1 | Q76: 1 | R76: 0.1
E77: 16 | F77: META | H77: 1 | I77: 100 | J77: 0.1 | K77: 0.2 | L77: 0.3 | M77: 0.4 | N77: 0.5 | O77: 1 | P77: 1 | Q77: 1 | R77: 0.1
E78: 17 | F78: NARIÑO | H78: 1 | I78: 100 | J78: 0.1 | K78: 0.2 | L78: 0.3 | M78: 0.4 | N78: 0.5 | O78: 1 | P78: 1 | Q78: 1 | R78: 0.1
E79: 18 | F79: NORTE DE SANTANDER | H79: 1 | I79: 100 | J79: 0.1 | K79: 0.2 | L79: 0.3 | M79: 0.4 | N79: 0.5 | O79: 1 | P79: 1 | Q79: 1 | R79: 0.1
E80: 19 | F80: QUINDIO | H80: 1 | I80: 100 | J80: 0.1 | K80: 0.2 | L80: 0.3 | M80: 0.4 | N80: 0.5 | O80: 1 | P80: 1 | Q80: 1 | R80: 0.1
E81: 20 | F81: RISARALDA | H81: 1 | I81: 100 | J81: 0.1 | K81: 0.2 | L81: 0.3 | M81: 0.4 | N81: 0.5 | O81: 1 | P81: 1 | Q81: 1 | R81: 0.1
E82: 21 | F82: SANTANDER | H82: 1 | I82: 100 | J82: 0.1 | K82: 0.2 | L82: 0.3 | M82: 0.4 | N82: 0.5 | O82: 1 | P82: 1 | Q82: 1 | R82: 0.1
E83: 22 | F83: SUCRE | H83: 1 | I83: 100 | J83: 0.1 | K83: 0.2 | L83: 0.3 | M83: 0.4 | N83: 0.5 | O83: 1 | P83: 1 | Q83: 1 | R83: 0.1
E84: 23 | F84: TOLIMA | H84: 1 | I84: 100 | J84: 0.1 | K84: 0.2 | L84: 0.3 | M84: 0.4 | N84: 0.5 | O84: 1 | P84: 1 | Q84: 1 | R84: 0.1
E85: 24 | F85: VALLE DEL CAUCA | H85: 1 | I85: 100 | J85: 0.1 | K85: 0.2 | L85: 0.3 | M85: 0.4 | N85: 0.5 | O85: 1 | P85: 1 | Q85: 1 | R85: 0.1
E86: 25 | F86: ARAUCA | H86: 1 | I86: 100 | J86: 0.1 | K86: 0.2 | L86: 0.3 | M86: 0.4 | N86: 0.5 | O86: 1 | P86: 1 | Q86: 1 | R86: 0.1
E87: 26 | F87: CASANARE | H87: 1 | I87: 100 | J87: 0.1 | K87: 0.2 | L87: 0.3 | M87: 0.4 | N87: 0.5 | O87: 1 | P87: 1 | Q87: 1 | R87: 0.1
E88: 27 | F88: PUTUMAYO | H88: 1 | I88: 100 | J88: 0.1 | K88: 0.2 | L88: 0.3 | M88: 0.4 | N88: 0.5 | O88: 1 | P88: 1 | Q88: 1 | R88: 0.1
E89: 28 | F89: SAN ANDRES,PROVIDENCIA Y SANTA CATALINA | H89: 1 | I89: 100 | J89: 0.1 | K89: 0.2 | L89: 0.3 | M89: 0.4 | N89: 0.5 | O89: 1 | P89: 1 | Q89: 1 | R89: 0.1
E90: 29 | F90: AMAZONAS | H90: 1 | I90: 100 | J90: 0.1 | K90: 0.2 | L90: 0.3 | M90: 0.4 | N90: 0.5 | O90: 1 | P90: 1 | Q90: 1 | R90: 0.1
E91: 30 | F91: GUAINIA | H91: 1 | I91: 100 | J91: 0.1 | K91: 0.2 | L91: 0.3 | M91: 0.4 | N91: 0.5 | O91: 1 | P91: 1 | Q91: 1 | R91: 0.1
E92: 31 | F92: GUAVIARE | H92: 1 | I92: 100 | J92: 0.1 | K92: 0.2 | L92: 0.3 | M92: 0.4 | N92: 0.5 | O92: 1 | P92: 1 | Q92: 1 | R92: 0.1
E93: 32 | F93: VAUPES | H93: 1 | I93: 100 | J93: 0.1 | K93: 0.2 | L93: 0.3 | M93: 0.4 | N93: 0.5 | O93: 1 | P93: 1 | Q93: 1 | R93: 0.1
E94: 33 | F94: VICHADA | H94: 1 | I94: 100 | J94: 0.1 | K94: 0.2 | L94: 0.3 | M94: 0.4 | N94: 0.5 | O94: 1 | P94: 1 | Q94: 1 | R94: 0.1
H96: pex.precio.zona | I96: pex.apoyo | Q96: pex.canal.dens | R96: pex.holgura
B98: Costo Celda Básicas
H100: 1 | I100: 2 | J100: 3 | K100: 4 | L100: 5 | M100: 6 | N100: 7 | O100: 8
H101: Área Armario D1 | I101: Área Armario D2 | J101: Área Armario D3 | K101: Área Armario D4 | L101: Área Armario y TDCs D5 | M101: Área TDCs D6 | N101: Área TDCs D7 | O101: Área TDCs D8
F102: Líneas por Manzana | G102: 0 | H102: 1 | I102: 1 | J102: 1 | K102: 1 | L102: 1 | M102: 1 | N102: 1 | O102: 1 | P102: pex.dens
F103: Líneas en Casas por Manzana | H103: 1 | I103: 1 | J103: 1 | K103: 1 | L103: 1 | M103: 1 | N103: 1 | O103: 1
F104: Líneas en Edificios por Manzana | H104: 1 | I104: 1 | J104: 1 | K104: 1 | L104: 1 | M104: 1 | N104: 1 | O104: 1
F105: Cantidad de Edificios de 20 ls c/u por Manzana | H105: 1 | I105: 1 | J105: 1 | K105: 1 | L105: 1 | M105: 1 | N105: 1 | O105: 1
F106: Cantidad de Edificios de 30 ls c/u por Manzana | H106: 1 | I106: 1 | J106: 1 | K106: 1 | L106: 1 | M106: 1 | N106: 1 | O106: 1
F107: Cantidad de Edificios de 50 ls c/u por Manzana | H107: 1 | I107: 1 | J107: 1 | K107: 1 | L107: 1 | M107: 1 | N107: 1 | O107: 1
F108: Cantidad de Edificios de 100 ls c/u por Manzana | H108: 1 | I108: 1 | J108: 1 | K108: 1 | L108: 1 | M108: 1 | N108: 1 | O108: 1
F109: Cantidad de Manzanas del "AREA DE ARMARIO" | H109: 50 | I109: 50 | J109: 50 | K109: 50 | L109: 50 | M109: 50 | N109: 50 | O109: 50 | P109: pex.dens.manza
F110: Cantidad de líneas del "AREA DE ARMARIO" | H110: 300 | I110: 300 | J110: 300 | K110: 300 | L110: 300 | M110: 300 | N110: 300 | O110: 300
E111: Costos 100% Canalizado
F112: Canalización (neutra) | H112: 100 | I112: 100 | J112: 100 | K112: 100 | L112: 100 | M112: 100 | N112: 100 | O112: 100
F113: Postación Propia (Cantidad)
F114: Líneas 1 (Cables Canalizados) | H114: 100 | I114: 100 | J114: 100 | K114: 100 | L114: 100 | M114: 100 | N114: 100 | O114: 100
F115: Líneas 2 (Cables aéreos en postación propia)
F116: Líneas 3 (Cables aéreos en postación de terceros)
F117: Costo Ingeniería (Canalización más Líneas) | H117: 100 | I117: 100 | J117: 100 | K117: 100 | L117: 100 | M117: 100 | N117: 100 | O117: 100
F118: Costo Total para 100 % canalizado | H118: =SUM(H112,H114:H117) -> 300 | I118: 300 | J118: 300 | K118: 300 | L118: 300 | M118: 300 | N118: 300 | O118: 300 | P118: pex.cel.bas.canal
F119: Costo por línea ($) | H119: =H118/H$110 -> 1 | I119: 1 | J119: 1 | K119: 1 | L119: 1 | M119: 1 | N119: 1 | O119: 1
E121: Costos 100% Aéreo
F122: Canalización (neutra) | H122: 100 | I122: 100 | J122: 100 | K122: 100 | L122: 100 | M122: 100 | N122: 100 | O122: 100
F123: Postación Propia (Cantidad) | H123: 10 | I123: 10 | J123: 10 | K123: 10 | L123: 10 | M123: 10 | N123: 10 | O123: 10
F124: Líneas 1 (Cables Canalizados) | H124: 100 | I124: 100 | J124: 100 | K124: 100 | L124: 100 | M124: 100 | N124: 100 | O124: 100
F125: Líneas 2 (Cables aéreos en postación propia) | H125: 100 | I125: 100 | J125: 100 | K125: 100 | L125: 100 | M125: 100 | N125: 100 | O125: 100
F126: Líneas 3 (Cables aéreos en postación de terceros)
F127: Costo Ingeniería (Canalización más Líneas) | H127: 100 | I127: 100 | J127: 100 | K127: 100 | L127: 100 | M127: 100 | N127: 100 | O127: 100
F128: Costo Total para 100 % Aereo | H128: =SUM(H122,H124:H127) -> 400 | I128: 400 | J128: 400 | K128: 400 | L128: 400 | M128: 400 | N128: 400 | O128: 400 | P128: pex.cel.bas.aereo
F129: Costo por línea ($) | H129: =H128/H$110 -> 1.333333333 | I129: 1.333333333 | J129: 1.333333333 | K129: 1.333333333 | L129: 1.333333333 | M129: 1.333333333 | N129: 1.333333333 | O129: 1.333333333
B131: Red primaria para Armarios
G147: 1 | H147: 2 | I147: 3 | J147: 4 | K147: 5 | L147: 6 | M147: 7 | N147: 8 | O147: 9 | P147: 10 | Q147: 11 | R147: 12 | S147: 13 | T147: 14 | U147: 15 | V147: 16 | W147: 17 | X147: 18
F148: Cantidad de Áreas de Armarios por Área de MDF | G148: Largo del Bucle máximo en el Área de Central (MDF) | J148: Largo de la Canalización en el Área de Central | N148: Largo de Cables Matrices (en cantidad de lados de Área de Armario L) | S148: Cantidad de Cables Primarios saliendo del MDF por Central
G149: (en cantidad de lados de Área de Armario L) | J149: (en cantidad de lados de Área de Armario L) | N149: (en cantidad de lados de Área de Armario L)
G150: Cable matriz primario | H150: Cable secundario (armario) | I150: Total | J150: Solo para pares de cu | K150: FO y pares de cu | L150: Solo para FO | M150: Total | N150: 600 pares | O150: 1200 pares | P150: 1500 pares | Q150: 1800 pares | R150: 2400 pares | S150: 600 pares | T150: 1200 pares | U150: 1500 pares | V150: 1800 pares | W150: 2400 pares | X150: Pares Terminados en MDF
E151: =(SQRT(F151)-1)^2 -> 0 | F151: 1 | G151: 0 | H151: 1 | I151: =G151+H151 -> 1 | J151: 0 | K151: 0 | L151: 2 | M151: =J151+K151+L151 -> 2 | N151: 0 | O151: 0 | P151: 0 | Q151: 0 | R151: 0 | S151: 1 | T151: 0 | U151: 0 | V151: 0 | W151: 0 | X151: =600*S151+1200*T151+1500*U151+1800*V151+2400*W151 -> 600
E152: 0.1715728753 | F152: 2 | G152: 0.5 | H152: 1 | I152: 1.5 | J152: 0 | K152: 1 | L152: 2 | M152: 3 | N152: 1 | O152: 0 | P152: 0 | Q152: 0 | R152: 0 | S152: 2 | T152: 0 | U152: 0 | V152: 0 | W152: 0 | X152: 1200
E153: 0.5358983849 | F153: 3 | G153: =0.5+0.5 -> 1 | H153: 1 | I153: 2 | J153: 0 | K153: =0.5+0.5+0.5+0.5 -> 2 | L153: 2 | M153: 4 | N153: =1+1 -> 2 | O153: 0 | P153: 0 | Q153: 0 | R153: 0 | S153: 3 | T153: 0 | U153: 0 | V153: 0 | W153: 0 | X153: 1800
E154: 1 | F154: 4 | G154: 1 | H154: 1 | I154: 2 | J154: 1 | K154: 2 | L154: 2 | M154: 5 | N154: 2 | O154: 1 | P154: 0 | Q154: 0 | R154: 0 | S154: 0 | T154: 2 | U154: 0 | V154: 0 | W154: 0 | X154: 2400
E155: 1.527864045 | F155: 5 | G155: =0.5+0.5+0.5 -> 1.5 | H155: 1 | I155: 2.5 | J155: =0.5+0.5+0.5+0.5 -> 2 | K155: =0.5+0.5+0.5+0.5 -> 2 | L155: 2 | M155: 6 | N155: =0.5+0.5+0.5+0.5+0.5 -> 2.5 | O155: =0.5+0.5+0.5 -> 1.5 | P155: 0 | Q155: 0 | R155: 0 | S155: 1 | T155: 2 | U155: 0 | V155: 0 | W155: 0 | X155: 3000
E156: 2.101020514 | F156: 6 | G156: 1.5 | H156: 1 | I156: 2.5 | J156: 2 | K156: 3 | L156: 2 | M156: 7 | N156: 3 | O156: 2 | P156: 0 | Q156: 0 | R156: 0 | S156: 2 | T156: 2 | U156: 0 | V156: 0 | W156: 0 | X156: 3600
E157: 2.708497378 | F157: 7 | G157: =0.5+0.5+0.5 -> 1.5 | H157: 1 | I157: 2.5 | J157: =0.5*8 -> 4 | K157: =0.5*4 -> 2 | L157: 2 | M157: 8 | N157: =7*0.5 -> 3.5 | O157: =5*0.5 -> 2.5 | P157: 0 | Q157: 0 | R157: 0 | S157: 1 | T157: 3 | U157: 0 | V157: 0 | W157: 0 | X157: 4200
E158: 3.343145751 | F158: 8 | G158: 2 | H158: 1 | I158: 3 | J158: =6*0.5 -> 3 | K158: =8*0.5 -> 4 | L158: 2 | M158: 9 | N158: 4 | O158: 2 | P158: 0 | Q158: 0 | R158: 1 | S158: 0 | T158: 0 | U158: 0 | V158: 0 | W158: 2 | X158: 4800
E159: 4 | F159: 9 | G159: =4*0.5 -> 2 | H159: 1 | I159: 3 | J159: =8*0.5 -> 4 | K159: =8*0.5 -> 4 | L159: 2 | M159: 10 | N159: =12*0.5 -> 6 | O159: 0 | P159: =4*0.5 -> 2 | Q159: 0 | R159: 0 | S159: 4 | T159: 0 | U159: 2 | V159: 0 | W159: 0 | X159: 5400
E160: 4.67544468 | F160: 10 | G160: =5*0.5 -> 2.5 | H160: 1 | I160: 3.5 | J160: =8*0.5 -> 4 | K160: =10*0.5 -> 5 | L160: 2 | M160: 11 | N160: =10*0.5 -> 5 | O160: =8*0.5 -> 4 | P160: 0 | Q160: 0 | R160: =2*0.5 -> 1 | S160: 2 | T160: 0 | U160: 0 | V160: 0 | W160: 2 | X160: 6000
E161: 5.366750419 | F161: 11 | G161: =6*0.5 -> 3 | H161: 1 | I161: 4 | J161: =10*0.5 -> 5 | K161: =10*0.5 -> 5 | L161: 2 | M161: 12 | N161: =9*0.5 -> 4.5 | O161: =8*0.5 -> 4 | P161: =2*0.5 -> 1 | Q161: 0 | R161: =2*0.5 -> 1 | S161: 2 | T161: 1 | U161: 1 | V161: 0 | W161: 1 | X161: 6300
E162: 6.07179677 | F162: 12 | G162: =5*0.5 -> 2.5 | H162: 1 | I162: 3.5 | J162: =12*0.5 -> 6 | K162: =10*0.5 -> 5 | L162: 2 | M162: 13 | N162: =18*0.5 -> 9 | O162: 0 | P162: =4*0.5 -> 2 | Q162: 0 | R162: =2*0.5 -> 1 | S162: 2 | T162: 0 | U162: 0 | V162: 0 | W162: 2 | X162: 6000
E163: 6.788897449 | F163: 13 | G163: =6*0.5 -> 3 | H163: 1 | I163: 4 | J163: =10*0.5 -> 5 | K163: =14*0.5 -> 7 | L163: 2 | M163: 14 | N163: =16*0.5 -> 8 | O163: =5*0.5 -> 2.5 | P163: =2*0.5 -> 1 | Q163: 0 | R163: =6*0.5 -> 3 | S163: 2 | T163: 2 | U163: 0 | V163: 0 | W163: 2 | X163: 8400
E164: 7.516685226 | F164: 14 | G164: =7*0.5 -> 3.5 | H164: 1 | I164: 4.5 | J164: =16*0.5 -> 8 | K164: =10*0.5 -> 5 | L164: 2 | M164: 15 | N164: =15*0.5 -> 7.5 | O164: =6*0.5+2*0.5 -> 4 | P164: =2*0.5+1*0.5 -> 1.5 | Q164: 0 | R164: =2*0.5+3*0.5 -> 2.5 | S164: 1 | T164: 1 | U164: 1 | V164: 0 | W164: 2 | X164: 8100
E165: 8.254033308 | F165: 15 | G165: =6*0.5 -> 3 | H165: 1 | I165: 4 | J165: =16*0.5 -> 8 | K165: =12*0.5 -> 6 | L165: 2 | M165: 16 | N165: =20*0.5+4*0.5 -> 12 | O165: 0 | P165: =4*0.5 -> 2 | Q165: 0 | R165: =4*0.5 -> 2 | S165: 5 | T165: 0 | U165: 0 | V165: 0 | W165: 2 | X165: 7800
E166: 9 | F166: 16 | G166: =6*0.5 -> 3 | H166: 1 | I166: 4 | J166: =18*0.5 -> 9 | K166: =12*0.5 -> 6 | L166: 2 | M166: 17 | N166: =16*0.5 -> 8 | O166: =8*0.5 -> 4 | P166: 0 | Q166: 0 | R166: =4*0.5+2*0.5+2*0.5 -> 4 | S166: 0 | T166: 0 | U166: 0 | V166: 0 | W166: 4 | X166: 9600
E167: 16 | F167: 25 | G167: 4 | H167: 1 | I167: 5 | J167: 16 | K167: 8 | L167: 2 | M167: 26 | N167: 12 | O167: =10+2 -> 12 | P167: 0 | Q167: 0 | R167: =2+4 -> 6 | S167: 0 | T167: 4 | U167: 0 | V167: 0 | W167: 4 | X167: 14400
E168: 25 | F168: 36 | G168: =10*0.5 -> 5 | H168: 1 | I168: 6 | J168: 24 | K168: =11-J172+J172*K175 -> 11 | L168: 2 | M168: 37 | N168: =12*1 -> 12 | O168: =12*1 -> 12 | P168: 20 | Q168: 0 | R168: 0 | S168: 0 | T168: 0 | U168: 12 | V168: 0 | W168: 0 | X168: 18000
E169: 36 | F169: 49 | G169: 6 | H169: 1 | I169: 7 | J169: 36 | K169: =12-J173+J173*K175 -> 12 | L169: 2 | M169: 50 | N169: 14 | O169: 18 | P169: 14 | Q169: 0 | R169: 16 | S169: 0 | T169: 2 | U169: 2 | V169: 0 | W169: 8 | X169: 24600
E170: 49 | F170: 64 | G170: 7 | H170: 1 | I170: 8 | J170: =49 -> 49 | K170: =14-J174+J174*K175-L174+L174*M175 -> 14 | L170: 2 | M170: 65 | N170: 24 | O170: 16 | P170: 24 | Q170: 16 | R170: 16 | S170: 0 | T170: 0 | U170: 0 | V170: 8 | W170: 8 | X170: 33600 | Y170: pex.red.primaria
F172: 36 | G172: complemento de mas de 6 tubos | J172: 1 | K172: 8
F173: 49 | G173: complemento de mas de 6 tubos | J173: 2 | K173: 8
F174: 64 | G174: complemento de mas de 6 tubos | J174: 2 | K174: 8 | L174: 1 | M174: 10
K175: =I17 -> 1 | M175: =I18 -> 1
B177: Red primaria para Edificios
G179: 1 | H179: 2 | I179: 3 | J179: 4 | K179: 5 | L179: 6 | M179: 7 | N179: 8 | O179: 9 | P179: 10 | Q179: 11 | R179: 12 | S179: 13 | T179: 14 | U179: 15 | V179: 16 | W179: 17 | X179: 18
F180: Cantidad de Áreas de Armarios por Área de MDF | G180: Largo del Bucle máximo en el Área de Central (MDF) | J180: Largo de la Canalización en el Área de Central | N180: Largo de Cables Matrices (en cantidad de lados de Área de Armario L) | S180: Cantidad de Cables Primarios saliendo del MDF por Central
G181: (en cantidad de lados de Área de Armario L) | J181: (en cantidad de lados de Área de Armario L) | N181: (en cantidad de lados de Área de Armario L)
G182: Cable matriz primario | H182: Cable secundario (armario) | I182: Total | J182: Solo para pares de cu | K182: FO y pares de cu | L182: Solo para FO | M182: Total | N182: 900 pares | O182: 1200 pares | P182: 1500 pares | Q182: 1800 pares | R182: 2400 pares | S182: 900 pares | T182: 1200 pares | U182: 1500 pares | V182: 1800 pares | W182: 2400 pares | X182: Pares Terminados en MDF
F183: 1 | G183: 0 | H183: 1 | I183: =G183+H183 -> 1 | J183: 0 | K183: 0 | L183: 2 | M183: =J183+K183+L183 -> 2 | N183: 0 | O183: 0 | P183: 0 | Q183: 0 | R183: 0 | S183: 1 | T183: 0 | U183: 0 | V183: 0 | W183: 0 | X183: =900*S183+1200*T183+1500*U183+1800*V183+2400*W183 -> 900
F184: 2 | G184: 0.5 | H184: 1 | I184: 1.5 | J184: 0 | K184: 1 | L184: 2 | M184: 3 | N184: 1 | O184: 0 | P184: 0 | Q184: 0 | R184: 0 | S184: 2 | T184: 0 | U184: 0 | V184: 0 | W184: 0 | X184: 1800
F185: 3 | G185: =0.5+0.5 -> 1 | H185: 1 | I185: 2 | J185: 0 | K185: =0.5+0.5+0.5+0.5 -> 2 | L185: =0.5+0.5+0.5+0.5 -> 2 | M185: 4 | N185: =1+1 -> 2 | O185: 0 | P185: 0 | Q185: 0 | R185: 0 | S185: 3 | T185: 0 | U185: 0 | V185: 0 | W185: 0 | X185: 2700
F186: 4 | G186: 1 | H186: 1 | I186: 2 | J186: 1 | K186: 2 | L186: 2 | M186: 5 | N186: 2 | O186: 0 | P186: 0 | Q186: 1 | R186: 0 | S186: 0 | T186: 0 | U186: 0 | V186: 2 | W186: 0 | X186: 3600
F187: 5 | G187: =0.5+0.5+0.5 -> 1.5 | H187: 1 | I187: 2.5 | J187: =0.5+0.5+0.5+0.5 -> 2 | K187: =0.5+0.5+0.5+0.5 -> 2 | L187: =0.5+0.5+0.5+0.5 -> 2 | M187: 6 | N187: =0.5+0.5+0.5+0.5+0.5 -> 2.5 | O187: 0 | P187: 0 | Q187: 1.5 | R187: 0 | S187: 1 | T187: 0 | U187: 0 | V187: 2 | W187: 0 | X187: 4500
F188: 6 | G188: 1.5 | H188: 1 | I188: 2.5 | J188: 2 | K188: 3 | L188: 2 | M188: 7 | N188: 3 | O188: 0 | P188: 0 | Q188: 2 | R188: 0 | S188: 2 | T188: 0 | U188: 0 | V188: 2 | W188: 0 | X188: 5400
F189: 7 | G189: =0.5+0.5+0.5 -> 1.5 | H189: 1 | I189: 2.5 | J189: =0.5*8 -> 4 | K189: 2 | L189: =0.5*4 -> 2 | M189: 8 | N189: =7*0.5 -> 3.5 | O189: 0 | P189: 0 | Q189: 2.5 | R189: 0 | S189: 1 | T189: 0 | U189: 0 | V189: 3 | W189: 0 | X189: 6300
F190: 8 | G190: 2 | H190: 1 | I190: 3 | J190: 3 | K190: 4 | L190: =4*0.5 -> 2 | M190: 9 | N190: 4 | O190: 0 | P190: 0 | Q190: 4 | R190: 0 | S190: 0 | T190: 0 | U190: 0 | V190: 4 | W190: 0 | X190: 7200
F191: 9 | G191: =4*0.5 -> 2 | H191: 1 | I191: 3 | J191: =8*0.5 -> 4 | K191: =8*0.5 -> 4 | L191: 2 | M191: 10 | N191: 8 | O191: 0 | P191: 0 | Q191: 2 | R191: 0 | S191: 5 | T191: 0 | U191: 0 | V191: 2 | W191: 0 | X191: 8100
F192: 10 | G192: =5*0.5 -> 2.5 | H192: 1 | I192: 3.5 | J192: =8*0.5 -> 4 | K192: =10*0.5 -> 5 | L192: 2 | M192: 11 | N192: 4 | O192: 0 | P192: 0 | Q192: 4 | R192: 2 | S192: 0 | T192: 0 | U192: 0 | V192: 0 | W192: 4 | X192: 9600
F193: 11 | G193: =6*0.5 -> 3 | H193: 1 | I193: 4 | J193: 5 | K193: =10*0.5 -> 5 | L193: 2 | M193: 12 | N193: 4 | O193: 0 | P193: 0 | Q193: 6 | R193: 2 | S193: 1 | T193: 0 | U193: 0 | V193: 3 | W193: 2 | X193: 11100
F194: 12 | G194: =5*0.5 -> 2.5 | H194: 1 | I194: 3.5 | J194: =12*0.5 -> 6 | K194: =10*0.5 -> 5 | L194: 2 | M194: 13 | N194: 10 | O194: 0 | P194: 0 | Q194: 5 | R194: 0 | S194: 0 | T194: 0 | U194: 0 | V194: 6 | W194: 0 | X194: 10800
F195: 13 | G195: =6*0.5 -> 3 | H195: 1 | I195: 4 | J195: =10*0.5 -> 5 | K195: =14*0.5 -> 7 | L195: 2 | M195: 14 | N195: 10 | O195: 0 | P195: 0 | Q195: 9 | R195: 0 | S195: 1 | T195: 0 | U195: 0 | V195: 6 | W195: 0 | X195: 11700
F196: 14 | G196: =7*0.5 -> 3.5 | H196: 1 | I196: 4.5 | J196: =16*0.5 -> 8 | K196: =10*0.5 -> 5 | L196: 2 | M196: 15 | N196: 8.5 | O196: 0 | P196: 0.5 | Q196: 8 | R196: 1 | S196: 1 | T196: 0 | U196: 1 | V196: 3 | W196: 2 | X196: 12600
F197: 15 | G197: =6*0.5 -> 3 | H197: 1 | I197: 4 | J197: =16*0.5 -> 8 | K197: =12*0.5 -> 6 | L197: 2 | M197: 16 | N197: =20*0.5+4*0.5 -> 12 | O197: 0 | P197: 0 | Q197: 8 | R197: 0 | S197: 3 | T197: 0 | U197: 0 | V197: 6 | W197: 0 | X197: 13500
F198: 16 | G198: =6*0.5 -> 3 | H198: 1 | I198: 4 | J198: =18*0.5 -> 9 | K198: =12*0.5 -> 6 | L198: 2 | M198: 17 | N198: =16*0.5 -> 8 | O198: 0 | P198: 0 | Q198: 8 | R198: 3 | S198: 0 | T198: 0 | U198: 0 | V198: 0 | W198: 6 | X198: 14400
F199: 25 | G199: 4 | H199: 1 | I199: 5 | J199: 16 | K199: 8 | L199: 2 | M199: 26 | N199: 12 | O199: 0 | P199: 0 | Q199: 16 | R199: 6 | S199: 1 | T199: 0 | U199: 0 | V199: 4 | W199: 6 | X199: 22500
F200: 36 | G200: =10*0.5 -> 5 | H200: 1 | I200: 6 | J200: 24 | K200: =11-L204+L204*M207 -> 11 | L200: 2 | M200: 37 | N200: 18 | O200: 0 | P200: 0 | Q200: 23 | R200: 14 | S200: 0 | T200: 0 | U200: 0 | V200: 2 | W200: 12 | X200: 32400
F201: 49 | G201: 6 | H201: 1 | I201: 7 | J201: 36 | K201: =12-J205+J205*K207-L205+L205*M207 -> 12 | L201: 2 | M201: 50 | N201: 28 | O201: 2 | P201: 0 | Q201: 36 | R201: 20 | S201: 3 | T201: 0 | U201: 0 | V201: 4 | W201: 12 | X201: 38700
F202: 64 | G202: 7 | H202: 1 | I202: 8 | J202: 49 | K202: =14-J206+J206*K207-N206+N206*O207-P206+P206*Q207 -> 14 | L202: 2 | M202: 65 | N202: 32 | O202: 0 | P202: 0 | Q202: 48 | R202: 48 | S202: 0 | T202: 0 | U202: 0 | V202: 0 | W202: 24 | X202: 57600 | Y202: pex.red.primaria.edi
F204: 36 | G204: complemento de mas de 6 tubos | L204: 1 | M204: 10
F205: 49 | G205: complemento de mas de 6 tubos | J205: 2 | K205: 8 | L205: 2 | M205: 10
F206: 64 | G206: complemento de mas de 6 tubos | J206: 2 | K206: 8 | N206: 2 | O206: 12 | P206: 1 | Q206: 14
K207: =I17 -> 1 | M207: =I18 -> 1 | O207: =I18 -> 1 | Q207: =I19 -> 1
B208: Costos Pex
B210: Nota: Calculos Realizados con Holgura del 20% de Pares Secundarios/Linea
L211: 2 | M211: 3 | N211: 1
K212: pex.prim.AAT | L212: 4 | M212: 5 | N212: 6 | O212: 1
E213: ID | F213: Límite para Telefonía del cable multipar Calibre 26 (km) | G213: Longitud lado de manzana (m) | H213: Densidad por Manzana | I213: Cantidad de Manzanas por Área de Armario | J213: Lado de Área de Armario (km) | K213: Cantidad de Áreas de Armario por Área de MDF | L213: Canalización solo Cables Multipares de Cobre | M213: Canalización Cables Multipares de Cobre y FO | N213: Canalización solo Cables de FO | O213: Costo de Cables Multipares Primarios | P213: Costo del MDF | Q213: Costo Total Planta Externa Primaria Sin MDF | R213: Costo canalización solo FO
D214: ="Tipo: "&H216&" líneas por área 100x100 metros" -> Tipo: 2 líneas por área 100x100 metros
K215: 0 | L215: 0 | M215: 0 | N215: 0 | O215: 0 | P215: 0 | Q215: 0 | R215: 0
E216: =MATCH(K216,$F$151:$F$170,0) -> 1 | F216: 4.5 | G216: 100 | H216: 2 | I216: 192 | J216: =SQRT(I216)*G216/1000 -> 1.385640646 | K216: 1 | L216: =INDEX(pex.red.primaria,$E216,L$212)*INDEX(Dacc.CI.Canal,L$211)*$J216 -> 0 | M216: 0 | N216: 277.1281292 | O216: =IF(INDEX(pex.red.primaria,$E216,O$212)*J216<(F216-J216),J216*SUMPRODUCT($H$21:$H$25,TRANSPOSE($N151:$R151)),J216*SUMPRODUCT($H$33:$H$37,TRANSPOSE($N151:$R151)))*pex.FD -> 0 | P216: =SUMPRODUCT($H$45:$H$49,TRANSPOSE($S151:$W151),$F$45:$F$49) -> 60000 | Q216: =L216+O216+M216*4/6 -> 0 | R216: =N216+M216*2/6 -> 277.1281292
E217: 2 | F217: =F216 -> 4.5 | J217: =J216 -> 1.385640646 | K217: 2 | L217: 0 | M217: 138.5640646 | N217: 277.1281292 | O217: =IF(INDEX(pex.red.primaria,$E217,O$212)*J217<(F217-J217),J217*SUMPRODUCT($H$21:$H$25,TRANSPOSE($N152:$R152)),J217*SUMPRODUCT($H$33:$H$37,TRANSPOSE($N152:$R152)))*pex.FD -> 145.4922678 | P217: =SUMPRODUCT($H$45:$H$49,TRANSPOSE($S152:$W152),$F$45:$F$49) -> 120000 | Q217: 237.8683109 | R217: 323.3161507
E218: 3 | F218: 4.5 | J218: 1.385640646 | K218: 3 | L218: 0 | M218: 277.1281292 | N218: 277.1281292 | O218: =IF(INDEX(pex.red.primaria,$E218,O$212)*J218<(F218-J218),J218*SUMPRODUCT($H$21:$H$25,TRANSPOSE($N153:$R153)),J218*SUMPRODUCT($H$33:$H$37,TRANSPOSE($N153:$R153)))*pex.FD -> 290.9845357 | P218: =SUMPRODUCT($H$45:$H$49,TRANSPOSE($S153:$W153),$F$45:$F$49) -> 180000 | Q218: 475.7366218 | R218: 369.5041723
E219: 4 | F219: 4.5 | J219: 1.385640646 | K219: 4 | L219: 138.5640646 | M219: 277.1281292 | N219: 277.1281292 | O219: =IF(INDEX(pex.red.primaria,$E219,O$212)*J219<(F219-J219),J219*SUMPRODUCT($H$21:$H$25,TRANSPOSE($N154:$R154)),J219*SUMPRODUCT($H$33:$H$37,TRANSPOSE($N154:$R154)))*pex.FD -> 436.4768035 | P219: =SUMPRODUCT($H$45:$H$49,TRANSPOSE($S154:$W154),$F$45:$F$49) -> 240000 | Q219: 759.7929543 | R219: 369.5041723
E220: 5 | F220: 4.5 | J220: 1.385640646 | K220: 5 | L220: 277.1281292 | M220: 277.1281292 | N220: 277.1281292 | O220: =IF(INDEX(pex.red.primaria,$E220,O$212)*J220<(F220-J220),J220*SUMPRODUCT($H$21:$H$25,TRANSPOSE($N155:$R155)),J220*SUMPRODUCT($H$33:$H$37,TRANSPOSE($N155:$R155)))*pex.FD -> 581.9690713 | P220: =SUMPRODUCT($H$45:$H$49,TRANSPOSE($S155:$W155),$F$45:$F$49) -> 300000 | Q220: 1043.849287 | R220: 369.5041723
E221: 6 | F221: 4.5 | J221: 1.385640646 | K221: 6 | L221: 277.1281292 | M221: 415.6921938 | N221: 277.1281292 | O221: =IF(INDEX(pex.red.primaria,$E221,O$212)*J221<(F221-J221),J221*SUMPRODUCT($H$21:$H$25,TRANSPOSE($N156:$R156)),J221*SUMPRODUCT($H$33:$H$37,TRANSPOSE($N156:$R156)))*pex.FD -> 727.4613392 | P221: =SUMPRODUCT($H$45:$H$49,TRANSPOSE($S156:$W156),$F$45:$F$49) -> 360000 | Q221: 1281.717598 | R221: 415.6921938
E222: 7 | F222: 4.5 | J222: 1.385640646 | K222: 7 | L222: 554.2562584 | M222: 277.1281292 | N222: 277.1281292 | O222: =IF(INDEX(pex.red.primaria,$E222,O$212)*J222<(F222-J222),J222*SUMPRODUCT($H$21:$H$25,TRANSPOSE($N157:$R157)),J222*SUMPRODUCT($H$33:$H$37,TRANSPOSE($N157:$R157)))*pex.FD -> 872.953607 | P222: =SUMPRODUCT($H$45:$H$49,TRANSPOSE($S157:$W157),$F$45:$F$49) -> 420000 | Q222: 1611.961952 | R222: 369.5041723
E223: 8 | F223: 4.5 | J223: 1.385640646 | K223: 8 | L223: 415.6921938 | M223: 554.2562584 | N223: 277.1281292 | O223: =IF(INDEX(pex.red.primaria,$E223,O$212)*J223<(F223-J223),J223*SUMPRODUCT($H$21:$H$25,TRANSPOSE($N158:$R158)),J223*SUMPRODUCT($H$33:$H$37,TRANSPOSE($N158:$R158)))*pex.FD -> 1018.445875 | P223: =SUMPRODUCT($H$45:$H$49,TRANSPOSE($S158:$W158),$F$45:$F$49) -> 480000 | Q223: 1803.642241 | R223: 461.8802154
E224: 9 | F224: 4.5 | J224: 1.385640646 | K224: 9 | L224: 554.2562584 | M224: 554.2562584 | N224: 277.1281292 | O224: =IF(INDEX(pex.red.primaria,$E224,O$212)*J224<(F224-J224),J224*SUMPRODUCT($H$21:$H$25,TRANSPOSE($N159:$R159)),J224*SUMPRODUCT($H$33:$H$37,TRANSPOSE($N159:$R159)))*pex.FD -> 1163.938143 | P224: =SUMPRODUCT($H$45:$H$49,TRANSPOSE($S159:$W159),$F$45:$F$49) -> 540000 | Q224: 2087.698573 | R224: 461.8802154
E225: 10 | F225: 4.5 | J225: 1.385640646 | K225: 10 | L225: 554.2562584 | M225: 692.820323 | N225: 277.1281292 | O225: =IF(INDEX(pex.red.primaria,$E225,O$212)*J225<(F225-J225),J225*SUMPRODUCT($H$21:$H$25,TRANSPOSE($N160:$R160)),J225*SUMPRODUCT($H$33:$H$37,TRANSPOSE($N160:$R160)))*pex.FD -> 1454.922678 | P225: =SUMPRODUCT($H$45:$H$49,TRANSPOSE($S160:$W160),$F$45:$F$49) -> 600000 | Q225: 2471.059152 | R225: 508.0682369
E226: 11 | F226: 4.5 | J226: 1.385640646 | K226: 11 | L226: 692.820323 | M226: 692.820323 | N226: 277.1281292 | O226: =IF(INDEX(pex.red.primaria,$E226,O$212)*J226<(F226-J226),J226*SUMPRODUCT($H$21:$H$25,TRANSPOSE($N161:$R161)),J226*SUMPRODUCT($H$33:$H$37,TRANSPOSE($N161:$R161)))*pex.FD -> 1527.668812 | P226: =SUMPRODUCT($H$45:$H$49,TRANSPOSE($S161:$W161),$F$45:$F$49) -> 630000 | Q226: 2682.369351 | R226: 508.0682369
E227: 12 | F227: 4.5 | J227: 1.385640646 | K227: 12 | L227: 831.3843876 | M227: 692.820323 | N227: 277.1281292 | O227: =IF(INDEX(pex.red.primaria,$E227,O$212)*J227<(F227-J227),J227*SUMPRODUCT($H$21:$H$25,TRANSPOSE($N162:$R162)),J227*SUMPRODUCT($H$33:$H$37,TRANSPOSE($N162:$R162)))*pex.FD -> 1745.907214 | P227: =SUMPRODUCT($H$45:$H$49,TRANSPOSE($S162:$W162),$F$45:$F$49) -> 600000 | Q227: 3039.171817 | R227: 508.0682369
E228: 13 | F228: 4.5 | J228: 1.385640646 | K228: 13 | L228: 692.820323 | M228: 969.9484522 | N228: 277.1281292 | O228: =IF(INDEX(pex.red.primaria,$E228,O$212)*J228<(F228-J228),J228*SUMPRODUCT($H$21:$H$25,TRANSPOSE($N163:$R163)),J228*SUMPRODUCT($H$33:$H$37,TRANSPOSE($N163:$R163)))*pex.FD -> 2109.637884 | P228: =SUMPRODUCT($H$45:$H$49,TRANSPOSE($S163:$W163),$F$45:$F$49) -> 840000 | Q228: 3449.090508 | R228: 600.44428
E229: 14 | F229: 4.5 | J229: 1.385640646 | K229: 14 | L229: 1108.512517 | M229: 692.820323 | N229: 277.1281292 | O229: =IF(INDEX(pex.red.primaria,$E229,O$212)*J229<(F229-J229),J229*SUMPRODUCT($H$21:$H$25,TRANSPOSE($N164:$R164)),J229*SUMPRODUCT($H$33:$H$37,TRANSPOSE($N164:$R164)))*pex.FD -> 2255.130151 | P229: =SUMPRODUCT($H$45:$H$49,TRANSPOSE($S164:$W164),$F$45:$F$49) -> 810000 | Q229: 3825.522884 | R229: 508.0682369
E230: 15 | F230: 4.5 | J230: 1.385640646 | K230: 15 | L230: 1108.512517 | M230: 831.3843876 | N230: 277.1281292 | O230: =IF(INDEX(pex.red.primaria,$E230,O$212)*J230<(F230-J230),J230*SUMPRODUCT($H$21:$H$25,TRANSPOSE($N165:$R165)),J230*SUMPRODUCT($H$33:$H$37,TRANSPOSE($N165:$R165)))*pex.FD -> 2327.876285 | P230: =SUMPRODUCT($H$45:$H$49,TRANSPOSE($S165:$W165),$F$45:$F$49) -> 780000 | Q230: 3990.645061 | R230: 554.2562584
E231: 16 | F231: 4.5 | J231: 1.385640646 | K231: 16 | L231: 1247.076581 | M231: 831.3843876 | N231: 277.1281292 | O231: =IF(INDEX(pex.red.primaria,$E231,O$212)*J231<(F231-J231),J231*SUMPRODUCT($H$21:$H$25,TRANSPOSE($N166:$R166)),J231*SUMPRODUCT($H$33:$H$37,TRANSPOSE($N166:$R166)))*pex.FD -> 2327.876285 | P231: =SUMPRODUCT($H$45:$H$49,TRANSPOSE($S166:$W166),$F$45:$F$49) -> 960000 | Q231: 4129.209125 | R231: 554.2562584
E232: 17 | F232: 4.5 | J232: 1.385640646 | K232: 25 | L232: 2217.025034 | M232: 1108.512517 | N232: 277.1281292 | O232: =IF(INDEX(pex.red.primaria,$E232,O$212)*J232<(F232-J232),J232*SUMPRODUCT($H$21:$H$25,TRANSPOSE($N167:$R167)),J232*SUMPRODUCT($H$33:$H$37,TRANSPOSE($N167:$R167)))*pex.FD -> 4364.768035 | P232: =SUMPRODUCT($H$45:$H$49,TRANSPOSE($S167:$W167),$F$45:$F$49) -> 1440000 | Q232: 7320.801413 | R232: 646.6323015
E233: 18 | F233: 4.5 | J233: 1.385640646 | K233: 36 | L233: 3325.537551 | M233: 1524.204711 | N233: 277.1281292 | O233: =IF(INDEX(pex.red.primaria,$E233,O$212)*J233<(F233-J233),J233*SUMPRODUCT($H$21:$H$25,TRANSPOSE($N168:$R168)),J233*SUMPRODUCT($H$33:$H$37,TRANSPOSE($N168:$R168)))*pex.FD -> 6401.659785 | P233: =SUMPRODUCT($H$45:$H$49,TRANSPOSE($S168:$W168),$F$45:$F$49) -> 1800000 | Q233: 10743.33381 | R233: 785.1963661
E234: 19 | F234: 4.5 | J234: 1.385640646 | K234: 49 | L234: 4988.306326 | M234: 1662.768775 | N234: 277.1281292 | O234: =IF(INDEX(pex.red.primaria,$E234,O$212)*J234<(F234-J234),J234*SUMPRODUCT($H$21:$H$25,TRANSPOSE($N169:$R169)),J234*SUMPRODUCT($H$33:$H$37,TRANSPOSE($N169:$R169)))*pex.FD -> 9020.520606 | P234: =SUMPRODUCT($H$45:$H$49,TRANSPOSE($S169:$W169),$F$45:$F$49) -> 2460000 | Q234: 15117.33945 | R234: 831.3843876
E235: 20 | F235: 4.5 | J235: 1.385640646 | K235: 64 | L235: 6789.639166 | M235: 1939.896904 | N235: 277.1281292 | O235: =IF(INDEX(pex.red.primaria,$E235,O$212)*J235<(F235-J235),J235*SUMPRODUCT($H$21:$H$25,TRANSPOSE($N170:$R170)),J235*SUMPRODUCT($H$33:$H$37,TRANSPOSE($N170:$R170)))*pex.FD -> 13967.25771 | P235: =SUMPRODUCT($H$45:$H$49,TRANSPOSE($S170:$W170),$F$45:$F$49) -> 3360000 | Q235: 22050.16148 | R235: 923.7604307
D236: ="Tipo: "&H237&" líneas por área 100x100 metros" -> Tipo: 5 líneas por área 100x100 metros
E237: =MATCH(K237,$F$151:$F$170,0) -> 1 | F237: 4.5 | G237: 100 | H237: 5 | I237: 64 | J237: =SQRT(I237)*G237/1000 -> 0.8 | K237: 1 | L237: =INDEX(pex.red.primaria,$E237,L$212)*INDEX(Dacc.CI.Canal,L$211)*$J237 -> 0 | M237: 0 | N237: 160 | O237: =IF(INDEX(pex.red.primaria,$E237,O$212)*J237<(F237-J237),J237*SUMPRODUCT($H$21:$H$25,TRANSPOSE($N151:$R151)),J237*SUMPRODUCT($H$33:$H$37,TRANSPOSE($N151:$R151)))*pex.FD -> 0 | P237: =SUMPRODUCT($H$45:$H$49,TRANSPOSE($S151:$W151),$F$45:$F$49) -> 60000 | Q237: =L237+O237+M237*4/6 -> 0 | R237: =N237+M237*2/6 -> 160
... 848 more rows

Sheet Dis.PEx.FO
A1: Modelo Empresa Eficiente Fija
A2: Diseño de Planta Externa de Fibra Óptica
A6: Año | Q6: 1 | R6: 2 | S6: 3 | T6: 4 | U6: 5 | V6: 6
B10: Diseño Planta Externa Fibra Óptica
C12: Parámetros GPON
G14: Agregación Anillo | I14: 100 | J14: p.agg.ring
G15: Porcentaje Diseño | I15: 0.1 | J15: p.porc.dis.ring
G16: Agregación Splitter 2nd | I16: 10 | J16: p.agg.splitter2
G17: Agregación Splitter 1st | I17: 2 | J17: p.agg.splitter1
G18: Agregación ONT | I18: 1 | J18: p.ont.per.line
G19: Densidad de corte | H19: [linea/km2] | I19: 100
C22: Diseño ONT y OLT
F24: ID | G24: Depto | H24: Municipio | I24: Cod | K24: FO | Q24: =INDEX(l.agno,Q$6) -> 0 | R24: 1 | S24: 2 | T24: 3 | U24: 4 | V24: 5
E25: ONT Brutos
F26: 1 | G26: =INDEX(l.dda.nom.dpto,F26) -> Antioquia | H26: =INDEX(l.dda.nom.zce,F26) -> Medellín | I26: =INDEX(l.dda.cod.uni,F26) -> 5.1.1 | K26: 1 | Q26: =$K26*ROUND(INDEX(l.accesos,$F26,Q$6)*INDEX(l.mun.fo,$F26),0)/p.ont.per.line*(INDEX(l.tipo.n,$F26)>0) -> 0 | R26: 0 | S26: 0 | T26: 0 | U26: 0 | V26: 0
F27: =F26+1 -> 2 | G27: Antioquia | H27: Abejorral | I27: 5.2.1 | K27: 1 | Q27: 0 | R27: 0 | S27: 0 | T27: 0 | U27: 0 | V27: 0
F28: 3 | G28: Antioquia | H28: Abriaquí | I28: 5.4.1 | K28: 1 | Q28: 0 | R28: 0 | S28: 0 | T28: 0 | U28: 0 | V28: 0
F29: 4 | G29: Antioquia | H29: Alejandría | I29: 5.21.1 | K29: 1 | Q29: 0 | R29: 0 | S29: 0 | T29: 0 | U29: 0 | V29: 0
F30: 5 | G30: Antioquia | H30: Amagá | I30: 5.30.1 | K30: 1 | Q30: 0 | R30: 0 | S30: 0 | T30: 0 | U30: 0 | V30: 0
F31: 6 | G31: Antioquia | H31: Amalfi | I31: 5.31.1 | K31: 1 | Q31: 0 | R31: 0 | S31: 0 | T31: 0 | U31: 0 | V31: 0
F32: 7 | G32: Antioquia | H32: Andes | I32: 5.34.1 | K32: 1 | Q32: 0 | R32: 0 | S32: 0 | T32: 0 | U32: 0 | V32: 0
F33: 8 | G33: Antioquia | H33: Angelópolis | I33: 5.36.1 | K33: 1 | Q33: 0 | R33: 0 | S33: 0 | T33: 0 | U33: 0 | V33: 0
F34: 9 | G34: Antioquia | H34: Angostura | I34: 5.38.1 | K34: 1 | Q34: 0 | R34: 0 | S34: 0 | T34: 0 | U34: 0 | V34: 0
F35: 10 | G35: Antioquia | H35: Anorí | I35: 5.40.1 | K35: 1 | Q35: 0 | R35: 0 | S35: 0 | T35: 0 | U35: 0 | V35: 0
F36: 11 | G36: Antioquia | H36: Santafé de Antioquia | I36: 5.42.1 | K36: 1 | Q36: =$K36*ROUND(INDEX(l.accesos,$F36,Q$6)*INDEX(l.mun.fo,$F36),0)/p.ont.per.line*(INDEX(l.tipo.n,$F36)>0) -> 0 | R36: 0 | S36: 0 | T36: 0 | U36: 0 | V36: 0
F37: 12 | G37: Antioquia | H37: Anza | I37: 5.44.1 | K37: 1 | Q37: 0 | R37: 0 | S37: 0 | T37: 0 | U37: 0 | V37: 0
F38: 13 | G38: Antioquia | H38: Apartadó | I38: 5.45.1 | K38: 1 | Q38: 0 | R38: 0 | S38: 0 | T38: 0 | U38: 0 | V38: 0
F39: 14 | G39: Antioquia | H39: Arboletes | I39: 5.51.1 | K39: 1 | Q39: 0 | R39: 0 | S39: 0 | T39: 0 | U39: 0 | V39: 0
F40: 15 | G40: Antioquia | H40: Argelia | I40: 5.55.1 | K40: 1 | Q40: 0 | R40: 0 | S40: 0 | T40: 0 | U40: 0 | V40: 0
F41: 16 | G41: Antioquia | H41: Armenia | I41: 5.59.1 | K41: 1 | Q41: 0 | R41: 0 | S41: 0 | T41: 0 | U41: 0 | V41: 0
F42: 17 | G42: Antioquia | H42: Barbosa | I42: 5.79.1 | K42: 1 | Q42: 0 | R42: 0 | S42: 0 | T42: 0 | U42: 0 | V42: 0
F43: 18 | G43: Antioquia | H43: Belmira | I43: 5.86.1 | K43: 1 | Q43: 0 | R43: 0 | S43: 0 | T43: 0 | U43: 0 | V43: 0
F44: 19 | G44: Antioquia | H44: Bello | I44: 5.88.1 | K44: 1 | Q44: 0 | R44: 0 | S44: 0 | T44: 0 | U44: 0 | V44: 0
F45: 20 | G45: Antioquia | H45: Betania | I45: 5.91.1 | K45: 1 | Q45: 0 | R45: 0 | S45: 0 | T45: 0 | U45: 0 | V45: 0
F46: 21 | G46: Antioquia | H46: Betulia | I46: 5.93.1 | K46: 1 | Q46: =$K46*ROUND(INDEX(l.accesos,$F46,Q$6)*INDEX(l.mun.fo,$F46),0)/p.ont.per.line*(INDEX(l.tipo.n,$F46)>0) -> 0 | R46: 0 | S46: 0 | T46: 0 | U46: 0 | V46: 0
F47: 22 | G47: Antioquia | H47: Ciudad Bolívar | I47: 5.101.1 | K47: 1 | Q47: 0 | R47: 0 | S47: 0 | T47: 0 | U47: 0 | V47: 0
F48: 23 | G48: Antioquia | H48: Briceño | I48: 5.107.1 | K48: 1 | Q48: 0 | R48: 0 | S48: 0 | T48: 0 | U48: 0 | V48: 0
F49: 24 | G49: Antioquia | H49: Buriticá | I49: 5.113.1 | K49: 1 | Q49: 0 | R49: 0 | S49: 0 | T49: 0 | U49: 0 | V49: 0
F50: 25 | G50: Antioquia | H50: Cáceres | I50: 5.120.1 | K50: 1 | Q50: 0 | R50: 0 | S50: 0 | T50: 0 | U50: 0 | V50: 0
F51: 26 | G51: Antioquia | H51: Caicedo | I51: 5.125.1 | K51: 1 | Q51: 0 | R51: 0 | S51: 0 | T51: 0 | U51: 0 | V51: 0
F52: 27 | G52: Antioquia | H52: Caldas | I52: 5.129.1 | K52: 1 | Q52: 0 | R52: 0 | S52: 0 | T52: 0 | U52: 0 | V52: 0
F53: 28 | G53: Antioquia | H53: Campamento | I53: 5.134.1 | K53: 1 | Q53: 0 | R53: 0 | S53: 0 | T53: 0 | U53: 0 | V53: 0
F54: 29 | G54: Antioquia | H54: Cañasgordas | I54: 5.138.1 | K54: 1 | Q54: 0 | R54: 0 | S54: 0 | T54: 0 | U54: 0 | V54: 0
F55: 30 | G55: Antioquia | H55: Caracolí | I55: 5.142.1 | K55: 1 | Q55: 0 | R55: 0 | S55: 0 | T55: 0 | U55: 0 | V55: 0
F56: 31 | G56: Antioquia | H56: Caramanta | I56: 5.145.1 | K56: 1 | Q56: =$K56*ROUND(INDEX(l.accesos,$F56,Q$6)*INDEX(l.mun.fo,$F56),0)/p.ont.per.line*(INDEX(l.tipo.n,$F56)>0) -> 0 | R56: 0 | S56: 0 | T56: 0 | U56: 0 | V56: 0
F57: 32 | G57: Antioquia | H57: Carepa | I57: 5.147.1 | K57: 1 | Q57: 0 | R57: 0 | S57: 0 | T57: 0 | U57: 0 | V57: 0
F58: 33 | G58: Antioquia | H58: El Carmen de Viboral | I58: 5.148.1 | K58: 1 | Q58: 0 | R58: 0 | S58: 0 | T58: 0 | U58: 0 | V58: 0
F59: 34 | G59: Antioquia | H59: Carolina | I59: 5.150.1 | K59: 1 | Q59: 0 | R59: 0 | S59: 0 | T59: 0 | U59: 0 | V59: 0
F60: 35 | G60: Antioquia | H60: Caucasia | I60: 5.154.1 | K60: 1 | Q60: 0 | R60: 0 | S60: 0 | T60: 0 | U60: 0 | V60: 0
F61: 36 | G61: Antioquia | H61: Chigorodó | I61: 5.172.1 | K61: 1 | Q61: 0 | R61: 0 | S61: 0 | T61: 0 | U61: 0 | V61: 0
F62: 37 | G62: Antioquia | H62: Cisneros | I62: 5.190.1 | K62: 1 | Q62: 0 | R62: 0 | S62: 0 | T62: 0 | U62: 0 | V62: 0
F63: 38 | G63: Antioquia | H63: Cocorná | I63: 5.197.1 | K63: 1 | Q63: 0 | R63: 0 | S63: 0 | T63: 0 | U63: 0 | V63: 0
F64: 39 | G64: Antioquia | H64: Concepción | I64: 5.206.1 | K64: 1 | Q64: 0 | R64: 0 | S64: 0 | T64: 0 | U64: 0 | V64: 0
F65: 40 | G65: Antioquia | H65: Concordia | I65: 5.209.1 | K65: 1 | Q65: 0 | R65: 0 | S65: 0 | T65: 0 | U65: 0 | V65: 0
F66: 41 | G66: Antioquia | H66: Copacabana | I66: 5.212.1 | K66: 1 | Q66: =$K66*ROUND(INDEX(l.accesos,$F66,Q$6)*INDEX(l.mun.fo,$F66),0)/p.ont.per.line*(INDEX(l.tipo.n,$F66)>0) -> 0 | R66: 0 | S66: 0 | T66: 0 | U66: 0 | V66: 0
F67: 42 | G67: Antioquia | H67: Dabeiba | I67: 5.234.1 | K67: 1 | Q67: 0 | R67: 0 | S67: 0 | T67: 0 | U67: 0 | V67: 0
F68: 43 | G68: Antioquia | H68: Don Matías | I68: 5.237.1 | K68: 1 | Q68: 0 | R68: 0 | S68: 0 | T68: 0 | U68: 0 | V68: 0
F69: 44 | G69: Antioquia | H69: Ebéjico | I69: 5.240.1 | K69: 1 | Q69: 0 | R69: 0 | S69: 0 | T69: 0 | U69: 0 | V69: 0
F70: 45 | G70: Antioquia | H70: El Bagre | I70: 5.250.1 | K70: 1 | Q70: 0 | R70: 0 | S70: 0 | T70: 0 | U70: 0 | V70: 0
F71: 46 | G71: Antioquia | H71: Entrerrios | I71: 5.264.1 | K71: 1 | Q71: 0 | R71: 0 | S71: 0 | T71: 0 | U71: 0 | V71: 0
F72: 47 | G72: Antioquia | H72: Envigado | I72: 5.266.1 | K72: 1 | Q72: 0 | R72: 0 | S72: 0 | T72: 0 | U72: 0 | V72: 0
F73: 48 | G73: Antioquia | H73: Fredonia | I73: 5.282.1 | K73: 1 | Q73: 0 | R73: 0 | S73: 0 | T73: 0 | U73: 0 | V73: 0
F74: 49 | G74: Antioquia | H74: Frontino | I74: 5.284.1 | K74: 1 | Q74: 0 | R74: 0 | S74: 0 | T74: 0 | U74: 0 | V74: 0
F75: 50 | G75: Antioquia | H75: Giraldo | I75: 5.306.1 | K75: 1 | Q75: 0 | R75: 0 | S75: 0 | T75: 0 | U75: 0 | V75: 0
F76: 51 | G76: Antioquia | H76: Girardota | I76: 5.308.1 | K76: 1 | Q76: =$K76*ROUND(INDEX(l.accesos,$F76,Q$6)*INDEX(l.mun.fo,$F76),0)/p.ont.per.line*(INDEX(l.tipo.n,$F76)>0) -> 0 | R76: 0 | S76: 0 | T76: 0 | U76: 0 | V76: 0
F77: 52 | G77: Antioquia | H77: Gómez Plata | I77: 5.310.1 | K77: 1 | Q77: 0 | R77: 0 | S77: 0 | T77: 0 | U77: 0 | V77: 0
F78: 53 | G78: Antioquia | H78: Granada | I78: 5.313.1 | K78: 1 | Q78: 0 | R78: 0 | S78: 0 | T78: 0 | U78: 0 | V78: 0
F79: 54 | G79: Antioquia | H79: Guadalupe | I79: 5.315.1 | K79: 1 | Q79: 0 | R79: 0 | S79: 0 | T79: 0 | U79: 0 | V79: 0
F80: 55 | G80: Antioquia | H80: Guarne | I80: 5.318.1 | K80: 1 | Q80: 0 | R80: 0 | S80: 0 | T80: 0 | U80: 0 | V80: 0
F81: 56 | G81: Antioquia | H81: Guatapé | I81: 5.321.1 | K81: 1 | Q81: 0 | R81: 0 | S81: 0 | T81: 0 | U81: 0 | V81: 0
F82: 57 | G82: Antioquia | H82: Heliconia | I82: 5.347.1 | K82: 1 | Q82: 0 | R82: 0 | S82: 0 | T82: 0 | U82: 0 | V82: 0
F83: 58 | G83: Antioquia | H83: Hispania | I83: 5.353.1 | K83: 1 | Q83: 0 | R83: 0 | S83: 0 | T83: 0 | U83: 0 | V83: 0
F84: 59 | G84: Antioquia | H84: Itagui | I84: 5.360.1 | K84: 1 | Q84: 0 | R84: 0 | S84: 0 | T84: 0 | U84: 0 | V84: 0
F85: 60 | G85: Antioquia | H85: Ituango | I85: 5.361.1 | K85: 1 | Q85: 0 | R85: 0 | S85: 0 | T85: 0 | U85: 0 | V85: 0
F86: 61 | G86: Antioquia | H86: Jardín | I86: 5.364.1 | K86: 1 | Q86: =$K86*ROUND(INDEX(l.accesos,$F86,Q$6)*INDEX(l.mun.fo,$F86),0)/p.ont.per.line*(INDEX(l.tipo.n,$F86)>0) -> 0 | R86: 0 | S86: 0 | T86: 0 | U86: 0 | V86: 0
F87: 62 | G87: Antioquia | H87: Jericó | I87: 5.368.1 | K87: 1 | Q87: 0 | R87: 0 | S87: 0 | T87: 0 | U87: 0 | V87: 0
F88: 63 | G88: Antioquia | H88: La Ceja | I88: 5.376.1 | K88: 1 | Q88: 0 | R88: 0 | S88: 0 | T88: 0 | U88: 0 | V88: 0
F89: 64 | G89: Antioquia | H89: La Estrella | I89: 5.380.1 | K89: 1 | Q89: 0 | R89: 0 | S89: 0 | T89: 0 | U89: 0 | V89: 0
F90: 65 | G90: =INDEX(l.dda.nom.dpto,F90) -> Antioquia | H90: =INDEX(l.dda.nom.zce,F90) -> La Pintada | I90: =INDEX(l.dda.cod.uni,F90) -> 5.390.1 | K90: 1 | Q90: 0 | R90: 0 | S90: 0 | T90: 0 | U90: 0 | V90: 0
F91: =F90+1 -> 66 | G91: Antioquia | H91: La Unión | I91: 5.400.1 | K91: 1 | Q91: 0 | R91: 0 | S91: 0 | T91: 0 | U91: 0 | V91: 0
F92: 67 | G92: Antioquia | H92: Liborina | I92: 5.411.1 | K92: 1 | Q92: 0 | R92: 0 | S92: 0 | T92: 0 | U92: 0 | V92: 0
F93: 68 | G93: Antioquia | H93: Maceo | I93: 5.425.1 | K93: 1 | Q93: 0 | R93: 0 | S93: 0 | T93: 0 | U93: 0 | V93: 0
F94: 69 | G94: Antioquia | H94: Marinilla | I94: 5.440.1 | K94: 1 | Q94: 0 | R94: 0 | S94: 0 | T94: 0 | U94: 0 | V94: 0
F95: 70 | G95: Antioquia | H95: Montebello | I95: 5.467.1 | K95: 1 | Q95: 0 | R95: 0 | S95: 0 | T95: 0 | U95: 0 | V95: 0
F96: 71 | G96: Antioquia | H96: Murindó | I96: 5.475.1 | K96: 1 | Q96: =$K96*ROUND(INDEX(l.accesos,$F96,Q$6)*INDEX(l.mun.fo,$F96),0)/p.ont.per.line*(INDEX(l.tipo.n,$F96)>0) -> 0 | R96: 0 | S96: 0 | T96: 0 | U96: 0 | V96: 0
F97: 72 | G97: Antioquia | H97: Mutatá | I97: 5.480.1 | K97: 1 | Q97: 0 | R97: 0 | S97: 0 | T97: 0 | U97: 0 | V97: 0
F98: 73 | G98: Antioquia | H98: Nariño | I98: 5.483.1 | K98: 1 | Q98: 0 | R98: 0 | S98: 0 | T98: 0 | U98: 0 | V98: 0
F99: 74 | G99: Antioquia | H99: Necoclí | I99: 5.490.1 | K99: 1 | Q99: 0 | R99: 0 | S99: 0 | T99: 0 | U99: 0 | V99: 0
F100: 75 | G100: Antioquia | H100: Nechí | I100: 5.495.1 | K100: 1 | Q100: 0 | R100: 0 | S100: 0 | T100: 0 | U100: 0 | V100: 0
F101: 76 | G101: Antioquia | H101: Olaya | I101: 5.501.1 | K101: 1 | Q101: 0 | R101: 0 | S101: 0 | T101: 0 | U101: 0 | V101: 0
F102: 77 | G102: Antioquia | H102: Peñol | I102: 5.541.1 | K102: 1 | Q102: 0 | R102: 0 | S102: 0 | T102: 0 | U102: 0 | V102: 0
F103: 78 | G103: Antioquia | H103: Peque | I103: 5.543.1 | K103: 1 | Q103: 0 | R103: 0 | S103: 0 | T103: 0 | U103: 0 | V103: 0
F104: 79 | G104: Antioquia | H104: Pueblorrico | I104: 5.576.1 | K104: 1 | Q104: 0 | R104: 0 | S104: 0 | T104: 0 | U104: 0 | V104: 0
F105: 80 | G105: Antioquia | H105: Puerto Berrío | I105: 5.579.1 | K105: 1 | Q105: 0 | R105: 0 | S105: 0 | T105: 0 | U105: 0 | V105: 0
F106: 81 | G106: Antioquia | H106: Puerto Nare | I106: 5.585.1 | K106: 1 | Q106: =$K106*ROUND(INDEX(l.accesos,$F106,Q$6)*INDEX(l.mun.fo,$F106),0)/p.ont.per.line*(INDEX(l.tipo.n,$F106)>0) -> 0 | R106: 0 | S106: 0 | T106: 0 | U106: 0 | V106: 0
F107: 82 | G107: Antioquia | H107: Puerto Triunfo | I107: 5.591.1 | K107: 1 | Q107: 0 | R107: 0 | S107: 0 | T107: 0 | U107: 0 | V107: 0
F108: 83 | G108: Antioquia | H108: Remedios | I108: 5.604.1 | K108: 1 | Q108: 0 | R108: 0 | S108: 0 | T108: 0 | U108: 0 | V108: 0
F109: 84 | G109: Antioquia | H109: Retiro | I109: 5.607.1 | K109: 1 | Q109: 0 | R109: 0 | S109: 0 | T109: 0 | U109: 0 | V109: 0
F110: 85 | G110: Antioquia | H110: Rionegro | I110: 5.615.1 | K110: 1 | Q110: 0 | R110: 0 | S110: 0 | T110: 0 | U110: 0 | V110: 0
F111: 86 | G111: Antioquia | H111: Sabanalarga | I111: 5.628.1 | K111: 1 | Q111: 0 | R111: 0 | S111: 0 | T111: 0 | U111: 0 | V111: 0
F112: 87 | G112: Antioquia | H112: Sabaneta | I112: 5.631.1 | K112: 1 | Q112: 0 | R112: 0 | S112: 0 | T112: 0 | U112: 0 | V112: 0
F113: 88 | G113: Antioquia | H113: Salgar | I113: 5.642.1 | K113: 1 | Q113: 0 | R113: 0 | S113: 0 | T113: 0 | U113: 0 | V113: 0
F114: 89 | G114: Antioquia | H114: San Andrés de Cuerquía | I114: 5.647.1 | K114: 1 | Q114: 0 | R114: 0 | S114: 0 | T114: 0 | U114: 0 | V114: 0
F115: 90 | G115: Antioquia | H115: San Carlos | I115: 5.649.1 | K115: 1 | Q115: 0 | R115: 0 | S115: 0 | T115: 0 | U115: 0 | V115: 0
F116: 91 | G116: Antioquia | H116: San Francisco | I116: 5.652.1 | K116: 1 | Q116: =$K116*ROUND(INDEX(l.accesos,$F116,Q$6)*INDEX(l.mun.fo,$F116),0)/p.ont.per.line*(INDEX(l.tipo.n,$F116)>0) -> 0 | R116: 0 | S116: 0 | T116: 0 | U116: 0 | V116: 0
F117: 92 | G117: Antioquia | H117: San Jerónimo | I117: 5.656.1 | K117: 1 | Q117: 0 | R117: 0 | S117: 0 | T117: 0 | U117: 0 | V117: 0
F118: 93 | G118: Antioquia | H118: San José de La Montaña | I118: 5.658.1 | K118: 1 | Q118: 0 | R118: 0 | S118: 0 | T118: 0 | U118: 0 | V118: 0
F119: 94 | G119: Antioquia | H119: San Juan de Urabá | I119: 5.659.1 | K119: 1 | Q119: 0 | R119: 0 | S119: 0 | T119: 0 | U119: 0 | V119: 0
F120: 95 | G120: Antioquia | H120: San Luis | I120: 5.660.1 | K120: 1 | Q120: 0 | R120: 0 | S120: 0 | T120: 0 | U120: 0 | V120: 0
F121: 96 | G121: Antioquia | H121: San Pedro | I121: 5.664.1 | K121: 1 | Q121: 0 | R121: 0 | S121: 0 | T121: 0 | U121: 0 | V121: 0
F122: 97 | G122: Antioquia | H122: San Pedro de Uraba | I122: 5.665.1 | K122: 1 | Q122: 0 | R122: 0 | S122: 0 | T122: 0 | U122: 0 | V122: 0
F123: 98 | G123: Antioquia | H123: San Rafael | I123: 5.667.1 | K123: 1 | Q123: 0 | R123: 0 | S123: 0 | T123: 0 | U123: 0 | V123: 0
F124: 99 | G124: Antioquia | H124: San Roque | I124: 5.670.1 | K124: 1 | Q124: 0 | R124: 0 | S124: 0 | T124: 0 | U124: 0 | V124: 0
F125: 100 | G125: Antioquia | H125: San Vicente | I125: 5.674.1 | K125: 1 | Q125: 0 | R125: 0 | S125: 0 | T125: 0 | U125: 0 | V125: 0
F126: 101 | G126: Antioquia | H126: Santa Bárbara | I126: 5.679.1 | K126: 1 | Q126: =$K126*ROUND(INDEX(l.accesos,$F126,Q$6)*INDEX(l.mun.fo,$F126),0)/p.ont.per.line*(INDEX(l.tipo.n,$F126)>0) -> 0 | R126: 0 | S126: 0 | T126: 0 | U126: 0 | V126: 0
F127: 102 | G127: Antioquia | H127: Santa Rosa de Osos | I127: 5.686.1 | K127: 1 | Q127: 0 | R127: 0 | S127: 0 | T127: 0 | U127: 0 | V127: 0
F128: 103 | G128: Antioquia | H128: Santo Domingo | I128: 5.690.1 | K128: 1 | Q128: 0 | R128: 0 | S128: 0 | T128: 0 | U128: 0 | V128: 0
F129: 104 | G129: Antioquia | H129: El Santuario | I129: 5.697.1 | K129: 1 | Q129: 0 | R129: 0 | S129: 0 | T129: 0 | U129: 0 | V129: 0
F130: 105 | G130: Antioquia | H130: Segovia | I130: 5.736.1 | K130: 1 | Q130: 0 | R130: 0 | S130: 0 | T130: 0 | U130: 0 | V130: 0
F131: 106 | G131: Antioquia | H131: Sonson | I131: 5.756.1 | K131: 1 | Q131: 0 | R131: 0 | S131: 0 | T131: 0 | U131: 0 | V131: 0
F132: 107 | G132: Antioquia | H132: Sopetrán | I132: 5.761.1 | K132: 1 | Q132: 0 | R132: 0 | S132: 0 | T132: 0 | U132: 0 | V132: 0
F133: 108 | G133: Antioquia | H133: Támesis | I133: 5.789.1 | K133: 1 | Q133: 0 | R133: 0 | S133: 0 | T133: 0 | U133: 0 | V133: 0
F134: 109 | G134: Antioquia | H134: Tarazá | I134: 5.790.1 | K134: 1 | Q134: 0 | R134: 0 | S134: 0 | T134: 0 | U134: 0 | V134: 0
F135: 110 | G135: Antioquia | H135: Tarso | I135: 5.792.1 | K135: 1 | Q135: 0 | R135: 0 | S135: 0 | T135: 0 | U135: 0 | V135: 0
F136: 111 | G136: Antioquia | H136: Titiribí | I136: 5.809.1 | K136: 1 | Q136: =$K136*ROUND(INDEX(l.accesos,$F136,Q$6)*INDEX(l.mun.fo,$F136),0)/p.ont.per.line*(INDEX(l.tipo.n,$F136)>0) -> 0 | R136: 0 | S136: 0 | T136: 0 | U136: 0 | V136: 0
F137: 112 | G137: Antioquia | H137: Toledo | I137: 5.819.1 | K137: 1 | Q137: 0 | R137: 0 | S137: 0 | T137: 0 | U137: 0 | V137: 0
F138: 113 | G138: Antioquia | H138: Turbo | I138: 5.837.1 | K138: 1 | Q138: 0 | R138: 0 | S138: 0 | T138: 0 | U138: 0 | V138: 0
F139: 114 | G139: Antioquia | H139: Uramita | I139: 5.842.1 | K139: 1 | Q139: 0 | R139: 0 | S139: 0 | T139: 0 | U139: 0 | V139: 0
F140: 115 | G140: Antioquia | H140: Urrao | I140: 5.847.1 | K140: 1 | Q140: 0 | R140: 0 | S140: 0 | T140: 0 | U140: 0 | V140: 0
F141: 116 | G141: Antioquia | H141: Valdivia | I141: 5.854.1 | K141: 1 | Q141: 0 | R141: 0 | S141: 0 | T141: 0 | U141: 0 | V141: 0
F142: 117 | G142: Antioquia | H142: Valparaíso | I142: 5.856.1 | K142: 1 | Q142: 0 | R142: 0 | S142: 0 | T142: 0 | U142: 0 | V142: 0
F143: 118 | G143: Antioquia | H143: Vegachí | I143: 5.858.1 | K143: 1 | Q143: 0 | R143: 0 | S143: 0 | T143: 0 | U143: 0 | V143: 0
F144: 119 | G144: Antioquia | H144: Venecia | I144: 5.861.1 | K144: 1 | Q144: 0 | R144: 0 | S144: 0 | T144: 0 | U144: 0 | V144: 0
F145: 120 | G145: Antioquia | H145: Vigía del Fuerte | I145: 5.873.1 | K145: 1 | Q145: 0 | R145: 0 | S145: 0 | T145: 0 | U145: 0 | V145: 0
F146: 121 | G146: Antioquia | H146: Yalí | I146: 5.885.1 | K146: 1 | Q146: =$K146*ROUND(INDEX(l.accesos,$F146,Q$6)*INDEX(l.mun.fo,$F146),0)/p.ont.per.line*(INDEX(l.tipo.n,$F146)>0) -> 0 | R146: 0 | S146: 0 | T146: 0 | U146: 0 | V146: 0
F147: 122 | G147: Antioquia | H147: Yarumal | I147: 5.887.1 | K147: 1 | Q147: 0 | R147: 0 | S147: 0 | T147: 0 | U147: 0 | V147: 0
F148: 123 | G148: Antioquia | H148: Yolombó | I148: 5.890.1 | K148: 1 | Q148: 0 | R148: 0 | S148: 0 | T148: 0 | U148: 0 | V148: 0
F149: 124 | G149: Antioquia | H149: Yondó | I149: 5.893.1 | K149: 1 | Q149: 0 | R149: 0 | S149: 0 | T149: 0 | U149: 0 | V149: 0
F150: 125 | G150: Antioquia | H150: Zaragoza | I150: 5.895.1 | K150: 1 | Q150: 0 | R150: 0 | S150: 0 | T150: 0 | U150: 0 | V150: 0
F151: 126 | G151: Atlántico | H151: Barranquilla | I151: 8.1.1 | K151: 1 | Q151: 0 | R151: 0 | S151: 0 | T151: 0 | U151: 0 | V151: 0
F152: 127 | G152: Atlántico | H152: Baranoa | I152: 8.78.1 | K152: 1 | Q152: 0 | R152: 0 | S152: 0 | T152: 0 | U152: 0 | V152: 0
F153: 128 | G153: Atlántico | H153: Campo de La Cruz | I153: 8.137.1 | K153: 1 | Q153: 0 | R153: 0 | S153: 0 | T153: 0 | U153: 0 | V153: 0
F154: 129 | G154: =INDEX(l.dda.nom.dpto,F154) -> Atlántico | H154: =INDEX(l.dda.nom.zce,F154) -> Candelaria | I154: =INDEX(l.dda.cod.uni,F154) -> 8.141.1 | K154: 1 | Q154: 0 | R154: 0 | S154: 0 | T154: 0 | U154: 0 | V154: 0
F155: =F154+1 -> 130 | G155: Atlántico | H155: Galapa | I155: 8.296.1 | K155: 1 | Q155: 0 | R155: 0 | S155: 0 | T155: 0 | U155: 0 | V155: 0
F156: 131 | G156: Atlántico | H156: Juan de Acosta | I156: 8.372.1 | K156: 1 | Q156: =$K156*ROUND(INDEX(l.accesos,$F156,Q$6)*INDEX(l.mun.fo,$F156),0)/p.ont.per.line*(INDEX(l.tipo.n,$F156)>0) -> 0 | R156: 0 | S156: 0 | T156: 0 | U156: 0 | V156: 0
F157: 132 | G157: Atlántico | H157: Luruaco | I157: 8.421.1 | K157: 1 | Q157: 0 | R157: 0 | S157: 0 | T157: 0 | U157: 0 | V157: 0
F158: 133 | G158: Atlántico | H158: Malambo | I158: 8.433.1 | K158: 1 | Q158: 0 | R158: 0 | S158: 0 | T158: 0 | U158: 0 | V158: 0
F159: 134 | G159: Atlántico | H159: Manatí | I159: 8.436.1 | K159: 1 | Q159: 0 | R159: 0 | S159: 0 | T159: 0 | U159: 0 | V159: 0
F160: 135 | G160: Atlántico | H160: Palmar de Varela | I160: 8.520.1 | K160: 1 | Q160: 0 | R160: 0 | S160: 0 | T160: 0 | U160: 0 | V160: 0
F161: 136 | G161: Atlántico | H161: Piojó | I161: 8.549.1 | K161: 1 | Q161: 0 | R161: 0 | S161: 0 | T161: 0 | U161: 0 | V161: 0
F162: 137 | G162: Atlántico | H162: Polonuevo | I162: 8.558.1 | K162: 1 | Q162: 0 | R162: 0 | S162: 0 | T162: 0 | U162: 0 | V162: 0
F163: 138 | G163: Atlántico | H163: Ponedera | I163: 8.560.1 | K163: 1 | Q163: 0 | R163: 0 | S163: 0 | T163: 0 | U163: 0 | V163: 0
F164: 139 | G164: Atlántico | H164: Puerto Colombia | I164: 8.573.1 | K164: 1 | Q164: 0 | R164: 0 | S164: 0 | T164: 0 | U164: 0 | V164: 0
F165: 140 | G165: Atlántico | H165: Repelón | I165: 8.606.1 | K165: 1 | Q165: 0 | R165: 0 | S165: 0 | T165: 0 | U165: 0 | V165: 0
F166: 141 | G166: Atlántico | H166: Sabanagrande | I166: 8.634.1 | K166: 1 | Q166: =$K166*ROUND(INDEX(l.accesos,$F166,Q$6)*INDEX(l.mun.fo,$F166),0)/p.ont.per.line*(INDEX(l.tipo.n,$F166)>0) -> 0 | R166: 0 | S166: 0 | T166: 0 | U166: 0 | V166: 0
F167: 142 | G167: Atlántico | H167: Sabanalarga | I167: 8.638.1 | K167: 1 | Q167: 0 | R167: 0 | S167: 0 | T167: 0 | U167: 0 | V167: 0
F168: 143 | G168: Atlántico | H168: Santa Lucía | I168: 8.675.1 | K168: 1 | Q168: 0 | R168: 0 | S168: 0 | T168: 0 | U168: 0 | V168: 0
F169: 144 | G169: Atlántico | H169: Santo Tomás | I169: 8.685.1 | K169: 1 | Q169: 0 | R169: 0 | S169: 0 | T169: 0 | U169: 0 | V169: 0
F170: 145 | G170: Atlántico | H170: Soledad | I170: 8.758.1 | K170: 1 | Q170: 0 | R170: 0 | S170: 0 | T170: 0 | U170: 0 | V170: 0
F171: 146 | G171: Atlántico | H171: Suan | I171: 8.770.1 | K171: 1 | Q171: 0 | R171: 0 | S171: 0 | T171: 0 | U171: 0 | V171: 0
F172: 147 | G172: Atlántico | H172: Tubará | I172: 8.832.1 | K172: 1 | Q172: 0 | R172: 0 | S172: 0 | T172: 0 | U172: 0 | V172: 0
F173: 148 | G173: Atlántico | H173: Usiacurí | I173: 8.849.1 | K173: 1 | Q173: 0 | R173: 0 | S173: 0 | T173: 0 | U173: 0 | V173: 0
F174: 149 | G174: Bogotá, D.C. | H174: Bogotá, D.C. | I174: 11.1.1 | K174: 1 | Q174: 0 | R174: 0 | S174: 0 | T174: 0 | U174: 0 | V174: 0
F175: 150 | G175: Bolívar | H175: Cartagena | I175: 13.1.1 | K175: 1 | Q175: 0 | R175: 0 | S175: 0 | T175: 0 | U175: 0 | V175: 0
F176: 151 | G176: Bolívar | H176: Achí | I176: 13.6.1 | K176: 1 | Q176: =$K176*ROUND(INDEX(l.accesos,$F176,Q$6)*INDEX(l.mun.fo,$F176),0)/p.ont.per.line*(INDEX(l.tipo.n,$F176)>0) -> 0 | R176: 0 | S176: 0 | T176: 0 | U176: 0 | V176: 0
F177: 152 | G177: Bolívar | H177: Altos del Rosario | I177: 13.30.1 | K177: 1 | Q177: 0 | R177: 0 | S177: 0 | T177: 0 | U177: 0 | V177: 0
F178: 153 | G178: Bolívar | H178: Arenal | I178: 13.42.1 | K178: 1 | Q178: 0 | R178: 0 | S178: 0 | T178: 0 | U178: 0 | V178: 0
F179: 154 | G179: Bolívar | H179: Arjona | I179: 13.52.1 | K179: 1 | Q179: 0 | R179: 0 | S179: 0 | T179: 0 | U179: 0 | V179: 0
F180: 155 | G180: Bolívar | H180: Arroyohondo | I180: 13.62.1 | K180: 1 | Q180: 0 | R180: 0 | S180: 0 | T180: 0 | U180: 0 | V180: 0
F181: 156 | G181: Bolívar | H181: Barranco de Loba | I181: 13.74.1 | K181: 1 | Q181: 0 | R181: 0 | S181: 0 | T181: 0 | U181: 0 | V181: 0
F182: 157 | G182: Bolívar | H182: Calamar | I182: 13.140.1 | K182: 1 | Q182: 0 | R182: 0 | S182: 0 | T182: 0 | U182: 0 | V182: 0
F183: 158 | G183: Bolívar | H183: Cantagallo | I183: 13.160.1 | K183: 1 | Q183: 0 | R183: 0 | S183: 0 | T183: 0 | U183: 0 | V183: 0
F184: 159 | G184: Bolívar | H184: Cicuco | I184: 13.188.1 | K184: 1 | Q184: 0 | R184: 0 | S184: 0 | T184: 0 | U184: 0 | V184: 0
F185: 160 | G185: Bolívar | H185: Córdoba | I185: 13.212.1 | K185: 1 | Q185: 0 | R185: 0 | S185: 0 | T185: 0 | U185: 0 | V185: 0
F186: 161 | G186: Bolívar | H186: Clemencia | I186: 13.222.1 | K186: 1 | Q186: =$K186*ROUND(INDEX(l.accesos,$F186,Q$6)*INDEX(l.mun.fo,$F186),0)/p.ont.per.line*(INDEX(l.tipo.n,$F186)>0) -> 0 | R186: 0 | S186: 0 | T186: 0 | U186: 0 | V186: 0
F187: 162 | G187: Bolívar | H187: El Carmen de Bolívar | I187: 13.244.1 | K187: 1 | Q187: 0 | R187: 0 | S187: 0 | T187: 0 | U187: 0 | V187: 0
F188: 163 | G188: Bolívar | H188: El Guamo | I188: 13.248.1 | K188: 1 | Q188: 0 | R188: 0 | S188: 0 | T188: 0 | U188: 0 | V188: 0
F189: 164 | G189: Bolívar | H189: El Peñón | I189: 13.268.1 | K189: 1 | Q189: 0 | R189: 0 | S189: 0 | T189: 0 | U189: 0 | V189: 0
F190: 165 | G190: Bolívar | H190: Hatillo de Loba | I190: 13.300.1 | K190: 1 | Q190: 0 | R190: 0 | S190: 0 | T190: 0 | U190: 0 | V190: 0
F191: 166 | G191: Bolívar | H191: Magangué | I191: 13.430.1 | K191: 1 | Q191: 0 | R191: 0 | S191: 0 | T191: 0 | U191: 0 | V191: 0
F192: 167 | G192: Bolívar | H192: Mahates | I192: 13.433.1 | K192: 1 | Q192: 0 | R192: 0 | S192: 0 | T192: 0 | U192: 0 | V192: 0
F193: 168 | G193: Bolívar | H193: Margarita | I193: 13.440.1 | K193: 1 | Q193: 0 | R193: 0 | S193: 0 | T193: 0 | U193: 0 | V193: 0
F194: 169 | G194: Bolívar | H194: María La Baja | I194: 13.442.1 | K194: 1 | Q194: 0 | R194: 0 | S194: 0 | T194: 0 | U194: 0 | V194: 0
F195: 170 | G195: Bolívar | H195: Montecristo | I195: 13.458.1 | K195: 1 | Q195: 0 | R195: 0 | S195: 0 | T195: 0 | U195: 0 | V195: 0
F196: 171 | G196: Bolívar | H196: Mompós | I196: 13.468.1 | K196: 1 | Q196: =$K196*ROUND(INDEX(l.accesos,$F196,Q$6)*INDEX(l.mun.fo,$F196),0)/p.ont.per.line*(INDEX(l.tipo.n,$F196)>0) -> 0 | R196: 0 | S196: 0 | T196: 0 | U196: 0 | V196: 0
F197: 172 | G197: Bolívar | H197: Morales | I197: 13.473.1 | K197: 1 | Q197: 0 | R197: 0 | S197: 0 | T197: 0 | U197: 0 | V197: 0
F198: 173 | G198: Bolívar | H198: Norosí (1) | I198: 13.490.1 | K198: 1 | Q198: 0 | R198: 0 | S198: 0 | T198: 0 | U198: 0 | V198: 0
F199: 174 | G199: Bolívar | H199: Pinillos | I199: 13.549.1 | K199: 1 | Q199: 0 | R199: 0 | S199: 0 | T199: 0 | U199: 0 | V199: 0
F200: 175 | G200: Bolívar | H200: Regidor | I200: 13.580.1 | K200: 1 | Q200: 0 | R200: 0 | S200: 0 | T200: 0 | U200: 0 | V200: 0
F201: 176 | G201: Bolívar | H201: Río Viejo (1)(3) | I201: 13.600.1 | K201: 1 | Q201: 0 | R201: 0 | S201: 0 | T201: 0 | U201: 0 | V201: 0
F202: 177 | G202: Bolívar | H202: San Cristóbal | I202: 13.620.1 | K202: 1 | Q202: 0 | R202: 0 | S202: 0 | T202: 0 | U202: 0 | V202: 0
F203: 178 | G203: Bolívar | H203: San Estanislao | I203: 13.647.1 | K203: 1 | Q203: 0 | R203: 0 | S203: 0 | T203: 0 | U203: 0 | V203: 0
F204: 179 | G204: Bolívar | H204: San Fernando | I204: 13.650.1 | K204: 1 | Q204: 0 | R204: 0 | S204: 0 | T204: 0 | U204: 0 | V204: 0
F205: 180 | G205: Bolívar | H205: San Jacinto | I205: 13.654.1 | K205: 1 | Q205: 0 | R205: 0 | S205: 0 | T205: 0 | U205: 0 | V205: 0
F206: 181 | G206: Bolívar | H206: San Jacinto del Cauca | I206: 13.655.1 | K206: 1 | Q206: =$K206*ROUND(INDEX(l.accesos,$F206,Q$6)*INDEX(l.mun.fo,$F206),0)/p.ont.per.line*(INDEX(l.tipo.n,$F206)>0) -> 0 | R206: 0 | S206: 0 | T206: 0 | U206: 0 | V206: 0
F207: 182 | G207: Bolívar | H207: San Juan Nepomuceno | I207: 13.657.1 | K207: 1 | Q207: 0 | R207: 0 | S207: 0 | T207: 0 | U207: 0 | V207: 0
F208: 183 | G208: Bolívar | H208: San Martín de Loba | I208: 13.667.1 | K208: 1 | Q208: 0 | R208: 0 | S208: 0 | T208: 0 | U208: 0 | V208: 0
F209: 184 | G209: Bolívar | H209: San Pablo | I209: 13.670.1 | K209: 1 | Q209: 0 | R209: 0 | S209: 0 | T209: 0 | U209: 0 | V209: 0
F210: 185 | G210: Bolívar | H210: Santa Catalina | I210: 13.673.1 | K210: 1 | Q210: 0 | R210: 0 | S210: 0 | T210: 0 | U210: 0 | V210: 0
F211: 186 | G211: Bolívar | H211: Santa Rosa | I211: 13.683.1 | K211: 1 | Q211: 0 | R211: 0 | S211: 0 | T211: 0 | U211: 0 | V211: 0
... 4286 more rows

Sheet Dis.HFC
A1: Modelo Empresa Eficiente Fija
A2: Diseño de red HFC
B4: Parámetros HFC
C6: Drop network
F8: Ítem | K8: Euro | L8: USD
F9: CM - eMTA | J9: [USD/acceso] | K9: 100 | L9: =Parámetros!$F$11*K9 -> 105.4599998
F10: STB | J10: [USD/acceso] | K10: 100 | L10: =Parámetros!$F$11*K10 -> 105.4599998
F11: Lic. Software OSS | J11: [USD/acceso] | K11: 100 | L11: =Parámetros!$F$11*K11 -> 105.4599998 | N11: NOTA: Se puede emular el hecho que se cobra por costo fijo inicial.
N12: Costo fijo
F13: Total Drop network | J13: [USD/acceso] | K13: =SUM(L9:L11)*1-N13 -> 316.3799994 | L13: cunit.dropnetwork.elements | N13: =+SUM(L9:L11)*0 -> 0
C16: Red distribución
F18: Ítem | K18: Euro | L18: USD | M18: 1 per X user | N18: costo/x.user
F19: Nodo óptico | K19: 100 | L19: =Parámetros!$F$11*K19 -> 105.4599998 | M19: 10 | N19: =L19/M19 -> 10.54599998
F20: Cabinet joint | K20: 100 | L20: =Parámetros!$F$11*K20 -> 105.4599998 | M20: 10 | N20: 10.54599998
F21: Amplificador (dist.) | K21: 100 | L21: =Parámetros!$F$11*K21 -> 105.4599998 | M21: 10 | N21: 10.54599998
F22: Energía spliter 1:4 | K22: 100 | L22: =Parámetros!$F$11*K22 -> 105.4599998 | M22: 10 | N22: 10.54599998
F23: Energía spliter 1:8 | K23: 100 | L23: =Parámetros!$F$11*K23 -> 105.4599998 | M23: 10 | N23: 10.54599998
F24: Energía 1:16 | K24: 100 | L24: =Parámetros!$F$11*K24 -> 105.4599998 | M24: 10 | N24: 10.54599998
F25: Tap 8 | K25: 100 | L25: =Parámetros!$F$11*K25 -> 105.4599998 | M25: 10 | N25: 10.54599998
F27: Total distribución sin cables | J27: [USD/acceso] | K27: =SUM(N19:N25) -> 73.82199986 | L27: cunit.per.acceso.distribution.sin.cable
F29: Costo de la FO y el Coaxial | K29: [Euro/km] | L29: [USD/km] | N29: Normalizado a cuadricula 100
F30: 288 FO per km | K30: 100 | L30: =Parámetros!$F$11*K30 -> 105.4599998 | N30: 0.1
F31: 96 FO per km | K31: 100 | L31: =Parámetros!$F$11*K31 -> 105.4599998 | N31: 0.1
F32: 48 FO per km | K32: 100 | L32: =Parámetros!$F$11*K32 -> 105.4599998 | N32: 0.1
F33: 24 FO per km | K33: 100 | L33: =Parámetros!$F$11*K33 -> 105.4599998 | N33: 0.1
F34: 12 FO per km | K34: 100 | L34: =Parámetros!$F$11*K34 -> 105.4599998 | N34: 0.1
F35: 6 FO per km | K35: 100 | L35: =Parámetros!$F$11*K35 -> 105.4599998 | N35: 0.1
F36: 1 FO per km | K36: 100 | L36: =Parámetros!$F$11*K36 -> 105.4599998 | N36: 0.1
F38: Total | J38: [USD/km] | K38: =+SUMPRODUCT(L30:L36,N30:N36) -> 73.82199986 | L38: cunit.per.km.cable
F40: Costo canalización per km | J40: [USD/km] | K40: 100 | L40: 100 | M40: 100 | N40: cunit.per.km.canalización | P40: Nota: En base a 500 metros de canalización en triducto Pead. Incluye camara cada 500 metros . NO INCLUYE FO
F41: Costo apoyo en poste per km | J41: [USD/km/año] | K41: 100 | L41: 100 | M41: 100 | N41: cunit.per.km.per.año.poste | P41: =+M40*670 -> 67000
K43: Clúster 1 | L43: Clúster 2 | M43: Clúster 3
F44: Porcentaje de canalizado por cluster | K44: 0.1 | L44: 0.1 | M44: 0.1 | N44: porc.can.cluster
C47: Sitios técnicos
F49: Ítem | K49: Euro | L49: USD | M49: Cap Gbps | N49: costo/Gbps
F50: Equipo base | G50: Incluye: Rack (bastidor) + Sub-rack + Puerta RF | K50: 100 | L50: =Parámetros!$F$11*K50 -> 105.4599998 | M50: 10 | N50: =+L50/M50 -> 10.54599998
F51: QAM DOCSIS | K51: 100 | L51: =Parámetros!$F$11*K51 -> 105.4599998 | M51: 10 | N51: =+L51/M51 -> 10.54599998
F52: CMTS DOCSIS 3.0 | K52: 100 | L52: =Parámetros!$F$11*K52 -> 105.4599998 | M52: 10 | N52: =+L52/M52 -> 10.54599998
F53: Interfaz OLT | K53: 100 | L53: =Parámetros!$F$11*K53 -> 105.4599998
F54: Patchcord | K54: 100 | L54: =Parámetros!$F$11*K54 -> 105.4599998
F55: Transmisión | K55: 100 | L55: =Parámetros!$F$11*K55 -> 105.4599998
F56: Router (enlace CMTS para salir a transmisión) | K56: 100 | L56: =Parámetros!$F$11*K56 -> 105.4599998
K58: Principal
F59: Fijo por site | J59: [USD/site] | K59: =+SUM(L53:L56) -> 421.8399992 | L59: csite.elem.fijo
F60: Variable por site | J60: [USD/Gbps] | K60: =+SUM(N50:N52) -> 31.63799994 | L60: csite.elem.var
F61: Energía y clima por site (Planta+Batería+UPS,Grupo, Etc.) | J61: [USD/site] | K61: 100 | L61: csite.ex.cli.fijo
B63: Demanda de diseño
C65: Drop network: Accesos HFC
K67: 0 | L67: =+K67+1 -> 1 | M67: =+L67+1 -> 2 | N67: =+M67+1 -> 3 | O67: =+N67+1 -> 4 | P67: =+O67+1 -> 5
C68: Accesos totales empresa eficiente | J68: [Acceso] | K68: =TRANSPOSE(dda.acc.tot2) -> 1234.2 | L68: 1234.2 | M68: 1234.2 | N68: 1234.2 | O68: 1234.2 | P68: 1234.2
C70: Porcentaje
C71: id | D71: id DANE | E71: Departamento | F71: Municipio | K71: 0 | L71: =+K71+1 -> 1 | M71: =+L71+1 -> 2 | N71: =+M71+1 -> 3 | O71: =+N71+1 -> 4 | P71: =+O71+1 -> 5
C72: 1 | D72: 5001 | E72: Antioquia | F72: Medellín | J72: [%] | K72: =+porc.dist.acc.mun.proxy -> 0.0008912655971 | L72: 0.0008912655971 | M72: 0.0008912655971 | N72: 0.0008912655971 | O72: 0.0008912655971 | P72: 0.0008912655971
C73: 2 | D73: 5002 | E73: Antioquia | F73: Abejorral | J73: [%] | K73: 0.0008912655971 | L73: 0.0008912655971 | M73: 0.0008912655971 | N73: 0.0008912655971 | O73: 0.0008912655971 | P73: 0.0008912655971
C74: 3 | D74: 5004 | E74: Antioquia | F74: Abriaquí | J74: [%] | K74: 0.0008912655971 | L74: 0.0008912655971 | M74: 0.0008912655971 | N74: 0.0008912655971 | O74: 0.0008912655971 | P74: 0.0008912655971
C75: 4 | D75: 5021 | E75: Antioquia | F75: Alejandría | J75: [%] | K75: 0.0008912655971 | L75: 0.0008912655971 | M75: 0.0008912655971 | N75: 0.0008912655971 | O75: 0.0008912655971 | P75: 0.0008912655971
C76: 5 | D76: 5030 | E76: Antioquia | F76: Amagá | J76: [%] | K76: 0.0008912655971 | L76: 0.0008912655971 | M76: 0.0008912655971 | N76: 0.0008912655971 | O76: 0.0008912655971 | P76: 0.0008912655971
C77: 6 | D77: 5031 | E77: Antioquia | F77: Amalfi | J77: [%] | K77: 0.0008912655971 | L77: 0.0008912655971 | M77: 0.0008912655971 | N77: 0.0008912655971 | O77: 0.0008912655971 | P77: 0.0008912655971
C78: 7 | D78: 5034 | E78: Antioquia | F78: Andes | J78: [%] | K78: 0.0008912655971 | L78: 0.0008912655971 | M78: 0.0008912655971 | N78: 0.0008912655971 | O78: 0.0008912655971 | P78: 0.0008912655971
C79: 8 | D79: 5036 | E79: Antioquia | F79: Angelópolis | J79: [%] | K79: 0.0008912655971 | L79: 0.0008912655971 | M79: 0.0008912655971 | N79: 0.0008912655971 | O79: 0.0008912655971 | P79: 0.0008912655971
C80: 9 | D80: 5038 | E80: Antioquia | F80: Angostura | J80: [%] | K80: 0.0008912655971 | L80: 0.0008912655971 | M80: 0.0008912655971 | N80: 0.0008912655971 | O80: 0.0008912655971 | P80: 0.0008912655971
C81: 10 | D81: 5040 | E81: Antioquia | F81: Anorí | J81: [%] | K81: 0.0008912655971 | L81: 0.0008912655971 | M81: 0.0008912655971 | N81: 0.0008912655971 | O81: 0.0008912655971 | P81: 0.0008912655971
C82: 11 | D82: 5042 | E82: Antioquia | F82: Santafé de Antioquia | J82: [%] | K82: 0.0008912655971 | L82: 0.0008912655971 | M82: 0.0008912655971 | N82: 0.0008912655971 | O82: 0.0008912655971 | P82: 0.0008912655971
C83: 12 | D83: 5044 | E83: Antioquia | F83: Anza | J83: [%] | K83: 0.0008912655971 | L83: 0.0008912655971 | M83: 0.0008912655971 | N83: 0.0008912655971 | O83: 0.0008912655971 | P83: 0.0008912655971
C84: 13 | D84: 5045 | E84: Antioquia | F84: Apartadó | J84: [%] | K84: 0.0008912655971 | L84: 0.0008912655971 | M84: 0.0008912655971 | N84: 0.0008912655971 | O84: 0.0008912655971 | P84: 0.0008912655971
C85: 14 | D85: 5051 | E85: Antioquia | F85: Arboletes | J85: [%] | K85: 0.0008912655971 | L85: 0.0008912655971 | M85: 0.0008912655971 | N85: 0.0008912655971 | O85: 0.0008912655971 | P85: 0.0008912655971
C86: 15 | D86: 5055 | E86: Antioquia | F86: Argelia | J86: [%] | K86: 0.0008912655971 | L86: 0.0008912655971 | M86: 0.0008912655971 | N86: 0.0008912655971 | O86: 0.0008912655971 | P86: 0.0008912655971
C87: 16 | D87: 5059 | E87: Antioquia | F87: Armenia | J87: [%] | K87: 0.0008912655971 | L87: 0.0008912655971 | M87: 0.0008912655971 | N87: 0.0008912655971 | O87: 0.0008912655971 | P87: 0.0008912655971
C88: 17 | D88: 5079 | E88: Antioquia | F88: Barbosa | J88: [%] | K88: 0.0008912655971 | L88: 0.0008912655971 | M88: 0.0008912655971 | N88: 0.0008912655971 | O88: 0.0008912655971 | P88: 0.0008912655971
C89: 18 | D89: 5086 | E89: Antioquia | F89: Belmira | J89: [%] | K89: 0.0008912655971 | L89: 0.0008912655971 | M89: 0.0008912655971 | N89: 0.0008912655971 | O89: 0.0008912655971 | P89: 0.0008912655971
C90: 19 | D90: 5088 | E90: Antioquia | F90: Bello | J90: [%] | K90: 0.0008912655971 | L90: 0.0008912655971 | M90: 0.0008912655971 | N90: 0.0008912655971 | O90: 0.0008912655971 | P90: 0.0008912655971
C91: 20 | D91: 5091 | E91: Antioquia | F91: Betania | J91: [%] | K91: 0.0008912655971 | L91: 0.0008912655971 | M91: 0.0008912655971 | N91: 0.0008912655971 | O91: 0.0008912655971 | P91: 0.0008912655971
C92: 21 | D92: 5093 | E92: Antioquia | F92: Betulia | J92: [%] | K92: 0.0008912655971 | L92: 0.0008912655971 | M92: 0.0008912655971 | N92: 0.0008912655971 | O92: 0.0008912655971 | P92: 0.0008912655971
C93: 22 | D93: 5101 | E93: Antioquia | F93: Ciudad Bolívar | J93: [%] | K93: 0.0008912655971 | L93: 0.0008912655971 | M93: 0.0008912655971 | N93: 0.0008912655971 | O93: 0.0008912655971 | P93: 0.0008912655971
C94: 23 | D94: 5107 | E94: Antioquia | F94: Briceño | J94: [%] | K94: 0.0008912655971 | L94: 0.0008912655971 | M94: 0.0008912655971 | N94: 0.0008912655971 | O94: 0.0008912655971 | P94: 0.0008912655971
C95: 24 | D95: 5113 | E95: Antioquia | F95: Buriticá | J95: [%] | K95: 0.0008912655971 | L95: 0.0008912655971 | M95: 0.0008912655971 | N95: 0.0008912655971 | O95: 0.0008912655971 | P95: 0.0008912655971
C96: 25 | D96: 5120 | E96: Antioquia | F96: Cáceres | J96: [%] | K96: 0.0008912655971 | L96: 0.0008912655971 | M96: 0.0008912655971 | N96: 0.0008912655971 | O96: 0.0008912655971 | P96: 0.0008912655971
C97: 26 | D97: 5125 | E97: Antioquia | F97: Caicedo | J97: [%] | K97: 0.0008912655971 | L97: 0.0008912655971 | M97: 0.0008912655971 | N97: 0.0008912655971 | O97: 0.0008912655971 | P97: 0.0008912655971
C98: 27 | D98: 5129 | E98: Antioquia | F98: Caldas | J98: [%] | K98: 0.0008912655971 | L98: 0.0008912655971 | M98: 0.0008912655971 | N98: 0.0008912655971 | O98: 0.0008912655971 | P98: 0.0008912655971
C99: 28 | D99: 5134 | E99: Antioquia | F99: Campamento | J99: [%] | K99: 0.0008912655971 | L99: 0.0008912655971 | M99: 0.0008912655971 | N99: 0.0008912655971 | O99: 0.0008912655971 | P99: 0.0008912655971
C100: 29 | D100: 5138 | E100: Antioquia | F100: Cañasgordas | J100: [%] | K100: 0.0008912655971 | L100: 0.0008912655971 | M100: 0.0008912655971 | N100: 0.0008912655971 | O100: 0.0008912655971 | P100: 0.0008912655971
C101: 30 | D101: 5142 | E101: Antioquia | F101: Caracolí | J101: [%] | K101: 0.0008912655971 | L101: 0.0008912655971 | M101: 0.0008912655971 | N101: 0.0008912655971 | O101: 0.0008912655971 | P101: 0.0008912655971
C102: 31 | D102: 5145 | E102: Antioquia | F102: Caramanta | J102: [%] | K102: 0.0008912655971 | L102: 0.0008912655971 | M102: 0.0008912655971 | N102: 0.0008912655971 | O102: 0.0008912655971 | P102: 0.0008912655971
C103: 32 | D103: 5147 | E103: Antioquia | F103: Carepa | J103: [%] | K103: 0.0008912655971 | L103: 0.0008912655971 | M103: 0.0008912655971 | N103: 0.0008912655971 | O103: 0.0008912655971 | P103: 0.0008912655971
C104: 33 | D104: 5148 | E104: Antioquia | F104: El Carmen de Viboral | J104: [%] | K104: 0.0008912655971 | L104: 0.0008912655971 | M104: 0.0008912655971 | N104: 0.0008912655971 | O104: 0.0008912655971 | P104: 0.0008912655971
C105: 34 | D105: 5150 | E105: Antioquia | F105: Carolina | J105: [%] | K105: 0.0008912655971 | L105: 0.0008912655971 | M105: 0.0008912655971 | N105: 0.0008912655971 | O105: 0.0008912655971 | P105: 0.0008912655971
C106: 35 | D106: 5154 | E106: Antioquia | F106: Caucasia | J106: [%] | K106: 0.0008912655971 | L106: 0.0008912655971 | M106: 0.0008912655971 | N106: 0.0008912655971 | O106: 0.0008912655971 | P106: 0.0008912655971
C107: 36 | D107: 5172 | E107: Antioquia | F107: Chigorodó | J107: [%] | K107: 0.0008912655971 | L107: 0.0008912655971 | M107: 0.0008912655971 | N107: 0.0008912655971 | O107: 0.0008912655971 | P107: 0.0008912655971
C108: 37 | D108: 5190 | E108: Antioquia | F108: Cisneros | J108: [%] | K108: 0.0008912655971 | L108: 0.0008912655971 | M108: 0.0008912655971 | N108: 0.0008912655971 | O108: 0.0008912655971 | P108: 0.0008912655971
C109: 38 | D109: 5197 | E109: Antioquia | F109: Cocorná | J109: [%] | K109: 0.0008912655971 | L109: 0.0008912655971 | M109: 0.0008912655971 | N109: 0.0008912655971 | O109: 0.0008912655971 | P109: 0.0008912655971
C110: 39 | D110: 5206 | E110: Antioquia | F110: Concepción | J110: [%] | K110: 0.0008912655971 | L110: 0.0008912655971 | M110: 0.0008912655971 | N110: 0.0008912655971 | O110: 0.0008912655971 | P110: 0.0008912655971
C111: 40 | D111: 5209 | E111: Antioquia | F111: Concordia | J111: [%] | K111: 0.0008912655971 | L111: 0.0008912655971 | M111: 0.0008912655971 | N111: 0.0008912655971 | O111: 0.0008912655971 | P111: 0.0008912655971
C112: 41 | D112: 5212 | E112: Antioquia | F112: Copacabana | J112: [%] | K112: 0.0008912655971 | L112: 0.0008912655971 | M112: 0.0008912655971 | N112: 0.0008912655971 | O112: 0.0008912655971 | P112: 0.0008912655971
C113: 42 | D113: 5234 | E113: Antioquia | F113: Dabeiba | J113: [%] | K113: 0.0008912655971 | L113: 0.0008912655971 | M113: 0.0008912655971 | N113: 0.0008912655971 | O113: 0.0008912655971 | P113: 0.0008912655971
C114: 43 | D114: 5237 | E114: Antioquia | F114: Don Matías | J114: [%] | K114: 0.0008912655971 | L114: 0.0008912655971 | M114: 0.0008912655971 | N114: 0.0008912655971 | O114: 0.0008912655971 | P114: 0.0008912655971
C115: 44 | D115: 5240 | E115: Antioquia | F115: Ebéjico | J115: [%] | K115: 0.0008912655971 | L115: 0.0008912655971 | M115: 0.0008912655971 | N115: 0.0008912655971 | O115: 0.0008912655971 | P115: 0.0008912655971
C116: 45 | D116: 5250 | E116: Antioquia | F116: El Bagre | J116: [%] | K116: 0.0008912655971 | L116: 0.0008912655971 | M116: 0.0008912655971 | N116: 0.0008912655971 | O116: 0.0008912655971 | P116: 0.0008912655971
C117: 46 | D117: 5264 | E117: Antioquia | F117: Entrerrios | J117: [%] | K117: 0.0008912655971 | L117: 0.0008912655971 | M117: 0.0008912655971 | N117: 0.0008912655971 | O117: 0.0008912655971 | P117: 0.0008912655971
C118: 47 | D118: 5266 | E118: Antioquia | F118: Envigado | J118: [%] | K118: 0.0008912655971 | L118: 0.0008912655971 | M118: 0.0008912655971 | N118: 0.0008912655971 | O118: 0.0008912655971 | P118: 0.0008912655971
C119: 48 | D119: 5282 | E119: Antioquia | F119: Fredonia | J119: [%] | K119: 0.0008912655971 | L119: 0.0008912655971 | M119: 0.0008912655971 | N119: 0.0008912655971 | O119: 0.0008912655971 | P119: 0.0008912655971
C120: 49 | D120: 5284 | E120: Antioquia | F120: Frontino | J120: [%] | K120: 0.0008912655971 | L120: 0.0008912655971 | M120: 0.0008912655971 | N120: 0.0008912655971 | O120: 0.0008912655971 | P120: 0.0008912655971
C121: 50 | D121: 5306 | E121: Antioquia | F121: Giraldo | J121: [%] | K121: 0.0008912655971 | L121: 0.0008912655971 | M121: 0.0008912655971 | N121: 0.0008912655971 | O121: 0.0008912655971 | P121: 0.0008912655971
C122: 51 | D122: 5308 | E122: Antioquia | F122: Girardota | J122: [%] | K122: 0.0008912655971 | L122: 0.0008912655971 | M122: 0.0008912655971 | N122: 0.0008912655971 | O122: 0.0008912655971 | P122: 0.0008912655971
C123: 52 | D123: 5310 | E123: Antioquia | F123: Gómez Plata | J123: [%] | K123: 0.0008912655971 | L123: 0.0008912655971 | M123: 0.0008912655971 | N123: 0.0008912655971 | O123: 0.0008912655971 | P123: 0.0008912655971
C124: 53 | D124: 5313 | E124: Antioquia | F124: Granada | J124: [%] | K124: 0.0008912655971 | L124: 0.0008912655971 | M124: 0.0008912655971 | N124: 0.0008912655971 | O124: 0.0008912655971 | P124: 0.0008912655971
C125: 54 | D125: 5315 | E125: Antioquia | F125: Guadalupe | J125: [%] | K125: 0.0008912655971 | L125: 0.0008912655971 | M125: 0.0008912655971 | N125: 0.0008912655971 | O125: 0.0008912655971 | P125: 0.0008912655971
C126: 55 | D126: 5318 | E126: Antioquia | F126: Guarne | J126: [%] | K126: 0.0008912655971 | L126: 0.0008912655971 | M126: 0.0008912655971 | N126: 0.0008912655971 | O126: 0.0008912655971 | P126: 0.0008912655971
C127: 56 | D127: 5321 | E127: Antioquia | F127: Guatapé | J127: [%] | K127: 0.0008912655971 | L127: 0.0008912655971 | M127: 0.0008912655971 | N127: 0.0008912655971 | O127: 0.0008912655971 | P127: 0.0008912655971
C128: 57 | D128: 5347 | E128: Antioquia | F128: Heliconia | J128: [%] | K128: 0.0008912655971 | L128: 0.0008912655971 | M128: 0.0008912655971 | N128: 0.0008912655971 | O128: 0.0008912655971 | P128: 0.0008912655971
C129: 58 | D129: 5353 | E129: Antioquia | F129: Hispania | J129: [%] | K129: 0.0008912655971 | L129: 0.0008912655971 | M129: 0.0008912655971 | N129: 0.0008912655971 | O129: 0.0008912655971 | P129: 0.0008912655971
C130: 59 | D130: 5360 | E130: Antioquia | F130: Itagui | J130: [%] | K130: 0.0008912655971 | L130: 0.0008912655971 | M130: 0.0008912655971 | N130: 0.0008912655971 | O130: 0.0008912655971 | P130: 0.0008912655971
C131: 60 | D131: 5361 | E131: Antioquia | F131: Ituango | J131: [%] | K131: 0.0008912655971 | L131: 0.0008912655971 | M131: 0.0008912655971 | N131: 0.0008912655971 | O131: 0.0008912655971 | P131: 0.0008912655971
C132: 61 | D132: 5364 | E132: Antioquia | F132: Jardín | J132: [%] | K132: 0.0008912655971 | L132: 0.0008912655971 | M132: 0.0008912655971 | N132: 0.0008912655971 | O132: 0.0008912655971 | P132: 0.0008912655971
C133: 62 | D133: 5368 | E133: Antioquia | F133: Jericó | J133: [%] | K133: 0.0008912655971 | L133: 0.0008912655971 | M133: 0.0008912655971 | N133: 0.0008912655971 | O133: 0.0008912655971 | P133: 0.0008912655971
C134: 63 | D134: 5376 | E134: Antioquia | F134: La Ceja | J134: [%] | K134: 0.0008912655971 | L134: 0.0008912655971 | M134: 0.0008912655971 | N134: 0.0008912655971 | O134: 0.0008912655971 | P134: 0.0008912655971
C135: 64 | D135: 5380 | E135: Antioquia | F135: La Estrella | J135: [%] | K135: 0.0008912655971 | L135: 0.0008912655971 | M135: 0.0008912655971 | N135: 0.0008912655971 | O135: 0.0008912655971 | P135: 0.0008912655971
C136: 65 | D136: 5390 | E136: Antioquia | F136: La Pintada | J136: [%] | K136: 0.0008912655971 | L136: 0.0008912655971 | M136: 0.0008912655971 | N136: 0.0008912655971 | O136: 0.0008912655971 | P136: 0.0008912655971
C137: 66 | D137: 5400 | E137: Antioquia | F137: La Unión | J137: [%] | K137: 0.0008912655971 | L137: 0.0008912655971 | M137: 0.0008912655971 | N137: 0.0008912655971 | O137: 0.0008912655971 | P137: 0.0008912655971
C138: 67 | D138: 5411 | E138: Antioquia | F138: Liborina | J138: [%] | K138: 0.0008912655971 | L138: 0.0008912655971 | M138: 0.0008912655971 | N138: 0.0008912655971 | O138: 0.0008912655971 | P138: 0.0008912655971
C139: 68 | D139: 5425 | E139: Antioquia | F139: Maceo | J139: [%] | K139: 0.0008912655971 | L139: 0.0008912655971 | M139: 0.0008912655971 | N139: 0.0008912655971 | O139: 0.0008912655971 | P139: 0.0008912655971
C140: 69 | D140: 5440 | E140: Antioquia | F140: Marinilla | J140: [%] | K140: 0.0008912655971 | L140: 0.0008912655971 | M140: 0.0008912655971 | N140: 0.0008912655971 | O140: 0.0008912655971 | P140: 0.0008912655971
C141: 70 | D141: 5467 | E141: Antioquia | F141: Montebello | J141: [%] | K141: 0.0008912655971 | L141: 0.0008912655971 | M141: 0.0008912655971 | N141: 0.0008912655971 | O141: 0.0008912655971 | P141: 0.0008912655971
C142: 71 | D142: 5475 | E142: Antioquia | F142: Murindó | J142: [%] | K142: 0.0008912655971 | L142: 0.0008912655971 | M142: 0.0008912655971 | N142: 0.0008912655971 | O142: 0.0008912655971 | P142: 0.0008912655971
C143: 72 | D143: 5480 | E143: Antioquia | F143: Mutatá | J143: [%] | K143: 0.0008912655971 | L143: 0.0008912655971 | M143: 0.0008912655971 | N143: 0.0008912655971 | O143: 0.0008912655971 | P143: 0.0008912655971
C144: 73 | D144: 5483 | E144: Antioquia | F144: Nariño | J144: [%] | K144: 0.0008912655971 | L144: 0.0008912655971 | M144: 0.0008912655971 | N144: 0.0008912655971 | O144: 0.0008912655971 | P144: 0.0008912655971
C145: 74 | D145: 5490 | E145: Antioquia | F145: Necoclí | J145: [%] | K145: 0.0008912655971 | L145: 0.0008912655971 | M145: 0.0008912655971 | N145: 0.0008912655971 | O145: 0.0008912655971 | P145: 0.0008912655971
C146: 75 | D146: 5495 | E146: Antioquia | F146: Nechí | J146: [%] | K146: 0.0008912655971 | L146: 0.0008912655971 | M146: 0.0008912655971 | N146: 0.0008912655971 | O146: 0.0008912655971 | P146: 0.0008912655971
C147: 76 | D147: 5501 | E147: Antioquia | F147: Olaya | J147: [%] | K147: 0.0008912655971 | L147: 0.0008912655971 | M147: 0.0008912655971 | N147: 0.0008912655971 | O147: 0.0008912655971 | P147: 0.0008912655971
C148: 77 | D148: 5541 | E148: Antioquia | F148: Peñol | J148: [%] | K148: 0.0008912655971 | L148: 0.0008912655971 | M148: 0.0008912655971 | N148: 0.0008912655971 | O148: 0.0008912655971 | P148: 0.0008912655971
C149: 78 | D149: 5543 | E149: Antioquia | F149: Peque | J149: [%] | K149: 0.0008912655971 | L149: 0.0008912655971 | M149: 0.0008912655971 | N149: 0.0008912655971 | O149: 0.0008912655971 | P149: 0.0008912655971
C150: 79 | D150: 5576 | E150: Antioquia | F150: Pueblorrico | J150: [%] | K150: 0.0008912655971 | L150: 0.0008912655971 | M150: 0.0008912655971 | N150: 0.0008912655971 | O150: 0.0008912655971 | P150: 0.0008912655971
C151: 80 | D151: 5579 | E151: Antioquia | F151: Puerto Berrío | J151: [%] | K151: 0.0008912655971 | L151: 0.0008912655971 | M151: 0.0008912655971 | N151: 0.0008912655971 | O151: 0.0008912655971 | P151: 0.0008912655971
C152: 81 | D152: 5585 | E152: Antioquia | F152: Puerto Nare | J152: [%] | K152: 0.0008912655971 | L152: 0.0008912655971 | M152: 0.0008912655971 | N152: 0.0008912655971 | O152: 0.0008912655971 | P152: 0.0008912655971
C153: 82 | D153: 5591 | E153: Antioquia | F153: Puerto Triunfo | J153: [%] | K153: 0.0008912655971 | L153: 0.0008912655971 | M153: 0.0008912655971 | N153: 0.0008912655971 | O153: 0.0008912655971 | P153: 0.0008912655971
C154: 83 | D154: 5604 | E154: Antioquia | F154: Remedios | J154: [%] | K154: 0.0008912655971 | L154: 0.0008912655971 | M154: 0.0008912655971 | N154: 0.0008912655971 | O154: 0.0008912655971 | P154: 0.0008912655971
C155: 84 | D155: 5607 | E155: Antioquia | F155: Retiro | J155: [%] | K155: 0.0008912655971 | L155: 0.0008912655971 | M155: 0.0008912655971 | N155: 0.0008912655971 | O155: 0.0008912655971 | P155: 0.0008912655971
C156: 85 | D156: 5615 | E156: Antioquia | F156: Rionegro | J156: [%] | K156: 0.0008912655971 | L156: 0.0008912655971 | M156: 0.0008912655971 | N156: 0.0008912655971 | O156: 0.0008912655971 | P156: 0.0008912655971
C157: 86 | D157: 5628 | E157: Antioquia | F157: Sabanalarga | J157: [%] | K157: 0.0008912655971 | L157: 0.0008912655971 | M157: 0.0008912655971 | N157: 0.0008912655971 | O157: 0.0008912655971 | P157: 0.0008912655971
C158: 87 | D158: 5631 | E158: Antioquia | F158: Sabaneta | J158: [%] | K158: 0.0008912655971 | L158: 0.0008912655971 | M158: 0.0008912655971 | N158: 0.0008912655971 | O158: 0.0008912655971 | P158: 0.0008912655971
C159: 88 | D159: 5642 | E159: Antioquia | F159: Salgar | J159: [%] | K159: 0.0008912655971 | L159: 0.0008912655971 | M159: 0.0008912655971 | N159: 0.0008912655971 | O159: 0.0008912655971 | P159: 0.0008912655971
C160: 89 | D160: 5647 | E160: Antioquia | F160: San Andrés de Cuerquía | J160: [%] | K160: 0.0008912655971 | L160: 0.0008912655971 | M160: 0.0008912655971 | N160: 0.0008912655971 | O160: 0.0008912655971 | P160: 0.0008912655971
C161: 90 | D161: 5649 | E161: Antioquia | F161: San Carlos | J161: [%] | K161: 0.0008912655971 | L161: 0.0008912655971 | M161: 0.0008912655971 | N161: 0.0008912655971 | O161: 0.0008912655971 | P161: 0.0008912655971
C162: 91 | D162: 5652 | E162: Antioquia | F162: San Francisco | J162: [%] | K162: 0.0008912655971 | L162: 0.0008912655971 | M162: 0.0008912655971 | N162: 0.0008912655971 | O162: 0.0008912655971 | P162: 0.0008912655971
C163: 92 | D163: 5656 | E163: Antioquia | F163: San Jerónimo | J163: [%] | K163: 0.0008912655971 | L163: 0.0008912655971 | M163: 0.0008912655971 | N163: 0.0008912655971 | O163: 0.0008912655971 | P163: 0.0008912655971
C164: 93 | D164: 5658 | E164: Antioquia | F164: San José de La Montaña | J164: [%] | K164: 0.0008912655971 | L164: 0.0008912655971 | M164: 0.0008912655971 | N164: 0.0008912655971 | O164: 0.0008912655971 | P164: 0.0008912655971
C165: 94 | D165: 5659 | E165: Antioquia | F165: San Juan de Urabá | J165: [%] | K165: 0.0008912655971 | L165: 0.0008912655971 | M165: 0.0008912655971 | N165: 0.0008912655971 | O165: 0.0008912655971 | P165: 0.0008912655971
C166: 95 | D166: 5660 | E166: Antioquia | F166: San Luis | J166: [%] | K166: 0.0008912655971 | L166: 0.0008912655971 | M166: 0.0008912655971 | N166: 0.0008912655971 | O166: 0.0008912655971 | P166: 0.0008912655971
C167: 96 | D167: 5664 | E167: Antioquia | F167: San Pedro | J167: [%] | K167: 0.0008912655971 | L167: 0.0008912655971 | M167: 0.0008912655971 | N167: 0.0008912655971 | O167: 0.0008912655971 | P167: 0.0008912655971
C168: 97 | D168: 5665 | E168: Antioquia | F168: San Pedro de Uraba | J168: [%] | K168: 0.0008912655971 | L168: 0.0008912655971 | M168: 0.0008912655971 | N168: 0.0008912655971 | O168: 0.0008912655971 | P168: 0.0008912655971
C169: 98 | D169: 5667 | E169: Antioquia | F169: San Rafael | J169: [%] | K169: 0.0008912655971 | L169: 0.0008912655971 | M169: 0.0008912655971 | N169: 0.0008912655971 | O169: 0.0008912655971 | P169: 0.0008912655971
C170: 99 | D170: 5670 | E170: Antioquia | F170: San Roque | J170: [%] | K170: 0.0008912655971 | L170: 0.0008912655971 | M170: 0.0008912655971 | N170: 0.0008912655971 | O170: 0.0008912655971 | P170: 0.0008912655971
C171: 100 | D171: 5674 | E171: Antioquia | F171: San Vicente | J171: [%] | K171: 0.0008912655971 | L171: 0.0008912655971 | M171: 0.0008912655971 | N171: 0.0008912655971 | O171: 0.0008912655971 | P171: 0.0008912655971
C172: 101 | D172: 5679 | E172: Antioquia | F172: Santa Bárbara | J172: [%] | K172: 0.0008912655971 | L172: 0.0008912655971 | M172: 0.0008912655971 | N172: 0.0008912655971 | O172: 0.0008912655971 | P172: 0.0008912655971
C173: 102 | D173: 5686 | E173: Antioquia | F173: Santa Rosa de Osos | J173: [%] | K173: 0.0008912655971 | L173: 0.0008912655971 | M173: 0.0008912655971 | N173: 0.0008912655971 | O173: 0.0008912655971 | P173: 0.0008912655971
C174: 103 | D174: 5690 | E174: Antioquia | F174: Santo Domingo | J174: [%] | K174: 0.0008912655971 | L174: 0.0008912655971 | M174: 0.0008912655971 | N174: 0.0008912655971 | O174: 0.0008912655971 | P174: 0.0008912655971
C175: 104 | D175: 5697 | E175: Antioquia | F175: El Santuario | J175: [%] | K175: 0.0008912655971 | L175: 0.0008912655971 | M175: 0.0008912655971 | N175: 0.0008912655971 | O175: 0.0008912655971 | P175: 0.0008912655971
C176: 105 | D176: 5736 | E176: Antioquia | F176: Segovia | J176: [%] | K176: 0.0008912655971 | L176: 0.0008912655971 | M176: 0.0008912655971 | N176: 0.0008912655971 | O176: 0.0008912655971 | P176: 0.0008912655971
C177: 106 | D177: 5756 | E177: Antioquia | F177: Sonson | J177: [%] | K177: 0.0008912655971 | L177: 0.0008912655971 | M177: 0.0008912655971 | N177: 0.0008912655971 | O177: 0.0008912655971 | P177: 0.0008912655971
C178: 107 | D178: 5761 | E178: Antioquia | F178: Sopetrán | J178: [%] | K178: 0.0008912655971 | L178: 0.0008912655971 | M178: 0.0008912655971 | N178: 0.0008912655971 | O178: 0.0008912655971 | P178: 0.0008912655971
C179: 108 | D179: 5789 | E179: Antioquia | F179: Támesis | J179: [%] | K179: 0.0008912655971 | L179: 0.0008912655971 | M179: 0.0008912655971 | N179: 0.0008912655971 | O179: 0.0008912655971 | P179: 0.0008912655971
C180: 109 | D180: 5790 | E180: Antioquia | F180: Tarazá | J180: [%] | K180: 0.0008912655971 | L180: 0.0008912655971 | M180: 0.0008912655971 | N180: 0.0008912655971 | O180: 0.0008912655971 | P180: 0.0008912655971
C181: 110 | D181: 5792 | E181: Antioquia | F181: Tarso | J181: [%] | K181: 0.0008912655971 | L181: 0.0008912655971 | M181: 0.0008912655971 | N181: 0.0008912655971 | O181: 0.0008912655971 | P181: 0.0008912655971
C182: 111 | D182: 5809 | E182: Antioquia | F182: Titiribí | J182: [%] | K182: 0.0008912655971 | L182: 0.0008912655971 | M182: 0.0008912655971 | N182: 0.0008912655971 | O182: 0.0008912655971 | P182: 0.0008912655971
C183: 112 | D183: 5819 | E183: Antioquia | F183: Toledo | J183: [%] | K183: 0.0008912655971 | L183: 0.0008912655971 | M183: 0.0008912655971 | N183: 0.0008912655971 | O183: 0.0008912655971 | P183: 0.0008912655971
C184: 113 | D184: 5837 | E184: Antioquia | F184: Turbo | J184: [%] | K184: 0.0008912655971 | L184: 0.0008912655971 | M184: 0.0008912655971 | N184: 0.0008912655971 | O184: 0.0008912655971 | P184: 0.0008912655971
C185: 114 | D185: 5842 | E185: Antioquia | F185: Uramita | J185: [%] | K185: 0.0008912655971 | L185: 0.0008912655971 | M185: 0.0008912655971 | N185: 0.0008912655971 | O185: 0.0008912655971 | P185: 0.0008912655971
C186: 115 | D186: 5847 | E186: Antioquia | F186: Urrao | J186: [%] | K186: 0.0008912655971 | L186: 0.0008912655971 | M186: 0.0008912655971 | N186: 0.0008912655971 | O186: 0.0008912655971 | P186: 0.0008912655971
C187: 116 | D187: 5854 | E187: Antioquia | F187: Valdivia | J187: [%] | K187: 0.0008912655971 | L187: 0.0008912655971 | M187: 0.0008912655971 | N187: 0.0008912655971 | O187: 0.0008912655971 | P187: 0.0008912655971
C188: 117 | D188: 5856 | E188: Antioquia | F188: Valparaíso | J188: [%] | K188: 0.0008912655971 | L188: 0.0008912655971 | M188: 0.0008912655971 | N188: 0.0008912655971 | O188: 0.0008912655971 | P188: 0.0008912655971
C189: 118 | D189: 5858 | E189: Antioquia | F189: Vegachí | J189: [%] | K189: 0.0008912655971 | L189: 0.0008912655971 | M189: 0.0008912655971 | N189: 0.0008912655971 | O189: 0.0008912655971 | P189: 0.0008912655971
C190: 119 | D190: 5861 | E190: Antioquia | F190: Venecia | J190: [%] | K190: 0.0008912655971 | L190: 0.0008912655971 | M190: 0.0008912655971 | N190: 0.0008912655971 | O190: 0.0008912655971 | P190: 0.0008912655971
C191: 120 | D191: 5873 | E191: Antioquia | F191: Vigía del Fuerte | J191: [%] | K191: 0.0008912655971 | L191: 0.0008912655971 | M191: 0.0008912655971 | N191: 0.0008912655971 | O191: 0.0008912655971 | P191: 0.0008912655971
C192: 121 | D192: 5885 | E192: Antioquia | F192: Yalí | J192: [%] | K192: 0.0008912655971 | L192: 0.0008912655971 | M192: 0.0008912655971 | N192: 0.0008912655971 | O192: 0.0008912655971 | P192: 0.0008912655971
C193: 122 | D193: 5887 | E193: Antioquia | F193: Yarumal | J193: [%] | K193: 0.0008912655971 | L193: 0.0008912655971 | M193: 0.0008912655971 | N193: 0.0008912655971 | O193: 0.0008912655971 | P193: 0.0008912655971
C194: 123 | D194: 5890 | E194: Antioquia | F194: Yolombó | J194: [%] | K194: 0.0008912655971 | L194: 0.0008912655971 | M194: 0.0008912655971 | N194: 0.0008912655971 | O194: 0.0008912655971 | P194: 0.0008912655971
C195: 124 | D195: 5893 | E195: Antioquia | F195: Yondó | J195: [%] | K195: 0.0008912655971 | L195: 0.0008912655971 | M195: 0.0008912655971 | N195: 0.0008912655971 | O195: 0.0008912655971 | P195: 0.0008912655971
C196: 125 | D196: 5895 | E196: Antioquia | F196: Zaragoza | J196: [%] | K196: 0.0008912655971 | L196: 0.0008912655971 | M196: 0.0008912655971 | N196: 0.0008912655971 | O196: 0.0008912655971 | P196: 0.0008912655971
C197: 126 | D197: 8001 | E197: Atlántico | F197: Barranquilla | J197: [%] | K197: 0.0008912655971 | L197: 0.0008912655971 | M197: 0.0008912655971 | N197: 0.0008912655971 | O197: 0.0008912655971 | P197: 0.0008912655971
C198: 127 | D198: 8078 | E198: Atlántico | F198: Baranoa | J198: [%] | K198: 0.0008912655971 | L198: 0.0008912655971 | M198: 0.0008912655971 | N198: 0.0008912655971 | O198: 0.0008912655971 | P198: 0.0008912655971
C199: 128 | D199: 8137 | E199: Atlántico | F199: Campo de La Cruz | J199: [%] | K199: 0.0008912655971 | L199: 0.0008912655971 | M199: 0.0008912655971 | N199: 0.0008912655971 | O199: 0.0008912655971 | P199: 0.0008912655971
C200: 129 | D200: 8141 | E200: Atlántico | F200: Candelaria | J200: [%] | K200: 0.0008912655971 | L200: 0.0008912655971 | M200: 0.0008912655971 | N200: 0.0008912655971 | O200: 0.0008912655971 | P200: 0.0008912655971
C201: 130 | D201: 8296 | E201: Atlántico | F201: Galapa | J201: [%] | K201: 0.0008912655971 | L201: 0.0008912655971 | M201: 0.0008912655971 | N201: 0.0008912655971 | O201: 0.0008912655971 | P201: 0.0008912655971
C202: 131 | D202: 8372 | E202: Atlántico | F202: Juan de Acosta | J202: [%] | K202: 0.0008912655971 | L202: 0.0008912655971 | M202: 0.0008912655971 | N202: 0.0008912655971 | O202: 0.0008912655971 | P202: 0.0008912655971
C203: 132 | D203: 8421 | E203: Atlántico | F203: Luruaco | J203: [%] | K203: 0.0008912655971 | L203: 0.0008912655971 | M203: 0.0008912655971 | N203: 0.0008912655971 | O203: 0.0008912655971 | P203: 0.0008912655971
C204: 133 | D204: 8433 | E204: Atlántico | F204: Malambo | J204: [%] | K204: 0.0008912655971 | L204: 0.0008912655971 | M204: 0.0008912655971 | N204: 0.0008912655971 | O204: 0.0008912655971 | P204: 0.0008912655971
C205: 134 | D205: 8436 | E205: Atlántico | F205: Manatí | J205: [%] | K205: 0.0008912655971 | L205: 0.0008912655971 | M205: 0.0008912655971 | N205: 0.0008912655971 | O205: 0.0008912655971 | P205: 0.0008912655971
C206: 135 | D206: 8520 | E206: Atlántico | F206: Palmar de Varela | J206: [%] | K206: 0.0008912655971 | L206: 0.0008912655971 | M206: 0.0008912655971 | N206: 0.0008912655971 | O206: 0.0008912655971 | P206: 0.0008912655971
C207: 136 | D207: 8549 | E207: Atlántico | F207: Piojó | J207: [%] | K207: 0.0008912655971 | L207: 0.0008912655971 | M207: 0.0008912655971 | N207: 0.0008912655971 | O207: 0.0008912655971 | P207: 0.0008912655971
C208: 137 | D208: 8558 | E208: Atlántico | F208: Polonuevo | J208: [%] | K208: 0.0008912655971 | L208: 0.0008912655971 | M208: 0.0008912655971 | N208: 0.0008912655971 | O208: 0.0008912655971 | P208: 0.0008912655971
C209: 138 | D209: 8560 | E209: Atlántico | F209: Ponedera | J209: [%] | K209: 0.0008912655971 | L209: 0.0008912655971 | M209: 0.0008912655971 | N209: 0.0008912655971 | O209: 0.0008912655971 | P209: 0.0008912655971
C210: 139 | D210: 8573 | E210: Atlántico | F210: Puerto Colombia | J210: [%] | K210: 0.0008912655971 | L210: 0.0008912655971 | M210: 0.0008912655971 | N210: 0.0008912655971 | O210: 0.0008912655971 | P210: 0.0008912655971
C211: 140 | D211: 8606 | E211: Atlántico | F211: Repelón | J211: [%] | K211: 0.0008912655971 | L211: 0.0008912655971 | M211: 0.0008912655971 | N211: 0.0008912655971 | O211: 0.0008912655971 | P211: 0.0008912655971
C212: 141 | D212: 8634 | E212: Atlántico | F212: Sabanagrande | J212: [%] | K212: 0.0008912655971 | L212: 0.0008912655971 | M212: 0.0008912655971 | N212: 0.0008912655971 | O212: 0.0008912655971 | P212: 0.0008912655971
C213: 142 | D213: 8638 | E213: Atlántico | F213: Sabanalarga | J213: [%] | K213: 0.0008912655971 | L213: 0.0008912655971 | M213: 0.0008912655971 | N213: 0.0008912655971 | O213: 0.0008912655971 | P213: 0.0008912655971
C214: 143 | D214: 8675 | E214: Atlántico | F214: Santa Lucía | J214: [%] | K214: 0.0008912655971 | L214: 0.0008912655971 | M214: 0.0008912655971 | N214: 0.0008912655971 | O214: 0.0008912655971 | P214: 0.0008912655971
C215: 144 | D215: 8685 | E215: Atlántico | F215: Santo Tomás | J215: [%] | K215: 0.0008912655971 | L215: 0.0008912655971 | M215: 0.0008912655971 | N215: 0.0008912655971 | O215: 0.0008912655971 | P215: 0.0008912655971
C216: 145 | D216: 8758 | E216: Atlántico | F216: Soledad | J216: [%] | K216: 0.0008912655971 | L216: 0.0008912655971 | M216: 0.0008912655971 | N216: 0.0008912655971 | O216: 0.0008912655971 | P216: 0.0008912655971
C217: 146 | D217: 8770 | E217: Atlántico | F217: Suan | J217: [%] | K217: 0.0008912655971 | L217: 0.0008912655971 | M217: 0.0008912655971 | N217: 0.0008912655971 | O217: 0.0008912655971 | P217: 0.0008912655971
C218: 147 | D218: 8832 | E218: Atlántico | F218: Tubará | J218: [%] | K218: 0.0008912655971 | L218: 0.0008912655971 | M218: 0.0008912655971 | N218: 0.0008912655971 | O218: 0.0008912655971 | P218: 0.0008912655971
C219: 148 | D219: 8849 | E219: Atlántico | F219: Usiacurí | J219: [%] | K219: 0.0008912655971 | L219: 0.0008912655971 | M219: 0.0008912655971 | N219: 0.0008912655971 | O219: 0.0008912655971 | P219: 0.0008912655971
... 4268 more rows

Sheet Dis.Red.Tx
A1: Modelo Empresa Eficiente Fija
A2: Diseño Red de Transmisión
B7: Transmisión Inter Urbana
C9: Matriz de Ruteo
G12: Tráfico | H12: Sentido | J12: TX inter Urbana | K12: CX | L12: ITX
G13: Local | H13: on | J13: 2 | K13: 1 | L13: 0
G14: Local | H14: out | J14: 1 | K14: 1 | L14: 1
G15: Local | H15: in | J15: 1 | K15: 1 | L15: 1
G16: Local Extendido | H16: on | J16: 2 | K16: 1 | L16: 0
G17: Local Extendido | H17: out | J17: 1 | K17: 1 | L17: 1
G18: Local Extendido | H18: in | J18: 1 | K18: 1 | L18: 1
G19: LDN | H19: on | J19: 2 | K19: 1 | L19: 0
G20: LDN | H20: out | J20: 1 | K20: 1 | L20: 1
G21: LDN | H21: in | J21: 1 | K21: 1 | L21: 1
G22: LDI | H22: out | J22: 1 | K22: 1 | L22: 1
G23: LDI | H23: in | J23: 1 | K23: 1 | L23: 1
G24: Movil | H24: out | J24: 1 | K24: 1 | L24: 1
G25: Movil | H25: in | J25: 1 | K25: 1 | L25: 1
J27: red.rf.tx
C29: Costos
D31: Fibra Optica
F33: DEFINICIONES
G34: Longitud del enlace | J34: Dato de entrada
G35: Rango distancia Km | J35: Deducido de la longitud del enlace | Q35: STM-1 = 8000 * (270 octetos * 9 filas * 8 bits)= 155 Mbps
G36: BW [Mbps] | J36: Dato de entrada : Deducido del tráfico telefonico que sale del área atendida por este enlace. | Q36: STM-4 = 4 * 8000 * (270 octetos * 9 filas * 8 bits)= 622 Mbps
G37: Equipos ópticos instalados por enlace | J37: Diferencia de costo de interfaces de distancia extendida respecto a las interfaces estándar | Q37: STM-16 = 16 * 8000 * (270 octetos * 9 filas * 8 bits)= 2.5 Gbps
G38: Costo fibra óptica aérea rural por Km | J38: Costo de cable de 8 fibras ópticas y postación para el 95% del enlace | Q38: STM-64 = 64 * 8000 * (270 octetos * 9 filas * 8 bits)= 10 Gbps
G39: Costo canalización para fibra óptica por Km | J39: Costo de canalización para fibra óptica ( 2P) para el 5% del enlace | Q39: STM-256 = 256 * 8000 * (270 octetos * 9 filas * 8 bits)= 40 Gbps
G40: Costo Cable de fibra óptica subterráneo por Km | J40: Costo de cable de fibra óptica de 8 fibras instalado en la canalización subterránea
V41: 1 | W41: 2 | X41: 3 | Y41: 4 | Z41: 5 | AA41: 6 | AB41: 7 | AC41: 8 | AE41: 1 | AF41: 2 | AG41: 3
F42: id | G42: descripción | H42: Distancia | I42: Factor | J42: Costo fibra óptica aérea rural por Km | K42: Costo canalización para fibra óptica por Km | L42: Costo Cable de fibra óptica subterráneo por Km | N42: id | O42: Velocidad | P42: Equipos ópticos instalados por enlace | V42: Distancia | W42: Factor | X42: Costo fibra óptica aérea rural por Km | Y42: Costo canalización para fibra óptica por Km | Z42: Costo Cable de fibra óptica subterráneo por Km | AA42: Costo fibra óptica aérea rural por Km | AB42: Costo canalización para fibra óptica por Km | AC42: Costo Cable de fibra óptica subterráneo por Km | AE42: Velocidad | AF42: Coste Eq enlace | AG42: Coste Eq enlace
I43: [#] | J43: [US$/km] | K43: [US$/km] | L43: [US$/km] | O43: [Mbps] | P43: [US$] | X43: Incremental | AA43: Base | AF43: Incremental | AG43: Base
F44: 1 | H44: 0 | I44: 1 | J44: 100 | K44: 100 | L44: 100 | N44: 1 | O44: 0 | P44: =P45 -> 100 | V44: 0 | AE44: 0 | AF44: 0
F45: 2 | G45: Enlace Óptico ( duplicado) Estándar | H45: 10 | I45: 1 | J45: 100 | K45: 100 | L45: 100 | N45: 2 | O45: =8000*270*9*8/1000000 -> 155.52 | P45: 100 | V45: =H44 -> 0 | W45: =(I45-I44)/($H45-$V45) -> 0 | X45: 0 | Y45: 0 | Z45: 0 | AA45: =J44 -> 100 | AB45: =K44 -> 100 | AC45: =L44 -> 100 | AE45: =O44 -> 0 | AF45: =(P45-P44)/($O45-$AE45) -> 0 | AG45: =P44 -> 100
F46: 3 | G46: Enlace Óptico ( duplicado) Medio | H46: 40 | I46: 2 | J46: 100 | K46: 100 | L46: 100 | N46: 3 | O46: =8000*270*9*8/1000000*4 -> 622.08 | P46: 100 | V46: 10 | W46: 0.03333333333 | X46: 0 | Y46: 0 | Z46: 0 | AA46: =J45 -> 100 | AB46: 100 | AC46: 100 | AE46: =O45 -> 155.52 | AF46: 0 | AG46: 100
F47: 4 | G47: Enlace Óptico ( duplicado) Largo | H47: 80 | I47: =I46*2 -> 4 | J47: 100 | K47: 100 | L47: 100 | N47: 4 | O47: =8000*270*9*8/1000000*16 -> 2488.32 | P47: 100 | V47: 40 | W47: 0.05 | X47: 0 | Y47: 0 | Z47: 0 | AA47: 100 | AB47: 100 | AC47: 100 | AE47: 622.08 | AF47: 0 | AG47: 100
F48: 5 | G48: Enlace Óptico ( duplicado) Largox2 | H48: =H47*2 -> 160 | I48: =I47*2 -> 8 | J48: 100 | K48: 100 | L48: 100 | N48: 5 | O48: =8000*270*9*8/1000000*16*2 -> 4976.64 | P48: 100 | V48: 80 | W48: 0.05 | X48: 0 | Y48: 0 | Z48: 0 | AA48: 100 | AB48: 100 | AC48: 100 | AE48: 2488.32 | AF48: 0 | AG48: 100
F49: 6 | G49: Enlace Óptico ( duplicado) Largox4 | H49: =H48*2 -> 320 | I49: =I48*2 -> 16 | J49: 100 | K49: 100 | L49: 100 | N49: 6 | O49: =O48*2 -> 9953.28 | P49: =P48+P45 -> 200 | V49: 160 | W49: 0.05 | X49: 0 | Y49: 0 | Z49: 0 | AA49: 100 | AB49: 100 | AC49: 100 | AE49: 4976.64 | AF49: 0.0200938786 | AG49: 100
F50: 7 | G50: Enlace Óptico ( duplicado) Largox8 | H50: =H49*2 -> 640 | I50: =I49*2 -> 32 | J50: 100 | K50: 100 | L50: 100 | N50: 7 | O50: 19906.56 | P50: =P49+P46 -> 300 | V50: 320 | W50: 0.05 | X50: 0 | Y50: 0 | Z50: 0 | AA50: 100 | AB50: 100 | AC50: 100 | AE50: 9953.28 | AF50: 0.0100469393 | AG50: 200
F51: 8 | G51: Enlace Óptico ( duplicado) Largox16 | H51: =H50*2 -> 1280 | I51: =I50*2 -> 64 | J51: 100 | K51: 100 | L51: 100 | N51: 8 | O51: 39813.12 | P51: =P50+$P$45 -> 400 | V51: 640 | W51: =(I51-I50)/($H51-$V51) -> 0.05 | X51: =(J51-J50)/($H51-$V51) -> 0 | Y51: =(K51-K50)/($H51-$V51) -> 0 | Z51: =(L51-L50)/($H51-$V51) -> 0 | AA51: 100 | AB51: 100 | AC51: 100 | AE51: 19906.56 | AF51: 0.00502346965 | AG51: 300
N52: 9 | O52: 79626.24 | P52: =P51+$P$45 -> 500 | AE52: 39813.12 | AF52: 0.002511734825 | AG52: 400
N53: 10 | O53: 159252.48 | P53: =P52+$P$45 -> 600 | AE53: 79626.24 | AF53: 0.001255867413 | AG53: 500
N54: 11 | O54: 318504.96 | P54: =P53+$P$45 -> 700 | AE54: 159252.48 | AF54: =(P54-P53)/($O54-$AE54) -> 0.0006279337063 | AG54: =P53 -> 600
D56: MMOO
F58: DEFINICIONES
G59: Rango distancia | J59: Dato de entrada
G60: BW [Mbps] | J60: Dato de entrada : Ancho de Banda del enlace y corresponde al tráfico telefonico que sale del área atendida por este enlace.
G61: Equipos de radio en las MDF | J61: Equipos de radio ( suministro e instalación] localizados en los MDF que conectan la zona de acercamiento con el área continua
G62: Equipos de radio en radioestación | J62: Equipos de radio ( suministro e instalación] localizados en los repetidores intermedios
G63: Costo de Torres en las MDF | J63: Torres ( suministro e instalación] e las MDF que conectan la zona de acercamiento con el área continua. En el valor se considera que la Torre de la MDF que está en el área continua se comparte con otros 3 radioenlaces .
G64: Costo de Obras civiles en Radioestación repetidora | J64: Edificio liviano, Torre y Caminos de acceso a Estación repetidora ( No incluye el terreno que es provisto por una servidumbre.
G65: Sistema Gestión Equipos MMOO | J65: Sistema de Gestión centralizada de todos los equipos
T67: 1 | U67: 2 | V67: 3 | W67: 4 | X67: 5 | Y67: 6 | Z67: 7 | AA67: 8 | AB67: 9 | AC67: 10 | AD67: 11
F68: id | G68: Solucion Transporte | H68: Rango | K68: Equipos de radio en las MDF | L68: Equipos de radio en radioestación | M68: Costo de Torres en las MDF | N68: Costo de Obras civiles en Radioestación repetidora por enlace | O68: Sistema Gestión Equipos MMOO | T68: Rango | U68: Equipos de radio en las MDF | V68: Equipos de radio en radioestación | W68: Costo de Torres en las MDF | X68: Costo de Obras civiles en Radioestación repetidora por enlace | Y68: Sistema Gestión Equipos MMOO | Z68: Equipos de radio en las MDF | AA68: Equipos de radio en radioestación | AB68: Costo de Torres en las MDF | AC68: Costo de Obras civiles en Radioestación repetidora por enlace | AD68: Sistema Gestión Equipos MMOO
K69: [factor] | L69: [factor] | M69: [US$/enlace de 6 tramas] | N69: [US$/enlace de 6 tramas] | O69: [US$/enlace de 6 tramas] | U69: Incremental | AA69: Base
F70: 1 | G70: Enlace MMOO 1+1 | H70: 0 | K70: 1 | L70: 1 | M70: 100 | N70: 100 | O70: 100 | Z70: 0 | AA70: 0 | AB70: 0 | AC70: 0 | AD70: 0
G71: Enlace MMOO 1+1 | H71: 60 | K71: 1 | L71: 2 | M71: 100 | N71: 100 | O71: 100 | T71: =H70 -> 0 | U71: =(K71-K70)/($H71-$H70) -> 0 | V71: =(L71-L70)/($H71-$H70) -> 0.01666666667 | W71: 0 | X71: 0 | Y71: 0 | Z71: =K70 -> 1 | AA71: =L70 -> 1 | AB71: 100 | AC71: 100 | AD71: 100
G72: Enlace MMOO 1+1 | H72: 100 | K72: 1 | L72: 3 | M72: 100 | N72: 100 | O72: 100 | T72: =H71 -> 60 | U72: =(K72-K71)/($H72-$H71) -> 0 | V72: 0.025 | W72: 0 | X72: 0 | Y72: 0 | Z72: =K71 -> 1 | AA72: 2 | AB72: 100 | AC72: 100 | AD72: 100
G73: Enlace MMOO 1+1 | H73: 150 | K73: 1 | L73: 4 | M73: 100 | N73: 100 | O73: 100 | T73: 100 | U73: 0 | V73: 0.02 | W73: 0 | X73: 0 | Y73: 0 | Z73: 1 | AA73: 3 | AB73: 100 | AC73: 100 | AD73: 100
G74: Enlace MMOO 1+1 | H74: 200 | K74: 1 | L74: 5 | M74: 100 | N74: 100 | O74: 100 | T74: 150 | U74: 0 | V74: 0.02 | W74: 0 | X74: 0 | Y74: 0 | Z74: 1 | AA74: 4 | AB74: 100 | AC74: 100 | AD74: 100
F75: 2 | G75: Enlace MMOO 1+1 | H75: 250 | K75: 1 | L75: 6 | M75: 100 | N75: 100 | O75: 100 | T75: 200 | U75: 0 | V75: 0.02 | W75: 0 | X75: 0 | Y75: 0 | Z75: 1 | AA75: 5 | AB75: 100 | AC75: 100 | AD75: 100
F76: 3 | G76: Enlace MMOO 1+1 | H76: =H75+250 -> 500 | K76: 1 | L76: 12 | M76: =M75+M70 -> 200 | N76: =N75+N70 -> 200 | O76: 100 | T76: 250 | U76: 0 | V76: 0.024 | W76: 0.4 | X76: 0.4 | Y76: 0 | Z76: 1 | AA76: 6 | AB76: 100 | AC76: 100 | AD76: 100
F77: 4 | G77: Enlace MMOO 1+1 | H77: =H76+250 -> 750 | K77: 1 | L77: 18 | M77: =M76+M75 -> 300 | N77: =N70+N76 -> 300 | O77: 100 | T77: 500 | U77: 0 | V77: 0.024 | W77: 0.4 | X77: 0.4 | Y77: 0 | Z77: 1 | AA77: 12 | AB77: 200 | AC77: 200 | AD77: 100
F78: 5 | G78: Enlace MMOO 1+1 | H78: =H77+250 -> 1000 | K78: 1 | L78: 24 | M78: =M77+M70 -> 400 | N78: =N75+N77 -> 400 | O78: 100 | T78: 750 | U78: 0 | V78: 0.024 | W78: 0.4 | X78: 0.4 | Y78: 0 | Z78: 1 | AA78: 18 | AB78: 300 | AC78: 300 | AD78: 100
F82: id | G82: Desc | H82: Tramas | I82: Factor Enlace
G83: Hasta 6 tramas | H83: 0 | I83: 1
H84: 6 | I84: 1
H85: 12 | I85: 2
H86: 18 | I86: 3
H87: =H86+6 -> 24 | I87: 4
T89: 1 | U89: 2 | V89: 3 | W89: 4 | X89: 5
F90: id | H90: Capacidad | K90: Equipos de radio en las MDF | L90: Equipos de radio en radioestación | M90: Costo de Torres en las MDF | N90: Costo de Obras civiles en Radioestación repetidora por enlace | O90: Sistema Gestión Equipos MMOO | U90: Equipos de radio en las MDF | V90: Equipos de radio en radioestación | W90: Equipos de radio en las MDF | X90: Equipos de radio en radioestación
K91: [US$/enlace] | L91: [US$/enlace] | M91: [US$/enlace de 6 tramas] | N91: [US$/enlace de 6 tramas] | O91: [US$/enlace de 6 tramas] | U91: Incremental | W91: Base
I92: 0 | K92: 100 | L92: 100 | M92: 0 | N92: 0 | O92: 0 | T92: 0 | U92: 0 | V92: 0 | W92: 0 | X92: 0
H93: [Mbps] | I93: 96 | K93: 100 | L93: 100 | M93: 0 | N93: 0 | O93: 0 | T93: =I92 -> 0 | U93: =(K93-K92)/($I93-$I92) -> 0 | V93: 0 | W93: =K92 -> 100 | X93: =L92 -> 100
H94: [Mbps] | I94: 140 | K94: 100 | L94: 100 | M94: 0 | N94: 0 | O94: 0 | T94: =I93 -> 96 | U94: 0 | V94: 0 | W94: =K93 -> 100 | X94: 100
H95: [Mbps] | I95: 280 | K95: 100 | L95: 100 | M95: 0 | N95: 0 | O95: 0 | T95: 140 | U95: 0 | V95: 0 | W95: 100 | X95: 100
H96: [Mbps] | I96: 420 | K96: 100 | L96: 100 | M96: 0 | N96: 0 | O96: 0 | T96: 280 | U96: =(K96-K95)/($I96-$I95) -> 0 | V96: 0 | W96: 100 | X96: 100
H97: [Mbps] | I97: 560 | K97: 100 | L97: 100 | M97: 0 | N97: 0 | O97: 0 | T97: 420 | U97: =(K97-K96)/($I97-$I96) -> 0 | V97: 0 | W97: 100 | X97: 100
H98: [Mbps] | I98: 700 | K98: 100 | L98: 100 | M98: 0 | N98: 0 | O98: 0 | T98: 560 | U98: =(K98-K97)/($I98-$I97) -> 0 | V98: 0 | W98: 100 | X98: 100
H99: [Mbps] | I99: =I98*2 -> 1400 | K99: 100 | L99: 100 | M99: 0 | N99: 0 | O99: 0 | T99: 700 | U99: 0 | V99: 0 | W99: 100 | X99: 100
H100: [Mbps] | I100: =I98*3 -> 2100 | K100: 100 | L100: 100 | M100: 0 | N100: 0 | O100: 0 | T100: 1400 | U100: 0 | V100: 0 | W100: 100 | X100: 100
H101: [Mbps] | I101: =I98*4 -> 2800 | K101: 100 | L101: 100 | M101: 0 | N101: 0 | O101: 0 | T101: 2100 | U101: 0 | V101: 0 | W101: 100 | X101: 100
H102: [Mbps] | I102: =I98*5 -> 3500 | K102: 100 | L102: 100 | M102: 0 | N102: 0 | O102: 0 | T102: 2800 | U102: 0 | V102: 0 | W102: 100 | X102: 100
H103: [Mbps] | I103: =I98*6 -> 4200 | K103: 100 | L103: 100 | M103: 0 | N103: 0 | O103: 0 | T103: 3500 | U103: 0 | V103: 0 | W103: 100 | X103: 100
H104: [Mbps] | I104: =I98*7 -> 4900 | K104: 100 | L104: 100 | M104: 0 | N104: 0 | O104: 0 | T104: 4200 | U104: 0 | V104: 0 | W104: 100 | X104: 100
H105: [Mbps] | I105: =I98*8 -> 5600 | K105: 100 | L105: 100 | M105: 0 | N105: 0 | O105: 0 | T105: 4900 | U105: 0 | V105: 0 | W105: 100 | X105: 100
C109: Enlaces
D111: Distancias Interdepartamentales
I112: =1-SUM((I114=$AQN$114:$AQR$114)+0) -> 0 | J112: =1-SUM((J114=$AQN$114:$AQR$114)+0) -> 1 | K112: =1-SUM((K114=$AQN$114:$AQR$114)+0) -> 1 | L112: =1-SUM((L114=$AQN$114:$AQR$114)+0) -> 1 | M112: =1-SUM((M114=$AQN$114:$AQR$114)+0) -> 1 | N112: =1-SUM((N114=$AQN$114:$AQR$114)+0) -> 1 | O112: =1-SUM((O114=$AQN$114:$AQR$114)+0) -> 1 | P112: =1-SUM((P114=$AQN$114:$AQR$114)+0) -> 1 | Q112: =1-SUM((Q114=$AQN$114:$AQR$114)+0) -> 1 | R112: =1-SUM((R114=$AQN$114:$AQR$114)+0) -> 1 | S112: =1-SUM((S114=$AQN$114:$AQR$114)+0) -> 1 | T112: =1-SUM((T114=$AQN$114:$AQR$114)+0) -> 1 | U112: =1-SUM((U114=$AQN$114:$AQR$114)+0) -> 1 | V112: =1-SUM((V114=$AQN$114:$AQR$114)+0) -> 1 | W112: =1-SUM((W114=$AQN$114:$AQR$114)+0) -> 1 | X112: =1-SUM((X114=$AQN$114:$AQR$114)+0) -> 1 | Y112: =1-SUM((Y114=$AQN$114:$AQR$114)+0) -> 1 | Z112: =1-SUM((Z114=$AQN$114:$AQR$114)+0) -> 1 | AA112: =1-SUM((AA114=$AQN$114:$AQR$114)+0) -> 1 | AB112: =1-SUM((AB114=$AQN$114:$AQR$114)+0) -> 1 | AC112: =1-SUM((AC114=$AQN$114:$AQR$114)+0) -> 1 | AD112: =1-SUM((AD114=$AQN$114:$AQR$114)+0) -> 1 | AE112: =1-SUM((AE114=$AQN$114:$AQR$114)+0) -> 1 | AF112: =1-SUM((AF114=$AQN$114:$AQR$114)+0) -> 1 | AG112: =1-SUM((AG114=$AQN$114:$AQR$114)+0) -> 1 | AH112: =1-SUM((AH114=$AQN$114:$AQR$114)+0) -> 1 | AI112: =1-SUM((AI114=$AQN$114:$AQR$114)+0) -> 1 | AJ112: =1-SUM((AJ114=$AQN$114:$AQR$114)+0) -> 1 | AK112: =1-SUM((AK114=$AQN$114:$AQR$114)+0) -> 1 | AL112: =1-SUM((AL114=$AQN$114:$AQR$114)+0) -> 1 | AM112: =1-SUM((AM114=$AQN$114:$AQR$114)+0) -> 1 | AN112: =1-SUM((AN114=$AQN$114:$AQR$114)+0) -> 1 | AO112: =1-SUM((AO114=$AQN$114:$AQR$114)+0) -> 1 | AP112: =1-SUM((AP114=$AQN$114:$AQR$114)+0) -> 1 | AQ112: =1-SUM((AQ114=$AQN$114:$AQR$114)+0) -> 1 | AR112: =1-SUM((AR114=$AQN$114:$AQR$114)+0) -> 1 | AS112: =1-SUM((AS114=$AQN$114:$AQR$114)+0) -> 1 | AT112: =1-SUM((AT114=$AQN$114:$AQR$114)+0) -> 1 | AU112: =1-SUM((AU114=$AQN$114:$AQR$114)+0) -> 1 | AV112: =1-SUM((AV114=$AQN$114:$AQR$114)+0) -> 1 | AW112: =1-SUM((AW114=$AQN$114:$AQR$114)+0) -> 1 | AX112: =1-SUM((AX114=$AQN$114:$AQR$114)+0) -> 1 | AY112: =1-SUM((AY114=$AQN$114:$AQR$114)+0) -> 1 | AZ112: =1-SUM((AZ114=$AQN$114:$AQR$114)+0) -> 1 | BA112: =1-SUM((BA114=$AQN$114:$AQR$114)+0) -> 1 | BB112: =1-SUM((BB114=$AQN$114:$AQR$114)+0) -> 1 | BC112: =1-SUM((BC114=$AQN$114:$AQR$114)+0) -> 1 | BD112: =1-SUM((BD114=$AQN$114:$AQR$114)+0) -> 1 | BE112: =1-SUM((BE114=$AQN$114:$AQR$114)+0) -> 1 | BF112: =1-SUM((BF114=$AQN$114:$AQR$114)+0) -> 1 | BG112: =1-SUM((BG114=$AQN$114:$AQR$114)+0) -> 1 | BH112: =1-SUM((BH114=$AQN$114:$AQR$114)+0) -> 1 | BI112: =1-SUM((BI114=$AQN$114:$AQR$114)+0) -> 1 | BJ112: =1-SUM((BJ114=$AQN$114:$AQR$114)+0) -> 1 | BK112: =1-SUM((BK114=$AQN$114:$AQR$114)+0) -> 1 | BL112: =1-SUM((BL114=$AQN$114:$AQR$114)+0) -> 1 | BM112: =1-SUM((BM114=$AQN$114:$AQR$114)+0) -> 1 | BN112: =1-SUM((BN114=$AQN$114:$AQR$114)+0) -> 1 | BO112: =1-SUM((BO114=$AQN$114:$AQR$114)+0) -> 1 | BP112: =1-SUM((BP114=$AQN$114:$AQR$114)+0) -> 1 | BQ112: =1-SUM((BQ114=$AQN$114:$AQR$114)+0) -> 1 | BR112: =1-SUM((BR114=$AQN$114:$AQR$114)+0) -> 1 | BS112: =1-SUM((BS114=$AQN$114:$AQR$114)+0) -> 1 | BT112: =1-SUM((BT114=$AQN$114:$AQR$114)+0) -> 1 | BU112: =1-SUM((BU114=$AQN$114:$AQR$114)+0) -> 1 | BV112: =1-SUM((BV114=$AQN$114:$AQR$114)+0) -> 1 | BW112: =1-SUM((BW114=$AQN$114:$AQR$114)+0) -> 1 | BX112: =1-SUM((BX114=$AQN$114:$AQR$114)+0) -> 1 | BY112: =1-SUM((BY114=$AQN$114:$AQR$114)+0) -> 1 | BZ112: =1-SUM((BZ114=$AQN$114:$AQR$114)+0) -> 1 | CA112: =1-SUM((CA114=$AQN$114:$AQR$114)+0) -> 1 | CB112: =1-SUM((CB114=$AQN$114:$AQR$114)+0) -> 1 | CC112: =1-SUM((CC114=$AQN$114:$AQR$114)+0) -> 1 | CD112: =1-SUM((CD114=$AQN$114:$AQR$114)+0) -> 1 | CE112: =1-SUM((CE114=$AQN$114:$AQR$114)+0) -> 1 | CF112: =1-SUM((CF114=$AQN$114:$AQR$114)+0) -> 1 | CG112: =1-SUM((CG114=$AQN$114:$AQR$114)+0) -> 1 | CH112: =1-SUM((CH114=$AQN$114:$AQR$114)+0) -> 1 | CI112: =1-SUM((CI114=$AQN$114:$AQR$114)+0) -> 1 | CJ112: =1-SUM((CJ114=$AQN$114:$AQR$114)+0) -> 1 | CK112: =1-SUM((CK114=$AQN$114:$AQR$114)+0) -> 1 | CL112: =1-SUM((CL114=$AQN$114:$AQR$114)+0) -> 1 | CM112: =1-SUM((CM114=$AQN$114:$AQR$114)+0) -> 1 | CN112: =1-SUM((CN114=$AQN$114:$AQR$114)+0) -> 1 | CO112: =1-SUM((CO114=$AQN$114:$AQR$114)+0) -> 1 | CP112: =1-SUM((CP114=$AQN$114:$AQR$114)+0) -> 1 | CQ112: =1-SUM((CQ114=$AQN$114:$AQR$114)+0) -> 1 | CR112: =1-SUM((CR114=$AQN$114:$AQR$114)+0) -> 1 | CS112: =1-SUM((CS114=$AQN$114:$AQR$114)+0) -> 1 | CT112: =1-SUM((CT114=$AQN$114:$AQR$114)+0) -> 1 | CU112: =1-SUM((CU114=$AQN$114:$AQR$114)+0) -> 1 | CV112: =1-SUM((CV114=$AQN$114:$AQR$114)+0) -> 1 | CW112: =1-SUM((CW114=$AQN$114:$AQR$114)+0) -> 1 | CX112: =1-SUM((CX114=$AQN$114:$AQR$114)+0) -> 1 | CY112: =1-SUM((CY114=$AQN$114:$AQR$114)+0) -> 1 | CZ112: =1-SUM((CZ114=$AQN$114:$AQR$114)+0) -> 1 | DA112: =1-SUM((DA114=$AQN$114:$AQR$114)+0) -> 1 | DB112: =1-SUM((DB114=$AQN$114:$AQR$114)+0) -> 1 | DC112: =1-SUM((DC114=$AQN$114:$AQR$114)+0) -> 1 | DD112: =1-SUM((DD114=$AQN$114:$AQR$114)+0) -> 1 | DE112: =1-SUM((DE114=$AQN$114:$AQR$114)+0) -> 1 | DF112: =1-SUM((DF114=$AQN$114:$AQR$114)+0) -> 1 | DG112: =1-SUM((DG114=$AQN$114:$AQR$114)+0) -> 1 | DH112: =1-SUM((DH114=$AQN$114:$AQR$114)+0) -> 1 | DI112: =1-SUM((DI114=$AQN$114:$AQR$114)+0) -> 1 | DJ112: =1-SUM((DJ114=$AQN$114:$AQR$114)+0) -> 1 | DK112: =1-SUM((DK114=$AQN$114:$AQR$114)+0) -> 1 | DL112: =1-SUM((DL114=$AQN$114:$AQR$114)+0) -> 1 | DM112: =1-SUM((DM114=$AQN$114:$AQR$114)+0) -> 1 | DN112: =1-SUM((DN114=$AQN$114:$AQR$114)+0) -> 1 | DO112: =1-SUM((DO114=$AQN$114:$AQR$114)+0) -> 1 | DP112: =1-SUM((DP114=$AQN$114:$AQR$114)+0) -> 1 | DQ112: =1-SUM((DQ114=$AQN$114:$AQR$114)+0) -> 1 | DR112: =1-SUM((DR114=$AQN$114:$AQR$114)+0) -> 1 | DS112: =1-SUM((DS114=$AQN$114:$AQR$114)+0) -> 1 | DT112: =1-SUM((DT114=$AQN$114:$AQR$114)+0) -> 1 | DU112: =1-SUM((DU114=$AQN$114:$AQR$114)+0) -> 1 | DV112: =1-SUM((DV114=$AQN$114:$AQR$114)+0) -> 1 | DW112: =1-SUM((DW114=$AQN$114:$AQR$114)+0) -> 1 | DX112: =1-SUM((DX114=$AQN$114:$AQR$114)+0) -> 1 | DY112: =1-SUM((DY114=$AQN$114:$AQR$114)+0) -> 1 | DZ112: =1-SUM((DZ114=$AQN$114:$AQR$114)+0) -> 1 | EA112: =1-SUM((EA114=$AQN$114:$AQR$114)+0) -> 1 | EB112: =1-SUM((EB114=$AQN$114:$AQR$114)+0) -> 1 | EC112: =1-SUM((EC114=$AQN$114:$AQR$114)+0) -> 1 | ED112: =1-SUM((ED114=$AQN$114:$AQR$114)+0) -> 0 | EE112: =1-SUM((EE114=$AQN$114:$AQR$114)+0) -> 1 | EF112: =1-SUM((EF114=$AQN$114:$AQR$114)+0) -> 1 | EG112: =1-SUM((EG114=$AQN$114:$AQR$114)+0) -> 1 | EH112: =1-SUM((EH114=$AQN$114:$AQR$114)+0) -> 1 | EI112: =1-SUM((EI114=$AQN$114:$AQR$114)+0) -> 1 | EJ112: =1-SUM((EJ114=$AQN$114:$AQR$114)+0) -> 1 | EK112: =1-SUM((EK114=$AQN$114:$AQR$114)+0) -> 1 | EL112: =1-SUM((EL114=$AQN$114:$AQR$114)+0) -> 1 | EM112: =1-SUM((EM114=$AQN$114:$AQR$114)+0) -> 1 | EN112: =1-SUM((EN114=$AQN$114:$AQR$114)+0) -> 1 | EO112: =1-SUM((EO114=$AQN$114:$AQR$114)+0) -> 1 | EP112: =1-SUM((EP114=$AQN$114:$AQR$114)+0) -> 1 | EQ112: =1-SUM((EQ114=$AQN$114:$AQR$114)+0) -> 1 | ER112: =1-SUM((ER114=$AQN$114:$AQR$114)+0) -> 1 | ES112: =1-SUM((ES114=$AQN$114:$AQR$114)+0) -> 1 | ET112: =1-SUM((ET114=$AQN$114:$AQR$114)+0) -> 1 | EU112: =1-SUM((EU114=$AQN$114:$AQR$114)+0) -> 1 | EV112: =1-SUM((EV114=$AQN$114:$AQR$114)+0) -> 1 | EW112: =1-SUM((EW114=$AQN$114:$AQR$114)+0) -> 1 | EX112: =1-SUM((EX114=$AQN$114:$AQR$114)+0) -> 1 | EY112: =1-SUM((EY114=$AQN$114:$AQR$114)+0) -> 1 | EZ112: =1-SUM((EZ114=$AQN$114:$AQR$114)+0) -> 1 | FA112: =1-SUM((FA114=$AQN$114:$AQR$114)+0) -> 0 | FB112: =1-SUM((FB114=$AQN$114:$AQR$114)+0) -> 1 | FC112: =1-SUM((FC114=$AQN$114:$AQR$114)+0) -> 1 | FD112: =1-SUM((FD114=$AQN$114:$AQR$114)+0) -> 1 | FE112: =1-SUM((FE114=$AQN$114:$AQR$114)+0) -> 1 | FF112: =1-SUM((FF114=$AQN$114:$AQR$114)+0) -> 1 | FG112: =1-SUM((FG114=$AQN$114:$AQR$114)+0) -> 1 | FH112: =1-SUM((FH114=$AQN$114:$AQR$114)+0) -> 1 | FI112: =1-SUM((FI114=$AQN$114:$AQR$114)+0) -> 1 | FJ112: =1-SUM((FJ114=$AQN$114:$AQR$114)+0) -> 1 | FK112: =1-SUM((FK114=$AQN$114:$AQR$114)+0) -> 1 | FL112: =1-SUM((FL114=$AQN$114:$AQR$114)+0) -> 1 | FM112: =1-SUM((FM114=$AQN$114:$AQR$114)+0) -> 1 | FN112: =1-SUM((FN114=$AQN$114:$AQR$114)+0) -> 1 | FO112: =1-SUM((FO114=$AQN$114:$AQR$114)+0) -> 1 | FP112: =1-SUM((FP114=$AQN$114:$AQR$114)+0) -> 1 | FQ112: =1-SUM((FQ114=$AQN$114:$AQR$114)+0) -> 1 | FR112: =1-SUM((FR114=$AQN$114:$AQR$114)+0) -> 1 | FS112: =1-SUM((FS114=$AQN$114:$AQR$114)+0) -> 1 | FT112: =1-SUM((FT114=$AQN$114:$AQR$114)+0) -> 1 | FU112: =1-SUM((FU114=$AQN$114:$AQR$114)+0) -> 1 | FV112: =1-SUM((FV114=$AQN$114:$AQR$114)+0) -> 1 | FW112: =1-SUM((FW114=$AQN$114:$AQR$114)+0) -> 1 | FX112: =1-SUM((FX114=$AQN$114:$AQR$114)+0) -> 1 | FY112: =1-SUM((FY114=$AQN$114:$AQR$114)+0) -> 1 | FZ112: =1-SUM((FZ114=$AQN$114:$AQR$114)+0) -> 1 | GA112: =1-SUM((GA114=$AQN$114:$AQR$114)+0) -> 1 | GB112: =1-SUM((GB114=$AQN$114:$AQR$114)+0) -> 1 | GC112: =1-SUM((GC114=$AQN$114:$AQR$114)+0) -> 1 | GD112: =1-SUM((GD114=$AQN$114:$AQR$114)+0) -> 1 | GE112: =1-SUM((GE114=$AQN$114:$AQR$114)+0) -> 1 | GF112: =1-SUM((GF114=$AQN$114:$AQR$114)+0) -> 1 | GG112: =1-SUM((GG114=$AQN$114:$AQR$114)+0) -> 1 | GH112: =1-SUM((GH114=$AQN$114:$AQR$114)+0) -> 1 | GI112: =1-SUM((GI114=$AQN$114:$AQR$114)+0) -> 1 | GJ112: =1-SUM((GJ114=$AQN$114:$AQR$114)+0) -> 1 | GK112: =1-SUM((GK114=$AQN$114:$AQR$114)+0) -> 1 | GL112: =1-SUM((GL114=$AQN$114:$AQR$114)+0) -> 1 | GM112: =1-SUM((GM114=$AQN$114:$AQR$114)+0) -> 1 | GN112: =1-SUM((GN114=$AQN$114:$AQR$114)+0) -> 1 | GO112: =1-SUM((GO114=$AQN$114:$AQR$114)+0) -> 1 | GP112: =1-SUM((GP114=$AQN$114:$AQR$114)+0) -> 1 | GQ112: =1-SUM((GQ114=$AQN$114:$AQR$114)+0) -> 1 | GR112: =1-SUM((GR114=$AQN$114:$AQR$114)+0) -> 1 | GS112: =1-SUM((GS114=$AQN$114:$AQR$114)+0) -> 1 | GT112: =1-SUM((GT114=$AQN$114:$AQR$114)+0) -> 1 | GU112: =1-SUM((GU114=$AQN$114:$AQR$114)+0) -> 1 | GV112: =1-SUM((GV114=$AQN$114:$AQR$114)+0) -> 1 | GW112: =1-SUM((GW114=$AQN$114:$AQR$114)+0) -> 1 | GX112: =1-SUM((GX114=$AQN$114:$AQR$114)+0) -> 1 | GY112: =1-SUM((GY114=$AQN$114:$AQR$114)+0) -> 1 | GZ112: =1-SUM((GZ114=$AQN$114:$AQR$114)+0) -> 1 | HA112: =1-SUM((HA114=$AQN$114:$AQR$114)+0) -> 1 | HB112: =1-SUM((HB114=$AQN$114:$AQR$114)+0) -> 1 | HC112: =1-SUM((HC114=$AQN$114:$AQR$114)+0) -> 1 | HD112: =1-SUM((HD114=$AQN$114:$AQR$114)+0) -> 1 | HE112: =1-SUM((HE114=$AQN$114:$AQR$114)+0) -> 1 | HF112: =1-SUM((HF114=$AQN$114:$AQR$114)+0) -> 1 | HG112: =1-SUM((HG114=$AQN$114:$AQR$114)+0) -> 1 | HH112: =1-SUM((HH114=$AQN$114:$AQR$114)+0) -> 1 | HI112: =1-SUM((HI114=$AQN$114:$AQR$114)+0) -> 1 | HJ112: =1-SUM((HJ114=$AQN$114:$AQR$114)+0) -> 1 | HK112: =1-SUM((HK114=$AQN$114:$AQR$114)+0) -> 1 | HL112: =1-SUM((HL114=$AQN$114:$AQR$114)+0) -> 1 | HM112: =1-SUM((HM114=$AQN$114:$AQR$114)+0) -> 1 | HN112: =1-SUM((HN114=$AQN$114:$AQR$114)+0) -> 1 | HO112: =1-SUM((HO114=$AQN$114:$AQR$114)+0) -> 1 | HP112: =1-SUM((HP114=$AQN$114:$AQR$114)+0) -> 1 | HQ112: =1-SUM((HQ114=$AQN$114:$AQR$114)+0) -> 1 | HR112: =1-SUM((HR114=$AQN$114:$AQR$114)+0) -> 1 | HS112: =1-SUM((HS114=$AQN$114:$AQR$114)+0) -> 1 | HT112: =1-SUM((HT114=$AQN$114:$AQR$114)+0) -> 1 | HU112: =1-SUM((HU114=$AQN$114:$AQR$114)+0) -> 1 | HV112: =1-SUM((HV114=$AQN$114:$AQR$114)+0) -> 1 | HW112: =1-SUM((HW114=$AQN$114:$AQR$114)+0) -> 1 | HX112: =1-SUM((HX114=$AQN$114:$AQR$114)+0) -> 1 | HY112: =1-SUM((HY114=$AQN$114:$AQR$114)+0) -> 1 | HZ112: =1-SUM((HZ114=$AQN$114:$AQR$114)+0) -> 1 | IA112: =1-SUM((IA114=$AQN$114:$AQR$114)+0) -> 1 | IB112: =1-SUM((IB114=$AQN$114:$AQR$114)+0) -> 1 | IC112: =1-SUM((IC114=$AQN$114:$AQR$114)+0) -> 1 | ID112: =1-SUM((ID114=$AQN$114:$AQR$114)+0) -> 1 | IE112: =1-SUM((IE114=$AQN$114:$AQR$114)+0) -> 1 | IF112: =1-SUM((IF114=$AQN$114:$AQR$114)+0) -> 1 | IG112: =1-SUM((IG114=$AQN$114:$AQR$114)+0) -> 1 | IH112: =1-SUM((IH114=$AQN$114:$AQR$114)+0) -> 1 | II112: =1-SUM((II114=$AQN$114:$AQR$114)+0) -> 1 | IJ112: =1-SUM((IJ114=$AQN$114:$AQR$114)+0) -> 1 | IK112: =1-SUM((IK114=$AQN$114:$AQR$114)+0) -> 1 | IL112: =1-SUM((IL114=$AQN$114:$AQR$114)+0) -> 1 | IM112: =1-SUM((IM114=$AQN$114:$AQR$114)+0) -> 1 | IN112: =1-SUM((IN114=$AQN$114:$AQR$114)+0) -> 1 | IO112: =1-SUM((IO114=$AQN$114:$AQR$114)+0) -> 1 | IP112: =1-SUM((IP114=$AQN$114:$AQR$114)+0) -> 1 | IQ112: =1-SUM((IQ114=$AQN$114:$AQR$114)+0) -> 1 | IR112: =1-SUM((IR114=$AQN$114:$AQR$114)+0) -> 1 | IS112: =1-SUM((IS114=$AQN$114:$AQR$114)+0) -> 1 | IT112: =1-SUM((IT114=$AQN$114:$AQR$114)+0) -> 1 | IU112: =1-SUM((IU114=$AQN$114:$AQR$114)+0) -> 1 | IV112: =1-SUM((IV114=$AQN$114:$AQR$114)+0) -> 1 | IW112: =1-SUM((IW114=$AQN$114:$AQR$114)+0) -> 1 | IX112: =1-SUM((IX114=$AQN$114:$AQR$114)+0) -> 1 | IY112: =1-SUM((IY114=$AQN$114:$AQR$114)+0) -> 1 | IZ112: =1-SUM((IZ114=$AQN$114:$AQR$114)+0) -> 1 | JA112: =1-SUM((JA114=$AQN$114:$AQR$114)+0) -> 1 | JB112: =1-SUM((JB114=$AQN$114:$AQR$114)+0) -> 1 | JC112: =1-SUM((JC114=$AQN$114:$AQR$114)+0) -> 1 | JD112: =1-SUM((JD114=$AQN$114:$AQR$114)+0) -> 1 | JE112: =1-SUM((JE114=$AQN$114:$AQR$114)+0) -> 1 | JF112: =1-SUM((JF114=$AQN$114:$AQR$114)+0) -> 1 | JG112: =1-SUM((JG114=$AQN$114:$AQR$114)+0) -> 1 | JH112: =1-SUM((JH114=$AQN$114:$AQR$114)+0) -> 1 | JI112: =1-SUM((JI114=$AQN$114:$AQR$114)+0) -> 1 | JJ112: =1-SUM((JJ114=$AQN$114:$AQR$114)+0) -> 1 | JK112: =1-SUM((JK114=$AQN$114:$AQR$114)+0) -> 1 | JL112: =1-SUM((JL114=$AQN$114:$AQR$114)+0) -> 1 | JM112: =1-SUM((JM114=$AQN$114:$AQR$114)+0) -> 1 | JN112: =1-SUM((JN114=$AQN$114:$AQR$114)+0) -> 1 | JO112: =1-SUM((JO114=$AQN$114:$AQR$114)+0) -> 1 | JP112: =1-SUM((JP114=$AQN$114:$AQR$114)+0) -> 1 | JQ112: =1-SUM((JQ114=$AQN$114:$AQR$114)+0) -> 1 | JR112: =1-SUM((JR114=$AQN$114:$AQR$114)+0) -> 1 | JS112: =1-SUM((JS114=$AQN$114:$AQR$114)+0) -> 1 | JT112: =1-SUM((JT114=$AQN$114:$AQR$114)+0) -> 1 | JU112: =1-SUM((JU114=$AQN$114:$AQR$114)+0) -> 1 | JV112: =1-SUM((JV114=$AQN$114:$AQR$114)+0) -> 1 | JW112: =1-SUM((JW114=$AQN$114:$AQR$114)+0) -> 1 | JX112: =1-SUM((JX114=$AQN$114:$AQR$114)+0) -> 1 | JY112: =1-SUM((JY114=$AQN$114:$AQR$114)+0) -> 1 | JZ112: =1-SUM((JZ114=$AQN$114:$AQR$114)+0) -> 1 | KA112: =1-SUM((KA114=$AQN$114:$AQR$114)+0) -> 1 | KB112: =1-SUM((KB114=$AQN$114:$AQR$114)+0) -> 1 | KC112: =1-SUM((KC114=$AQN$114:$AQR$114)+0) -> 1 | KD112: =1-SUM((KD114=$AQN$114:$AQR$114)+0) -> 1 | KE112: =1-SUM((KE114=$AQN$114:$AQR$114)+0) -> 1 | KF112: =1-SUM((KF114=$AQN$114:$AQR$114)+0) -> 1 | KG112: =1-SUM((KG114=$AQN$114:$AQR$114)+0) -> 1 | KH112: =1-SUM((KH114=$AQN$114:$AQR$114)+0) -> 1 | KI112: =1-SUM((KI114=$AQN$114:$AQR$114)+0) -> 1 | KJ112: =1-SUM((KJ114=$AQN$114:$AQR$114)+0) -> 1 | KK112: =1-SUM((KK114=$AQN$114:$AQR$114)+0) -> 1 | KL112: =1-SUM((KL114=$AQN$114:$AQR$114)+0) -> 1 | KM112: =1-SUM((KM114=$AQN$114:$AQR$114)+0) -> 1 | KN112: =1-SUM((KN114=$AQN$114:$AQR$114)+0) -> 1 | KO112: =1-SUM((KO114=$AQN$114:$AQR$114)+0) -> 1 | KP112: =1-SUM((KP114=$AQN$114:$AQR$114)+0) -> 1 | KQ112: =1-SUM((KQ114=$AQN$114:$AQR$114)+0) -> 1 | KR112: =1-SUM((KR114=$AQN$114:$AQR$114)+0) -> 1 | KS112: =1-SUM((KS114=$AQN$114:$AQR$114)+0) -> 1 | KT112: =1-SUM((KT114=$AQN$114:$AQR$114)+0) -> 1 | KU112: =1-SUM((KU114=$AQN$114:$AQR$114)+0) -> 1 | KV112: =1-SUM((KV114=$AQN$114:$AQR$114)+0) -> 1 | KW112: =1-SUM((KW114=$AQN$114:$AQR$114)+0) -> 1 | KX112: =1-SUM((KX114=$AQN$114:$AQR$114)+0) -> 1 | KY112: =1-SUM((KY114=$AQN$114:$AQR$114)+0) -> 1 | KZ112: =1-SUM((KZ114=$AQN$114:$AQR$114)+0) -> 1 | LA112: =1-SUM((LA114=$AQN$114:$AQR$114)+0) -> 1 | LB112: =1-SUM((LB114=$AQN$114:$AQR$114)+0) -> 1 | LC112: =1-SUM((LC114=$AQN$114:$AQR$114)+0) -> 1 | LD112: =1-SUM((LD114=$AQN$114:$AQR$114)+0) -> 1 | LE112: =1-SUM((LE114=$AQN$114:$AQR$114)+0) -> 1 | LF112: =1-SUM((LF114=$AQN$114:$AQR$114)+0) -> 1 | LG112: =1-SUM((LG114=$AQN$114:$AQR$114)+0) -> 1 | LH112: =1-SUM((LH114=$AQN$114:$AQR$114)+0) -> 1 | LI112: =1-SUM((LI114=$AQN$114:$AQR$114)+0) -> 1 | LJ112: =1-SUM((LJ114=$AQN$114:$AQR$114)+0) -> 1 | LK112: =1-SUM((LK114=$AQN$114:$AQR$114)+0) -> 1 | LL112: =1-SUM((LL114=$AQN$114:$AQR$114)+0) -> 1 | LM112: =1-SUM((LM114=$AQN$114:$AQR$114)+0) -> 1 | LN112: =1-SUM((LN114=$AQN$114:$AQR$114)+0) -> 1 | LO112: =1-SUM((LO114=$AQN$114:$AQR$114)+0) -> 1 | LP112: =1-SUM((LP114=$AQN$114:$AQR$114)+0) -> 1 | LQ112: =1-SUM((LQ114=$AQN$114:$AQR$114)+0) -> 1 | LR112: =1-SUM((LR114=$AQN$114:$AQR$114)+0) -> 1 | LS112: =1-SUM((LS114=$AQN$114:$AQR$114)+0) -> 1 | LT112: =1-SUM((LT114=$AQN$114:$AQR$114)+0) -> 1 | LU112: =1-SUM((LU114=$AQN$114:$AQR$114)+0) -> 1 | LV112: =1-SUM((LV114=$AQN$114:$AQR$114)+0) -> 1 | LW112: =1-SUM((LW114=$AQN$114:$AQR$114)+0) -> 1 | LX112: =1-SUM((LX114=$AQN$114:$AQR$114)+0) -> 1 | LY112: =1-SUM((LY114=$AQN$114:$AQR$114)+0) -> 1 | LZ112: =1-SUM((LZ114=$AQN$114:$AQR$114)+0) -> 1 | MA112: =1-SUM((MA114=$AQN$114:$AQR$114)+0) -> 1 | MB112: =1-SUM((MB114=$AQN$114:$AQR$114)+0) -> 1 | MC112: =1-SUM((MC114=$AQN$114:$AQR$114)+0) -> 1 | MD112: =1-SUM((MD114=$AQN$114:$AQR$114)+0) -> 1 | ME112: =1-SUM((ME114=$AQN$114:$AQR$114)+0) -> 1 | MF112: =1-SUM((MF114=$AQN$114:$AQR$114)+0) -> 1 | MG112: =1-SUM((MG114=$AQN$114:$AQR$114)+0) -> 1 | MH112: =1-SUM((MH114=$AQN$114:$AQR$114)+0) -> 1 | MI112: =1-SUM((MI114=$AQN$114:$AQR$114)+0) -> 1 | MJ112: =1-SUM((MJ114=$AQN$114:$AQR$114)+0) -> 1 | MK112: =1-SUM((MK114=$AQN$114:$AQR$114)+0) -> 1 | ML112: =1-SUM((ML114=$AQN$114:$AQR$114)+0) -> 1 | MM112: =1-SUM((MM114=$AQN$114:$AQR$114)+0) -> 1 | MN112: =1-SUM((MN114=$AQN$114:$AQR$114)+0) -> 1 | MO112: =1-SUM((MO114=$AQN$114:$AQR$114)+0) -> 1 | MP112: =1-SUM((MP114=$AQN$114:$AQR$114)+0) -> 1 | MQ112: =1-SUM((MQ114=$AQN$114:$AQR$114)+0) -> 1 | MR112: =1-SUM((MR114=$AQN$114:$AQR$114)+0) -> 1 | MS112: =1-SUM((MS114=$AQN$114:$AQR$114)+0) -> 1 | MT112: =1-SUM((MT114=$AQN$114:$AQR$114)+0) -> 1 | MU112: =1-SUM((MU114=$AQN$114:$AQR$114)+0) -> 1 | MV112: =1-SUM((MV114=$AQN$114:$AQR$114)+0) -> 1 | MW112: =1-SUM((MW114=$AQN$114:$AQR$114)+0) -> 1 | MX112: =1-SUM((MX114=$AQN$114:$AQR$114)+0) -> 1 | MY112: =1-SUM((MY114=$AQN$114:$AQR$114)+0) -> 1 | MZ112: =1-SUM((MZ114=$AQN$114:$AQR$114)+0) -> 1 | NA112: =1-SUM((NA114=$AQN$114:$AQR$114)+0) -> 1 | NB112: =1-SUM((NB114=$AQN$114:$AQR$114)+0) -> 1 | NC112: =1-SUM((NC114=$AQN$114:$AQR$114)+0) -> 1 | ND112: =1-SUM((ND114=$AQN$114:$AQR$114)+0) -> 1 | NE112: =1-SUM((NE114=$AQN$114:$AQR$114)+0) -> 1 | NF112: =1-SUM((NF114=$AQN$114:$AQR$114)+0) -> 1 | NG112: =1-SUM((NG114=$AQN$114:$AQR$114)+0) -> 1 | NH112: =1-SUM((NH114=$AQN$114:$AQR$114)+0) -> 1 | NI112: =1-SUM((NI114=$AQN$114:$AQR$114)+0) -> 1 | NJ112: =1-SUM((NJ114=$AQN$114:$AQR$114)+0) -> 1 | NK112: =1-SUM((NK114=$AQN$114:$AQR$114)+0) -> 1 | NL112: =1-SUM((NL114=$AQN$114:$AQR$114)+0) -> 1 | NM112: =1-SUM((NM114=$AQN$114:$AQR$114)+0) -> 1 | NN112: =1-SUM((NN114=$AQN$114:$AQR$114)+0) -> 1 | NO112: =1-SUM((NO114=$AQN$114:$AQR$114)+0) -> 1 | NP112: =1-SUM((NP114=$AQN$114:$AQR$114)+0) -> 1 | NQ112: =1-SUM((NQ114=$AQN$114:$AQR$114)+0) -> 1 | NR112: =1-SUM((NR114=$AQN$114:$AQR$114)+0) -> 1 | NS112: =1-SUM((NS114=$AQN$114:$AQR$114)+0) -> 1 | NT112: =1-SUM((NT114=$AQN$114:$AQR$114)+0) -> 1 | NU112: =1-SUM((NU114=$AQN$114:$AQR$114)+0) -> 1 | NV112: =1-SUM((NV114=$AQN$114:$AQR$114)+0) -> 1 | NW112: =1-SUM((NW114=$AQN$114:$AQR$114)+0) -> 1 | NX112: =1-SUM((NX114=$AQN$114:$AQR$114)+0) -> 1 | NY112: =1-SUM((NY114=$AQN$114:$AQR$114)+0) -> 1 | NZ112: =1-SUM((NZ114=$AQN$114:$AQR$114)+0) -> 1 | OA112: =1-SUM((OA114=$AQN$114:$AQR$114)+0) -> 1 | OB112: =1-SUM((OB114=$AQN$114:$AQR$114)+0) -> 1 | OC112: =1-SUM((OC114=$AQN$114:$AQR$114)+0) -> 1 | OD112: =1-SUM((OD114=$AQN$114:$AQR$114)+0) -> 1 | OE112: =1-SUM((OE114=$AQN$114:$AQR$114)+0) -> 1 | OF112: =1-SUM((OF114=$AQN$114:$AQR$114)+0) -> 1 | OG112: =1-SUM((OG114=$AQN$114:$AQR$114)+0) -> 1 | OH112: =1-SUM((OH114=$AQN$114:$AQR$114)+0) -> 1 | OI112: =1-SUM((OI114=$AQN$114:$AQR$114)+0) -> 1 | OJ112: =1-SUM((OJ114=$AQN$114:$AQR$114)+0) -> 1 | OK112: =1-SUM((OK114=$AQN$114:$AQR$114)+0) -> 1 | OL112: =1-SUM((OL114=$AQN$114:$AQR$114)+0) -> 1 | OM112: =1-SUM((OM114=$AQN$114:$AQR$114)+0) -> 1 | ON112: =1-SUM((ON114=$AQN$114:$AQR$114)+0) -> 1 | OO112: =1-SUM((OO114=$AQN$114:$AQR$114)+0) -> 1 | OP112: =1-SUM((OP114=$AQN$114:$AQR$114)+0) -> 1 | OQ112: =1-SUM((OQ114=$AQN$114:$AQR$114)+0) -> 1 | OR112: =1-SUM((OR114=$AQN$114:$AQR$114)+0) -> 1 | OS112: =1-SUM((OS114=$AQN$114:$AQR$114)+0) -> 1 | OT112: =1-SUM((OT114=$AQN$114:$AQR$114)+0) -> 1 | OU112: =1-SUM((OU114=$AQN$114:$AQR$114)+0) -> 1 | OV112: =1-SUM((OV114=$AQN$114:$AQR$114)+0) -> 1 | OW112: =1-SUM((OW114=$AQN$114:$AQR$114)+0) -> 1 | OX112: =1-SUM((OX114=$AQN$114:$AQR$114)+0) -> 1 | OY112: =1-SUM((OY114=$AQN$114:$AQR$114)+0) -> 1 | OZ112: =1-SUM((OZ114=$AQN$114:$AQR$114)+0) -> 1 | PA112: =1-SUM((PA114=$AQN$114:$AQR$114)+0) -> 1 | PB112: =1-SUM((PB114=$AQN$114:$AQR$114)+0) -> 1 | PC112: =1-SUM((PC114=$AQN$114:$AQR$114)+0) -> 1 | PD112: =1-SUM((PD114=$AQN$114:$AQR$114)+0) -> 1 | PE112: =1-SUM((PE114=$AQN$114:$AQR$114)+0) -> 1 | PF112: =1-SUM((PF114=$AQN$114:$AQR$114)+0) -> 1 | PG112: =1-SUM((PG114=$AQN$114:$AQR$114)+0) -> 1 | PH112: =1-SUM((PH114=$AQN$114:$AQR$114)+0) -> 1 | PI112: =1-SUM((PI114=$AQN$114:$AQR$114)+0) -> 1 | PJ112: =1-SUM((PJ114=$AQN$114:$AQR$114)+0) -> 1 | PK112: =1-SUM((PK114=$AQN$114:$AQR$114)+0) -> 1 | PL112: =1-SUM((PL114=$AQN$114:$AQR$114)+0) -> 1 | PM112: =1-SUM((PM114=$AQN$114:$AQR$114)+0) -> 1 | PN112: =1-SUM((PN114=$AQN$114:$AQR$114)+0) -> 1 | PO112: =1-SUM((PO114=$AQN$114:$AQR$114)+0) -> 1 | PP112: =1-SUM((PP114=$AQN$114:$AQR$114)+0) -> 1 | PQ112: =1-SUM((PQ114=$AQN$114:$AQR$114)+0) -> 1 | PR112: =1-SUM((PR114=$AQN$114:$AQR$114)+0) -> 1 | PS112: =1-SUM((PS114=$AQN$114:$AQR$114)+0) -> 1 | PT112: =1-SUM((PT114=$AQN$114:$AQR$114)+0) -> 1 | PU112: =1-SUM((PU114=$AQN$114:$AQR$114)+0) -> 1 | PV112: =1-SUM((PV114=$AQN$114:$AQR$114)+0) -> 1 | PW112: =1-SUM((PW114=$AQN$114:$AQR$114)+0) -> 1 | PX112: =1-SUM((PX114=$AQN$114:$AQR$114)+0) -> 1 | PY112: =1-SUM((PY114=$AQN$114:$AQR$114)+0) -> 1 | PZ112: =1-SUM((PZ114=$AQN$114:$AQR$114)+0) -> 1 | QA112: =1-SUM((QA114=$AQN$114:$AQR$114)+0) -> 1 | QB112: =1-SUM((QB114=$AQN$114:$AQR$114)+0) -> 1 | QC112: =1-SUM((QC114=$AQN$114:$AQR$114)+0) -> 1 | QD112: =1-SUM((QD114=$AQN$114:$AQR$114)+0) -> 1 | QE112: =1-SUM((QE114=$AQN$114:$AQR$114)+0) -> 1 | QF112: =1-SUM((QF114=$AQN$114:$AQR$114)+0) -> 1 | QG112: =1-SUM((QG114=$AQN$114:$AQR$114)+0) -> 1 | QH112: =1-SUM((QH114=$AQN$114:$AQR$114)+0) -> 1 | QI112: =1-SUM((QI114=$AQN$114:$AQR$114)+0) -> 1 | QJ112: =1-SUM((QJ114=$AQN$114:$AQR$114)+0) -> 1 | QK112: =1-SUM((QK114=$AQN$114:$AQR$114)+0) -> 1 | QL112: =1-SUM((QL114=$AQN$114:$AQR$114)+0) -> 1 | QM112: =1-SUM((QM114=$AQN$114:$AQR$114)+0) -> 1 | QN112: =1-SUM((QN114=$AQN$114:$AQR$114)+0) -> 1 | QO112: =1-SUM((QO114=$AQN$114:$AQR$114)+0) -> 1 | QP112: =1-SUM((QP114=$AQN$114:$AQR$114)+0) -> 1 | QQ112: =1-SUM((QQ114=$AQN$114:$AQR$114)+0) -> 1 | QR112: =1-SUM((QR114=$AQN$114:$AQR$114)+0) -> 1 | QS112: =1-SUM((QS114=$AQN$114:$AQR$114)+0) -> 1 | QT112: =1-SUM((QT114=$AQN$114:$AQR$114)+0) -> 1 | QU112: =1-SUM((QU114=$AQN$114:$AQR$114)+0) -> 1 | QV112: =1-SUM((QV114=$AQN$114:$AQR$114)+0) -> 1 | QW112: =1-SUM((QW114=$AQN$114:$AQR$114)+0) -> 1 | QX112: =1-SUM((QX114=$AQN$114:$AQR$114)+0) -> 1 | QY112: =1-SUM((QY114=$AQN$114:$AQR$114)+0) -> 1 | QZ112: =1-SUM((QZ114=$AQN$114:$AQR$114)+0) -> 1 | RA112: =1-SUM((RA114=$AQN$114:$AQR$114)+0) -> 1 | RB112: =1-SUM((RB114=$AQN$114:$AQR$114)+0) -> 1 | RC112: =1-SUM((RC114=$AQN$114:$AQR$114)+0) -> 1 | RD112: =1-SUM((RD114=$AQN$114:$AQR$114)+0) -> 1 | RE112: =1-SUM((RE114=$AQN$114:$AQR$114)+0) -> 1 | RF112: =1-SUM((RF114=$AQN$114:$AQR$114)+0) -> 1 | RG112: =1-SUM((RG114=$AQN$114:$AQR$114)+0) -> 1 | RH112: =1-SUM((RH114=$AQN$114:$AQR$114)+0) -> 1 | RI112: =1-SUM((RI114=$AQN$114:$AQR$114)+0) -> 1 | RJ112: =1-SUM((RJ114=$AQN$114:$AQR$114)+0) -> 1 | RK112: =1-SUM((RK114=$AQN$114:$AQR$114)+0) -> 1 | RL112: =1-SUM((RL114=$AQN$114:$AQR$114)+0) -> 1 | RM112: =1-SUM((RM114=$AQN$114:$AQR$114)+0) -> 1 | RN112: =1-SUM((RN114=$AQN$114:$AQR$114)+0) -> 1 | RO112: =1-SUM((RO114=$AQN$114:$AQR$114)+0) -> 1 | RP112: =1-SUM((RP114=$AQN$114:$AQR$114)+0) -> 1 | RQ112: =1-SUM((RQ114=$AQN$114:$AQR$114)+0) -> 1 | RR112: =1-SUM((RR114=$AQN$114:$AQR$114)+0) -> 1 | RS112: =1-SUM((RS114=$AQN$114:$AQR$114)+0) -> 1 | RT112: =1-SUM((RT114=$AQN$114:$AQR$114)+0) -> 1 | RU112: =1-SUM((RU114=$AQN$114:$AQR$114)+0) -> 1 | RV112: =1-SUM((RV114=$AQN$114:$AQR$114)+0) -> 1 | RW112: =1-SUM((RW114=$AQN$114:$AQR$114)+0) -> 1 | RX112: =1-SUM((RX114=$AQN$114:$AQR$114)+0) -> 1 | RY112: =1-SUM((RY114=$AQN$114:$AQR$114)+0) -> 1 | RZ112: =1-SUM((RZ114=$AQN$114:$AQR$114)+0) -> 1 | SA112: =1-SUM((SA114=$AQN$114:$AQR$114)+0) -> 1 | SB112: =1-SUM((SB114=$AQN$114:$AQR$114)+0) -> 1 | SC112: =1-SUM((SC114=$AQN$114:$AQR$114)+0) -> 1 | SD112: =1-SUM((SD114=$AQN$114:$AQR$114)+0) -> 1 | SE112: =1-SUM((SE114=$AQN$114:$AQR$114)+0) -> 1 | SF112: =1-SUM((SF114=$AQN$114:$AQR$114)+0) -> 1 | SG112: =1-SUM((SG114=$AQN$114:$AQR$114)+0) -> 1 | SH112: =1-SUM((SH114=$AQN$114:$AQR$114)+0) -> 1 | SI112: =1-SUM((SI114=$AQN$114:$AQR$114)+0) -> 1 | SJ112: =1-SUM((SJ114=$AQN$114:$AQR$114)+0) -> 1 | SK112: =1-SUM((SK114=$AQN$114:$AQR$114)+0) -> 1 | SL112: =1-SUM((SL114=$AQN$114:$AQR$114)+0) -> 1 | SM112: =1-SUM((SM114=$AQN$114:$AQR$114)+0) -> 1 | SN112: =1-SUM((SN114=$AQN$114:$AQR$114)+0) -> 1 | SO112: =1-SUM((SO114=$AQN$114:$AQR$114)+0) -> 1 | SP112: =1-SUM((SP114=$AQN$114:$AQR$114)+0) -> 1 | SQ112: =1-SUM((SQ114=$AQN$114:$AQR$114)+0) -> 1 | SR112: =1-SUM((SR114=$AQN$114:$AQR$114)+0) -> 1 | SS112: =1-SUM((SS114=$AQN$114:$AQR$114)+0) -> 1 | ST112: =1-SUM((ST114=$AQN$114:$AQR$114)+0) -> 1 | SU112: =1-SUM((SU114=$AQN$114:$AQR$114)+0) -> 1 | SV112: =1-SUM((SV114=$AQN$114:$AQR$114)+0) -> 1 | SW112: =1-SUM((SW114=$AQN$114:$AQR$114)+0) -> 1 | SX112: =1-SUM((SX114=$AQN$114:$AQR$114)+0) -> 1 | SY112: =1-SUM((SY114=$AQN$114:$AQR$114)+0) -> 1 | SZ112: =1-SUM((SZ114=$AQN$114:$AQR$114)+0) -> 1 | TA112: =1-SUM((TA114=$AQN$114:$AQR$114)+0) -> 1 | TB112: =1-SUM((TB114=$AQN$114:$AQR$114)+0) -> 1 | TC112: =1-SUM((TC114=$AQN$114:$AQR$114)+0) -> 1 | TD112: =1-SUM((TD114=$AQN$114:$AQR$114)+0) -> 1 | TE112: =1-SUM((TE114=$AQN$114:$AQR$114)+0) -> 1 | TF112: =1-SUM((TF114=$AQN$114:$AQR$114)+0) -> 1 | TG112: =1-SUM((TG114=$AQN$114:$AQR$114)+0) -> 1 | TH112: =1-SUM((TH114=$AQN$114:$AQR$114)+0) -> 1 | TI112: =1-SUM((TI114=$AQN$114:$AQR$114)+0) -> 1 | TJ112: =1-SUM((TJ114=$AQN$114:$AQR$114)+0) -> 1 | TK112: =1-SUM((TK114=$AQN$114:$AQR$114)+0) -> 1 | TL112: =1-SUM((TL114=$AQN$114:$AQR$114)+0) -> 1 | TM112: =1-SUM((TM114=$AQN$114:$AQR$114)+0) -> 1 | TN112: =1-SUM((TN114=$AQN$114:$AQR$114)+0) -> 1 | TO112: =1-SUM((TO114=$AQN$114:$AQR$114)+0) -> 1 | TP112: =1-SUM((TP114=$AQN$114:$AQR$114)+0) -> 1 | TQ112: =1-SUM((TQ114=$AQN$114:$AQR$114)+0) -> 1 | TR112: =1-SUM((TR114=$AQN$114:$AQR$114)+0) -> 1 | TS112: =1-SUM((TS114=$AQN$114:$AQR$114)+0) -> 1 | TT112: =1-SUM((TT114=$AQN$114:$AQR$114)+0) -> 1 | TU112: =1-SUM((TU114=$AQN$114:$AQR$114)+0) -> 1 | TV112: =1-SUM((TV114=$AQN$114:$AQR$114)+0) -> 1 | TW112: =1-SUM((TW114=$AQN$114:$AQR$114)+0) -> 1 | TX112: =1-SUM((TX114=$AQN$114:$AQR$114)+0) -> 1 | TY112: =1-SUM((TY114=$AQN$114:$AQR$114)+0) -> 1 | TZ112: =1-SUM((TZ114=$AQN$114:$AQR$114)+0) -> 1 | UA112: =1-SUM((UA114=$AQN$114:$AQR$114)+0) -> 1 | UB112: =1-SUM((UB114=$AQN$114:$AQR$114)+0) -> 1 | UC112: =1-SUM((UC114=$AQN$114:$AQR$114)+0) -> 1 | UD112: =1-SUM((UD114=$AQN$114:$AQR$114)+0) -> 1 | UE112: =1-SUM((UE114=$AQN$114:$AQR$114)+0) -> 1 | UF112: =1-SUM((UF114=$AQN$114:$AQR$114)+0) -> 1 | UG112: =1-SUM((UG114=$AQN$114:$AQR$114)+0) -> 1 | UH112: =1-SUM((UH114=$AQN$114:$AQR$114)+0) -> 1 | UI112: =1-SUM((UI114=$AQN$114:$AQR$114)+0) -> 1 | UJ112: =1-SUM((UJ114=$AQN$114:$AQR$114)+0) -> 1 | UK112: =1-SUM((UK114=$AQN$114:$AQR$114)+0) -> 1 | UL112: =1-SUM((UL114=$AQN$114:$AQR$114)+0) -> 1 | UM112: =1-SUM((UM114=$AQN$114:$AQR$114)+0) -> 1 | UN112: =1-SUM((UN114=$AQN$114:$AQR$114)+0) -> 1 | UO112: =1-SUM((UO114=$AQN$114:$AQR$114)+0) -> 1 | UP112: =1-SUM((UP114=$AQN$114:$AQR$114)+0) -> 1 | UQ112: =1-SUM((UQ114=$AQN$114:$AQR$114)+0) -> 1 | UR112: =1-SUM((UR114=$AQN$114:$AQR$114)+0) -> 1 | US112: =1-SUM((US114=$AQN$114:$AQR$114)+0) -> 1 | UT112: =1-SUM((UT114=$AQN$114:$AQR$114)+0) -> 1 | UU112: =1-SUM((UU114=$AQN$114:$AQR$114)+0) -> 1 | UV112: =1-SUM((UV114=$AQN$114:$AQR$114)+0) -> 1 | UW112: =1-SUM((UW114=$AQN$114:$AQR$114)+0) -> 1 | UX112: =1-SUM((UX114=$AQN$114:$AQR$114)+0) -> 1 | UY112: =1-SUM((UY114=$AQN$114:$AQR$114)+0) -> 1 | UZ112: =1-SUM((UZ114=$AQN$114:$AQR$114)+0) -> 1 | VA112: =1-SUM((VA114=$AQN$114:$AQR$114)+0) -> 1 | VB112: =1-SUM((VB114=$AQN$114:$AQR$114)+0) -> 1 | VC112: =1-SUM((VC114=$AQN$114:$AQR$114)+0) -> 1 | VD112: =1-SUM((VD114=$AQN$114:$AQR$114)+0) -> 1 | VE112: =1-SUM((VE114=$AQN$114:$AQR$114)+0) -> 1 | VF112: =1-SUM((VF114=$AQN$114:$AQR$114)+0) -> 1 | VG112: =1-SUM((VG114=$AQN$114:$AQR$114)+0) -> 1 | VH112: =1-SUM((VH114=$AQN$114:$AQR$114)+0) -> 1 | VI112: =1-SUM((VI114=$AQN$114:$AQR$114)+0) -> 1 | VJ112: =1-SUM((VJ114=$AQN$114:$AQR$114)+0) -> 1 | VK112: =1-SUM((VK114=$AQN$114:$AQR$114)+0) -> 1 | VL112: =1-SUM((VL114=$AQN$114:$AQR$114)+0) -> 1 | VM112: =1-SUM((VM114=$AQN$114:$AQR$114)+0) -> 1 | VN112: =1-SUM((VN114=$AQN$114:$AQR$114)+0) -> 1 | VO112: =1-SUM((VO114=$AQN$114:$AQR$114)+0) -> 1 | VP112: =1-SUM((VP114=$AQN$114:$AQR$114)+0) -> 1 | VQ112: =1-SUM((VQ114=$AQN$114:$AQR$114)+0) -> 1 | VR112: =1-SUM((VR114=$AQN$114:$AQR$114)+0) -> 1 | VS112: =1-SUM((VS114=$AQN$114:$AQR$114)+0) -> 1 | VT112: =1-SUM((VT114=$AQN$114:$AQR$114)+0) -> 1 | VU112: =1-SUM((VU114=$AQN$114:$AQR$114)+0) -> 1 | VV112: =1-SUM((VV114=$AQN$114:$AQR$114)+0) -> 1 | VW112: =1-SUM((VW114=$AQN$114:$AQR$114)+0) -> 1 | VX112: =1-SUM((VX114=$AQN$114:$AQR$114)+0) -> 1 | VY112: =1-SUM((VY114=$AQN$114:$AQR$114)+0) -> 1 | VZ112: =1-SUM((VZ114=$AQN$114:$AQR$114)+0) -> 1 | WA112: =1-SUM((WA114=$AQN$114:$AQR$114)+0) -> 1 | WB112: =1-SUM((WB114=$AQN$114:$AQR$114)+0) -> 1 | WC112: =1-SUM((WC114=$AQN$114:$AQR$114)+0) -> 1 | WD112: =1-SUM((WD114=$AQN$114:$AQR$114)+0) -> 1 | WE112: =1-SUM((WE114=$AQN$114:$AQR$114)+0) -> 1 | WF112: =1-SUM((WF114=$AQN$114:$AQR$114)+0) -> 1 | WG112: =1-SUM((WG114=$AQN$114:$AQR$114)+0) -> 1 | WH112: =1-SUM((WH114=$AQN$114:$AQR$114)+0) -> 1 | WI112: =1-SUM((WI114=$AQN$114:$AQR$114)+0) -> 1 | WJ112: =1-SUM((WJ114=$AQN$114:$AQR$114)+0) -> 1 | WK112: =1-SUM((WK114=$AQN$114:$AQR$114)+0) -> 1 | WL112: =1-SUM((WL114=$AQN$114:$AQR$114)+0) -> 1 | WM112: =1-SUM((WM114=$AQN$114:$AQR$114)+0) -> 1 | WN112: =1-SUM((WN114=$AQN$114:$AQR$114)+0) -> 1 | WO112: =1-SUM((WO114=$AQN$114:$AQR$114)+0) -> 1 | WP112: =1-SUM((WP114=$AQN$114:$AQR$114)+0) -> 1 | WQ112: =1-SUM((WQ114=$AQN$114:$AQR$114)+0) -> 1 | WR112: =1-SUM((WR114=$AQN$114:$AQR$114)+0) -> 1 | WS112: =1-SUM((WS114=$AQN$114:$AQR$114)+0) -> 1 | WT112: =1-SUM((WT114=$AQN$114:$AQR$114)+0) -> 1 | WU112: =1-SUM((WU114=$AQN$114:$AQR$114)+0) -> 1 | WV112: =1-SUM((WV114=$AQN$114:$AQR$114)+0) -> 1 | WW112: =1-SUM((WW114=$AQN$114:$AQR$114)+0) -> 1 | WX112: =1-SUM((WX114=$AQN$114:$AQR$114)+0) -> 1 | WY112: =1-SUM((WY114=$AQN$114:$AQR$114)+0) -> 1 | WZ112: =1-SUM((WZ114=$AQN$114:$AQR$114)+0) -> 1 | XA112: =1-SUM((XA114=$AQN$114:$AQR$114)+0) -> 1 | XB112: =1-SUM((XB114=$AQN$114:$AQR$114)+0) -> 1 | XC112: =1-SUM((XC114=$AQN$114:$AQR$114)+0) -> 1 | XD112: =1-SUM((XD114=$AQN$114:$AQR$114)+0) -> 1 | XE112: =1-SUM((XE114=$AQN$114:$AQR$114)+0) -> 1 | XF112: =1-SUM((XF114=$AQN$114:$AQR$114)+0) -> 1 | XG112: =1-SUM((XG114=$AQN$114:$AQR$114)+0) -> 1 | XH112: =1-SUM((XH114=$AQN$114:$AQR$114)+0) -> 1 | XI112: =1-SUM((XI114=$AQN$114:$AQR$114)+0) -> 1 | XJ112: =1-SUM((XJ114=$AQN$114:$AQR$114)+0) -> 1 | XK112: =1-SUM((XK114=$AQN$114:$AQR$114)+0) -> 1 | XL112: =1-SUM((XL114=$AQN$114:$AQR$114)+0) -> 1 | XM112: =1-SUM((XM114=$AQN$114:$AQR$114)+0) -> 1 | XN112: =1-SUM((XN114=$AQN$114:$AQR$114)+0) -> 1 | XO112: =1-SUM((XO114=$AQN$114:$AQR$114)+0) -> 1 | XP112: =1-SUM((XP114=$AQN$114:$AQR$114)+0) -> 1 | XQ112: =1-SUM((XQ114=$AQN$114:$AQR$114)+0) -> 1 | XR112: =1-SUM((XR114=$AQN$114:$AQR$114)+0) -> 1 | XS112: =1-SUM((XS114=$AQN$114:$AQR$114)+0) -> 1 | XT112: =1-SUM((XT114=$AQN$114:$AQR$114)+0) -> 1 | XU112: =1-SUM((XU114=$AQN$114:$AQR$114)+0) -> 1 | XV112: =1-SUM((XV114=$AQN$114:$AQR$114)+0) -> 1 | XW112: =1-SUM((XW114=$AQN$114:$AQR$114)+0) -> 1 | XX112: =1-SUM((XX114=$AQN$114:$AQR$114)+0) -> 1 | XY112: =1-SUM((XY114=$AQN$114:$AQR$114)+0) -> 1 | XZ112: =1-SUM((XZ114=$AQN$114:$AQR$114)+0) -> 1 | YA112: =1-SUM((YA114=$AQN$114:$AQR$114)+0) -> 1 | YB112: =1-SUM((YB114=$AQN$114:$AQR$114)+0) -> 1 | YC112: =1-SUM((YC114=$AQN$114:$AQR$114)+0) -> 1 | YD112: =1-SUM((YD114=$AQN$114:$AQR$114)+0) -> 1 | YE112: =1-SUM((YE114=$AQN$114:$AQR$114)+0) -> 1 | YF112: =1-SUM((YF114=$AQN$114:$AQR$114)+0) -> 1 | YG112: =1-SUM((YG114=$AQN$114:$AQR$114)+0) -> 1 | YH112: =1-SUM((YH114=$AQN$114:$AQR$114)+0) -> 1 | YI112: =1-SUM((YI114=$AQN$114:$AQR$114)+0) -> 1 | YJ112: =1-SUM((YJ114=$AQN$114:$AQR$114)+0) -> 1 | YK112: =1-SUM((YK114=$AQN$114:$AQR$114)+0) -> 1 | YL112: =1-SUM((YL114=$AQN$114:$AQR$114)+0) -> 1 | YM112: =1-SUM((YM114=$AQN$114:$AQR$114)+0) -> 1 | YN112: =1-SUM((YN114=$AQN$114:$AQR$114)+0) -> 1 | YO112: =1-SUM((YO114=$AQN$114:$AQR$114)+0) -> 1 | YP112: =1-SUM((YP114=$AQN$114:$AQR$114)+0) -> 1 | YQ112: =1-SUM((YQ114=$AQN$114:$AQR$114)+0) -> 1 | YR112: =1-SUM((YR114=$AQN$114:$AQR$114)+0) -> 1 | YS112: =1-SUM((YS114=$AQN$114:$AQR$114)+0) -> 1 | YT112: =1-SUM((YT114=$AQN$114:$AQR$114)+0) -> 1 | YU112: =1-SUM((YU114=$AQN$114:$AQR$114)+0) -> 1 | YV112: =1-SUM((YV114=$AQN$114:$AQR$114)+0) -> 1 | YW112: =1-SUM((YW114=$AQN$114:$AQR$114)+0) -> 1 | YX112: =1-SUM((YX114=$AQN$114:$AQR$114)+0) -> 1 | YY112: =1-SUM((YY114=$AQN$114:$AQR$114)+0) -> 1 | YZ112: =1-SUM((YZ114=$AQN$114:$AQR$114)+0) -> 1 | ZA112: =1-SUM((ZA114=$AQN$114:$AQR$114)+0) -> 1 | ZB112: =1-SUM((ZB114=$AQN$114:$AQR$114)+0) -> 1 | ZC112: =1-SUM((ZC114=$AQN$114:$AQR$114)+0) -> 1 | ZD112: =1-SUM((ZD114=$AQN$114:$AQR$114)+0) -> 1 | ZE112: =1-SUM((ZE114=$AQN$114:$AQR$114)+0) -> 1 | ZF112: =1-SUM((ZF114=$AQN$114:$AQR$114)+0) -> 1 | ZG112: =1-SUM((ZG114=$AQN$114:$AQR$114)+0) -> 1 | ZH112: =1-SUM((ZH114=$AQN$114:$AQR$114)+0) -> 1 | ZI112: =1-SUM((ZI114=$AQN$114:$AQR$114)+0) -> 1 | ZJ112: =1-SUM((ZJ114=$AQN$114:$AQR$114)+0) -> 1 | ZK112: =1-SUM((ZK114=$AQN$114:$AQR$114)+0) -> 1 | ZL112: =1-SUM((ZL114=$AQN$114:$AQR$114)+0) -> 1 | ZM112: =1-SUM((ZM114=$AQN$114:$AQR$114)+0) -> 1 | ZN112: =1-SUM((ZN114=$AQN$114:$AQR$114)+0) -> 1 | ZO112: =1-SUM((ZO114=$AQN$114:$AQR$114)+0) -> 1 | ZP112: =1-SUM((ZP114=$AQN$114:$AQR$114)+0) -> 1 | ZQ112: =1-SUM((ZQ114=$AQN$114:$AQR$114)+0) -> 1 | ZR112: =1-SUM((ZR114=$AQN$114:$AQR$114)+0) -> 1 | ZS112: =1-SUM((ZS114=$AQN$114:$AQR$114)+0) -> 1 | ZT112: =1-SUM((ZT114=$AQN$114:$AQR$114)+0) -> 1 | ZU112: =1-SUM((ZU114=$AQN$114:$AQR$114)+0) -> 1 | ZV112: =1-SUM((ZV114=$AQN$114:$AQR$114)+0) -> 1 | ZW112: =1-SUM((ZW114=$AQN$114:$AQR$114)+0) -> 1 | ZX112: =1-SUM((ZX114=$AQN$114:$AQR$114)+0) -> 1 | ZY112: =1-SUM((ZY114=$AQN$114:$AQR$114)+0) -> 1 | ZZ112: =1-SUM((ZZ114=$AQN$114:$AQR$114)+0) -> 1 | AAA112: =1-SUM((AAA114=$AQN$114:$AQR$114)+0) -> 1 | AAB112: =1-SUM((AAB114=$AQN$114:$AQR$114)+0) -> 1 | AAC112: =1-SUM((AAC114=$AQN$114:$AQR$114)+0) -> 1 | AAD112: =1-SUM((AAD114=$AQN$114:$AQR$114)+0) -> 1 | AAE112: =1-SUM((AAE114=$AQN$114:$AQR$114)+0) -> 1 | AAF112: =1-SUM((AAF114=$AQN$114:$AQR$114)+0) -> 1 | AAG112: =1-SUM((AAG114=$AQN$114:$AQR$114)+0) -> 1 | AAH112: =1-SUM((AAH114=$AQN$114:$AQR$114)+0) -> 1 | AAI112: =1-SUM((AAI114=$AQN$114:$AQR$114)+0) -> 1 | AAJ112: =1-SUM((AAJ114=$AQN$114:$AQR$114)+0) -> 1 | AAK112: =1-SUM((AAK114=$AQN$114:$AQR$114)+0) -> 1 | AAL112: =1-SUM((AAL114=$AQN$114:$AQR$114)+0) -> 1 | AAM112: =1-SUM((AAM114=$AQN$114:$AQR$114)+0) -> 1 | AAN112: =1-SUM((AAN114=$AQN$114:$AQR$114)+0) -> 1 | AAO112: =1-SUM((AAO114=$AQN$114:$AQR$114)+0) -> 1 | AAP112: =1-SUM((AAP114=$AQN$114:$AQR$114)+0) -> 1 | AAQ112: =1-SUM((AAQ114=$AQN$114:$AQR$114)+0) -> 1 | AAR112: =1-SUM((AAR114=$AQN$114:$AQR$114)+0) -> 1 | AAS112: =1-SUM((AAS114=$AQN$114:$AQR$114)+0) -> 1 | AAT112: =1-SUM((AAT114=$AQN$114:$AQR$114)+0) -> 1 | AAU112: =1-SUM((AAU114=$AQN$114:$AQR$114)+0) -> 1 | AAV112: =1-SUM((AAV114=$AQN$114:$AQR$114)+0) -> 1 | AAW112: =1-SUM((AAW114=$AQN$114:$AQR$114)+0) -> 1 | AAX112: =1-SUM((AAX114=$AQN$114:$AQR$114)+0) -> 1 | AAY112: =1-SUM((AAY114=$AQN$114:$AQR$114)+0) -> 1 | AAZ112: =1-SUM((AAZ114=$AQN$114:$AQR$114)+0) -> 1 | ABA112: =1-SUM((ABA114=$AQN$114:$AQR$114)+0) -> 1 | ABB112: =1-SUM((ABB114=$AQN$114:$AQR$114)+0) -> 1 | ABC112: =1-SUM((ABC114=$AQN$114:$AQR$114)+0) -> 1 | ABD112: =1-SUM((ABD114=$AQN$114:$AQR$114)+0) -> 1 | ABE112: =1-SUM((ABE114=$AQN$114:$AQR$114)+0) -> 1 | ABF112: =1-SUM((ABF114=$AQN$114:$AQR$114)+0) -> 1 | ABG112: =1-SUM((ABG114=$AQN$114:$AQR$114)+0) -> 1 | ABH112: =1-SUM((ABH114=$AQN$114:$AQR$114)+0) -> 1 | ABI112: =1-SUM((ABI114=$AQN$114:$AQR$114)+0) -> 1 | ABJ112: =1-SUM((ABJ114=$AQN$114:$AQR$114)+0) -> 1 | ABK112: =1-SUM((ABK114=$AQN$114:$AQR$114)+0) -> 1 | ABL112: =1-SUM((ABL114=$AQN$114:$AQR$114)+0) -> 1 | ABM112: =1-SUM((ABM114=$AQN$114:$AQR$114)+0) -> 1 | ABN112: =1-SUM((ABN114=$AQN$114:$AQR$114)+0) -> 1 | ABO112: =1-SUM((ABO114=$AQN$114:$AQR$114)+0) -> 1 | ABP112: =1-SUM((ABP114=$AQN$114:$AQR$114)+0) -> 1 | ABQ112: =1-SUM((ABQ114=$AQN$114:$AQR$114)+0) -> 1 | ABR112: =1-SUM((ABR114=$AQN$114:$AQR$114)+0) -> 1 | ABS112: =1-SUM((ABS114=$AQN$114:$AQR$114)+0) -> 1 | ABT112: =1-SUM((ABT114=$AQN$114:$AQR$114)+0) -> 1 | ABU112: =1-SUM((ABU114=$AQN$114:$AQR$114)+0) -> 1 | ABV112: =1-SUM((ABV114=$AQN$114:$AQR$114)+0) -> 1 | ABW112: =1-SUM((ABW114=$AQN$114:$AQR$114)+0) -> 1 | ABX112: =1-SUM((ABX114=$AQN$114:$AQR$114)+0) -> 1 | ABY112: =1-SUM((ABY114=$AQN$114:$AQR$114)+0) -> 1 | ABZ112: =1-SUM((ABZ114=$AQN$114:$AQR$114)+0) -> 1 | ACA112: =1-SUM((ACA114=$AQN$114:$AQR$114)+0) -> 1 | ACB112: =1-SUM((ACB114=$AQN$114:$AQR$114)+0) -> 1 | ACC112: =1-SUM((ACC114=$AQN$114:$AQR$114)+0) -> 1 | ACD112: =1-SUM((ACD114=$AQN$114:$AQR$114)+0) -> 1 | ACE112: =1-SUM((ACE114=$AQN$114:$AQR$114)+0) -> 1 | ACF112: =1-SUM((ACF114=$AQN$114:$AQR$114)+0) -> 1 | ACG112: =1-SUM((ACG114=$AQN$114:$AQR$114)+0) -> 1 | ACH112: =1-SUM((ACH114=$AQN$114:$AQR$114)+0) -> 1 | ACI112: =1-SUM((ACI114=$AQN$114:$AQR$114)+0) -> 1 | ACJ112: =1-SUM((ACJ114=$AQN$114:$AQR$114)+0) -> 1 | ACK112: =1-SUM((ACK114=$AQN$114:$AQR$114)+0) -> 1 | ACL112: =1-SUM((ACL114=$AQN$114:$AQR$114)+0) -> 1 | ACM112: =1-SUM((ACM114=$AQN$114:$AQR$114)+0) -> 1 | ACN112: =1-SUM((ACN114=$AQN$114:$AQR$114)+0) -> 1 | ACO112: =1-SUM((ACO114=$AQN$114:$AQR$114)+0) -> 1 | ACP112: =1-SUM((ACP114=$AQN$114:$AQR$114)+0) -> 1 | ACQ112: =1-SUM((ACQ114=$AQN$114:$AQR$114)+0) -> 1 | ACR112: =1-SUM((ACR114=$AQN$114:$AQR$114)+0) -> 1 | ACS112: =1-SUM((ACS114=$AQN$114:$AQR$114)+0) -> 1 | ACT112: =1-SUM((ACT114=$AQN$114:$AQR$114)+0) -> 1 | ACU112: =1-SUM((ACU114=$AQN$114:$AQR$114)+0) -> 1 | ACV112: =1-SUM((ACV114=$AQN$114:$AQR$114)+0) -> 1 | ACW112: =1-SUM((ACW114=$AQN$114:$AQR$114)+0) -> 1 | ACX112: =1-SUM((ACX114=$AQN$114:$AQR$114)+0) -> 1 | ACY112: =1-SUM((ACY114=$AQN$114:$AQR$114)+0) -> 1 | ACZ112: =1-SUM((ACZ114=$AQN$114:$AQR$114)+0) -> 1 | ADA112: =1-SUM((ADA114=$AQN$114:$AQR$114)+0) -> 1 | ADB112: =1-SUM((ADB114=$AQN$114:$AQR$114)+0) -> 1 | ADC112: =1-SUM((ADC114=$AQN$114:$AQR$114)+0) -> 1 | ADD112: =1-SUM((ADD114=$AQN$114:$AQR$114)+0) -> 1 | ADE112: =1-SUM((ADE114=$AQN$114:$AQR$114)+0) -> 1 | ADF112: =1-SUM((ADF114=$AQN$114:$AQR$114)+0) -> 1 | ADG112: =1-SUM((ADG114=$AQN$114:$AQR$114)+0) -> 1 | ADH112: =1-SUM((ADH114=$AQN$114:$AQR$114)+0) -> 1 | ADI112: =1-SUM((ADI114=$AQN$114:$AQR$114)+0) -> 1 | ADJ112: =1-SUM((ADJ114=$AQN$114:$AQR$114)+0) -> 1 | ADK112: =1-SUM((ADK114=$AQN$114:$AQR$114)+0) -> 1 | ADL112: =1-SUM((ADL114=$AQN$114:$AQR$114)+0) -> 1 | ADM112: =1-SUM((ADM114=$AQN$114:$AQR$114)+0) -> 1 | ADN112: =1-SUM((ADN114=$AQN$114:$AQR$114)+0) -> 1 | ADO112: =1-SUM((ADO114=$AQN$114:$AQR$114)+0) -> 1 | ADP112: =1-SUM((ADP114=$AQN$114:$AQR$114)+0) -> 1 | ADQ112: =1-SUM((ADQ114=$AQN$114:$AQR$114)+0) -> 1 | ADR112: =1-SUM((ADR114=$AQN$114:$AQR$114)+0) -> 1 | ADS112: =1-SUM((ADS114=$AQN$114:$AQR$114)+0) -> 1 | ADT112: =1-SUM((ADT114=$AQN$114:$AQR$114)+0) -> 1 | ADU112: =1-SUM((ADU114=$AQN$114:$AQR$114)+0) -> 1 | ADV112: =1-SUM((ADV114=$AQN$114:$AQR$114)+0) -> 1 | ADW112: =1-SUM((ADW114=$AQN$114:$AQR$114)+0) -> 1 | ADX112: =1-SUM((ADX114=$AQN$114:$AQR$114)+0) -> 1 | ADY112: =1-SUM((ADY114=$AQN$114:$AQR$114)+0) -> 1 | ADZ112: =1-SUM((ADZ114=$AQN$114:$AQR$114)+0) -> 1 | AEA112: =1-SUM((AEA114=$AQN$114:$AQR$114)+0) -> 1 | AEB112: =1-SUM((AEB114=$AQN$114:$AQR$114)+0) -> 1 | AEC112: =1-SUM((AEC114=$AQN$114:$AQR$114)+0) -> 1 | AED112: =1-SUM((AED114=$AQN$114:$AQR$114)+0) -> 1 | AEE112: =1-SUM((AEE114=$AQN$114:$AQR$114)+0) -> 1 | AEF112: =1-SUM((AEF114=$AQN$114:$AQR$114)+0) -> 1 | AEG112: =1-SUM((AEG114=$AQN$114:$AQR$114)+0) -> 1 | AEH112: =1-SUM((AEH114=$AQN$114:$AQR$114)+0) -> 1 | AEI112: =1-SUM((AEI114=$AQN$114:$AQR$114)+0) -> 1 | AEJ112: =1-SUM((AEJ114=$AQN$114:$AQR$114)+0) -> 1 | AEK112: =1-SUM((AEK114=$AQN$114:$AQR$114)+0) -> 1 | AEL112: =1-SUM((AEL114=$AQN$114:$AQR$114)+0) -> 1 | AEM112: =1-SUM((AEM114=$AQN$114:$AQR$114)+0) -> 1 | AEN112: =1-SUM((AEN114=$AQN$114:$AQR$114)+0) -> 1 | AEO112: =1-SUM((AEO114=$AQN$114:$AQR$114)+0) -> 1 | AEP112: =1-SUM((AEP114=$AQN$114:$AQR$114)+0) -> 1 | AEQ112: =1-SUM((AEQ114=$AQN$114:$AQR$114)+0) -> 1 | AER112: =1-SUM((AER114=$AQN$114:$AQR$114)+0) -> 1 | AES112: =1-SUM((AES114=$AQN$114:$AQR$114)+0) -> 1 | AET112: =1-SUM((AET114=$AQN$114:$AQR$114)+0) -> 1 | AEU112: =1-SUM((AEU114=$AQN$114:$AQR$114)+0) -> 1 | AEV112: =1-SUM((AEV114=$AQN$114:$AQR$114)+0) -> 1 | AEW112: =1-SUM((AEW114=$AQN$114:$AQR$114)+0) -> 1 | AEX112: =1-SUM((AEX114=$AQN$114:$AQR$114)+0) -> 1 | AEY112: =1-SUM((AEY114=$AQN$114:$AQR$114)+0) -> 1 | AEZ112: =1-SUM((AEZ114=$AQN$114:$AQR$114)+0) -> 1 | AFA112: =1-SUM((AFA114=$AQN$114:$AQR$114)+0) -> 1 | AFB112: =1-SUM((AFB114=$AQN$114:$AQR$114)+0) -> 1 | AFC112: =1-SUM((AFC114=$AQN$114:$AQR$114)+0) -> 1 | AFD112: =1-SUM((AFD114=$AQN$114:$AQR$114)+0) -> 1 | AFE112: =1-SUM((AFE114=$AQN$114:$AQR$114)+0) -> 1 | AFF112: =1-SUM((AFF114=$AQN$114:$AQR$114)+0) -> 1 | AFG112: =1-SUM((AFG114=$AQN$114:$AQR$114)+0) -> 1 | AFH112: =1-SUM((AFH114=$AQN$114:$AQR$114)+0) -> 0 | AFI112: =1-SUM((AFI114=$AQN$114:$AQR$114)+0) -> 1 | AFJ112: =1-SUM((AFJ114=$AQN$114:$AQR$114)+0) -> 1 | AFK112: =1-SUM((AFK114=$AQN$114:$AQR$114)+0) -> 1 | AFL112: =1-SUM((AFL114=$AQN$114:$AQR$114)+0) -> 1 | AFM112: =1-SUM((AFM114=$AQN$114:$AQR$114)+0) -> 1 | AFN112: =1-SUM((AFN114=$AQN$114:$AQR$114)+0) -> 1 | AFO112: =1-SUM((AFO114=$AQN$114:$AQR$114)+0) -> 1 | AFP112: =1-SUM((AFP114=$AQN$114:$AQR$114)+0) -> 1 | AFQ112: =1-SUM((AFQ114=$AQN$114:$AQR$114)+0) -> 1 | AFR112: =1-SUM((AFR114=$AQN$114:$AQR$114)+0) -> 1 | AFS112: =1-SUM((AFS114=$AQN$114:$AQR$114)+0) -> 1 | AFT112: =1-SUM((AFT114=$AQN$114:$AQR$114)+0) -> 1 | AFU112: =1-SUM((AFU114=$AQN$114:$AQR$114)+0) -> 1 | AFV112: =1-SUM((AFV114=$AQN$114:$AQR$114)+0) -> 1 | AFW112: =1-SUM((AFW114=$AQN$114:$AQR$114)+0) -> 1 | AFX112: =1-SUM((AFX114=$AQN$114:$AQR$114)+0) -> 1 | AFY112: =1-SUM((AFY114=$AQN$114:$AQR$114)+0) -> 1 | AFZ112: =1-SUM((AFZ114=$AQN$114:$AQR$114)+0) -> 1 | AGA112: =1-SUM((AGA114=$AQN$114:$AQR$114)+0) -> 1 | AGB112: =1-SUM((AGB114=$AQN$114:$AQR$114)+0) -> 1 | AGC112: =1-SUM((AGC114=$AQN$114:$AQR$114)+0) -> 1 | AGD112: =1-SUM((AGD114=$AQN$114:$AQR$114)+0) -> 1 | AGE112: =1-SUM((AGE114=$AQN$114:$AQR$114)+0) -> 1 | AGF112: =1-SUM((AGF114=$AQN$114:$AQR$114)+0) -> 1 | AGG112: =1-SUM((AGG114=$AQN$114:$AQR$114)+0) -> 1 | AGH112: =1-SUM((AGH114=$AQN$114:$AQR$114)+0) -> 1 | AGI112: =1-SUM((AGI114=$AQN$114:$AQR$114)+0) -> 1 | AGJ112: =1-SUM((AGJ114=$AQN$114:$AQR$114)+0) -> 1 | AGK112: =1-SUM((AGK114=$AQN$114:$AQR$114)+0) -> 1 | AGL112: =1-SUM((AGL114=$AQN$114:$AQR$114)+0) -> 1 | AGM112: =1-SUM((AGM114=$AQN$114:$AQR$114)+0) -> 1 | AGN112: =1-SUM((AGN114=$AQN$114:$AQR$114)+0) -> 1 | AGO112: =1-SUM((AGO114=$AQN$114:$AQR$114)+0) -> 1 | AGP112: =1-SUM((AGP114=$AQN$114:$AQR$114)+0) -> 1 | AGQ112: =1-SUM((AGQ114=$AQN$114:$AQR$114)+0) -> 1 | AGR112: =1-SUM((AGR114=$AQN$114:$AQR$114)+0) -> 1 | AGS112: =1-SUM((AGS114=$AQN$114:$AQR$114)+0) -> 1 | AGT112: =1-SUM((AGT114=$AQN$114:$AQR$114)+0) -> 1 | AGU112: =1-SUM((AGU114=$AQN$114:$AQR$114)+0) -> 1 | AGV112: =1-SUM((AGV114=$AQN$114:$AQR$114)+0) -> 1 | AGW112: =1-SUM((AGW114=$AQN$114:$AQR$114)+0) -> 1 | AGX112: =1-SUM((AGX114=$AQN$114:$AQR$114)+0) -> 1 | AGY112: =1-SUM((AGY114=$AQN$114:$AQR$114)+0) -> 1 | AGZ112: =1-SUM((AGZ114=$AQN$114:$AQR$114)+0) -> 1 | AHA112: =1-SUM((AHA114=$AQN$114:$AQR$114)+0) -> 1 | AHB112: =1-SUM((AHB114=$AQN$114:$AQR$114)+0) -> 1 | AHC112: =1-SUM((AHC114=$AQN$114:$AQR$114)+0) -> 1 | AHD112: =1-SUM((AHD114=$AQN$114:$AQR$114)+0) -> 1 | AHE112: =1-SUM((AHE114=$AQN$114:$AQR$114)+0) -> 1 | AHF112: =1-SUM((AHF114=$AQN$114:$AQR$114)+0) -> 1 | AHG112: =1-SUM((AHG114=$AQN$114:$AQR$114)+0) -> 1 | AHH112: =1-SUM((AHH114=$AQN$114:$AQR$114)+0) -> 1 | AHI112: =1-SUM((AHI114=$AQN$114:$AQR$114)+0) -> 1 | AHJ112: =1-SUM((AHJ114=$AQN$114:$AQR$114)+0) -> 1 | AHK112: =1-SUM((AHK114=$AQN$114:$AQR$114)+0) -> 1 | AHL112: =1-SUM((AHL114=$AQN$114:$AQR$114)+0) -> 1 | AHM112: =1-SUM((AHM114=$AQN$114:$AQR$114)+0) -> 1 | AHN112: =1-SUM((AHN114=$AQN$114:$AQR$114)+0) -> 1 | AHO112: =1-SUM((AHO114=$AQN$114:$AQR$114)+0) -> 1 | AHP112: =1-SUM((AHP114=$AQN$114:$AQR$114)+0) -> 1 | AHQ112: =1-SUM((AHQ114=$AQN$114:$AQR$114)+0) -> 1 | AHR112: =1-SUM((AHR114=$AQN$114:$AQR$114)+0) -> 1 | AHS112: =1-SUM((AHS114=$AQN$114:$AQR$114)+0) -> 1 | AHT112: =1-SUM((AHT114=$AQN$114:$AQR$114)+0) -> 1 | AHU112: =1-SUM((AHU114=$AQN$114:$AQR$114)+0) -> 1 | AHV112: =1-SUM((AHV114=$AQN$114:$AQR$114)+0) -> 1 | AHW112: =1-SUM((AHW114=$AQN$114:$AQR$114)+0) -> 1 | AHX112: =1-SUM((AHX114=$AQN$114:$AQR$114)+0) -> 1 | AHY112: =1-SUM((AHY114=$AQN$114:$AQR$114)+0) -> 1 | AHZ112: =1-SUM((AHZ114=$AQN$114:$AQR$114)+0) -> 1 | AIA112: =1-SUM((AIA114=$AQN$114:$AQR$114)+0) -> 1 | AIB112: =1-SUM((AIB114=$AQN$114:$AQR$114)+0) -> 1 | AIC112: =1-SUM((AIC114=$AQN$114:$AQR$114)+0) -> 1 | AID112: =1-SUM((AID114=$AQN$114:$AQR$114)+0) -> 1 | AIE112: =1-SUM((AIE114=$AQN$114:$AQR$114)+0) -> 1 | AIF112: =1-SUM((AIF114=$AQN$114:$AQR$114)+0) -> 1 | AIG112: =1-SUM((AIG114=$AQN$114:$AQR$114)+0) -> 1 | AIH112: =1-SUM((AIH114=$AQN$114:$AQR$114)+0) -> 1 | AII112: =1-SUM((AII114=$AQN$114:$AQR$114)+0) -> 1 | AIJ112: =1-SUM((AIJ114=$AQN$114:$AQR$114)+0) -> 1 | AIK112: =1-SUM((AIK114=$AQN$114:$AQR$114)+0) -> 1 | AIL112: =1-SUM((AIL114=$AQN$114:$AQR$114)+0) -> 1 | AIM112: =1-SUM((AIM114=$AQN$114:$AQR$114)+0) -> 1 | AIN112: =1-SUM((AIN114=$AQN$114:$AQR$114)+0) -> 1 | AIO112: =1-SUM((AIO114=$AQN$114:$AQR$114)+0) -> 1 | AIP112: =1-SUM((AIP114=$AQN$114:$AQR$114)+0) -> 1 | AIQ112: =1-SUM((AIQ114=$AQN$114:$AQR$114)+0) -> 1 | AIR112: =1-SUM((AIR114=$AQN$114:$AQR$114)+0) -> 1 | AIS112: =1-SUM((AIS114=$AQN$114:$AQR$114)+0) -> 1 | AIT112: =1-SUM((AIT114=$AQN$114:$AQR$114)+0) -> 1 | AIU112: =1-SUM((AIU114=$AQN$114:$AQR$114)+0) -> 1 | AIV112: =1-SUM((AIV114=$AQN$114:$AQR$114)+0) -> 1 | AIW112: =1-SUM((AIW114=$AQN$114:$AQR$114)+0) -> 1 | AIX112: =1-SUM((AIX114=$AQN$114:$AQR$114)+0) -> 1 | AIY112: =1-SUM((AIY114=$AQN$114:$AQR$114)+0) -> 1 | AIZ112: =1-SUM((AIZ114=$AQN$114:$AQR$114)+0) -> 1 | AJA112: =1-SUM((AJA114=$AQN$114:$AQR$114)+0) -> 1 | AJB112: =1-SUM((AJB114=$AQN$114:$AQR$114)+0) -> 1 | AJC112: =1-SUM((AJC114=$AQN$114:$AQR$114)+0) -> 1 | AJD112: =1-SUM((AJD114=$AQN$114:$AQR$114)+0) -> 1 | AJE112: =1-SUM((AJE114=$AQN$114:$AQR$114)+0) -> 1 | AJF112: =1-SUM((AJF114=$AQN$114:$AQR$114)+0) -> 1 | AJG112: =1-SUM((AJG114=$AQN$114:$AQR$114)+0) -> 1 | AJH112: =1-SUM((AJH114=$AQN$114:$AQR$114)+0) -> 1 | AJI112: =1-SUM((AJI114=$AQN$114:$AQR$114)+0) -> 1 | AJJ112: =1-SUM((AJJ114=$AQN$114:$AQR$114)+0) -> 1 | AJK112: =1-SUM((AJK114=$AQN$114:$AQR$114)+0) -> 1 | AJL112: =1-SUM((AJL114=$AQN$114:$AQR$114)+0) -> 1 | AJM112: =1-SUM((AJM114=$AQN$114:$AQR$114)+0) -> 1 | AJN112: =1-SUM((AJN114=$AQN$114:$AQR$114)+0) -> 1 | AJO112: =1-SUM((AJO114=$AQN$114:$AQR$114)+0) -> 1 | AJP112: =1-SUM((AJP114=$AQN$114:$AQR$114)+0) -> 1 | AJQ112: =1-SUM((AJQ114=$AQN$114:$AQR$114)+0) -> 1 | AJR112: =1-SUM((AJR114=$AQN$114:$AQR$114)+0) -> 1 | AJS112: =1-SUM((AJS114=$AQN$114:$AQR$114)+0) -> 1 | AJT112: =1-SUM((AJT114=$AQN$114:$AQR$114)+0) -> 1 | AJU112: =1-SUM((AJU114=$AQN$114:$AQR$114)+0) -> 1 | AJV112: =1-SUM((AJV114=$AQN$114:$AQR$114)+0) -> 1 | AJW112: =1-SUM((AJW114=$AQN$114:$AQR$114)+0) -> 1 | AJX112: =1-SUM((AJX114=$AQN$114:$AQR$114)+0) -> 1 | AJY112: =1-SUM((AJY114=$AQN$114:$AQR$114)+0) -> 1 | AJZ112: =1-SUM((AJZ114=$AQN$114:$AQR$114)+0) -> 1 | AKA112: =1-SUM((AKA114=$AQN$114:$AQR$114)+0) -> 1 | AKB112: =1-SUM((AKB114=$AQN$114:$AQR$114)+0) -> 1 | AKC112: =1-SUM((AKC114=$AQN$114:$AQR$114)+0) -> 1 | AKD112: =1-SUM((AKD114=$AQN$114:$AQR$114)+0) -> 1 | AKE112: =1-SUM((AKE114=$AQN$114:$AQR$114)+0) -> 1 | AKF112: =1-SUM((AKF114=$AQN$114:$AQR$114)+0) -> 1 | AKG112: =1-SUM((AKG114=$AQN$114:$AQR$114)+0) -> 1 | AKH112: =1-SUM((AKH114=$AQN$114:$AQR$114)+0) -> 1 | AKI112: =1-SUM((AKI114=$AQN$114:$AQR$114)+0) -> 1 | AKJ112: =1-SUM((AKJ114=$AQN$114:$AQR$114)+0) -> 1 | AKK112: =1-SUM((AKK114=$AQN$114:$AQR$114)+0) -> 1 | AKL112: =1-SUM((AKL114=$AQN$114:$AQR$114)+0) -> 1 | AKM112: =1-SUM((AKM114=$AQN$114:$AQR$114)+0) -> 1 | AKN112: =1-SUM((AKN114=$AQN$114:$AQR$114)+0) -> 1 | AKO112: =1-SUM((AKO114=$AQN$114:$AQR$114)+0) -> 1 | AKP112: =1-SUM((AKP114=$AQN$114:$AQR$114)+0) -> 1 | AKQ112: =1-SUM((AKQ114=$AQN$114:$AQR$114)+0) -> 1 | AKR112: =1-SUM((AKR114=$AQN$114:$AQR$114)+0) -> 1 | AKS112: =1-SUM((AKS114=$AQN$114:$AQR$114)+0) -> 1 | AKT112: =1-SUM((AKT114=$AQN$114:$AQR$114)+0) -> 1 | AKU112: =1-SUM((AKU114=$AQN$114:$AQR$114)+0) -> 1 | AKV112: =1-SUM((AKV114=$AQN$114:$AQR$114)+0) -> 1 | AKW112: =1-SUM((AKW114=$AQN$114:$AQR$114)+0) -> 1 | AKX112: =1-SUM((AKX114=$AQN$114:$AQR$114)+0) -> 1 | AKY112: =1-SUM((AKY114=$AQN$114:$AQR$114)+0) -> 1 | AKZ112: =1-SUM((AKZ114=$AQN$114:$AQR$114)+0) -> 1 | ALA112: =1-SUM((ALA114=$AQN$114:$AQR$114)+0) -> 1 | ALB112: =1-SUM((ALB114=$AQN$114:$AQR$114)+0) -> 1 | ALC112: =1-SUM((ALC114=$AQN$114:$AQR$114)+0) -> 1 | ALD112: =1-SUM((ALD114=$AQN$114:$AQR$114)+0) -> 1 | ALE112: =1-SUM((ALE114=$AQN$114:$AQR$114)+0) -> 1 | ALF112: =1-SUM((ALF114=$AQN$114:$AQR$114)+0) -> 1 | ALG112: =1-SUM((ALG114=$AQN$114:$AQR$114)+0) -> 1 | ALH112: =1-SUM((ALH114=$AQN$114:$AQR$114)+0) -> 1 | ALI112: =1-SUM((ALI114=$AQN$114:$AQR$114)+0) -> 1 | ALJ112: =1-SUM((ALJ114=$AQN$114:$AQR$114)+0) -> 1 | ALK112: =1-SUM((ALK114=$AQN$114:$AQR$114)+0) -> 1 | ALL112: =1-SUM((ALL114=$AQN$114:$AQR$114)+0) -> 1 | ALM112: =1-SUM((ALM114=$AQN$114:$AQR$114)+0) -> 1 | ALN112: =1-SUM((ALN114=$AQN$114:$AQR$114)+0) -> 1 | ALO112: =1-SUM((ALO114=$AQN$114:$AQR$114)+0) -> 1 | ALP112: =1-SUM((ALP114=$AQN$114:$AQR$114)+0) -> 1 | ALQ112: =1-SUM((ALQ114=$AQN$114:$AQR$114)+0) -> 1 | ALR112: =1-SUM((ALR114=$AQN$114:$AQR$114)+0) -> 1 | ALS112: =1-SUM((ALS114=$AQN$114:$AQR$114)+0) -> 1 | ALT112: =1-SUM((ALT114=$AQN$114:$AQR$114)+0) -> 1 | ALU112: =1-SUM((ALU114=$AQN$114:$AQR$114)+0) -> 1 | ALV112: =1-SUM((ALV114=$AQN$114:$AQR$114)+0) -> 1 | ALW112: =1-SUM((ALW114=$AQN$114:$AQR$114)+0) -> 1 | ALX112: =1-SUM((ALX114=$AQN$114:$AQR$114)+0) -> 1 | ALY112: =1-SUM((ALY114=$AQN$114:$AQR$114)+0) -> 1 | ALZ112: =1-SUM((ALZ114=$AQN$114:$AQR$114)+0) -> 0 | AMA112: =1-SUM((AMA114=$AQN$114:$AQR$114)+0) -> 1 | AMB112: =1-SUM((AMB114=$AQN$114:$AQR$114)+0) -> 1 | AMC112: =1-SUM((AMC114=$AQN$114:$AQR$114)+0) -> 1 | AMD112: =1-SUM((AMD114=$AQN$114:$AQR$114)+0) -> 1 | AME112: =1-SUM((AME114=$AQN$114:$AQR$114)+0) -> 1 | AMF112: =1-SUM((AMF114=$AQN$114:$AQR$114)+0) -> 1 | AMG112: =1-SUM((AMG114=$AQN$114:$AQR$114)+0) -> 1 | AMH112: =1-SUM((AMH114=$AQN$114:$AQR$114)+0) -> 1 | AMI112: =1-SUM((AMI114=$AQN$114:$AQR$114)+0) -> 1 | AMJ112: =1-SUM((AMJ114=$AQN$114:$AQR$114)+0) -> 1 | AMK112: =1-SUM((AMK114=$AQN$114:$AQR$114)+0) -> 1 | AML112: =1-SUM((AML114=$AQN$114:$AQR$114)+0) -> 1 | AMM112: =1-SUM((AMM114=$AQN$114:$AQR$114)+0) -> 1 | AMN112: =1-SUM((AMN114=$AQN$114:$AQR$114)+0) -> 1 | AMO112: =1-SUM((AMO114=$AQN$114:$AQR$114)+0) -> 1 | AMP112: =1-SUM((AMP114=$AQN$114:$AQR$114)+0) -> 1 | AMQ112: =1-SUM((AMQ114=$AQN$114:$AQR$114)+0) -> 1 | AMR112: =1-SUM((AMR114=$AQN$114:$AQR$114)+0) -> 1 | AMS112: =1-SUM((AMS114=$AQN$114:$AQR$114)+0) -> 1 | AMT112: =1-SUM((AMT114=$AQN$114:$AQR$114)+0) -> 1 | AMU112: =1-SUM((AMU114=$AQN$114:$AQR$114)+0) -> 1 | AMV112: =1-SUM((AMV114=$AQN$114:$AQR$114)+0) -> 1 | AMW112: =1-SUM((AMW114=$AQN$114:$AQR$114)+0) -> 1 | AMX112: =1-SUM((AMX114=$AQN$114:$AQR$114)+0) -> 1 | AMY112: =1-SUM((AMY114=$AQN$114:$AQR$114)+0) -> 1 | AMZ112: =1-SUM((AMZ114=$AQN$114:$AQR$114)+0) -> 1 | ANA112: =1-SUM((ANA114=$AQN$114:$AQR$114)+0) -> 1 | ANB112: =1-SUM((ANB114=$AQN$114:$AQR$114)+0) -> 1 | ANC112: =1-SUM((ANC114=$AQN$114:$AQR$114)+0) -> 1 | AND112: =1-SUM((AND114=$AQN$114:$AQR$114)+0) -> 1 | ANE112: =1-SUM((ANE114=$AQN$114:$AQR$114)+0) -> 1 | ANF112: =1-SUM((ANF114=$AQN$114:$AQR$114)+0) -> 1 | ANG112: =1-SUM((ANG114=$AQN$114:$AQR$114)+0) -> 1 | ANH112: =1-SUM((ANH114=$AQN$114:$AQR$114)+0) -> 1 | ANI112: =1-SUM((ANI114=$AQN$114:$AQR$114)+0) -> 1 | ANJ112: =1-SUM((ANJ114=$AQN$114:$AQR$114)+0) -> 1 | ANK112: =1-SUM((ANK114=$AQN$114:$AQR$114)+0) -> 1 | ANL112: =1-SUM((ANL114=$AQN$114:$AQR$114)+0) -> 1 | ANM112: =1-SUM((ANM114=$AQN$114:$AQR$114)+0) -> 1 | ANN112: =1-SUM((ANN114=$AQN$114:$AQR$114)+0) -> 1 | ANO112: =1-SUM((ANO114=$AQN$114:$AQR$114)+0) -> 1 | ANP112: =1-SUM((ANP114=$AQN$114:$AQR$114)+0) -> 1 | ANQ112: =1-SUM((ANQ114=$AQN$114:$AQR$114)+0) -> 1 | ANR112: =1-SUM((ANR114=$AQN$114:$AQR$114)+0) -> 1 | ANS112: =1-SUM((ANS114=$AQN$114:$AQR$114)+0) -> 1 | ANT112: =1-SUM((ANT114=$AQN$114:$AQR$114)+0) -> 1 | ANU112: =1-SUM((ANU114=$AQN$114:$AQR$114)+0) -> 1 | ANV112: =1-SUM((ANV114=$AQN$114:$AQR$114)+0) -> 1 | ANW112: =1-SUM((ANW114=$AQN$114:$AQR$114)+0) -> 1 | ANX112: =1-SUM((ANX114=$AQN$114:$AQR$114)+0) -> 1 | ANY112: =1-SUM((ANY114=$AQN$114:$AQR$114)+0) -> 1 | ANZ112: =1-SUM((ANZ114=$AQN$114:$AQR$114)+0) -> 1 | AOA112: =1-SUM((AOA114=$AQN$114:$AQR$114)+0) -> 1 | AOB112: =1-SUM((AOB114=$AQN$114:$AQR$114)+0) -> 1 | AOC112: =1-SUM((AOC114=$AQN$114:$AQR$114)+0) -> 1 | AOD112: =1-SUM((AOD114=$AQN$114:$AQR$114)+0) -> 1 | AOE112: =1-SUM((AOE114=$AQN$114:$AQR$114)+0) -> 1 | AOF112: =1-SUM((AOF114=$AQN$114:$AQR$114)+0) -> 1 | AOG112: =1-SUM((AOG114=$AQN$114:$AQR$114)+0) -> 1 | AOH112: =1-SUM((AOH114=$AQN$114:$AQR$114)+0) -> 1 | AOI112: =1-SUM((AOI114=$AQN$114:$AQR$114)+0) -> 1 | AOJ112: =1-SUM((AOJ114=$AQN$114:$AQR$114)+0) -> 1 | AOK112: =1-SUM((AOK114=$AQN$114:$AQR$114)+0) -> 1 | AOL112: =1-SUM((AOL114=$AQN$114:$AQR$114)+0) -> 1 | AOM112: =1-SUM((AOM114=$AQN$114:$AQR$114)+0) -> 1 | AON112: =1-SUM((AON114=$AQN$114:$AQR$114)+0) -> 1 | AOO112: =1-SUM((AOO114=$AQN$114:$AQR$114)+0) -> 1 | AOP112: =1-SUM((AOP114=$AQN$114:$AQR$114)+0) -> 1 | AOQ112: =1-SUM((AOQ114=$AQN$114:$AQR$114)+0) -> 1 | AOR112: =1-SUM((AOR114=$AQN$114:$AQR$114)+0) -> 1 | AOS112: =1-SUM((AOS114=$AQN$114:$AQR$114)+0) -> 1 | AOT112: =1-SUM((AOT114=$AQN$114:$AQR$114)+0) -> 1 | AOU112: =1-SUM((AOU114=$AQN$114:$AQR$114)+0) -> 1 | AOV112: =1-SUM((AOV114=$AQN$114:$AQR$114)+0) -> 1 | AOW112: =1-SUM((AOW114=$AQN$114:$AQR$114)+0) -> 1 | AOX112: =1-SUM((AOX114=$AQN$114:$AQR$114)+0) -> 1 | AOY112: =1-SUM((AOY114=$AQN$114:$AQR$114)+0) -> 1 | AOZ112: =1-SUM((AOZ114=$AQN$114:$AQR$114)+0) -> 1 | APA112: =1-SUM((APA114=$AQN$114:$AQR$114)+0) -> 1 | APB112: =1-SUM((APB114=$AQN$114:$AQR$114)+0) -> 1 | APC112: =1-SUM((APC114=$AQN$114:$AQR$114)+0) -> 1 | APD112: =1-SUM((APD114=$AQN$114:$AQR$114)+0) -> 1 | APE112: =1-SUM((APE114=$AQN$114:$AQR$114)+0) -> 1 | APF112: =1-SUM((APF114=$AQN$114:$AQR$114)+0) -> 1 | APG112: =1-SUM((APG114=$AQN$114:$AQR$114)+0) -> 1 | APH112: =1-SUM((APH114=$AQN$114:$AQR$114)+0) -> 1 | API112: =1-SUM((API114=$AQN$114:$AQR$114)+0) -> 1 | APJ112: =1-SUM((APJ114=$AQN$114:$AQR$114)+0) -> 1 | APK112: =1-SUM((APK114=$AQN$114:$AQR$114)+0) -> 1 | APL112: =1-SUM((APL114=$AQN$114:$AQR$114)+0) -> 1 | APM112: =1-SUM((APM114=$AQN$114:$AQR$114)+0) -> 1 | APN112: =1-SUM((APN114=$AQN$114:$AQR$114)+0) -> 1 | APO112: =1-SUM((APO114=$AQN$114:$AQR$114)+0) -> 1 | APP112: =1-SUM((APP114=$AQN$114:$AQR$114)+0) -> 1 | APQ112: =1-SUM((APQ114=$AQN$114:$AQR$114)+0) -> 1 | APR112: =1-SUM((APR114=$AQN$114:$AQR$114)+0) -> 1 | APS112: =1-SUM((APS114=$AQN$114:$AQR$114)+0) -> 1 | APT112: =1-SUM((APT114=$AQN$114:$AQR$114)+0) -> 1 | APU112: =1-SUM((APU114=$AQN$114:$AQR$114)+0) -> 1 | APV112: =1-SUM((APV114=$AQN$114:$AQR$114)+0) -> 1 | APW112: =1-SUM((APW114=$AQN$114:$AQR$114)+0) -> 1 | APX112: =1-SUM((APX114=$AQN$114:$AQR$114)+0) -> 1 | APY112: =1-SUM((APY114=$AQN$114:$AQR$114)+0) -> 1 | APZ112: =1-SUM((APZ114=$AQN$114:$AQR$114)+0) -> 1 | AQA112: =1-SUM((AQA114=$AQN$114:$AQR$114)+0) -> 1 | AQB112: =1-SUM((AQB114=$AQN$114:$AQR$114)+0) -> 1 | AQC112: =1-SUM((AQC114=$AQN$114:$AQR$114)+0) -> 1 | AQD112: =1-SUM((AQD114=$AQN$114:$AQR$114)+0) -> 1 | AQE112: =1-SUM((AQE114=$AQN$114:$AQR$114)+0) -> 1 | AQF112: =1-SUM((AQF114=$AQN$114:$AQR$114)+0) -> 1 | AQG112: =1-SUM((AQG114=$AQN$114:$AQR$114)+0) -> 1 | AQH112: =1-SUM((AQH114=$AQN$114:$AQR$114)+0) -> 1 | AQI112: =1-SUM((AQI114=$AQN$114:$AQR$114)+0) -> 1 | AQJ112: =1-SUM((AQJ114=$AQN$114:$AQR$114)+0) -> 1 | AQK112: =1-SUM((AQK114=$AQN$114:$AQR$114)+0) -> 1 | AQL112: =1-SUM((AQL114=$AQN$114:$AQR$114)+0) -> 1
